Workbook

Sheet Índice
B9: Informe Trimestral - Seguros Generales y de Vida
B12: Seleccionar Moneda:
B13: Cifras en UF al 30.06.2023 | D13: =IF(B13=H62,"Nota: Cifras del período anterior reajustadas por IPC","") -> 
B16: Mercado de Seguros
B17: Resumen
B18: Prima Directa
B19: Siniestros Directos
B20: Número de Pólizas Emitidas
B21: Número de Siniestros
B24: Seguros Generales | D24: Seguros de Vida
B26: Balance | D26: Balance
B27: Activos | D27: Activos
B28: Pasivos | D28: Pasivos
B29: Estado de Resultados | D29: Estado de Resultados
B30: Estado de Flujos | D30: Estado de Flujos
B33: Cuadros Técnicos | D33: Cuadros Técnicos
B34: Prima Directa | D34: Prima Directa
B35: Participación | D35: Participación
B36: Prima Retenida Neta | D36: Prima Retenida Neta
B37: Retención
B39: Número de Pólizas Emitidas | D39: Número de Pólizas Emitidas
B40: Número de Pólizas Vigentes | D40: Número de Pólizas Vigentes
B41: Número de Ítems Asegurados | D41: Número de Personas Aseguradas
B43: Siniestros Directos | D43: Siniestros Directos
B44: Siniestro Directo Promedio | D44: Siniestro Directo Promedio
B45: Número de Siniestros | D45: Número de Siniestros
B46: Recuperos
B47: Siniestralidad
B49: Reserva de insuficiencia de prima | D49: Reserva de insuficiencia de prima
B52: Notas | D52: Notas
B53: Nota 35 - Resultado de inv. | D53: Nota 35 - Resultado de inv.
B54: Nota 48 - Solvencia | D54: Nota 48 - Solvencia
B57: Indicadores de Gestión | D57: Indicadores de Gestión
F59: Y(-1) | G59: Y(0)
E60: =IF(B13=H61,E61,IF(B13=H62,E62,IF(B13=H63,E63))) -> 1 | F60: =VLOOKUP(E60,E61:G63,2,FALSE) -> 0.0302 | G60: =VLOOKUP(E60,E61:G63,3,FALSE) -> 0.0277 | H60: =VLOOKUP(E60,E61:H63,4,FALSE) -> Cifras en UF al 30.06.2023
E61: 1 | F61: =1000/F68 -> 0.0302 | G61: =1000/G68 -> 0.0277 | H61: =CONCATENATE("Cifras en UF al ",$H$65) -> Cifras en UF al 30.06.2023
E62: 2 | F62: =1*F70 -> 1.0873 | G62: 1.0000 | H62: =CONCATENATE("Cifras en M$ al ",$H$65) -> Cifras en M$ al 30.06.2023
E63: 3 | F63: =1000/F69 -> 1.0870 | G63: =1000/G69 -> 1.2458 | H63: =CONCATENATE("Cifras en US$ al ",$H$65) -> Cifras en US$ al 30.06.2023
H64: =CONCATENATE("Cifras al ",$H$65) -> Cifras al 30.06.2023
H65: 30.06.2023
H66: =CONCATENATE(MID(H65,1,6),MID(H65,7,4)-1) -> 30.06.2022
F68: 33,086.83 | G68: 36,089.48 | H68: UF
F69: 919.97 | G69: 802.68 | H69: USDCLP
F70: 1.0873 | H70: Aplicar IPC a M$(-1). Tomar IPC de meses anteriores (Por ejemplo, para septiembre, usar agosto-agosto).
B72: =CONCATENATE("Versión 1.",COUNTA(B73:B112)-1) -> Versión 1.1
B73: 2023/08/01 - Publicación del archivo preliminar
B74: 2023/08/02 - Se agrega información faltante de Orsan Crédito; se corrige nota 48

Sheet Benchmark
C2: Instrucciones
C3: En la columna "Personalizado", poner "1" para elegir las compañías a comparar en los gráficos.
C4: En la celda D8 y D53, elegir si comparar todas las compañías o las ingresadas en "Personalizado".
C6: Seguros Generales
C8: Compañía | D8: Todas | E8: Todas | F8: Personalizado
B9: 1 | C9: =INDEX('Datos Generales'!$C$7:$AP$7,,ROWS('Datos Generales'!$C$7:AP7)) -> Assurant Chile | D9: =HLOOKUP($D$8,$E$8:$F$48,G9,FALSE) -> 1 | E9: 1 | F9: 1 | G9: 2
B10: 2 | C10: =INDEX('Datos Generales'!$C$7:$AP$7,,ROWS('Datos Generales'!$C$7:AP8)) -> AVLA Crédito | D10: =HLOOKUP($D$8,$E$8:$F$48,G10,FALSE) -> 1 | E10: 1 | F10: 1 | G10: 3
B11: 3 | C11: =INDEX('Datos Generales'!$C$7:$AP$7,,ROWS('Datos Generales'!$C$7:AP9)) -> BCI Seguros | D11: 1 | E11: 1 | F11: 1 | G11: 4
B12: 4 | C12: =INDEX('Datos Generales'!$C$7:$AP$7,,ROWS('Datos Generales'!$C$7:AP10)) -> BNP Paribas Cardif | D12: 1 | E12: 1 | F12: 1 | G12: 5
B13: 5 | C13: =INDEX('Datos Generales'!$C$7:$AP$7,,ROWS('Datos Generales'!$C$7:AP11)) -> Cesce Chile | D13: 1 | E13: 1 | F13: 1 | G13: 6
B14: 6 | C14: =INDEX('Datos Generales'!$C$7:$AP$7,,ROWS('Datos Generales'!$C$7:AP12)) -> Chubb Generales | D14: 1 | E14: 1 | G14: 7
B15: 7 | C15: =INDEX('Datos Generales'!$C$7:$AP$7,,ROWS('Datos Generales'!$C$7:AP13)) -> Coface Chile | D15: 1 | E15: 1 | G15: 8
B16: 8 | C16: =INDEX('Datos Generales'!$C$7:$AP$7,,ROWS('Datos Generales'!$C$7:AP14)) -> Consorcio Nacional | D16: 1 | E16: 1 | G16: 9
B17: 9 | C17: =INDEX('Datos Generales'!$C$7:$AP$7,,ROWS('Datos Generales'!$C$7:AP15)) -> Contempora | D17: 1 | E17: 1 | G17: 10
B18: 10 | C18: =INDEX('Datos Generales'!$C$7:$AP$7,,ROWS('Datos Generales'!$C$7:AP16)) -> Continental Crédito | D18: 1 | E18: 1 | G18: 11
B19: 11 | C19: =INDEX('Datos Generales'!$C$7:$AP$7,,ROWS('Datos Generales'!$C$7:AP17)) -> Continental Generales | D19: 1 | E19: 1 | G19: 12
B20: 12 | C20: =INDEX('Datos Generales'!$C$7:$AP$7,,ROWS('Datos Generales'!$C$7:AP18)) -> Everest Generales | D20: 1 | E20: 1 | G20: 13
B21: 13 | C21: =INDEX('Datos Generales'!$C$7:$AP$7,,ROWS('Datos Generales'!$C$7:AP19)) -> FID Chile | D21: 1 | E21: 1 | G21: 14
B22: 14 | C22: =INDEX('Datos Generales'!$C$7:$AP$7,,ROWS('Datos Generales'!$C$7:AP20)) -> HDI Gar. y Cré. | D22: 1 | E22: 1 | G22: 15
B23: 15 | C23: =INDEX('Datos Generales'!$C$7:$AP$7,,ROWS('Datos Generales'!$C$7:AP21)) -> HDI Seguros | D23: 1 | E23: 1 | G23: 16
B24: 16 | C24: =INDEX('Datos Generales'!$C$7:$AP$7,,ROWS('Datos Generales'!$C$7:AP22)) -> Konsegur | D24: 1 | E24: 1 | G24: 17
B25: 17 | C25: =INDEX('Datos Generales'!$C$7:$AP$7,,ROWS('Datos Generales'!$C$7:AP23)) -> Liberty Seguros | D25: 1 | E25: 1 | G25: 18
B26: 18 | C26: =INDEX('Datos Generales'!$C$7:$AP$7,,ROWS('Datos Generales'!$C$7:AP24)) -> M. de Carabineros | D26: 1 | E26: 1 | G26: 19
B27: 19 | C27: =INDEX('Datos Generales'!$C$7:$AP$7,,ROWS('Datos Generales'!$C$7:AP25)) -> Mapfre | D27: 1 | E27: 1 | G27: 20
B28: 20 | C28: =INDEX('Datos Generales'!$C$7:$AP$7,,ROWS('Datos Generales'!$C$7:AP26)) -> MetLife Generales | D28: 1 | E28: 1 | G28: 21
B29: 21 | C29: =INDEX('Datos Generales'!$C$7:$AP$7,,ROWS('Datos Generales'!$C$7:AP27)) -> Orion Seguros | D29: 1 | E29: 1 | G29: 22
B30: 22 | C30: =INDEX('Datos Generales'!$C$7:$AP$7,,ROWS('Datos Generales'!$C$7:AP28)) -> Orsan Crédito | D30: 1 | E30: 1 | G30: 23
B31: 23 | C31: =INDEX('Datos Generales'!$C$7:$AP$7,,ROWS('Datos Generales'!$C$7:AP29)) -> Porvenir | D31: 1 | E31: 1 | G31: 24
B32: 24 | C32: =INDEX('Datos Generales'!$C$7:$AP$7,,ROWS('Datos Generales'!$C$7:AP30)) -> Reale Chile | D32: 1 | E32: 1 | G32: 25
B33: 25 | C33: =INDEX('Datos Generales'!$C$7:$AP$7,,ROWS('Datos Generales'!$C$7:AP31)) -> Renta Nacional | D33: 1 | E33: 1 | G33: 26
B34: 26 | C34: =INDEX('Datos Generales'!$C$7:$AP$7,,ROWS('Datos Generales'!$C$7:AP32)) -> Solunión Chile | D34: 1 | E34: 1 | G34: 27
B35: 27 | C35: =INDEX('Datos Generales'!$C$7:$AP$7,,ROWS('Datos Generales'!$C$7:AP33)) -> Southbridge | D35: 1 | E35: 1 | G35: 28
B36: 28 | C36: =INDEX('Datos Generales'!$C$7:$AP$7,,ROWS('Datos Generales'!$C$7:AP34)) -> Starr International | D36: 1 | E36: 1 | G36: 29
B37: 29 | C37: =INDEX('Datos Generales'!$C$7:$AP$7,,ROWS('Datos Generales'!$C$7:AP35)) -> Suramericana | D37: 1 | E37: 1 | G37: 30
B38: 30 | C38: =INDEX('Datos Generales'!$C$7:$AP$7,,ROWS('Datos Generales'!$C$7:AP36)) -> Unnio | D38: 1 | E38: 1 | G38: 31
B39: 31 | C39: =INDEX('Datos Generales'!$C$7:$AP$7,,ROWS('Datos Generales'!$C$7:AP37)) -> Zenit Seguros | D39: 1 | E39: 1 | G39: 32
B40: 32 | C40: =INDEX('Datos Generales'!$C$7:$AP$7,,ROWS('Datos Generales'!$C$7:AP38)) -> Zurich Chile | D40: 1 | E40: 1 | G40: 33
B41: 33 | C41: =INDEX('Datos Generales'!$C$7:$AP$7,,ROWS('Datos Generales'!$C$7:AP39)) -> Zurich Santander | D41: =HLOOKUP($D$8,$E$8:$F$48,G41,FALSE) -> 1 | E41: 1 | G41: 34
B42: 34 | C42: =INDEX('Datos Generales'!$C$7:$AP$7,,ROWS('Datos Generales'!$C$7:AP40)) -> 0 | D42: 1 | E42: 1 | G42: 35
B43: 35 | C43: =INDEX('Datos Generales'!$C$7:$AP$7,,ROWS('Datos Generales'!$C$7:AP41)) -> 0 | D43: 0 | G43: 36
B44: 36 | C44: =INDEX('Datos Generales'!$C$7:$AP$7,,ROWS('Datos Generales'!$C$7:AP42)) -> 0 | D44: 0 | G44: 37
B45: 37 | C45: =INDEX('Datos Generales'!$C$7:$AP$7,,ROWS('Datos Generales'!$C$7:AP43)) -> 0 | D45: 0 | G45: 38
B46: 38 | C46: =INDEX('Datos Generales'!$C$7:$AP$7,,ROWS('Datos Generales'!$C$7:AP44)) -> 0 | D46: 0 | G46: 39
B47: 39 | C47: =INDEX('Datos Generales'!$C$7:$AP$7,,ROWS('Datos Generales'!$C$7:AP45)) -> 0 | D47: 0 | G47: 40
B48: 40 | C48: =INDEX('Datos Generales'!$C$7:$AP$7,,ROWS('Datos Generales'!$C$7:AP45)) -> 0 | D48: 0 | G48: 41
C51: Seguros de Vida
C53: Compañía | D53: Todas | E53: Todas | F53: Personalizado
B54: 1 | C54: =INDEX('Datos Vida'!$C$7:$AP$7,,ROWS('Datos Vida'!$C$7:AP7)) -> 4 Life Seguros | D54: =HLOOKUP($D$53,$E$53:$F$93,G54,FALSE) -> 1 | E54: 1 | F54: 1 | G54: 2
B55: 2 | C55: =INDEX('Datos Vida'!$C$7:$AP$7,,ROWS('Datos Vida'!$C$7:AP8)) -> Alemana Seguros | D55: =HLOOKUP($D$53,$E$53:$F$93,G55,FALSE) -> 1 | E55: 1 | F55: 1 | G55: 3
B56: 3 | C56: =INDEX('Datos Vida'!$C$7:$AP$7,,ROWS('Datos Vida'!$C$7:AP9)) -> BCI Seguros Vida | D56: 1 | E56: 1 | F56: 1 | G56: 4
B57: 4 | C57: =INDEX('Datos Vida'!$C$7:$AP$7,,ROWS('Datos Vida'!$C$7:AP10)) -> BICE Vida | D57: 1 | E57: 1 | F57: 1 | G57: 5
B58: 5 | C58: =INDEX('Datos Vida'!$C$7:$AP$7,,ROWS('Datos Vida'!$C$7:AP11)) -> BNP Paribas Cardif | D58: 1 | E58: 1 | F58: 1 | G58: 6
B59: 6 | C59: =INDEX('Datos Vida'!$C$7:$AP$7,,ROWS('Datos Vida'!$C$7:AP12)) -> Bupa | D59: 1 | E59: 1 | G59: 7
B60: 7 | C60: =INDEX('Datos Vida'!$C$7:$AP$7,,ROWS('Datos Vida'!$C$7:AP13)) -> Cámara | D60: 1 | E60: 1 | G60: 8
B61: 8 | C61: =INDEX('Datos Vida'!$C$7:$AP$7,,ROWS('Datos Vida'!$C$7:AP14)) -> CF Seguros de Vida | D61: 1 | E61: 1 | G61: 9
B62: 9 | C62: =INDEX('Datos Vida'!$C$7:$AP$7,,ROWS('Datos Vida'!$C$7:AP15)) -> Chubb Vida | D62: 1 | E62: 1 | G62: 10
B63: 10 | C63: =INDEX('Datos Vida'!$C$7:$AP$7,,ROWS('Datos Vida'!$C$7:AP16)) -> CLC | D63: 1 | E63: 1 | G63: 11
B64: 11 | C64: =INDEX('Datos Vida'!$C$7:$AP$7,,ROWS('Datos Vida'!$C$7:AP17)) -> CN Life | D64: 1 | E64: 1 | G64: 12
B65: 12 | C65: =INDEX('Datos Vida'!$C$7:$AP$7,,ROWS('Datos Vida'!$C$7:AP18)) -> Colmena Seguros | D65: 1 | E65: 1 | G65: 13
B66: 13 | C66: =INDEX('Datos Vida'!$C$7:$AP$7,,ROWS('Datos Vida'!$C$7:AP19)) -> Confuturo | D66: 1 | E66: 1 | G66: 14
B67: 14 | C67: =INDEX('Datos Vida'!$C$7:$AP$7,,ROWS('Datos Vida'!$C$7:AP20)) -> Consorcio Nacional | D67: 1 | E67: 1 | G67: 15
B68: 15 | C68: =INDEX('Datos Vida'!$C$7:$AP$7,,ROWS('Datos Vida'!$C$7:AP21)) -> Divina Pastora | D68: 1 | E68: 1 | G68: 16
B69: 16 | C69: =INDEX('Datos Vida'!$C$7:$AP$7,,ROWS('Datos Vida'!$C$7:AP22)) -> EuroAmérica | D69: 1 | E69: 1 | G69: 17
B70: 17 | C70: =INDEX('Datos Vida'!$C$7:$AP$7,,ROWS('Datos Vida'!$C$7:AP23)) -> Help Seguros | D70: 1 | E70: 1 | G70: 18
B71: 18 | C71: =INDEX('Datos Vida'!$C$7:$AP$7,,ROWS('Datos Vida'!$C$7:AP24)) -> M. de Carabineros | D71: 1 | E71: 1 | G71: 19
B72: 19 | C72: =INDEX('Datos Vida'!$C$7:$AP$7,,ROWS('Datos Vida'!$C$7:AP25)) -> M. del Ej. y Av. | D72: 1 | E72: 1 | G72: 20
B73: 20 | C73: =INDEX('Datos Vida'!$C$7:$AP$7,,ROWS('Datos Vida'!$C$7:AP26)) -> Mapfre Vida | D73: 1 | E73: 1 | G73: 21
B74: 21 | C74: =INDEX('Datos Vida'!$C$7:$AP$7,,ROWS('Datos Vida'!$C$7:AP27)) -> MetLife | D74: 1 | E74: 1 | G74: 22
B75: 22 | C75: =INDEX('Datos Vida'!$C$7:$AP$7,,ROWS('Datos Vida'!$C$7:AP28)) -> Mutual de Seguros | D75: 1 | E75: 1 | G75: 23
B76: 23 | C76: =INDEX('Datos Vida'!$C$7:$AP$7,,ROWS('Datos Vida'!$C$7:AP29)) -> Ohio National | D76: 1 | E76: 1 | G76: 24
B77: 24 | C77: =INDEX('Datos Vida'!$C$7:$AP$7,,ROWS('Datos Vida'!$C$7:AP30)) -> Penta Vida | D77: 1 | E77: 1 | G77: 25
B78: 25 | C78: =INDEX('Datos Vida'!$C$7:$AP$7,,ROWS('Datos Vida'!$C$7:AP31)) -> Principal | D78: 1 | E78: 1 | G78: 26
B79: 26 | C79: =INDEX('Datos Vida'!$C$7:$AP$7,,ROWS('Datos Vida'!$C$7:AP32)) -> Renta Nacional | D79: 1 | E79: 1 | G79: 27
B80: 27 | C80: =INDEX('Datos Vida'!$C$7:$AP$7,,ROWS('Datos Vida'!$C$7:AP33)) -> Save Seguros | D80: 1 | E80: 1 | G80: 28
B81: 28 | C81: =INDEX('Datos Vida'!$C$7:$AP$7,,ROWS('Datos Vida'!$C$7:AP34)) -> Security Previsión | D81: 1 | E81: 1 | G81: 29
B82: 29 | C82: =INDEX('Datos Vida'!$C$7:$AP$7,,ROWS('Datos Vida'!$C$7:AP35)) -> Sura | D82: 1 | E82: 1 | G82: 30
B83: 30 | C83: =INDEX('Datos Vida'!$C$7:$AP$7,,ROWS('Datos Vida'!$C$7:AP36)) -> Suramericana | D83: 1 | E83: 1 | G83: 31
B84: 31 | C84: =INDEX('Datos Vida'!$C$7:$AP$7,,ROWS('Datos Vida'!$C$7:AP37)) -> Zurich Chile | D84: 1 | E84: 1 | G84: 32
B85: 32 | C85: =INDEX('Datos Vida'!$C$7:$AP$7,,ROWS('Datos Vida'!$C$7:AP38)) -> Zurich Santander | D85: =HLOOKUP($D$53,$E$53:$F$93,G85,FALSE) -> 1 | E85: 1 | G85: 33
B86: 33 | C86: =INDEX('Datos Vida'!$C$7:$AP$7,,ROWS('Datos Vida'!$C$7:AP39)) -> 0 | D86: =HLOOKUP($D$53,$E$53:$F$93,G86,FALSE) -> 1 | E86: 1 | G86: 34
B87: 34 | C87: =INDEX('Datos Vida'!$C$7:$AP$7,,ROWS('Datos Vida'!$C$7:AP40)) -> 0 | D87: 0 | G87: 35
B88: 35 | C88: =INDEX('Datos Vida'!$C$7:$AP$7,,ROWS('Datos Vida'!$C$7:AP41)) -> 0 | D88: 0 | G88: 36
B89: 36 | C89: =INDEX('Datos Vida'!$C$7:$AP$7,,ROWS('Datos Vida'!$C$7:AP42)) -> 0 | D89: 0 | G89: 37
B90: 37 | C90: =INDEX('Datos Vida'!$C$7:$AP$7,,ROWS('Datos Vida'!$C$7:AP43)) -> 0 | D90: 0 | G90: 38
B91: 38 | C91: =INDEX('Datos Vida'!$C$7:$AP$7,,ROWS('Datos Vida'!$C$7:AP44)) -> 0 | D91: 0 | G91: 39
B92: 39 | C92: =INDEX('Datos Vida'!$C$7:$AP$7,,ROWS('Datos Vida'!$C$7:AP45)) -> 0 | D92: 0 | G92: 40
B93: 40 | C93: =INDEX('Datos Vida'!$C$7:$AP$7,,ROWS('Datos Vida'!$C$7:AP46)) -> 0 | D93: 0 | G93: 41

Sheet Mer. Resumen
C2: Volver al Índice
B8: Resumen Mercado de Seguros
B9: =Índice!H60 -> Cifras en UF al 30.06.2023
B11: Grupo | C11: Prima Directa | D11: Resultado de Operaciones | E11: Utilidad | F11: Producto de Inversiones | G11: Siniestros Directos | H11: Patrimonio | I11: Inversiones | K11: Número de trabajadores
B12: Seguros Generales | C12: =C58 -> 62,736,085 | D12: 1,608,894 | E12: 3,282,803 | F12: 1,224,208 | G12: 29,644,487 | H12: 43,608,930 | I12: 66,909,441 | K12: =K58 -> 5,718
B13: Seguros de Vida | C13: =C102 -> 115,636,137 | D13: =D102 -> -27,995,505 | E13: 10,649,676 | F13: 42,990,069 | G13: 126,938,678 | H13: 148,709,618 | I13: 1,643,553,758 | K13: =K102 -> 9,170
B14: Total | C14: =SUM(C12:C13) -> 178,372,222 | D14: =SUM(D12:D13) -> -26,386,611 | E14: 13,932,479 | F14: 44,214,277 | G14: 156,583,165 | H14: 192,318,548 | I14: 1,710,463,199 | K14: =SUM(K12:K13) -> 14,888
B17: Seguros Generales | C17: Prima Directa | D17: Resultado de Operaciones | E17: Utilidad | F17: Producto de Inversiones | G17: Siniestros Directos | H17: Patrimonio | I17: Inversiones | K17: Número de trabajadores | M17: Fecha de Descarga de EEFF
B18: =INDEX('Datos Generales'!$C$7:$AP$7,,ROWS('Datos Generales'!$C$7:AP7)) -> Assurant Chile | C18: =INDEX('Datos Generales'!$C$118:$AP$118,,ROWS('Datos Generales'!$C$118:AP118))*Índice!$G$60 -> 127,000 | D18: =(INDEX('Datos Generales'!$C$116:$AP$116,,ROWS('Datos Generales'!$C$116:AP116))-INDEX('Datos Generales'!$C$144:$AP$144,,ROWS('Datos Generales'!$C$144:AP144)))*Índice!$G$60 -> 15,876 | E18: =INDEX('Datos Generales'!$C$170:$AP$170,,ROWS('Datos Generales'!$C$170:AP170))*Índice!$G$60 -> 15,636 | F18: =INDEX('Datos Generales'!$C$147:$AP$147,,ROWS('Datos Generales'!$C$147:AP147))*Índice!$G$60 -> 7,367 | G18: =INDEX('Datos Generales'!$C$129:$AP$129,,ROWS('Datos Generales'!$C$129:AP129))*Índice!$G$60 -> 41,501 | H18: =INDEX('Datos Generales'!$C$101:$AP$101,,ROWS('Datos Generales'!$C$101:AP101))*Índice!$G$60 -> 261,353 | I18: =(INDEX('Datos Generales'!$C$9:$AP$9,,ROWS('Datos Generales'!$C$9:AP9))+INDEX('Datos Generales'!$C$20:$AP$20,,ROWS('Datos Generales'!$C$20:AP20)))*Índice!$G$60 -> 276,180 | K18: =INDEX('Datos Generales'!$C$1135:$AP$1135,,ROWS('Datos Generales'!$C$1135:AP1135)) -> 15 | M18: =TRANSPOSE('Datos Generales'!C1144:AP1144) -> 2023-08-01
B19: =INDEX('Datos Generales'!$C$7:$AP$7,,ROWS('Datos Generales'!$C$7:AP8)) -> AVLA Crédito | C19: =INDEX('Datos Generales'!$C$118:$AP$118,,ROWS('Datos Generales'!$C$118:AP119))*Índice!$G$60 -> 564,809 | D19: =(INDEX('Datos Generales'!$C$116:$AP$116,,ROWS('Datos Generales'!$C$116:AP117))-INDEX('Datos Generales'!$C$144:$AP$144,,ROWS('Datos Generales'!$C$144:AP145)))*Índice!$G$60 -> 37,539 | E19: =INDEX('Datos Generales'!$C$170:$AP$170,,ROWS('Datos Generales'!$C$170:AP171))*Índice!$G$60 -> 46,918 | F19: =INDEX('Datos Generales'!$C$147:$AP$147,,ROWS('Datos Generales'!$C$147:AP148))*Índice!$G$60 -> 1,900 | G19: =INDEX('Datos Generales'!$C$129:$AP$129,,ROWS('Datos Generales'!$C$129:AP130))*Índice!$G$60 -> 273,684 | H19: =INDEX('Datos Generales'!$C$101:$AP$101,,ROWS('Datos Generales'!$C$101:AP102))*Índice!$G$60 -> 509,070 | I19: =(INDEX('Datos Generales'!$C$9:$AP$9,,ROWS('Datos Generales'!$C$9:AP10))+INDEX('Datos Generales'!$C$20:$AP$20,,ROWS('Datos Generales'!$C$20:AP21)))*Índice!$G$60 -> 666,557 | K19: =INDEX('Datos Generales'!$C$1135:$AP$1135,,ROWS('Datos Generales'!$C$1135:AP1136)) -> 8 | M19: 2023-08-01
B20: =INDEX('Datos Generales'!$C$7:$AP$7,,ROWS('Datos Generales'!$C$7:AP9)) -> BCI Seguros | C20: =INDEX('Datos Generales'!$C$118:$AP$118,,ROWS('Datos Generales'!$C$118:AP120))*Índice!$G$60 -> 7,258,525 | D20: =(INDEX('Datos Generales'!$C$116:$AP$116,,ROWS('Datos Generales'!$C$116:AP118))-INDEX('Datos Generales'!$C$144:$AP$144,,ROWS('Datos Generales'!$C$144:AP146)))*Índice!$G$60 -> 392,211 | E20: =INDEX('Datos Generales'!$C$170:$AP$170,,ROWS('Datos Generales'!$C$170:AP172))*Índice!$G$60 -> 646,642 | F20: =INDEX('Datos Generales'!$C$147:$AP$147,,ROWS('Datos Generales'!$C$147:AP149))*Índice!$G$60 -> 250,840 | G20: =INDEX('Datos Generales'!$C$129:$AP$129,,ROWS('Datos Generales'!$C$129:AP131))*Índice!$G$60 -> 4,674,146 | H20: =INDEX('Datos Generales'!$C$101:$AP$101,,ROWS('Datos Generales'!$C$101:AP103))*Índice!$G$60 -> 5,052,762 | I20: =(INDEX('Datos Generales'!$C$9:$AP$9,,ROWS('Datos Generales'!$C$9:AP11))+INDEX('Datos Generales'!$C$20:$AP$20,,ROWS('Datos Generales'!$C$20:AP22)))*Índice!$G$60 -> 10,299,608 | K20: =INDEX('Datos Generales'!$C$1135:$AP$1135,,ROWS('Datos Generales'!$C$1135:AP1137)) -> 713 | M20: 2023-08-01
B21: =INDEX('Datos Generales'!$C$7:$AP$7,,ROWS('Datos Generales'!$C$7:AP10)) -> BNP Paribas Cardif | C21: =INDEX('Datos Generales'!$C$118:$AP$118,,ROWS('Datos Generales'!$C$118:AP121))*Índice!$G$60 -> 1,390,216 | D21: =(INDEX('Datos Generales'!$C$116:$AP$116,,ROWS('Datos Generales'!$C$116:AP119))-INDEX('Datos Generales'!$C$144:$AP$144,,ROWS('Datos Generales'!$C$144:AP147)))*Índice!$G$60 -> 40,911 | E21: =INDEX('Datos Generales'!$C$170:$AP$170,,ROWS('Datos Generales'!$C$170:AP173))*Índice!$G$60 -> 115,219 | F21: =INDEX('Datos Generales'!$C$147:$AP$147,,ROWS('Datos Generales'!$C$147:AP150))*Índice!$G$60 -> 88,482 | G21: =INDEX('Datos Generales'!$C$129:$AP$129,,ROWS('Datos Generales'!$C$129:AP132))*Índice!$G$60 -> 578,786 | H21: =INDEX('Datos Generales'!$C$101:$AP$101,,ROWS('Datos Generales'!$C$101:AP104))*Índice!$G$60 -> 3,434,062 | I21: =(INDEX('Datos Generales'!$C$9:$AP$9,,ROWS('Datos Generales'!$C$9:AP12))+INDEX('Datos Generales'!$C$20:$AP$20,,ROWS('Datos Generales'!$C$20:AP23)))*Índice!$G$60 -> 5,537,414 | K21: =INDEX('Datos Generales'!$C$1135:$AP$1135,,ROWS('Datos Generales'!$C$1135:AP1138)) -> 268 | M21: 2023-08-01
B22: =INDEX('Datos Generales'!$C$7:$AP$7,,ROWS('Datos Generales'!$C$7:AP11)) -> Cesce Chile | C22: =INDEX('Datos Generales'!$C$118:$AP$118,,ROWS('Datos Generales'!$C$118:AP122))*Índice!$G$60 -> 53,882 | D22: =(INDEX('Datos Generales'!$C$116:$AP$116,,ROWS('Datos Generales'!$C$116:AP120))-INDEX('Datos Generales'!$C$144:$AP$144,,ROWS('Datos Generales'!$C$144:AP148)))*Índice!$G$60 -> -24,382 | E22: =INDEX('Datos Generales'!$C$170:$AP$170,,ROWS('Datos Generales'!$C$170:AP174))*Índice!$G$60 -> -15,643 | F22: =INDEX('Datos Generales'!$C$147:$AP$147,,ROWS('Datos Generales'!$C$147:AP151))*Índice!$G$60 -> 788 | G22: =INDEX('Datos Generales'!$C$129:$AP$129,,ROWS('Datos Generales'!$C$129:AP133))*Índice!$G$60 -> 175,435 | H22: =INDEX('Datos Generales'!$C$101:$AP$101,,ROWS('Datos Generales'!$C$101:AP105))*Índice!$G$60 -> 103,564 | I22: =(INDEX('Datos Generales'!$C$9:$AP$9,,ROWS('Datos Generales'!$C$9:AP13))+INDEX('Datos Generales'!$C$20:$AP$20,,ROWS('Datos Generales'!$C$20:AP24)))*Índice!$G$60 -> 107,525 | K22: =INDEX('Datos Generales'!$C$1135:$AP$1135,,ROWS('Datos Generales'!$C$1135:AP1139)) -> 0 | M22: 2023-08-01
B23: =INDEX('Datos Generales'!$C$7:$AP$7,,ROWS('Datos Generales'!$C$7:AP12)) -> Chubb Generales | C23: =INDEX('Datos Generales'!$C$118:$AP$118,,ROWS('Datos Generales'!$C$118:AP123))*Índice!$G$60 -> 4,430,676 | D23: =(INDEX('Datos Generales'!$C$116:$AP$116,,ROWS('Datos Generales'!$C$116:AP121))-INDEX('Datos Generales'!$C$144:$AP$144,,ROWS('Datos Generales'!$C$144:AP149)))*Índice!$G$60 -> 231,824 | E23: =INDEX('Datos Generales'!$C$170:$AP$170,,ROWS('Datos Generales'!$C$170:AP175))*Índice!$G$60 -> 373,937 | F23: =INDEX('Datos Generales'!$C$147:$AP$147,,ROWS('Datos Generales'!$C$147:AP152))*Índice!$G$60 -> 126,529 | G23: =INDEX('Datos Generales'!$C$129:$AP$129,,ROWS('Datos Generales'!$C$129:AP134))*Índice!$G$60 -> 1,020,563 | H23: =INDEX('Datos Generales'!$C$101:$AP$101,,ROWS('Datos Generales'!$C$101:AP106))*Índice!$G$60 -> 5,868,590 | I23: =(INDEX('Datos Generales'!$C$9:$AP$9,,ROWS('Datos Generales'!$C$9:AP14))+INDEX('Datos Generales'!$C$20:$AP$20,,ROWS('Datos Generales'!$C$20:AP25)))*Índice!$G$60 -> 5,801,013 | K23: =INDEX('Datos Generales'!$C$1135:$AP$1135,,ROWS('Datos Generales'!$C$1135:AP1140)) -> 274 | M23: 2023-08-01
B24: =INDEX('Datos Generales'!$C$7:$AP$7,,ROWS('Datos Generales'!$C$7:AP13)) -> Coface Chile | C24: =INDEX('Datos Generales'!$C$118:$AP$118,,ROWS('Datos Generales'!$C$118:AP124))*Índice!$G$60 -> 228,086 | D24: =(INDEX('Datos Generales'!$C$116:$AP$116,,ROWS('Datos Generales'!$C$116:AP122))-INDEX('Datos Generales'!$C$144:$AP$144,,ROWS('Datos Generales'!$C$144:AP150)))*Índice!$G$60 -> 32,712 | E24: =INDEX('Datos Generales'!$C$170:$AP$170,,ROWS('Datos Generales'!$C$170:AP176))*Índice!$G$60 -> 37,380 | F24: =INDEX('Datos Generales'!$C$147:$AP$147,,ROWS('Datos Generales'!$C$147:AP153))*Índice!$G$60 -> 17,345 | G24: =INDEX('Datos Generales'!$C$129:$AP$129,,ROWS('Datos Generales'!$C$129:AP135))*Índice!$G$60 -> 80,332 | H24: =INDEX('Datos Generales'!$C$101:$AP$101,,ROWS('Datos Generales'!$C$101:AP107))*Índice!$G$60 -> 432,547 | I24: =(INDEX('Datos Generales'!$C$9:$AP$9,,ROWS('Datos Generales'!$C$9:AP15))+INDEX('Datos Generales'!$C$20:$AP$20,,ROWS('Datos Generales'!$C$20:AP26)))*Índice!$G$60 -> 561,460 | K24: =INDEX('Datos Generales'!$C$1135:$AP$1135,,ROWS('Datos Generales'!$C$1135:AP1141)) -> 53 | M24: 2023-08-01
B25: =INDEX('Datos Generales'!$C$7:$AP$7,,ROWS('Datos Generales'!$C$7:AP14)) -> Consorcio Nacional | C25: =INDEX('Datos Generales'!$C$118:$AP$118,,ROWS('Datos Generales'!$C$118:AP125))*Índice!$G$60 -> 1,689,719 | D25: =(INDEX('Datos Generales'!$C$116:$AP$116,,ROWS('Datos Generales'!$C$116:AP123))-INDEX('Datos Generales'!$C$144:$AP$144,,ROWS('Datos Generales'!$C$144:AP151)))*Índice!$G$60 -> 67,104 | E25: =INDEX('Datos Generales'!$C$170:$AP$170,,ROWS('Datos Generales'!$C$170:AP177))*Índice!$G$60 -> 93,525 | F25: =INDEX('Datos Generales'!$C$147:$AP$147,,ROWS('Datos Generales'!$C$147:AP154))*Índice!$G$60 -> 30,639 | G25: =INDEX('Datos Generales'!$C$129:$AP$129,,ROWS('Datos Generales'!$C$129:AP136))*Índice!$G$60 -> 675,002 | H25: =INDEX('Datos Generales'!$C$101:$AP$101,,ROWS('Datos Generales'!$C$101:AP108))*Índice!$G$60 -> 1,118,843 | I25: =(INDEX('Datos Generales'!$C$9:$AP$9,,ROWS('Datos Generales'!$C$9:AP16))+INDEX('Datos Generales'!$C$20:$AP$20,,ROWS('Datos Generales'!$C$20:AP27)))*Índice!$G$60 -> 1,403,803 | K25: =INDEX('Datos Generales'!$C$1135:$AP$1135,,ROWS('Datos Generales'!$C$1135:AP1142)) -> 349 | M25: 2023-08-01
B26: =INDEX('Datos Generales'!$C$7:$AP$7,,ROWS('Datos Generales'!$C$7:AP15)) -> Contempora | C26: =INDEX('Datos Generales'!$C$118:$AP$118,,ROWS('Datos Generales'!$C$118:AP126))*Índice!$G$60 -> 545,749 | D26: =(INDEX('Datos Generales'!$C$116:$AP$116,,ROWS('Datos Generales'!$C$116:AP124))-INDEX('Datos Generales'!$C$144:$AP$144,,ROWS('Datos Generales'!$C$144:AP152)))*Índice!$G$60 -> 2,543 | E26: =INDEX('Datos Generales'!$C$170:$AP$170,,ROWS('Datos Generales'!$C$170:AP178))*Índice!$G$60 -> 7,720 | F26: =INDEX('Datos Generales'!$C$147:$AP$147,,ROWS('Datos Generales'!$C$147:AP155))*Índice!$G$60 -> 1,612 | G26: =INDEX('Datos Generales'!$C$129:$AP$129,,ROWS('Datos Generales'!$C$129:AP137))*Índice!$G$60 -> 203,155 | H26: =INDEX('Datos Generales'!$C$101:$AP$101,,ROWS('Datos Generales'!$C$101:AP109))*Índice!$G$60 -> 139,733 | I26: =(INDEX('Datos Generales'!$C$9:$AP$9,,ROWS('Datos Generales'!$C$9:AP17))+INDEX('Datos Generales'!$C$20:$AP$20,,ROWS('Datos Generales'!$C$20:AP28)))*Índice!$G$60 -> 148,828 | K26: =INDEX('Datos Generales'!$C$1135:$AP$1135,,ROWS('Datos Generales'!$C$1135:AP1143)) -> 75 | M26: 2023-08-01
B27: =INDEX('Datos Generales'!$C$7:$AP$7,,ROWS('Datos Generales'!$C$7:AP16)) -> Continental Crédito | C27: =INDEX('Datos Generales'!$C$118:$AP$118,,ROWS('Datos Generales'!$C$118:AP127))*Índice!$G$60 -> 633,454 | D27: =(INDEX('Datos Generales'!$C$116:$AP$116,,ROWS('Datos Generales'!$C$116:AP125))-INDEX('Datos Generales'!$C$144:$AP$144,,ROWS('Datos Generales'!$C$144:AP153)))*Índice!$G$60 -> -87,325 | E27: =INDEX('Datos Generales'!$C$170:$AP$170,,ROWS('Datos Generales'!$C$170:AP179))*Índice!$G$60 -> 166,936 | F27: =INDEX('Datos Generales'!$C$147:$AP$147,,ROWS('Datos Generales'!$C$147:AP156))*Índice!$G$60 -> 156,129 | G27: =INDEX('Datos Generales'!$C$129:$AP$129,,ROWS('Datos Generales'!$C$129:AP138))*Índice!$G$60 -> 603,291 | H27: =INDEX('Datos Generales'!$C$101:$AP$101,,ROWS('Datos Generales'!$C$101:AP110))*Índice!$G$60 -> 2,413,874 | I27: =(INDEX('Datos Generales'!$C$9:$AP$9,,ROWS('Datos Generales'!$C$9:AP18))+INDEX('Datos Generales'!$C$20:$AP$20,,ROWS('Datos Generales'!$C$20:AP29)))*Índice!$G$60 -> 2,656,617 | K27: =INDEX('Datos Generales'!$C$1135:$AP$1135,,ROWS('Datos Generales'!$C$1135:AP1144)) -> 80 | M27: 2023-08-01
B28: =INDEX('Datos Generales'!$C$7:$AP$7,,ROWS('Datos Generales'!$C$7:AP17)) -> Continental Generales | C28: =INDEX('Datos Generales'!$C$118:$AP$118,,ROWS('Datos Generales'!$C$118:AP128))*Índice!$G$60 -> 1,166,413 | D28: =(INDEX('Datos Generales'!$C$116:$AP$116,,ROWS('Datos Generales'!$C$116:AP126))-INDEX('Datos Generales'!$C$144:$AP$144,,ROWS('Datos Generales'!$C$144:AP154)))*Índice!$G$60 -> 20,672 | E28: =INDEX('Datos Generales'!$C$170:$AP$170,,ROWS('Datos Generales'!$C$170:AP180))*Índice!$G$60 -> 30,855 | F28: =INDEX('Datos Generales'!$C$147:$AP$147,,ROWS('Datos Generales'!$C$147:AP157))*Índice!$G$60 -> 10,956 | G28: =INDEX('Datos Generales'!$C$129:$AP$129,,ROWS('Datos Generales'!$C$129:AP139))*Índice!$G$60 -> 548,285 | H28: =INDEX('Datos Generales'!$C$101:$AP$101,,ROWS('Datos Generales'!$C$101:AP111))*Índice!$G$60 -> 378,767 | I28: =(INDEX('Datos Generales'!$C$9:$AP$9,,ROWS('Datos Generales'!$C$9:AP19))+INDEX('Datos Generales'!$C$20:$AP$20,,ROWS('Datos Generales'!$C$20:AP30)))*Índice!$G$60 -> 502,835 | K28: =INDEX('Datos Generales'!$C$1135:$AP$1135,,ROWS('Datos Generales'!$C$1135:AP1145)) -> 47 | M28: 2023-08-01
B29: =INDEX('Datos Generales'!$C$7:$AP$7,,ROWS('Datos Generales'!$C$7:AP18)) -> Everest Generales | C29: =INDEX('Datos Generales'!$C$118:$AP$118,,ROWS('Datos Generales'!$C$118:AP129))*Índice!$G$60 -> 587,908 | D29: =(INDEX('Datos Generales'!$C$116:$AP$116,,ROWS('Datos Generales'!$C$116:AP127))-INDEX('Datos Generales'!$C$144:$AP$144,,ROWS('Datos Generales'!$C$144:AP155)))*Índice!$G$60 -> -52,120 | E29: =INDEX('Datos Generales'!$C$170:$AP$170,,ROWS('Datos Generales'!$C$170:AP181))*Índice!$G$60 -> -40,564 | F29: =INDEX('Datos Generales'!$C$147:$AP$147,,ROWS('Datos Generales'!$C$147:AP158))*Índice!$G$60 -> 4,817 | G29: =INDEX('Datos Generales'!$C$129:$AP$129,,ROWS('Datos Generales'!$C$129:AP140))*Índice!$G$60 -> 198,669 | H29: =INDEX('Datos Generales'!$C$101:$AP$101,,ROWS('Datos Generales'!$C$101:AP112))*Índice!$G$60 -> 432,407 | I29: =(INDEX('Datos Generales'!$C$9:$AP$9,,ROWS('Datos Generales'!$C$9:AP20))+INDEX('Datos Generales'!$C$20:$AP$20,,ROWS('Datos Generales'!$C$20:AP31)))*Índice!$G$60 -> 894,320 | K29: =INDEX('Datos Generales'!$C$1135:$AP$1135,,ROWS('Datos Generales'!$C$1135:AP1146)) -> 33 | M29: 2023-08-01
B30: =INDEX('Datos Generales'!$C$7:$AP$7,,ROWS('Datos Generales'!$C$7:AP19)) -> FID Chile | C30: =INDEX('Datos Generales'!$C$118:$AP$118,,ROWS('Datos Generales'!$C$118:AP130))*Índice!$G$60 -> 1,592,668 | D30: =(INDEX('Datos Generales'!$C$116:$AP$116,,ROWS('Datos Generales'!$C$116:AP128))-INDEX('Datos Generales'!$C$144:$AP$144,,ROWS('Datos Generales'!$C$144:AP156)))*Índice!$G$60 -> -81,471 | E30: =INDEX('Datos Generales'!$C$170:$AP$170,,ROWS('Datos Generales'!$C$170:AP182))*Índice!$G$60 -> -24,172 | F30: =INDEX('Datos Generales'!$C$147:$AP$147,,ROWS('Datos Generales'!$C$147:AP159))*Índice!$G$60 -> 4,736 | G30: =INDEX('Datos Generales'!$C$129:$AP$129,,ROWS('Datos Generales'!$C$129:AP141))*Índice!$G$60 -> 1,053,207 | H30: =INDEX('Datos Generales'!$C$101:$AP$101,,ROWS('Datos Generales'!$C$101:AP113))*Índice!$G$60 -> 619,521 | I30: =(INDEX('Datos Generales'!$C$9:$AP$9,,ROWS('Datos Generales'!$C$9:AP21))+INDEX('Datos Generales'!$C$20:$AP$20,,ROWS('Datos Generales'!$C$20:AP32)))*Índice!$G$60 -> 367,930 | K30: =INDEX('Datos Generales'!$C$1135:$AP$1135,,ROWS('Datos Generales'!$C$1135:AP1147)) -> 120 | M30: 2023-08-01
B31: =INDEX('Datos Generales'!$C$7:$AP$7,,ROWS('Datos Generales'!$C$7:AP20)) -> HDI Gar. y Cré. | C31: =INDEX('Datos Generales'!$C$118:$AP$118,,ROWS('Datos Generales'!$C$118:AP131))*Índice!$G$60 -> 13,273 | D31: =(INDEX('Datos Generales'!$C$116:$AP$116,,ROWS('Datos Generales'!$C$116:AP129))-INDEX('Datos Generales'!$C$144:$AP$144,,ROWS('Datos Generales'!$C$144:AP157)))*Índice!$G$60 -> -5,509 | E31: =INDEX('Datos Generales'!$C$170:$AP$170,,ROWS('Datos Generales'!$C$170:AP183))*Índice!$G$60 -> -2,404 | F31: =INDEX('Datos Generales'!$C$147:$AP$147,,ROWS('Datos Generales'!$C$147:AP160))*Índice!$G$60 -> 431 | G31: =INDEX('Datos Generales'!$C$129:$AP$129,,ROWS('Datos Generales'!$C$129:AP142))*Índice!$G$60 -> 25,060 | H31: =INDEX('Datos Generales'!$C$101:$AP$101,,ROWS('Datos Generales'!$C$101:AP114))*Índice!$G$60 -> 146,513 | I31: =(INDEX('Datos Generales'!$C$9:$AP$9,,ROWS('Datos Generales'!$C$9:AP22))+INDEX('Datos Generales'!$C$20:$AP$20,,ROWS('Datos Generales'!$C$20:AP33)))*Índice!$G$60 -> 200,489 | K31: =INDEX('Datos Generales'!$C$1135:$AP$1135,,ROWS('Datos Generales'!$C$1135:AP1148)) -> 5 | M31: 2023-08-01
B32: =INDEX('Datos Generales'!$C$7:$AP$7,,ROWS('Datos Generales'!$C$7:AP21)) -> HDI Seguros | C32: =INDEX('Datos Generales'!$C$118:$AP$118,,ROWS('Datos Generales'!$C$118:AP132))*Índice!$G$60 -> 6,950,329 | D32: =(INDEX('Datos Generales'!$C$116:$AP$116,,ROWS('Datos Generales'!$C$116:AP130))-INDEX('Datos Generales'!$C$144:$AP$144,,ROWS('Datos Generales'!$C$144:AP158)))*Índice!$G$60 -> 381,160 | E32: =INDEX('Datos Generales'!$C$170:$AP$170,,ROWS('Datos Generales'!$C$170:AP184))*Índice!$G$60 -> 417,298 | F32: =INDEX('Datos Generales'!$C$147:$AP$147,,ROWS('Datos Generales'!$C$147:AP161))*Índice!$G$60 -> 22,948 | G32: =INDEX('Datos Generales'!$C$129:$AP$129,,ROWS('Datos Generales'!$C$129:AP143))*Índice!$G$60 -> 4,328,403 | H32: =INDEX('Datos Generales'!$C$101:$AP$101,,ROWS('Datos Generales'!$C$101:AP115))*Índice!$G$60 -> 4,370,830 | I32: =(INDEX('Datos Generales'!$C$9:$AP$9,,ROWS('Datos Generales'!$C$9:AP23))+INDEX('Datos Generales'!$C$20:$AP$20,,ROWS('Datos Generales'!$C$20:AP34)))*Índice!$G$60 -> 7,257,128 | K32: =INDEX('Datos Generales'!$C$1135:$AP$1135,,ROWS('Datos Generales'!$C$1135:AP1149)) -> 723 | M32: 2023-08-01
B33: =INDEX('Datos Generales'!$C$7:$AP$7,,ROWS('Datos Generales'!$C$7:AP22)) -> Konsegur | C33: =INDEX('Datos Generales'!$C$118:$AP$118,,ROWS('Datos Generales'!$C$118:AP133))*Índice!$G$60 -> 19,579 | D33: =(INDEX('Datos Generales'!$C$116:$AP$116,,ROWS('Datos Generales'!$C$116:AP131))-INDEX('Datos Generales'!$C$144:$AP$144,,ROWS('Datos Generales'!$C$144:AP159)))*Índice!$G$60 -> -208,033 | E33: =INDEX('Datos Generales'!$C$170:$AP$170,,ROWS('Datos Generales'!$C$170:AP185))*Índice!$G$60 -> -277,177 | F33: =INDEX('Datos Generales'!$C$147:$AP$147,,ROWS('Datos Generales'!$C$147:AP162))*Índice!$G$60 -> 2,194 | G33: =INDEX('Datos Generales'!$C$129:$AP$129,,ROWS('Datos Generales'!$C$129:AP144))*Índice!$G$60 -> 715,953 | H33: =INDEX('Datos Generales'!$C$101:$AP$101,,ROWS('Datos Generales'!$C$101:AP116))*Índice!$G$60 -> -299,570 | I33: =(INDEX('Datos Generales'!$C$9:$AP$9,,ROWS('Datos Generales'!$C$9:AP24))+INDEX('Datos Generales'!$C$20:$AP$20,,ROWS('Datos Generales'!$C$20:AP35)))*Índice!$G$60 -> 225,615 | K33: =INDEX('Datos Generales'!$C$1135:$AP$1135,,ROWS('Datos Generales'!$C$1135:AP1150)) -> 13 | M33: 2023-08-01
B34: =INDEX('Datos Generales'!$C$7:$AP$7,,ROWS('Datos Generales'!$C$7:AP23)) -> Liberty Seguros | C34: =INDEX('Datos Generales'!$C$118:$AP$118,,ROWS('Datos Generales'!$C$118:AP134))*Índice!$G$60 -> 5,028,813 | D34: =(INDEX('Datos Generales'!$C$116:$AP$116,,ROWS('Datos Generales'!$C$116:AP132))-INDEX('Datos Generales'!$C$144:$AP$144,,ROWS('Datos Generales'!$C$144:AP160)))*Índice!$G$60 -> 43,842 | E34: =INDEX('Datos Generales'!$C$170:$AP$170,,ROWS('Datos Generales'!$C$170:AP186))*Índice!$G$60 -> 232,624 | F34: =INDEX('Datos Generales'!$C$147:$AP$147,,ROWS('Datos Generales'!$C$147:AP163))*Índice!$G$60 -> 4,281 | G34: =INDEX('Datos Generales'!$C$129:$AP$129,,ROWS('Datos Generales'!$C$129:AP145))*Índice!$G$60 -> 2,537,627 | H34: =INDEX('Datos Generales'!$C$101:$AP$101,,ROWS('Datos Generales'!$C$101:AP117))*Índice!$G$60 -> 3,905,036 | I34: =(INDEX('Datos Generales'!$C$9:$AP$9,,ROWS('Datos Generales'!$C$9:AP25))+INDEX('Datos Generales'!$C$20:$AP$20,,ROWS('Datos Generales'!$C$20:AP36)))*Índice!$G$60 -> 6,033,955 | K34: =INDEX('Datos Generales'!$C$1135:$AP$1135,,ROWS('Datos Generales'!$C$1135:AP1151)) -> 437 | M34: 2023-08-01
B35: =INDEX('Datos Generales'!$C$7:$AP$7,,ROWS('Datos Generales'!$C$7:AP24)) -> M. de Carabineros | C35: =INDEX('Datos Generales'!$C$118:$AP$118,,ROWS('Datos Generales'!$C$118:AP135))*Índice!$G$60 -> 0 | D35: =(INDEX('Datos Generales'!$C$116:$AP$116,,ROWS('Datos Generales'!$C$116:AP133))-INDEX('Datos Generales'!$C$144:$AP$144,,ROWS('Datos Generales'!$C$144:AP161)))*Índice!$G$60 -> -6,791 | E35: =INDEX('Datos Generales'!$C$170:$AP$170,,ROWS('Datos Generales'!$C$170:AP187))*Índice!$G$60 -> 15,311 | F35: =INDEX('Datos Generales'!$C$147:$AP$147,,ROWS('Datos Generales'!$C$147:AP164))*Índice!$G$60 -> 21,513 | G35: =INDEX('Datos Generales'!$C$129:$AP$129,,ROWS('Datos Generales'!$C$129:AP146))*Índice!$G$60 -> -73 | H35: =INDEX('Datos Generales'!$C$101:$AP$101,,ROWS('Datos Generales'!$C$101:AP118))*Índice!$G$60 -> 484,248 | I35: =(INDEX('Datos Generales'!$C$9:$AP$9,,ROWS('Datos Generales'!$C$9:AP26))+INDEX('Datos Generales'!$C$20:$AP$20,,ROWS('Datos Generales'!$C$20:AP37)))*Índice!$G$60 -> 537,583 | K35: =INDEX('Datos Generales'!$C$1135:$AP$1135,,ROWS('Datos Generales'!$C$1135:AP1152)) -> 135 | M35: 2023-08-01
B36: =INDEX('Datos Generales'!$C$7:$AP$7,,ROWS('Datos Generales'!$C$7:AP25)) -> Mapfre | C36: =INDEX('Datos Generales'!$C$118:$AP$118,,ROWS('Datos Generales'!$C$118:AP136))*Índice!$G$60 -> 4,655,699 | D36: =(INDEX('Datos Generales'!$C$116:$AP$116,,ROWS('Datos Generales'!$C$116:AP134))-INDEX('Datos Generales'!$C$144:$AP$144,,ROWS('Datos Generales'!$C$144:AP162)))*Índice!$G$60 -> -31,751 | E36: =INDEX('Datos Generales'!$C$170:$AP$170,,ROWS('Datos Generales'!$C$170:AP188))*Índice!$G$60 -> 113,846 | F36: =INDEX('Datos Generales'!$C$147:$AP$147,,ROWS('Datos Generales'!$C$147:AP165))*Índice!$G$60 -> 35,280 | G36: =INDEX('Datos Generales'!$C$129:$AP$129,,ROWS('Datos Generales'!$C$129:AP147))*Índice!$G$60 -> 4,472,747 | H36: =INDEX('Datos Generales'!$C$101:$AP$101,,ROWS('Datos Generales'!$C$101:AP119))*Índice!$G$60 -> 1,574,134 | I36: =(INDEX('Datos Generales'!$C$9:$AP$9,,ROWS('Datos Generales'!$C$9:AP27))+INDEX('Datos Generales'!$C$20:$AP$20,,ROWS('Datos Generales'!$C$20:AP38)))*Índice!$G$60 -> 2,976,628 | K36: =INDEX('Datos Generales'!$C$1135:$AP$1135,,ROWS('Datos Generales'!$C$1135:AP1153)) -> 291 | M36: 2023-08-01
B37: =INDEX('Datos Generales'!$C$7:$AP$7,,ROWS('Datos Generales'!$C$7:AP26)) -> MetLife Generales | C37: =INDEX('Datos Generales'!$C$118:$AP$118,,ROWS('Datos Generales'!$C$118:AP137))*Índice!$G$60 -> 47,203 | D37: =(INDEX('Datos Generales'!$C$116:$AP$116,,ROWS('Datos Generales'!$C$116:AP135))-INDEX('Datos Generales'!$C$144:$AP$144,,ROWS('Datos Generales'!$C$144:AP163)))*Índice!$G$60 -> -11,643 | E37: =INDEX('Datos Generales'!$C$170:$AP$170,,ROWS('Datos Generales'!$C$170:AP189))*Índice!$G$60 -> -3,689 | F37: =INDEX('Datos Generales'!$C$147:$AP$147,,ROWS('Datos Generales'!$C$147:AP166))*Índice!$G$60 -> 1,779 | G37: =INDEX('Datos Generales'!$C$129:$AP$129,,ROWS('Datos Generales'!$C$129:AP148))*Índice!$G$60 -> 10,850 | H37: =INDEX('Datos Generales'!$C$101:$AP$101,,ROWS('Datos Generales'!$C$101:AP120))*Índice!$G$60 -> 269,502 | I37: =(INDEX('Datos Generales'!$C$9:$AP$9,,ROWS('Datos Generales'!$C$9:AP28))+INDEX('Datos Generales'!$C$20:$AP$20,,ROWS('Datos Generales'!$C$20:AP39)))*Índice!$G$60 -> 290,777 | K37: =INDEX('Datos Generales'!$C$1135:$AP$1135,,ROWS('Datos Generales'!$C$1135:AP1154)) -> 4 | M37: 2023-08-01
B38: =INDEX('Datos Generales'!$C$7:$AP$7,,ROWS('Datos Generales'!$C$7:AP27)) -> Orion Seguros | C38: =INDEX('Datos Generales'!$C$118:$AP$118,,ROWS('Datos Generales'!$C$118:AP138))*Índice!$G$60 -> 1,688,057 | D38: =(INDEX('Datos Generales'!$C$116:$AP$116,,ROWS('Datos Generales'!$C$116:AP136))-INDEX('Datos Generales'!$C$144:$AP$144,,ROWS('Datos Generales'!$C$144:AP164)))*Índice!$G$60 -> 53,365 | E38: =INDEX('Datos Generales'!$C$170:$AP$170,,ROWS('Datos Generales'!$C$170:AP190))*Índice!$G$60 -> 60,338 | F38: =INDEX('Datos Generales'!$C$147:$AP$147,,ROWS('Datos Generales'!$C$147:AP167))*Índice!$G$60 -> 9,569 | G38: =INDEX('Datos Generales'!$C$129:$AP$129,,ROWS('Datos Generales'!$C$129:AP149))*Índice!$G$60 -> -1,352,010 | H38: =INDEX('Datos Generales'!$C$101:$AP$101,,ROWS('Datos Generales'!$C$101:AP121))*Índice!$G$60 -> 427,523 | I38: =(INDEX('Datos Generales'!$C$9:$AP$9,,ROWS('Datos Generales'!$C$9:AP29))+INDEX('Datos Generales'!$C$20:$AP$20,,ROWS('Datos Generales'!$C$20:AP40)))*Índice!$G$60 -> 664,312 | K38: =INDEX('Datos Generales'!$C$1135:$AP$1135,,ROWS('Datos Generales'!$C$1135:AP1155)) -> 61 | M38: 2023-08-01
B39: =INDEX('Datos Generales'!$C$7:$AP$7,,ROWS('Datos Generales'!$C$7:AP28)) -> Orsan Crédito | C39: =INDEX('Datos Generales'!$C$118:$AP$118,,ROWS('Datos Generales'!$C$118:AP139))*Índice!$G$60 -> 210,828 | D39: =(INDEX('Datos Generales'!$C$116:$AP$116,,ROWS('Datos Generales'!$C$116:AP137))-INDEX('Datos Generales'!$C$144:$AP$144,,ROWS('Datos Generales'!$C$144:AP165)))*Índice!$G$60 -> -12,142 | E39: =INDEX('Datos Generales'!$C$170:$AP$170,,ROWS('Datos Generales'!$C$170:AP191))*Índice!$G$60 -> 2,068 | F39: =INDEX('Datos Generales'!$C$147:$AP$147,,ROWS('Datos Generales'!$C$147:AP168))*Índice!$G$60 -> 20,010 | G39: =INDEX('Datos Generales'!$C$129:$AP$129,,ROWS('Datos Generales'!$C$129:AP150))*Índice!$G$60 -> 70,255 | H39: =INDEX('Datos Generales'!$C$101:$AP$101,,ROWS('Datos Generales'!$C$101:AP122))*Índice!$G$60 -> 221,606 | I39: =(INDEX('Datos Generales'!$C$9:$AP$9,,ROWS('Datos Generales'!$C$9:AP30))+INDEX('Datos Generales'!$C$20:$AP$20,,ROWS('Datos Generales'!$C$20:AP41)))*Índice!$G$60 -> 485,106 | K39: =INDEX('Datos Generales'!$C$1135:$AP$1135,,ROWS('Datos Generales'!$C$1135:AP1156)) -> 35 | M39: 2023-08-02
B40: =INDEX('Datos Generales'!$C$7:$AP$7,,ROWS('Datos Generales'!$C$7:AP29)) -> Porvenir | C40: =INDEX('Datos Generales'!$C$118:$AP$118,,ROWS('Datos Generales'!$C$118:AP140))*Índice!$G$60 -> 552,321 | D40: =(INDEX('Datos Generales'!$C$116:$AP$116,,ROWS('Datos Generales'!$C$116:AP138))-INDEX('Datos Generales'!$C$144:$AP$144,,ROWS('Datos Generales'!$C$144:AP166)))*Índice!$G$60 -> 326 | E40: =INDEX('Datos Generales'!$C$170:$AP$170,,ROWS('Datos Generales'!$C$170:AP192))*Índice!$G$60 -> 18,336 | F40: =INDEX('Datos Generales'!$C$147:$AP$147,,ROWS('Datos Generales'!$C$147:AP169))*Índice!$G$60 -> 11,233 | G40: =INDEX('Datos Generales'!$C$129:$AP$129,,ROWS('Datos Generales'!$C$129:AP151))*Índice!$G$60 -> 712,186 | H40: =INDEX('Datos Generales'!$C$101:$AP$101,,ROWS('Datos Generales'!$C$101:AP123))*Índice!$G$60 -> 211,355 | I40: =(INDEX('Datos Generales'!$C$9:$AP$9,,ROWS('Datos Generales'!$C$9:AP31))+INDEX('Datos Generales'!$C$20:$AP$20,,ROWS('Datos Generales'!$C$20:AP42)))*Índice!$G$60 -> 361,987 | K40: =INDEX('Datos Generales'!$C$1135:$AP$1135,,ROWS('Datos Generales'!$C$1135:AP1157)) -> 82 | M40: 2023-08-01
B41: =INDEX('Datos Generales'!$C$7:$AP$7,,ROWS('Datos Generales'!$C$7:AP30)) -> Reale Chile | C41: =INDEX('Datos Generales'!$C$118:$AP$118,,ROWS('Datos Generales'!$C$118:AP141))*Índice!$G$60 -> 2,256,976 | D41: =(INDEX('Datos Generales'!$C$116:$AP$116,,ROWS('Datos Generales'!$C$116:AP139))-INDEX('Datos Generales'!$C$144:$AP$144,,ROWS('Datos Generales'!$C$144:AP167)))*Índice!$G$60 -> -112,263 | E41: =INDEX('Datos Generales'!$C$170:$AP$170,,ROWS('Datos Generales'!$C$170:AP193))*Índice!$G$60 -> -43,213 | F41: =INDEX('Datos Generales'!$C$147:$AP$147,,ROWS('Datos Generales'!$C$147:AP170))*Índice!$G$60 -> 28,838 | G41: =INDEX('Datos Generales'!$C$129:$AP$129,,ROWS('Datos Generales'!$C$129:AP152))*Índice!$G$60 -> 1,326,562 | H41: =INDEX('Datos Generales'!$C$101:$AP$101,,ROWS('Datos Generales'!$C$101:AP124))*Índice!$G$60 -> 811,103 | I41: =(INDEX('Datos Generales'!$C$9:$AP$9,,ROWS('Datos Generales'!$C$9:AP32))+INDEX('Datos Generales'!$C$20:$AP$20,,ROWS('Datos Generales'!$C$20:AP43)))*Índice!$G$60 -> 874,971 | K41: =INDEX('Datos Generales'!$C$1135:$AP$1135,,ROWS('Datos Generales'!$C$1135:AP1158)) -> 331 | M41: 2023-08-01
B42: =INDEX('Datos Generales'!$C$7:$AP$7,,ROWS('Datos Generales'!$C$7:AP31)) -> Renta Nacional | C42: =INDEX('Datos Generales'!$C$118:$AP$118,,ROWS('Datos Generales'!$C$118:AP142))*Índice!$G$60 -> 1,953,685 | D42: =(INDEX('Datos Generales'!$C$116:$AP$116,,ROWS('Datos Generales'!$C$116:AP140))-INDEX('Datos Generales'!$C$144:$AP$144,,ROWS('Datos Generales'!$C$144:AP168)))*Índice!$G$60 -> 45,025 | E42: =INDEX('Datos Generales'!$C$170:$AP$170,,ROWS('Datos Generales'!$C$170:AP194))*Índice!$G$60 -> 94,301 | F42: =INDEX('Datos Generales'!$C$147:$AP$147,,ROWS('Datos Generales'!$C$147:AP171))*Índice!$G$60 -> 17,092 | G42: =INDEX('Datos Generales'!$C$129:$AP$129,,ROWS('Datos Generales'!$C$129:AP153))*Índice!$G$60 -> 891,079 | H42: =INDEX('Datos Generales'!$C$101:$AP$101,,ROWS('Datos Generales'!$C$101:AP125))*Índice!$G$60 -> 762,400 | I42: =(INDEX('Datos Generales'!$C$9:$AP$9,,ROWS('Datos Generales'!$C$9:AP33))+INDEX('Datos Generales'!$C$20:$AP$20,,ROWS('Datos Generales'!$C$20:AP44)))*Índice!$G$60 -> 1,255,239 | K42: =INDEX('Datos Generales'!$C$1135:$AP$1135,,ROWS('Datos Generales'!$C$1135:AP1159)) -> 248 | M42: 2023-08-01
B43: =INDEX('Datos Generales'!$C$7:$AP$7,,ROWS('Datos Generales'!$C$7:AP32)) -> Solunión Chile | C43: =INDEX('Datos Generales'!$C$118:$AP$118,,ROWS('Datos Generales'!$C$118:AP143))*Índice!$G$60 -> 180,598 | D43: =(INDEX('Datos Generales'!$C$116:$AP$116,,ROWS('Datos Generales'!$C$116:AP141))-INDEX('Datos Generales'!$C$144:$AP$144,,ROWS('Datos Generales'!$C$144:AP169)))*Índice!$G$60 -> 249 | E43: =INDEX('Datos Generales'!$C$170:$AP$170,,ROWS('Datos Generales'!$C$170:AP195))*Índice!$G$60 -> 9,686 | F43: =INDEX('Datos Generales'!$C$147:$AP$147,,ROWS('Datos Generales'!$C$147:AP172))*Índice!$G$60 -> 820 | G43: =INDEX('Datos Generales'!$C$129:$AP$129,,ROWS('Datos Generales'!$C$129:AP154))*Índice!$G$60 -> 90,149 | H43: =INDEX('Datos Generales'!$C$101:$AP$101,,ROWS('Datos Generales'!$C$101:AP126))*Índice!$G$60 -> 216,460 | I43: =(INDEX('Datos Generales'!$C$9:$AP$9,,ROWS('Datos Generales'!$C$9:AP34))+INDEX('Datos Generales'!$C$20:$AP$20,,ROWS('Datos Generales'!$C$20:AP45)))*Índice!$G$60 -> 232,574 | K43: =INDEX('Datos Generales'!$C$1135:$AP$1135,,ROWS('Datos Generales'!$C$1135:AP1160)) -> 41 | M43: 2023-08-01
B44: =INDEX('Datos Generales'!$C$7:$AP$7,,ROWS('Datos Generales'!$C$7:AP33)) -> Southbridge | C44: =INDEX('Datos Generales'!$C$118:$AP$118,,ROWS('Datos Generales'!$C$118:AP144))*Índice!$G$60 -> 4,294,176 | D44: =(INDEX('Datos Generales'!$C$116:$AP$116,,ROWS('Datos Generales'!$C$116:AP142))-INDEX('Datos Generales'!$C$144:$AP$144,,ROWS('Datos Generales'!$C$144:AP170)))*Índice!$G$60 -> 100,026 | E44: =INDEX('Datos Generales'!$C$170:$AP$170,,ROWS('Datos Generales'!$C$170:AP196))*Índice!$G$60 -> 274,905 | F44: =INDEX('Datos Generales'!$C$147:$AP$147,,ROWS('Datos Generales'!$C$147:AP173))*Índice!$G$60 -> 151,884 | G44: =INDEX('Datos Generales'!$C$129:$AP$129,,ROWS('Datos Generales'!$C$129:AP155))*Índice!$G$60 -> 4,418,394 | H44: =INDEX('Datos Generales'!$C$101:$AP$101,,ROWS('Datos Generales'!$C$101:AP127))*Índice!$G$60 -> 1,737,379 | I44: =(INDEX('Datos Generales'!$C$9:$AP$9,,ROWS('Datos Generales'!$C$9:AP35))+INDEX('Datos Generales'!$C$20:$AP$20,,ROWS('Datos Generales'!$C$20:AP46)))*Índice!$G$60 -> 3,296,177 | K44: =INDEX('Datos Generales'!$C$1135:$AP$1135,,ROWS('Datos Generales'!$C$1135:AP1161)) -> 130 | M44: 2023-08-01
B45: =INDEX('Datos Generales'!$C$7:$AP$7,,ROWS('Datos Generales'!$C$7:AP34)) -> Starr International | C45: =INDEX('Datos Generales'!$C$118:$AP$118,,ROWS('Datos Generales'!$C$118:AP145))*Índice!$G$60 -> 1,316,613 | D45: =(INDEX('Datos Generales'!$C$116:$AP$116,,ROWS('Datos Generales'!$C$116:AP143))-INDEX('Datos Generales'!$C$144:$AP$144,,ROWS('Datos Generales'!$C$144:AP171)))*Índice!$G$60 -> 93,156 | E45: =INDEX('Datos Generales'!$C$170:$AP$170,,ROWS('Datos Generales'!$C$170:AP197))*Índice!$G$60 -> 59,732 | F45: =INDEX('Datos Generales'!$C$147:$AP$147,,ROWS('Datos Generales'!$C$147:AP174))*Índice!$G$60 -> 2,409 | G45: =INDEX('Datos Generales'!$C$129:$AP$129,,ROWS('Datos Generales'!$C$129:AP156))*Índice!$G$60 -> 266,607 | H45: =INDEX('Datos Generales'!$C$101:$AP$101,,ROWS('Datos Generales'!$C$101:AP128))*Índice!$G$60 -> 402,290 | I45: =(INDEX('Datos Generales'!$C$9:$AP$9,,ROWS('Datos Generales'!$C$9:AP36))+INDEX('Datos Generales'!$C$20:$AP$20,,ROWS('Datos Generales'!$C$20:AP47)))*Índice!$G$60 -> 508,121 | K45: =INDEX('Datos Generales'!$C$1135:$AP$1135,,ROWS('Datos Generales'!$C$1135:AP1162)) -> 22 | M45: 2023-08-01
B46: =INDEX('Datos Generales'!$C$7:$AP$7,,ROWS('Datos Generales'!$C$7:AP35)) -> Suramericana | C46: =INDEX('Datos Generales'!$C$118:$AP$118,,ROWS('Datos Generales'!$C$118:AP146))*Índice!$G$60 -> 7,620,529 | D46: =(INDEX('Datos Generales'!$C$116:$AP$116,,ROWS('Datos Generales'!$C$116:AP144))-INDEX('Datos Generales'!$C$144:$AP$144,,ROWS('Datos Generales'!$C$144:AP172)))*Índice!$G$60 -> 299,589 | E46: =INDEX('Datos Generales'!$C$170:$AP$170,,ROWS('Datos Generales'!$C$170:AP198))*Índice!$G$60 -> 312,631 | F46: =INDEX('Datos Generales'!$C$147:$AP$147,,ROWS('Datos Generales'!$C$147:AP175))*Índice!$G$60 -> 62,016 | G46: =INDEX('Datos Generales'!$C$129:$AP$129,,ROWS('Datos Generales'!$C$129:AP157))*Índice!$G$60 -> -1,841,868 | H46: =INDEX('Datos Generales'!$C$101:$AP$101,,ROWS('Datos Generales'!$C$101:AP129))*Índice!$G$60 -> 3,111,489 | I46: =(INDEX('Datos Generales'!$C$9:$AP$9,,ROWS('Datos Generales'!$C$9:AP37))+INDEX('Datos Generales'!$C$20:$AP$20,,ROWS('Datos Generales'!$C$20:AP48)))*Índice!$G$60 -> 4,768,878 | K46: =INDEX('Datos Generales'!$C$1135:$AP$1135,,ROWS('Datos Generales'!$C$1135:AP1163)) -> 635 | M46: 2023-08-01
B47: =INDEX('Datos Generales'!$C$7:$AP$7,,ROWS('Datos Generales'!$C$7:AP36)) -> Unnio | C47: =INDEX('Datos Generales'!$C$118:$AP$118,,ROWS('Datos Generales'!$C$118:AP147))*Índice!$G$60 -> 1,259,240 | D47: =(INDEX('Datos Generales'!$C$116:$AP$116,,ROWS('Datos Generales'!$C$116:AP145))-INDEX('Datos Generales'!$C$144:$AP$144,,ROWS('Datos Generales'!$C$144:AP173)))*Índice!$G$60 -> 2,637 | E47: =INDEX('Datos Generales'!$C$170:$AP$170,,ROWS('Datos Generales'!$C$170:AP199))*Índice!$G$60 -> 11,347 | F47: =INDEX('Datos Generales'!$C$147:$AP$147,,ROWS('Datos Generales'!$C$147:AP176))*Índice!$G$60 -> 12,687 | G47: =INDEX('Datos Generales'!$C$129:$AP$129,,ROWS('Datos Generales'!$C$129:AP158))*Índice!$G$60 -> 271,673 | H47: =INDEX('Datos Generales'!$C$101:$AP$101,,ROWS('Datos Generales'!$C$101:AP130))*Índice!$G$60 -> 262,345 | I47: =(INDEX('Datos Generales'!$C$9:$AP$9,,ROWS('Datos Generales'!$C$9:AP38))+INDEX('Datos Generales'!$C$20:$AP$20,,ROWS('Datos Generales'!$C$20:AP49)))*Índice!$G$60 -> 433,503 | K47: =INDEX('Datos Generales'!$C$1135:$AP$1135,,ROWS('Datos Generales'!$C$1135:AP1164)) -> 84 | M47: 2023-08-01
B48: =INDEX('Datos Generales'!$C$7:$AP$7,,ROWS('Datos Generales'!$C$7:AP37)) -> Zenit Seguros | C48: =INDEX('Datos Generales'!$C$118:$AP$118,,ROWS('Datos Generales'!$C$118:AP148))*Índice!$G$60 -> 673,256 | D48: =(INDEX('Datos Generales'!$C$116:$AP$116,,ROWS('Datos Generales'!$C$116:AP146))-INDEX('Datos Generales'!$C$144:$AP$144,,ROWS('Datos Generales'!$C$144:AP174)))*Índice!$G$60 -> 15,173 | E48: =INDEX('Datos Generales'!$C$170:$AP$170,,ROWS('Datos Generales'!$C$170:AP200))*Índice!$G$60 -> 34,803 | F48: =INDEX('Datos Generales'!$C$147:$AP$147,,ROWS('Datos Generales'!$C$147:AP177))*Índice!$G$60 -> 18,203 | G48: =INDEX('Datos Generales'!$C$129:$AP$129,,ROWS('Datos Generales'!$C$129:AP159))*Índice!$G$60 -> 407,820 | H48: =INDEX('Datos Generales'!$C$101:$AP$101,,ROWS('Datos Generales'!$C$101:AP131))*Índice!$G$60 -> 399,954 | I48: =(INDEX('Datos Generales'!$C$9:$AP$9,,ROWS('Datos Generales'!$C$9:AP39))+INDEX('Datos Generales'!$C$20:$AP$20,,ROWS('Datos Generales'!$C$20:AP50)))*Índice!$G$60 -> 677,843 | K48: =INDEX('Datos Generales'!$C$1135:$AP$1135,,ROWS('Datos Generales'!$C$1135:AP1165)) -> 29 | M48: 2023-08-01
B49: =INDEX('Datos Generales'!$C$7:$AP$7,,ROWS('Datos Generales'!$C$7:AP38)) -> Zurich Chile | C49: =INDEX('Datos Generales'!$C$118:$AP$118,,ROWS('Datos Generales'!$C$118:AP149))*Índice!$G$60 -> 3,058,724 | D49: =(INDEX('Datos Generales'!$C$116:$AP$116,,ROWS('Datos Generales'!$C$116:AP147))-INDEX('Datos Generales'!$C$144:$AP$144,,ROWS('Datos Generales'!$C$144:AP175)))*Índice!$G$60 -> 40,753 | E49: =INDEX('Datos Generales'!$C$170:$AP$170,,ROWS('Datos Generales'!$C$170:AP201))*Índice!$G$60 -> 192,968 | F49: =INDEX('Datos Generales'!$C$147:$AP$147,,ROWS('Datos Generales'!$C$147:AP178))*Índice!$G$60 -> 43,790 | G49: =INDEX('Datos Generales'!$C$129:$AP$129,,ROWS('Datos Generales'!$C$129:AP160))*Índice!$G$60 -> 1,659,842 | H49: =INDEX('Datos Generales'!$C$101:$AP$101,,ROWS('Datos Generales'!$C$101:AP132))*Índice!$G$60 -> 1,670,160 | I49: =(INDEX('Datos Generales'!$C$9:$AP$9,,ROWS('Datos Generales'!$C$9:AP40))+INDEX('Datos Generales'!$C$20:$AP$20,,ROWS('Datos Generales'!$C$20:AP51)))*Índice!$G$60 -> 3,009,837 | K49: =INDEX('Datos Generales'!$C$1135:$AP$1135,,ROWS('Datos Generales'!$C$1135:AP1166)) -> 324 | M49: 2023-08-01
B50: =INDEX('Datos Generales'!$C$7:$AP$7,,ROWS('Datos Generales'!$C$7:AP39)) -> Zurich Santander | C50: =INDEX('Datos Generales'!$C$118:$AP$118,,ROWS('Datos Generales'!$C$118:AP150))*Índice!$G$60 -> 687,082 | D50: =(INDEX('Datos Generales'!$C$116:$AP$116,,ROWS('Datos Generales'!$C$116:AP148))-INDEX('Datos Generales'!$C$144:$AP$144,,ROWS('Datos Generales'!$C$144:AP176)))*Índice!$G$60 -> 325,628 | E50: =INDEX('Datos Generales'!$C$170:$AP$170,,ROWS('Datos Generales'!$C$170:AP202))*Índice!$G$60 -> 304,704 | F50: =INDEX('Datos Generales'!$C$147:$AP$147,,ROWS('Datos Generales'!$C$147:AP179))*Índice!$G$60 -> 55,092 | G50: =INDEX('Datos Generales'!$C$129:$AP$129,,ROWS('Datos Generales'!$C$129:AP161))*Índice!$G$60 -> 507,173 | H50: =INDEX('Datos Generales'!$C$101:$AP$101,,ROWS('Datos Generales'!$C$101:AP133))*Índice!$G$60 -> 2,159,080 | I50: =(INDEX('Datos Generales'!$C$9:$AP$9,,ROWS('Datos Generales'!$C$9:AP41))+INDEX('Datos Generales'!$C$20:$AP$20,,ROWS('Datos Generales'!$C$20:AP52)))*Índice!$G$60 -> 3,594,629 | K50: =INDEX('Datos Generales'!$C$1135:$AP$1135,,ROWS('Datos Generales'!$C$1135:AP1167)) -> 53 | M50: 2023-08-01
B51: =INDEX('Datos Generales'!$C$7:$AP$7,,ROWS('Datos Generales'!$C$7:AP40)) -> 0 | C51: =INDEX('Datos Generales'!$C$118:$AP$118,,ROWS('Datos Generales'!$C$118:AP151))*Índice!$G$60 -> 0 | D51: =(INDEX('Datos Generales'!$C$116:$AP$116,,ROWS('Datos Generales'!$C$116:AP149))-INDEX('Datos Generales'!$C$144:$AP$144,,ROWS('Datos Generales'!$C$144:AP177)))*Índice!$G$60 -> 0 | E51: =INDEX('Datos Generales'!$C$170:$AP$170,,ROWS('Datos Generales'!$C$170:AP203))*Índice!$G$60 -> 0 | F51: =INDEX('Datos Generales'!$C$147:$AP$147,,ROWS('Datos Generales'!$C$147:AP180))*Índice!$G$60 -> 0 | G51: =INDEX('Datos Generales'!$C$129:$AP$129,,ROWS('Datos Generales'!$C$129:AP162))*Índice!$G$60 -> 0 | H51: =INDEX('Datos Generales'!$C$101:$AP$101,,ROWS('Datos Generales'!$C$101:AP134))*Índice!$G$60 -> 0 | I51: =(INDEX('Datos Generales'!$C$9:$AP$9,,ROWS('Datos Generales'!$C$9:AP42))+INDEX('Datos Generales'!$C$20:$AP$20,,ROWS('Datos Generales'!$C$20:AP53)))*Índice!$G$60 -> 0 | K51: =INDEX('Datos Generales'!$C$1135:$AP$1135,,ROWS('Datos Generales'!$C$1135:AP1168)) -> 0 | M51: 00:00:00
B52: =INDEX('Datos Generales'!$C$7:$AP$7,,ROWS('Datos Generales'!$C$7:AP41)) -> 0 | C52: =INDEX('Datos Generales'!$C$118:$AP$118,,ROWS('Datos Generales'!$C$118:AP152))*Índice!$G$60 -> 0 | D52: =(INDEX('Datos Generales'!$C$116:$AP$116,,ROWS('Datos Generales'!$C$116:AP150))-INDEX('Datos Generales'!$C$144:$AP$144,,ROWS('Datos Generales'!$C$144:AP178)))*Índice!$G$60 -> 0 | E52: =INDEX('Datos Generales'!$C$170:$AP$170,,ROWS('Datos Generales'!$C$170:AP204))*Índice!$G$60 -> 0 | F52: =INDEX('Datos Generales'!$C$147:$AP$147,,ROWS('Datos Generales'!$C$147:AP181))*Índice!$G$60 -> 0 | G52: =INDEX('Datos Generales'!$C$129:$AP$129,,ROWS('Datos Generales'!$C$129:AP163))*Índice!$G$60 -> 0 | H52: =INDEX('Datos Generales'!$C$101:$AP$101,,ROWS('Datos Generales'!$C$101:AP135))*Índice!$G$60 -> 0 | I52: =(INDEX('Datos Generales'!$C$9:$AP$9,,ROWS('Datos Generales'!$C$9:AP43))+INDEX('Datos Generales'!$C$20:$AP$20,,ROWS('Datos Generales'!$C$20:AP54)))*Índice!$G$60 -> 0 | K52: =INDEX('Datos Generales'!$C$1135:$AP$1135,,ROWS('Datos Generales'!$C$1135:AP1169)) -> 0 | M52: 00:00:00
B53: =INDEX('Datos Generales'!$C$7:$AP$7,,ROWS('Datos Generales'!$C$7:AP42)) -> 0 | C53: =INDEX('Datos Generales'!$C$118:$AP$118,,ROWS('Datos Generales'!$C$118:AP153))*Índice!$G$60 -> 0 | D53: =(INDEX('Datos Generales'!$C$116:$AP$116,,ROWS('Datos Generales'!$C$116:AP151))-INDEX('Datos Generales'!$C$144:$AP$144,,ROWS('Datos Generales'!$C$144:AP179)))*Índice!$G$60 -> 0 | E53: =INDEX('Datos Generales'!$C$170:$AP$170,,ROWS('Datos Generales'!$C$170:AP205))*Índice!$G$60 -> 0 | F53: =INDEX('Datos Generales'!$C$147:$AP$147,,ROWS('Datos Generales'!$C$147:AP182))*Índice!$G$60 -> 0 | G53: =INDEX('Datos Generales'!$C$129:$AP$129,,ROWS('Datos Generales'!$C$129:AP164))*Índice!$G$60 -> 0 | H53: =INDEX('Datos Generales'!$C$101:$AP$101,,ROWS('Datos Generales'!$C$101:AP136))*Índice!$G$60 -> 0 | I53: =(INDEX('Datos Generales'!$C$9:$AP$9,,ROWS('Datos Generales'!$C$9:AP44))+INDEX('Datos Generales'!$C$20:$AP$20,,ROWS('Datos Generales'!$C$20:AP55)))*Índice!$G$60 -> 0 | K53: =INDEX('Datos Generales'!$C$1135:$AP$1135,,ROWS('Datos Generales'!$C$1135:AP1170)) -> 0 | M53: 00:00:00
B54: =INDEX('Datos Generales'!$C$7:$AP$7,,ROWS('Datos Generales'!$C$7:AP43)) -> 0 | C54: =INDEX('Datos Generales'!$C$118:$AP$118,,ROWS('Datos Generales'!$C$118:AP154))*Índice!$G$60 -> 0 | D54: =(INDEX('Datos Generales'!$C$116:$AP$116,,ROWS('Datos Generales'!$C$116:AP152))-INDEX('Datos Generales'!$C$144:$AP$144,,ROWS('Datos Generales'!$C$144:AP180)))*Índice!$G$60 -> 0 | E54: =INDEX('Datos Generales'!$C$170:$AP$170,,ROWS('Datos Generales'!$C$170:AP206))*Índice!$G$60 -> 0 | F54: =INDEX('Datos Generales'!$C$147:$AP$147,,ROWS('Datos Generales'!$C$147:AP183))*Índice!$G$60 -> 0 | G54: =INDEX('Datos Generales'!$C$129:$AP$129,,ROWS('Datos Generales'!$C$129:AP165))*Índice!$G$60 -> 0 | H54: =INDEX('Datos Generales'!$C$101:$AP$101,,ROWS('Datos Generales'!$C$101:AP137))*Índice!$G$60 -> 0 | I54: =(INDEX('Datos Generales'!$C$9:$AP$9,,ROWS('Datos Generales'!$C$9:AP45))+INDEX('Datos Generales'!$C$20:$AP$20,,ROWS('Datos Generales'!$C$20:AP56)))*Índice!$G$60 -> 0 | K54: =INDEX('Datos Generales'!$C$1135:$AP$1135,,ROWS('Datos Generales'!$C$1135:AP1171)) -> 0 | M54: 00:00:00
B55: =INDEX('Datos Generales'!$C$7:$AP$7,,ROWS('Datos Generales'!$C$7:AP44)) -> 0 | C55: =INDEX('Datos Generales'!$C$118:$AP$118,,ROWS('Datos Generales'!$C$118:AP155))*Índice!$G$60 -> 0 | D55: =(INDEX('Datos Generales'!$C$116:$AP$116,,ROWS('Datos Generales'!$C$116:AP153))-INDEX('Datos Generales'!$C$144:$AP$144,,ROWS('Datos Generales'!$C$144:AP181)))*Índice!$G$60 -> 0 | E55: =INDEX('Datos Generales'!$C$170:$AP$170,,ROWS('Datos Generales'!$C$170:AP207))*Índice!$G$60 -> 0 | F55: =INDEX('Datos Generales'!$C$147:$AP$147,,ROWS('Datos Generales'!$C$147:AP184))*Índice!$G$60 -> 0 | G55: =INDEX('Datos Generales'!$C$129:$AP$129,,ROWS('Datos Generales'!$C$129:AP166))*Índice!$G$60 -> 0 | H55: =INDEX('Datos Generales'!$C$101:$AP$101,,ROWS('Datos Generales'!$C$101:AP138))*Índice!$G$60 -> 0 | I55: =(INDEX('Datos Generales'!$C$9:$AP$9,,ROWS('Datos Generales'!$C$9:AP46))+INDEX('Datos Generales'!$C$20:$AP$20,,ROWS('Datos Generales'!$C$20:AP57)))*Índice!$G$60 -> 0 | K55: =INDEX('Datos Generales'!$C$1135:$AP$1135,,ROWS('Datos Generales'!$C$1135:AP1172)) -> 0 | M55: 00:00:00
B56: =INDEX('Datos Generales'!$C$7:$AP$7,,ROWS('Datos Generales'!$C$7:AP45)) -> 0 | C56: =INDEX('Datos Generales'!$C$118:$AP$118,,ROWS('Datos Generales'!$C$118:AP156))*Índice!$G$60 -> 0 | D56: =(INDEX('Datos Generales'!$C$116:$AP$116,,ROWS('Datos Generales'!$C$116:AP154))-INDEX('Datos Generales'!$C$144:$AP$144,,ROWS('Datos Generales'!$C$144:AP182)))*Índice!$G$60 -> 0 | E56: =INDEX('Datos Generales'!$C$170:$AP$170,,ROWS('Datos Generales'!$C$170:AP208))*Índice!$G$60 -> 0 | F56: =INDEX('Datos Generales'!$C$147:$AP$147,,ROWS('Datos Generales'!$C$147:AP185))*Índice!$G$60 -> 0 | G56: =INDEX('Datos Generales'!$C$129:$AP$129,,ROWS('Datos Generales'!$C$129:AP167))*Índice!$G$60 -> 0 | H56: =INDEX('Datos Generales'!$C$101:$AP$101,,ROWS('Datos Generales'!$C$101:AP139))*Índice!$G$60 -> 0 | I56: =(INDEX('Datos Generales'!$C$9:$AP$9,,ROWS('Datos Generales'!$C$9:AP47))+INDEX('Datos Generales'!$C$20:$AP$20,,ROWS('Datos Generales'!$C$20:AP58)))*Índice!$G$60 -> 0 | K56: =INDEX('Datos Generales'!$C$1135:$AP$1135,,ROWS('Datos Generales'!$C$1135:AP1173)) -> 0 | M56: 00:00:00
B57: =INDEX('Datos Generales'!$C$7:$AP$7,,ROWS('Datos Generales'!$C$7:AP45)) -> 0 | C57: =INDEX('Datos Generales'!$C$118:$AP$118,,ROWS('Datos Generales'!$C$118:AP157))*Índice!$G$60 -> 0 | D57: =(INDEX('Datos Generales'!$C$116:$AP$116,,ROWS('Datos Generales'!$C$116:AP155))-INDEX('Datos Generales'!$C$144:$AP$144,,ROWS('Datos Generales'!$C$144:AP183)))*Índice!$G$60 -> 0 | E57: =INDEX('Datos Generales'!$C$170:$AP$170,,ROWS('Datos Generales'!$C$170:AP209))*Índice!$G$60 -> 0 | F57: =INDEX('Datos Generales'!$C$147:$AP$147,,ROWS('Datos Generales'!$C$147:AP186))*Índice!$G$60 -> 0 | G57: =INDEX('Datos Generales'!$C$129:$AP$129,,ROWS('Datos Generales'!$C$129:AP168))*Índice!$G$60 -> 0 | H57: =INDEX('Datos Generales'!$C$101:$AP$101,,ROWS('Datos Generales'!$C$101:AP140))*Índice!$G$60 -> 0 | I57: =(INDEX('Datos Generales'!$C$9:$AP$9,,ROWS('Datos Generales'!$C$9:AP48))+INDEX('Datos Generales'!$C$20:$AP$20,,ROWS('Datos Generales'!$C$20:AP59)))*Índice!$G$60 -> 0 | K57: =INDEX('Datos Generales'!$C$1135:$AP$1135,,ROWS('Datos Generales'!$C$1135:AP1174)) -> 0 | M57: 00:00:00
B58: Total | C58: =SUM(C18:C57) -> 62,736,085 | D58: 1,608,894 | E58: 3,282,803 | F58: 1,224,208 | G58: 29,644,487 | H58: 43,608,930 | I58: 66,909,441 | K58: =SUM(K18:K57) -> 5,718
B61: Seguros de Vida | C61: Prima Directa | D61: Resultado de Operaciones | E61: Utilidad | F61: Producto de Inversiones | G61: Siniestros Directos | H61: Patrimonio | I61: Inversiones | K61: Número de trabajadores | M61: Fecha de Descarga de EEFF
B62: =INDEX('Datos Vida'!$C$7:$AP$7,,ROWS('Datos Vida'!$C$7:AP7)) -> 4 Life Seguros | C62: =INDEX('Datos Vida'!$C$118:$AP$118,,ROWS('Datos Vida'!$C$118:AP118))*Índice!$G$60 -> 5,594,824 | D62: =(INDEX('Datos Vida'!$C$116:$AP$116,,ROWS('Datos Vida'!$C$116:AP116))-INDEX('Datos Vida'!$C$144:$AP$144,,ROWS('Datos Vida'!$C$144:AP144)))*Índice!$G$60 -> -212,629 | E62: =INDEX('Datos Vida'!$C$170:$AP$170,,ROWS('Datos Vida'!$C$170:AP170))*Índice!$G$60 -> 167,910 | F62: =INDEX('Datos Vida'!$C$147:$AP$147,,ROWS('Datos Vida'!$C$147:AP147))*Índice!$G$60 -> 481,490 | G62: =(INDEX('Datos Vida'!$C$129:$AP$129,,ROWS('Datos Vida'!$C$129:AP129))+INDEX('Datos Vida'!$C$133:$AP$133,,ROWS('Datos Vida'!$C$133:AP133)))*Índice!$G$60 -> 5,587,055 | H62: =INDEX('Datos Vida'!$C$101:$AP$101,,ROWS('Datos Vida'!$C$101:AP101))*Índice!$G$60 -> 2,673,816 | I62: =(INDEX('Datos Vida'!$C$9:$AP$9,,ROWS('Datos Vida'!$C$9:AP9))+INDEX('Datos Vida'!$C$20:$AP$20,,ROWS('Datos Vida'!$C$20:AP20)))*Índice!$G$60 -> 27,228,032 | K62: =INDEX('Datos Vida'!$C$859:$AP$859,,ROWS('Datos Vida'!$C$859:AP859)) -> 55 | M62: =TRANSPOSE('Datos Vida'!C861:AP861) -> 2023-08-01
B63: =INDEX('Datos Vida'!$C$7:$AP$7,,ROWS('Datos Vida'!$C$7:AP8)) -> Alemana Seguros | C63: =INDEX('Datos Vida'!$C$118:$AP$118,,ROWS('Datos Vida'!$C$118:AP119))*Índice!$G$60 -> 182,728 | D63: =(INDEX('Datos Vida'!$C$116:$AP$116,,ROWS('Datos Vida'!$C$116:AP117))-INDEX('Datos Vida'!$C$144:$AP$144,,ROWS('Datos Vida'!$C$144:AP145)))*Índice!$G$60 -> 10,457 | E63: =INDEX('Datos Vida'!$C$170:$AP$170,,ROWS('Datos Vida'!$C$170:AP171))*Índice!$G$60 -> 15,705 | F63: =INDEX('Datos Vida'!$C$147:$AP$147,,ROWS('Datos Vida'!$C$147:AP148))*Índice!$G$60 -> 1,218 | G63: =(INDEX('Datos Vida'!$C$129:$AP$129,,ROWS('Datos Vida'!$C$129:AP130))+INDEX('Datos Vida'!$C$133:$AP$133,,ROWS('Datos Vida'!$C$133:AP134)))*Índice!$G$60 -> 87,222 | H63: =INDEX('Datos Vida'!$C$101:$AP$101,,ROWS('Datos Vida'!$C$101:AP102))*Índice!$G$60 -> 195,205 | I63: =(INDEX('Datos Vida'!$C$9:$AP$9,,ROWS('Datos Vida'!$C$9:AP10))+INDEX('Datos Vida'!$C$20:$AP$20,,ROWS('Datos Vida'!$C$20:AP21)))*Índice!$G$60 -> 282,430 | K63: =INDEX('Datos Vida'!$C$859:$AP$859,,ROWS('Datos Vida'!$C$859:AP860)) -> 147 | M63: 2023-08-01
B64: =INDEX('Datos Vida'!$C$7:$AP$7,,ROWS('Datos Vida'!$C$7:AP9)) -> BCI Seguros Vida | C64: =INDEX('Datos Vida'!$C$118:$AP$118,,ROWS('Datos Vida'!$C$118:AP120))*Índice!$G$60 -> 2,203,134 | D64: =(INDEX('Datos Vida'!$C$116:$AP$116,,ROWS('Datos Vida'!$C$116:AP118))-INDEX('Datos Vida'!$C$144:$AP$144,,ROWS('Datos Vida'!$C$144:AP146)))*Índice!$G$60 -> 166,672 | E64: =INDEX('Datos Vida'!$C$170:$AP$170,,ROWS('Datos Vida'!$C$170:AP172))*Índice!$G$60 -> 299,404 | F64: =INDEX('Datos Vida'!$C$147:$AP$147,,ROWS('Datos Vida'!$C$147:AP149))*Índice!$G$60 -> 143,201 | G64: =(INDEX('Datos Vida'!$C$129:$AP$129,,ROWS('Datos Vida'!$C$129:AP131))+INDEX('Datos Vida'!$C$133:$AP$133,,ROWS('Datos Vida'!$C$133:AP135)))*Índice!$G$60 -> 1,282,913 | H64: =INDEX('Datos Vida'!$C$101:$AP$101,,ROWS('Datos Vida'!$C$101:AP103))*Índice!$G$60 -> 1,846,084 | I64: =(INDEX('Datos Vida'!$C$9:$AP$9,,ROWS('Datos Vida'!$C$9:AP11))+INDEX('Datos Vida'!$C$20:$AP$20,,ROWS('Datos Vida'!$C$20:AP22)))*Índice!$G$60 -> 7,101,849 | K64: =INDEX('Datos Vida'!$C$859:$AP$859,,ROWS('Datos Vida'!$C$859:AP861)) -> 186 | M64: 2023-08-01
B65: =INDEX('Datos Vida'!$C$7:$AP$7,,ROWS('Datos Vida'!$C$7:AP10)) -> BICE Vida | C65: =INDEX('Datos Vida'!$C$118:$AP$118,,ROWS('Datos Vida'!$C$118:AP121))*Índice!$G$60 -> 8,165,509 | D65: =(INDEX('Datos Vida'!$C$116:$AP$116,,ROWS('Datos Vida'!$C$116:AP119))-INDEX('Datos Vida'!$C$144:$AP$144,,ROWS('Datos Vida'!$C$144:AP147)))*Índice!$G$60 -> -6,763,958 | E65: =INDEX('Datos Vida'!$C$170:$AP$170,,ROWS('Datos Vida'!$C$170:AP173))*Índice!$G$60 -> 790,514 | F65: =INDEX('Datos Vida'!$C$147:$AP$147,,ROWS('Datos Vida'!$C$147:AP150))*Índice!$G$60 -> 7,845,601 | G65: =(INDEX('Datos Vida'!$C$129:$AP$129,,ROWS('Datos Vida'!$C$129:AP132))+INDEX('Datos Vida'!$C$133:$AP$133,,ROWS('Datos Vida'!$C$133:AP136)))*Índice!$G$60 -> 13,693,107 | H65: =INDEX('Datos Vida'!$C$101:$AP$101,,ROWS('Datos Vida'!$C$101:AP104))*Índice!$G$60 -> 12,775,321 | I65: =(INDEX('Datos Vida'!$C$9:$AP$9,,ROWS('Datos Vida'!$C$9:AP12))+INDEX('Datos Vida'!$C$20:$AP$20,,ROWS('Datos Vida'!$C$20:AP23)))*Índice!$G$60 -> 165,592,476 | K65: =INDEX('Datos Vida'!$C$859:$AP$859,,ROWS('Datos Vida'!$C$859:AP862)) -> 928 | M65: 2023-08-01
B66: =INDEX('Datos Vida'!$C$7:$AP$7,,ROWS('Datos Vida'!$C$7:AP11)) -> BNP Paribas Cardif | C66: =INDEX('Datos Vida'!$C$118:$AP$118,,ROWS('Datos Vida'!$C$118:AP122))*Índice!$G$60 -> 3,202,567 | D66: =(INDEX('Datos Vida'!$C$116:$AP$116,,ROWS('Datos Vida'!$C$116:AP120))-INDEX('Datos Vida'!$C$144:$AP$144,,ROWS('Datos Vida'!$C$144:AP148)))*Índice!$G$60 -> 193,636 | E66: =INDEX('Datos Vida'!$C$170:$AP$170,,ROWS('Datos Vida'!$C$170:AP174))*Índice!$G$60 -> 336,743 | F66: =INDEX('Datos Vida'!$C$147:$AP$147,,ROWS('Datos Vida'!$C$147:AP151))*Índice!$G$60 -> 218,003 | G66: =(INDEX('Datos Vida'!$C$129:$AP$129,,ROWS('Datos Vida'!$C$129:AP133))+INDEX('Datos Vida'!$C$133:$AP$133,,ROWS('Datos Vida'!$C$133:AP137)))*Índice!$G$60 -> 665,504 | H66: =INDEX('Datos Vida'!$C$101:$AP$101,,ROWS('Datos Vida'!$C$101:AP105))*Índice!$G$60 -> 3,546,436 | I66: =(INDEX('Datos Vida'!$C$9:$AP$9,,ROWS('Datos Vida'!$C$9:AP13))+INDEX('Datos Vida'!$C$20:$AP$20,,ROWS('Datos Vida'!$C$20:AP24)))*Índice!$G$60 -> 7,814,976 | K66: =INDEX('Datos Vida'!$C$859:$AP$859,,ROWS('Datos Vida'!$C$859:AP863)) -> 222 | M66: 2023-08-01
B67: =INDEX('Datos Vida'!$C$7:$AP$7,,ROWS('Datos Vida'!$C$7:AP12)) -> Bupa | C67: =INDEX('Datos Vida'!$C$118:$AP$118,,ROWS('Datos Vida'!$C$118:AP123))*Índice!$G$60 -> 298,965 | D67: =(INDEX('Datos Vida'!$C$116:$AP$116,,ROWS('Datos Vida'!$C$116:AP121))-INDEX('Datos Vida'!$C$144:$AP$144,,ROWS('Datos Vida'!$C$144:AP149)))*Índice!$G$60 -> 9,745 | E67: =INDEX('Datos Vida'!$C$170:$AP$170,,ROWS('Datos Vida'!$C$170:AP175))*Índice!$G$60 -> 22,530 | F67: =INDEX('Datos Vida'!$C$147:$AP$147,,ROWS('Datos Vida'!$C$147:AP152))*Índice!$G$60 -> 10,783 | G67: =(INDEX('Datos Vida'!$C$129:$AP$129,,ROWS('Datos Vida'!$C$129:AP134))+INDEX('Datos Vida'!$C$133:$AP$133,,ROWS('Datos Vida'!$C$133:AP138)))*Índice!$G$60 -> 178,665 | H67: =INDEX('Datos Vida'!$C$101:$AP$101,,ROWS('Datos Vida'!$C$101:AP106))*Índice!$G$60 -> 318,099 | I67: =(INDEX('Datos Vida'!$C$9:$AP$9,,ROWS('Datos Vida'!$C$9:AP14))+INDEX('Datos Vida'!$C$20:$AP$20,,ROWS('Datos Vida'!$C$20:AP25)))*Índice!$G$60 -> 342,437 | K67: =INDEX('Datos Vida'!$C$859:$AP$859,,ROWS('Datos Vida'!$C$859:AP864)) -> 18 | M67: 2023-08-01
B68: =INDEX('Datos Vida'!$C$7:$AP$7,,ROWS('Datos Vida'!$C$7:AP13)) -> Cámara | C68: =INDEX('Datos Vida'!$C$118:$AP$118,,ROWS('Datos Vida'!$C$118:AP124))*Índice!$G$60 -> 1,231,039 | D68: =(INDEX('Datos Vida'!$C$116:$AP$116,,ROWS('Datos Vida'!$C$116:AP122))-INDEX('Datos Vida'!$C$144:$AP$144,,ROWS('Datos Vida'!$C$144:AP150)))*Índice!$G$60 -> 3,273 | E68: =INDEX('Datos Vida'!$C$170:$AP$170,,ROWS('Datos Vida'!$C$170:AP176))*Índice!$G$60 -> 57,999 | F68: =INDEX('Datos Vida'!$C$147:$AP$147,,ROWS('Datos Vida'!$C$147:AP153))*Índice!$G$60 -> 45,927 | G68: =(INDEX('Datos Vida'!$C$129:$AP$129,,ROWS('Datos Vida'!$C$129:AP135))+INDEX('Datos Vida'!$C$133:$AP$133,,ROWS('Datos Vida'!$C$133:AP139)))*Índice!$G$60 -> 944,908 | H68: =INDEX('Datos Vida'!$C$101:$AP$101,,ROWS('Datos Vida'!$C$101:AP107))*Índice!$G$60 -> 682,819 | I68: =(INDEX('Datos Vida'!$C$9:$AP$9,,ROWS('Datos Vida'!$C$9:AP15))+INDEX('Datos Vida'!$C$20:$AP$20,,ROWS('Datos Vida'!$C$20:AP26)))*Índice!$G$60 -> 1,812,083 | K68: =INDEX('Datos Vida'!$C$859:$AP$859,,ROWS('Datos Vida'!$C$859:AP865)) -> 296 | M68: 2023-08-01
B69: =INDEX('Datos Vida'!$C$7:$AP$7,,ROWS('Datos Vida'!$C$7:AP14)) -> CF Seguros de Vida | C69: =INDEX('Datos Vida'!$C$118:$AP$118,,ROWS('Datos Vida'!$C$118:AP125))*Índice!$G$60 -> 364,913 | D69: =(INDEX('Datos Vida'!$C$116:$AP$116,,ROWS('Datos Vida'!$C$116:AP123))-INDEX('Datos Vida'!$C$144:$AP$144,,ROWS('Datos Vida'!$C$144:AP151)))*Índice!$G$60 -> 184,332 | E69: =INDEX('Datos Vida'!$C$170:$AP$170,,ROWS('Datos Vida'!$C$170:AP177))*Índice!$G$60 -> 160,426 | F69: =INDEX('Datos Vida'!$C$147:$AP$147,,ROWS('Datos Vida'!$C$147:AP154))*Índice!$G$60 -> 30,425 | G69: =(INDEX('Datos Vida'!$C$129:$AP$129,,ROWS('Datos Vida'!$C$129:AP136))+INDEX('Datos Vida'!$C$133:$AP$133,,ROWS('Datos Vida'!$C$133:AP140)))*Índice!$G$60 -> 79,361 | H69: =INDEX('Datos Vida'!$C$101:$AP$101,,ROWS('Datos Vida'!$C$101:AP108))*Índice!$G$60 -> 512,278 | I69: =(INDEX('Datos Vida'!$C$9:$AP$9,,ROWS('Datos Vida'!$C$9:AP16))+INDEX('Datos Vida'!$C$20:$AP$20,,ROWS('Datos Vida'!$C$20:AP27)))*Índice!$G$60 -> 859,619 | K69: =INDEX('Datos Vida'!$C$859:$AP$859,,ROWS('Datos Vida'!$C$859:AP866)) -> 20 | M69: 2023-08-01
B70: =INDEX('Datos Vida'!$C$7:$AP$7,,ROWS('Datos Vida'!$C$7:AP15)) -> Chubb Vida | C70: =INDEX('Datos Vida'!$C$118:$AP$118,,ROWS('Datos Vida'!$C$118:AP126))*Índice!$G$60 -> 2,348,708 | D70: =(INDEX('Datos Vida'!$C$116:$AP$116,,ROWS('Datos Vida'!$C$116:AP124))-INDEX('Datos Vida'!$C$144:$AP$144,,ROWS('Datos Vida'!$C$144:AP152)))*Índice!$G$60 -> 469,112 | E70: =INDEX('Datos Vida'!$C$170:$AP$170,,ROWS('Datos Vida'!$C$170:AP178))*Índice!$G$60 -> 431,041 | F70: =INDEX('Datos Vida'!$C$147:$AP$147,,ROWS('Datos Vida'!$C$147:AP155))*Índice!$G$60 -> 74,411 | G70: =(INDEX('Datos Vida'!$C$129:$AP$129,,ROWS('Datos Vida'!$C$129:AP137))+INDEX('Datos Vida'!$C$133:$AP$133,,ROWS('Datos Vida'!$C$133:AP141)))*Índice!$G$60 -> 711,400 | H70: =INDEX('Datos Vida'!$C$101:$AP$101,,ROWS('Datos Vida'!$C$101:AP109))*Índice!$G$60 -> 3,371,449 | I70: =(INDEX('Datos Vida'!$C$9:$AP$9,,ROWS('Datos Vida'!$C$9:AP17))+INDEX('Datos Vida'!$C$20:$AP$20,,ROWS('Datos Vida'!$C$20:AP28)))*Índice!$G$60 -> 5,989,640 | K70: =INDEX('Datos Vida'!$C$859:$AP$859,,ROWS('Datos Vida'!$C$859:AP867)) -> 80 | M70: 2023-08-01
B71: =INDEX('Datos Vida'!$C$7:$AP$7,,ROWS('Datos Vida'!$C$7:AP16)) -> CLC | C71: =INDEX('Datos Vida'!$C$118:$AP$118,,ROWS('Datos Vida'!$C$118:AP127))*Índice!$G$60 -> 482,762 | D71: =(INDEX('Datos Vida'!$C$116:$AP$116,,ROWS('Datos Vida'!$C$116:AP125))-INDEX('Datos Vida'!$C$144:$AP$144,,ROWS('Datos Vida'!$C$144:AP153)))*Índice!$G$60 -> 151,282 | E71: =INDEX('Datos Vida'!$C$170:$AP$170,,ROWS('Datos Vida'!$C$170:AP179))*Índice!$G$60 -> 118,068 | F71: =INDEX('Datos Vida'!$C$147:$AP$147,,ROWS('Datos Vida'!$C$147:AP156))*Índice!$G$60 -> 3,413 | G71: =(INDEX('Datos Vida'!$C$129:$AP$129,,ROWS('Datos Vida'!$C$129:AP138))+INDEX('Datos Vida'!$C$133:$AP$133,,ROWS('Datos Vida'!$C$133:AP142)))*Índice!$G$60 -> 246,831 | H71: =INDEX('Datos Vida'!$C$101:$AP$101,,ROWS('Datos Vida'!$C$101:AP110))*Índice!$G$60 -> 379,571 | I71: =(INDEX('Datos Vida'!$C$9:$AP$9,,ROWS('Datos Vida'!$C$9:AP18))+INDEX('Datos Vida'!$C$20:$AP$20,,ROWS('Datos Vida'!$C$20:AP29)))*Índice!$G$60 -> 577,933 | K71: =INDEX('Datos Vida'!$C$859:$AP$859,,ROWS('Datos Vida'!$C$859:AP868)) -> 103 | M71: 2023-08-01
B72: =INDEX('Datos Vida'!$C$7:$AP$7,,ROWS('Datos Vida'!$C$7:AP17)) -> CN Life | C72: =INDEX('Datos Vida'!$C$118:$AP$118,,ROWS('Datos Vida'!$C$118:AP128))*Índice!$G$60 -> 1,451,341 | D72: =(INDEX('Datos Vida'!$C$116:$AP$116,,ROWS('Datos Vida'!$C$116:AP126))-INDEX('Datos Vida'!$C$144:$AP$144,,ROWS('Datos Vida'!$C$144:AP154)))*Índice!$G$60 -> -457,735 | E72: =INDEX('Datos Vida'!$C$170:$AP$170,,ROWS('Datos Vida'!$C$170:AP180))*Índice!$G$60 -> 152,023 | F72: =INDEX('Datos Vida'!$C$147:$AP$147,,ROWS('Datos Vida'!$C$147:AP157))*Índice!$G$60 -> 617,761 | G72: =(INDEX('Datos Vida'!$C$129:$AP$129,,ROWS('Datos Vida'!$C$129:AP139))+INDEX('Datos Vida'!$C$133:$AP$133,,ROWS('Datos Vida'!$C$133:AP143)))*Índice!$G$60 -> 1,867,319 | H72: =INDEX('Datos Vida'!$C$101:$AP$101,,ROWS('Datos Vida'!$C$101:AP111))*Índice!$G$60 -> 2,465,456 | I72: =(INDEX('Datos Vida'!$C$9:$AP$9,,ROWS('Datos Vida'!$C$9:AP19))+INDEX('Datos Vida'!$C$20:$AP$20,,ROWS('Datos Vida'!$C$20:AP30)))*Índice!$G$60 -> 24,579,994 | K72: =INDEX('Datos Vida'!$C$859:$AP$859,,ROWS('Datos Vida'!$C$859:AP869)) -> 16 | M72: 2023-08-01
B73: =INDEX('Datos Vida'!$C$7:$AP$7,,ROWS('Datos Vida'!$C$7:AP18)) -> Colmena Seguros | C73: =INDEX('Datos Vida'!$C$118:$AP$118,,ROWS('Datos Vida'!$C$118:AP129))*Índice!$G$60 -> 131,823 | D73: =(INDEX('Datos Vida'!$C$116:$AP$116,,ROWS('Datos Vida'!$C$116:AP127))-INDEX('Datos Vida'!$C$144:$AP$144,,ROWS('Datos Vida'!$C$144:AP155)))*Índice!$G$60 -> 32,850 | E73: =INDEX('Datos Vida'!$C$170:$AP$170,,ROWS('Datos Vida'!$C$170:AP181))*Índice!$G$60 -> 33,785 | F73: =INDEX('Datos Vida'!$C$147:$AP$147,,ROWS('Datos Vida'!$C$147:AP158))*Índice!$G$60 -> 11,778 | G73: =(INDEX('Datos Vida'!$C$129:$AP$129,,ROWS('Datos Vida'!$C$129:AP140))+INDEX('Datos Vida'!$C$133:$AP$133,,ROWS('Datos Vida'!$C$133:AP144)))*Índice!$G$60 -> 21,329 | H73: =INDEX('Datos Vida'!$C$101:$AP$101,,ROWS('Datos Vida'!$C$101:AP112))*Índice!$G$60 -> 354,322 | I73: =(INDEX('Datos Vida'!$C$9:$AP$9,,ROWS('Datos Vida'!$C$9:AP20))+INDEX('Datos Vida'!$C$20:$AP$20,,ROWS('Datos Vida'!$C$20:AP31)))*Índice!$G$60 -> 405,492 | K73: =INDEX('Datos Vida'!$C$859:$AP$859,,ROWS('Datos Vida'!$C$859:AP870)) -> 151 | M73: 2023-08-01
B74: =INDEX('Datos Vida'!$C$7:$AP$7,,ROWS('Datos Vida'!$C$7:AP19)) -> Confuturo | C74: =INDEX('Datos Vida'!$C$118:$AP$118,,ROWS('Datos Vida'!$C$118:AP130))*Índice!$G$60 -> 14,098,408 | D74: =(INDEX('Datos Vida'!$C$116:$AP$116,,ROWS('Datos Vida'!$C$116:AP128))-INDEX('Datos Vida'!$C$144:$AP$144,,ROWS('Datos Vida'!$C$144:AP156)))*Índice!$G$60 -> -4,433,473 | E74: =INDEX('Datos Vida'!$C$170:$AP$170,,ROWS('Datos Vida'!$C$170:AP182))*Índice!$G$60 -> 907,978 | F74: =INDEX('Datos Vida'!$C$147:$AP$147,,ROWS('Datos Vida'!$C$147:AP159))*Índice!$G$60 -> 5,716,004 | G74: =(INDEX('Datos Vida'!$C$129:$AP$129,,ROWS('Datos Vida'!$C$129:AP141))+INDEX('Datos Vida'!$C$133:$AP$133,,ROWS('Datos Vida'!$C$133:AP145)))*Índice!$G$60 -> 17,807,124 | H74: =INDEX('Datos Vida'!$C$101:$AP$101,,ROWS('Datos Vida'!$C$101:AP113))*Índice!$G$60 -> 15,638,373 | I74: =(INDEX('Datos Vida'!$C$9:$AP$9,,ROWS('Datos Vida'!$C$9:AP21))+INDEX('Datos Vida'!$C$20:$AP$20,,ROWS('Datos Vida'!$C$20:AP32)))*Índice!$G$60 -> 229,348,987 | K74: =INDEX('Datos Vida'!$C$859:$AP$859,,ROWS('Datos Vida'!$C$859:AP871)) -> 443 | M74: 2023-08-01
B75: =INDEX('Datos Vida'!$C$7:$AP$7,,ROWS('Datos Vida'!$C$7:AP20)) -> Consorcio Nacional | C75: =INDEX('Datos Vida'!$C$118:$AP$118,,ROWS('Datos Vida'!$C$118:AP131))*Índice!$G$60 -> 11,932,721 | D75: =(INDEX('Datos Vida'!$C$116:$AP$116,,ROWS('Datos Vida'!$C$116:AP129))-INDEX('Datos Vida'!$C$144:$AP$144,,ROWS('Datos Vida'!$C$144:AP157)))*Índice!$G$60 -> -3,502,820 | E75: =INDEX('Datos Vida'!$C$170:$AP$170,,ROWS('Datos Vida'!$C$170:AP183))*Índice!$G$60 -> 1,916,762 | F75: =INDEX('Datos Vida'!$C$147:$AP$147,,ROWS('Datos Vida'!$C$147:AP160))*Índice!$G$60 -> 6,988,242 | G75: =(INDEX('Datos Vida'!$C$129:$AP$129,,ROWS('Datos Vida'!$C$129:AP142))+INDEX('Datos Vida'!$C$133:$AP$133,,ROWS('Datos Vida'!$C$133:AP146)))*Índice!$G$60 -> 14,446,870 | H75: =INDEX('Datos Vida'!$C$101:$AP$101,,ROWS('Datos Vida'!$C$101:AP114))*Índice!$G$60 -> 22,683,312 | I75: =(INDEX('Datos Vida'!$C$9:$AP$9,,ROWS('Datos Vida'!$C$9:AP22))+INDEX('Datos Vida'!$C$20:$AP$20,,ROWS('Datos Vida'!$C$20:AP33)))*Índice!$G$60 -> 241,611,523 | K75: =INDEX('Datos Vida'!$C$859:$AP$859,,ROWS('Datos Vida'!$C$859:AP872)) -> 1,504 | M75: 2023-08-01
B76: =INDEX('Datos Vida'!$C$7:$AP$7,,ROWS('Datos Vida'!$C$7:AP21)) -> Divina Pastora | C76: =INDEX('Datos Vida'!$C$118:$AP$118,,ROWS('Datos Vida'!$C$118:AP132))*Índice!$G$60 -> 6,224 | D76: =(INDEX('Datos Vida'!$C$116:$AP$116,,ROWS('Datos Vida'!$C$116:AP130))-INDEX('Datos Vida'!$C$144:$AP$144,,ROWS('Datos Vida'!$C$144:AP158)))*Índice!$G$60 -> -6,876 | E76: =INDEX('Datos Vida'!$C$170:$AP$170,,ROWS('Datos Vida'!$C$170:AP184))*Índice!$G$60 -> -4,456 | F76: =INDEX('Datos Vida'!$C$147:$AP$147,,ROWS('Datos Vida'!$C$147:AP161))*Índice!$G$60 -> 1,119 | G76: =(INDEX('Datos Vida'!$C$129:$AP$129,,ROWS('Datos Vida'!$C$129:AP143))+INDEX('Datos Vida'!$C$133:$AP$133,,ROWS('Datos Vida'!$C$133:AP147)))*Índice!$G$60 -> 3,216 | H76: =INDEX('Datos Vida'!$C$101:$AP$101,,ROWS('Datos Vida'!$C$101:AP115))*Índice!$G$60 -> 107,256 | I76: =(INDEX('Datos Vida'!$C$9:$AP$9,,ROWS('Datos Vida'!$C$9:AP23))+INDEX('Datos Vida'!$C$20:$AP$20,,ROWS('Datos Vida'!$C$20:AP34)))*Índice!$G$60 -> 102,012 | K76: =INDEX('Datos Vida'!$C$859:$AP$859,,ROWS('Datos Vida'!$C$859:AP873)) -> 20 | M76: 2023-08-01
B77: =INDEX('Datos Vida'!$C$7:$AP$7,,ROWS('Datos Vida'!$C$7:AP22)) -> EuroAmérica | C77: =INDEX('Datos Vida'!$C$118:$AP$118,,ROWS('Datos Vida'!$C$118:AP133))*Índice!$G$60 -> 1,546,571 | D77: =(INDEX('Datos Vida'!$C$116:$AP$116,,ROWS('Datos Vida'!$C$116:AP131))-INDEX('Datos Vida'!$C$144:$AP$144,,ROWS('Datos Vida'!$C$144:AP159)))*Índice!$G$60 -> -736,193 | E77: =INDEX('Datos Vida'!$C$170:$AP$170,,ROWS('Datos Vida'!$C$170:AP185))*Índice!$G$60 -> 159,424 | F77: =INDEX('Datos Vida'!$C$147:$AP$147,,ROWS('Datos Vida'!$C$147:AP162))*Índice!$G$60 -> 1,054,586 | G77: =(INDEX('Datos Vida'!$C$129:$AP$129,,ROWS('Datos Vida'!$C$129:AP144))+INDEX('Datos Vida'!$C$133:$AP$133,,ROWS('Datos Vida'!$C$133:AP148)))*Índice!$G$60 -> 2,108,266 | H77: =INDEX('Datos Vida'!$C$101:$AP$101,,ROWS('Datos Vida'!$C$101:AP116))*Índice!$G$60 -> 2,955,428 | I77: =(INDEX('Datos Vida'!$C$9:$AP$9,,ROWS('Datos Vida'!$C$9:AP24))+INDEX('Datos Vida'!$C$20:$AP$20,,ROWS('Datos Vida'!$C$20:AP35)))*Índice!$G$60 -> 37,328,072 | K77: =INDEX('Datos Vida'!$C$859:$AP$859,,ROWS('Datos Vida'!$C$859:AP874)) -> 26 | M77: 2023-08-01
B78: =INDEX('Datos Vida'!$C$7:$AP$7,,ROWS('Datos Vida'!$C$7:AP23)) -> Help Seguros | C78: =INDEX('Datos Vida'!$C$118:$AP$118,,ROWS('Datos Vida'!$C$118:AP134))*Índice!$G$60 -> 309,583 | D78: =(INDEX('Datos Vida'!$C$116:$AP$116,,ROWS('Datos Vida'!$C$116:AP132))-INDEX('Datos Vida'!$C$144:$AP$144,,ROWS('Datos Vida'!$C$144:AP160)))*Índice!$G$60 -> -78,950 | E78: =INDEX('Datos Vida'!$C$170:$AP$170,,ROWS('Datos Vida'!$C$170:AP186))*Índice!$G$60 -> -50,862 | F78: =INDEX('Datos Vida'!$C$147:$AP$147,,ROWS('Datos Vida'!$C$147:AP163))*Índice!$G$60 -> 4,457 | G78: =(INDEX('Datos Vida'!$C$129:$AP$129,,ROWS('Datos Vida'!$C$129:AP145))+INDEX('Datos Vida'!$C$133:$AP$133,,ROWS('Datos Vida'!$C$133:AP149)))*Índice!$G$60 -> 204,454 | H78: =INDEX('Datos Vida'!$C$101:$AP$101,,ROWS('Datos Vida'!$C$101:AP117))*Índice!$G$60 -> 220,515 | I78: =(INDEX('Datos Vida'!$C$9:$AP$9,,ROWS('Datos Vida'!$C$9:AP25))+INDEX('Datos Vida'!$C$20:$AP$20,,ROWS('Datos Vida'!$C$20:AP36)))*Índice!$G$60 -> 413,122 | K78: =INDEX('Datos Vida'!$C$859:$AP$859,,ROWS('Datos Vida'!$C$859:AP875)) -> 212 | M78: 2023-08-01
B79: =INDEX('Datos Vida'!$C$7:$AP$7,,ROWS('Datos Vida'!$C$7:AP24)) -> M. de Carabineros | C79: =INDEX('Datos Vida'!$C$118:$AP$118,,ROWS('Datos Vida'!$C$118:AP135))*Índice!$G$60 -> 307,377 | D79: =(INDEX('Datos Vida'!$C$116:$AP$116,,ROWS('Datos Vida'!$C$116:AP133))-INDEX('Datos Vida'!$C$144:$AP$144,,ROWS('Datos Vida'!$C$144:AP161)))*Índice!$G$60 -> -576,252 | E79: =INDEX('Datos Vida'!$C$170:$AP$170,,ROWS('Datos Vida'!$C$170:AP187))*Índice!$G$60 -> -87,054 | F79: =INDEX('Datos Vida'!$C$147:$AP$147,,ROWS('Datos Vida'!$C$147:AP164))*Índice!$G$60 -> 247,120 | G79: =(INDEX('Datos Vida'!$C$129:$AP$129,,ROWS('Datos Vida'!$C$129:AP146))+INDEX('Datos Vida'!$C$133:$AP$133,,ROWS('Datos Vida'!$C$133:AP150)))*Índice!$G$60 -> 341,838 | H79: =INDEX('Datos Vida'!$C$101:$AP$101,,ROWS('Datos Vida'!$C$101:AP118))*Índice!$G$60 -> 4,519,886 | I79: =(INDEX('Datos Vida'!$C$9:$AP$9,,ROWS('Datos Vida'!$C$9:AP26))+INDEX('Datos Vida'!$C$20:$AP$20,,ROWS('Datos Vida'!$C$20:AP37)))*Índice!$G$60 -> 10,797,389 | K79: =INDEX('Datos Vida'!$C$859:$AP$859,,ROWS('Datos Vida'!$C$859:AP876)) -> 0 | M79: 2023-08-01
B80: =INDEX('Datos Vida'!$C$7:$AP$7,,ROWS('Datos Vida'!$C$7:AP25)) -> M. del Ej. y Av. | C80: =INDEX('Datos Vida'!$C$118:$AP$118,,ROWS('Datos Vida'!$C$118:AP136))*Índice!$G$60 -> 405,651 | D80: =(INDEX('Datos Vida'!$C$116:$AP$116,,ROWS('Datos Vida'!$C$116:AP134))-INDEX('Datos Vida'!$C$144:$AP$144,,ROWS('Datos Vida'!$C$144:AP162)))*Índice!$G$60 -> -22,252 | E80: =INDEX('Datos Vida'!$C$170:$AP$170,,ROWS('Datos Vida'!$C$170:AP188))*Índice!$G$60 -> 270,739 | F80: =INDEX('Datos Vida'!$C$147:$AP$147,,ROWS('Datos Vida'!$C$147:AP165))*Índice!$G$60 -> 249,463 | G80: =(INDEX('Datos Vida'!$C$129:$AP$129,,ROWS('Datos Vida'!$C$129:AP147))+INDEX('Datos Vida'!$C$133:$AP$133,,ROWS('Datos Vida'!$C$133:AP151)))*Índice!$G$60 -> 302,548 | H80: =INDEX('Datos Vida'!$C$101:$AP$101,,ROWS('Datos Vida'!$C$101:AP119))*Índice!$G$60 -> 4,773,755 | I80: =(INDEX('Datos Vida'!$C$9:$AP$9,,ROWS('Datos Vida'!$C$9:AP27))+INDEX('Datos Vida'!$C$20:$AP$20,,ROWS('Datos Vida'!$C$20:AP38)))*Índice!$G$60 -> 6,405,208 | K80: =INDEX('Datos Vida'!$C$859:$AP$859,,ROWS('Datos Vida'!$C$859:AP877)) -> 130 | M80: 2023-08-01
B81: =INDEX('Datos Vida'!$C$7:$AP$7,,ROWS('Datos Vida'!$C$7:AP26)) -> Mapfre Vida | C81: =INDEX('Datos Vida'!$C$118:$AP$118,,ROWS('Datos Vida'!$C$118:AP137))*Índice!$G$60 -> 126,159 | D81: =(INDEX('Datos Vida'!$C$116:$AP$116,,ROWS('Datos Vida'!$C$116:AP135))-INDEX('Datos Vida'!$C$144:$AP$144,,ROWS('Datos Vida'!$C$144:AP163)))*Índice!$G$60 -> -13,359 | E81: =INDEX('Datos Vida'!$C$170:$AP$170,,ROWS('Datos Vida'!$C$170:AP189))*Índice!$G$60 -> 20,020 | F81: =INDEX('Datos Vida'!$C$147:$AP$147,,ROWS('Datos Vida'!$C$147:AP166))*Índice!$G$60 -> 21,911 | G81: =(INDEX('Datos Vida'!$C$129:$AP$129,,ROWS('Datos Vida'!$C$129:AP148))+INDEX('Datos Vida'!$C$133:$AP$133,,ROWS('Datos Vida'!$C$133:AP152)))*Índice!$G$60 -> 67,719 | H81: =INDEX('Datos Vida'!$C$101:$AP$101,,ROWS('Datos Vida'!$C$101:AP120))*Índice!$G$60 -> 372,495 | I81: =(INDEX('Datos Vida'!$C$9:$AP$9,,ROWS('Datos Vida'!$C$9:AP28))+INDEX('Datos Vida'!$C$20:$AP$20,,ROWS('Datos Vida'!$C$20:AP39)))*Índice!$G$60 -> 1,274,932 | K81: =INDEX('Datos Vida'!$C$859:$AP$859,,ROWS('Datos Vida'!$C$859:AP878)) -> 16 | M81: 2023-08-01
B82: =INDEX('Datos Vida'!$C$7:$AP$7,,ROWS('Datos Vida'!$C$7:AP27)) -> MetLife | C82: =INDEX('Datos Vida'!$C$118:$AP$118,,ROWS('Datos Vida'!$C$118:AP138))*Índice!$G$60 -> 20,723,954 | D82: =(INDEX('Datos Vida'!$C$116:$AP$116,,ROWS('Datos Vida'!$C$116:AP136))-INDEX('Datos Vida'!$C$144:$AP$144,,ROWS('Datos Vida'!$C$144:AP164)))*Índice!$G$60 -> -3,484,080 | E82: =INDEX('Datos Vida'!$C$170:$AP$170,,ROWS('Datos Vida'!$C$170:AP190))*Índice!$G$60 -> 1,750,251 | F82: =INDEX('Datos Vida'!$C$147:$AP$147,,ROWS('Datos Vida'!$C$147:AP167))*Índice!$G$60 -> 5,279,432 | G82: =(INDEX('Datos Vida'!$C$129:$AP$129,,ROWS('Datos Vida'!$C$129:AP149))+INDEX('Datos Vida'!$C$133:$AP$133,,ROWS('Datos Vida'!$C$133:AP153)))*Índice!$G$60 -> 20,255,480 | H82: =INDEX('Datos Vida'!$C$101:$AP$101,,ROWS('Datos Vida'!$C$101:AP121))*Índice!$G$60 -> 19,423,435 | I82: =(INDEX('Datos Vida'!$C$9:$AP$9,,ROWS('Datos Vida'!$C$9:AP29))+INDEX('Datos Vida'!$C$20:$AP$20,,ROWS('Datos Vida'!$C$20:AP40)))*Índice!$G$60 -> 270,667,258 | K82: =INDEX('Datos Vida'!$C$859:$AP$859,,ROWS('Datos Vida'!$C$859:AP879)) -> 2,058 | M82: 2023-08-01
B83: =INDEX('Datos Vida'!$C$7:$AP$7,,ROWS('Datos Vida'!$C$7:AP28)) -> Mutual de Seguros | C83: =INDEX('Datos Vida'!$C$118:$AP$118,,ROWS('Datos Vida'!$C$118:AP139))*Índice!$G$60 -> 1,056,476 | D83: =(INDEX('Datos Vida'!$C$116:$AP$116,,ROWS('Datos Vida'!$C$116:AP137))-INDEX('Datos Vida'!$C$144:$AP$144,,ROWS('Datos Vida'!$C$144:AP165)))*Índice!$G$60 -> -82,722 | E83: =INDEX('Datos Vida'!$C$170:$AP$170,,ROWS('Datos Vida'!$C$170:AP191))*Índice!$G$60 -> 240,164 | F83: =INDEX('Datos Vida'!$C$147:$AP$147,,ROWS('Datos Vida'!$C$147:AP168))*Índice!$G$60 -> 189,287 | G83: =(INDEX('Datos Vida'!$C$129:$AP$129,,ROWS('Datos Vida'!$C$129:AP150))+INDEX('Datos Vida'!$C$133:$AP$133,,ROWS('Datos Vida'!$C$133:AP154)))*Índice!$G$60 -> 645,129 | H83: =INDEX('Datos Vida'!$C$101:$AP$101,,ROWS('Datos Vida'!$C$101:AP122))*Índice!$G$60 -> 5,851,043 | I83: =(INDEX('Datos Vida'!$C$9:$AP$9,,ROWS('Datos Vida'!$C$9:AP30))+INDEX('Datos Vida'!$C$20:$AP$20,,ROWS('Datos Vida'!$C$20:AP41)))*Índice!$G$60 -> 10,878,555 | K83: =INDEX('Datos Vida'!$C$859:$AP$859,,ROWS('Datos Vida'!$C$859:AP880)) -> 599 | M83: 2023-08-01
B84: =INDEX('Datos Vida'!$C$7:$AP$7,,ROWS('Datos Vida'!$C$7:AP29)) -> Ohio National | C84: =INDEX('Datos Vida'!$C$118:$AP$118,,ROWS('Datos Vida'!$C$118:AP140))*Índice!$G$60 -> 769,737 | D84: =(INDEX('Datos Vida'!$C$116:$AP$116,,ROWS('Datos Vida'!$C$116:AP138))-INDEX('Datos Vida'!$C$144:$AP$144,,ROWS('Datos Vida'!$C$144:AP166)))*Índice!$G$60 -> -469,701 | E84: =INDEX('Datos Vida'!$C$170:$AP$170,,ROWS('Datos Vida'!$C$170:AP192))*Índice!$G$60 -> 46,562 | F84: =INDEX('Datos Vida'!$C$147:$AP$147,,ROWS('Datos Vida'!$C$147:AP169))*Índice!$G$60 -> 543,431 | G84: =(INDEX('Datos Vida'!$C$129:$AP$129,,ROWS('Datos Vida'!$C$129:AP151))+INDEX('Datos Vida'!$C$133:$AP$133,,ROWS('Datos Vida'!$C$133:AP155)))*Índice!$G$60 -> 728,899 | H84: =INDEX('Datos Vida'!$C$101:$AP$101,,ROWS('Datos Vida'!$C$101:AP123))*Índice!$G$60 -> 2,390,517 | I84: =(INDEX('Datos Vida'!$C$9:$AP$9,,ROWS('Datos Vida'!$C$9:AP31))+INDEX('Datos Vida'!$C$20:$AP$20,,ROWS('Datos Vida'!$C$20:AP42)))*Índice!$G$60 -> 27,734,100 | K84: =INDEX('Datos Vida'!$C$859:$AP$859,,ROWS('Datos Vida'!$C$859:AP881)) -> 117 | M84: 2023-08-01
B85: =INDEX('Datos Vida'!$C$7:$AP$7,,ROWS('Datos Vida'!$C$7:AP30)) -> Penta Vida | C85: =INDEX('Datos Vida'!$C$118:$AP$118,,ROWS('Datos Vida'!$C$118:AP141))*Índice!$G$60 -> 18,963,072 | D85: =(INDEX('Datos Vida'!$C$116:$AP$116,,ROWS('Datos Vida'!$C$116:AP139))-INDEX('Datos Vida'!$C$144:$AP$144,,ROWS('Datos Vida'!$C$144:AP167)))*Índice!$G$60 -> -2,585,235 | E85: =INDEX('Datos Vida'!$C$170:$AP$170,,ROWS('Datos Vida'!$C$170:AP193))*Índice!$G$60 -> 1,181,485 | F85: =INDEX('Datos Vida'!$C$147:$AP$147,,ROWS('Datos Vida'!$C$147:AP170))*Índice!$G$60 -> 4,577,447 | G85: =(INDEX('Datos Vida'!$C$129:$AP$129,,ROWS('Datos Vida'!$C$129:AP152))+INDEX('Datos Vida'!$C$133:$AP$133,,ROWS('Datos Vida'!$C$133:AP156)))*Índice!$G$60 -> 21,475,355 | H85: =INDEX('Datos Vida'!$C$101:$AP$101,,ROWS('Datos Vida'!$C$101:AP124))*Índice!$G$60 -> 12,123,876 | I85: =(INDEX('Datos Vida'!$C$9:$AP$9,,ROWS('Datos Vida'!$C$9:AP32))+INDEX('Datos Vida'!$C$20:$AP$20,,ROWS('Datos Vida'!$C$20:AP43)))*Índice!$G$60 -> 191,046,682 | K85: =INDEX('Datos Vida'!$C$859:$AP$859,,ROWS('Datos Vida'!$C$859:AP882)) -> 333 | M85: 2023-08-01
B86: =INDEX('Datos Vida'!$C$7:$AP$7,,ROWS('Datos Vida'!$C$7:AP31)) -> Principal | C86: =INDEX('Datos Vida'!$C$118:$AP$118,,ROWS('Datos Vida'!$C$118:AP142))*Índice!$G$60 -> 461,348 | D86: =(INDEX('Datos Vida'!$C$116:$AP$116,,ROWS('Datos Vida'!$C$116:AP140))-INDEX('Datos Vida'!$C$144:$AP$144,,ROWS('Datos Vida'!$C$144:AP168)))*Índice!$G$60 -> -1,692,043 | E86: =INDEX('Datos Vida'!$C$170:$AP$170,,ROWS('Datos Vida'!$C$170:AP194))*Índice!$G$60 -> 405,969 | F86: =INDEX('Datos Vida'!$C$147:$AP$147,,ROWS('Datos Vida'!$C$147:AP171))*Índice!$G$60 -> 2,217,183 | G86: =(INDEX('Datos Vida'!$C$129:$AP$129,,ROWS('Datos Vida'!$C$129:AP153))+INDEX('Datos Vida'!$C$133:$AP$133,,ROWS('Datos Vida'!$C$133:AP157)))*Índice!$G$60 -> 2,612,985 | H86: =INDEX('Datos Vida'!$C$101:$AP$101,,ROWS('Datos Vida'!$C$101:AP125))*Índice!$G$60 -> 7,316,432 | I86: =(INDEX('Datos Vida'!$C$9:$AP$9,,ROWS('Datos Vida'!$C$9:AP33))+INDEX('Datos Vida'!$C$20:$AP$20,,ROWS('Datos Vida'!$C$20:AP44)))*Índice!$G$60 -> 120,525,418 | K86: =INDEX('Datos Vida'!$C$859:$AP$859,,ROWS('Datos Vida'!$C$859:AP883)) -> 95 | M86: 2023-08-01
B87: =INDEX('Datos Vida'!$C$7:$AP$7,,ROWS('Datos Vida'!$C$7:AP32)) -> Renta Nacional | C87: =INDEX('Datos Vida'!$C$118:$AP$118,,ROWS('Datos Vida'!$C$118:AP143))*Índice!$G$60 -> 1,846,060 | D87: =(INDEX('Datos Vida'!$C$116:$AP$116,,ROWS('Datos Vida'!$C$116:AP141))-INDEX('Datos Vida'!$C$144:$AP$144,,ROWS('Datos Vida'!$C$144:AP169)))*Índice!$G$60 -> -589,743 | E87: =INDEX('Datos Vida'!$C$170:$AP$170,,ROWS('Datos Vida'!$C$170:AP195))*Índice!$G$60 -> 59,606 | F87: =INDEX('Datos Vida'!$C$147:$AP$147,,ROWS('Datos Vida'!$C$147:AP172))*Índice!$G$60 -> 620,389 | G87: =(INDEX('Datos Vida'!$C$129:$AP$129,,ROWS('Datos Vida'!$C$129:AP154))+INDEX('Datos Vida'!$C$133:$AP$133,,ROWS('Datos Vida'!$C$133:AP158)))*Índice!$G$60 -> 2,318,211 | H87: =INDEX('Datos Vida'!$C$101:$AP$101,,ROWS('Datos Vida'!$C$101:AP126))*Índice!$G$60 -> 1,920,500 | I87: =(INDEX('Datos Vida'!$C$9:$AP$9,,ROWS('Datos Vida'!$C$9:AP34))+INDEX('Datos Vida'!$C$20:$AP$20,,ROWS('Datos Vida'!$C$20:AP45)))*Índice!$G$60 -> 31,811,054 | K87: =INDEX('Datos Vida'!$C$859:$AP$859,,ROWS('Datos Vida'!$C$859:AP884)) -> 85 | M87: 2023-08-01
B88: =INDEX('Datos Vida'!$C$7:$AP$7,,ROWS('Datos Vida'!$C$7:AP33)) -> Save Seguros | C88: =INDEX('Datos Vida'!$C$118:$AP$118,,ROWS('Datos Vida'!$C$118:AP144))*Índice!$G$60 -> 484,058 | D88: =(INDEX('Datos Vida'!$C$116:$AP$116,,ROWS('Datos Vida'!$C$116:AP142))-INDEX('Datos Vida'!$C$144:$AP$144,,ROWS('Datos Vida'!$C$144:AP170)))*Índice!$G$60 -> 1,475 | E88: =INDEX('Datos Vida'!$C$170:$AP$170,,ROWS('Datos Vida'!$C$170:AP196))*Índice!$G$60 -> 20,672 | F88: =INDEX('Datos Vida'!$C$147:$AP$147,,ROWS('Datos Vida'!$C$147:AP173))*Índice!$G$60 -> 5,767 | G88: =(INDEX('Datos Vida'!$C$129:$AP$129,,ROWS('Datos Vida'!$C$129:AP155))+INDEX('Datos Vida'!$C$133:$AP$133,,ROWS('Datos Vida'!$C$133:AP159)))*Índice!$G$60 -> 722,989 | H88: =INDEX('Datos Vida'!$C$101:$AP$101,,ROWS('Datos Vida'!$C$101:AP127))*Índice!$G$60 -> 328,200 | I88: =(INDEX('Datos Vida'!$C$9:$AP$9,,ROWS('Datos Vida'!$C$9:AP35))+INDEX('Datos Vida'!$C$20:$AP$20,,ROWS('Datos Vida'!$C$20:AP46)))*Índice!$G$60 -> 971,586 | K88: =INDEX('Datos Vida'!$C$859:$AP$859,,ROWS('Datos Vida'!$C$859:AP885)) -> 36 | M88: 2023-08-01
B89: =INDEX('Datos Vida'!$C$7:$AP$7,,ROWS('Datos Vida'!$C$7:AP34)) -> Security Previsión | C89: =INDEX('Datos Vida'!$C$118:$AP$118,,ROWS('Datos Vida'!$C$118:AP145))*Índice!$G$60 -> 8,659,660 | D89: =(INDEX('Datos Vida'!$C$116:$AP$116,,ROWS('Datos Vida'!$C$116:AP143))-INDEX('Datos Vida'!$C$144:$AP$144,,ROWS('Datos Vida'!$C$144:AP171)))*Índice!$G$60 -> -1,891,855 | E89: =INDEX('Datos Vida'!$C$170:$AP$170,,ROWS('Datos Vida'!$C$170:AP197))*Índice!$G$60 -> 416,925 | F89: =INDEX('Datos Vida'!$C$147:$AP$147,,ROWS('Datos Vida'!$C$147:AP174))*Índice!$G$60 -> 2,515,363 | G89: =(INDEX('Datos Vida'!$C$129:$AP$129,,ROWS('Datos Vida'!$C$129:AP156))+INDEX('Datos Vida'!$C$133:$AP$133,,ROWS('Datos Vida'!$C$133:AP160)))*Índice!$G$60 -> 9,512,238 | H89: =INDEX('Datos Vida'!$C$101:$AP$101,,ROWS('Datos Vida'!$C$101:AP128))*Índice!$G$60 -> 5,509,374 | I89: =(INDEX('Datos Vida'!$C$9:$AP$9,,ROWS('Datos Vida'!$C$9:AP36))+INDEX('Datos Vida'!$C$20:$AP$20,,ROWS('Datos Vida'!$C$20:AP47)))*Índice!$G$60 -> 94,002,517 | K89: =INDEX('Datos Vida'!$C$859:$AP$859,,ROWS('Datos Vida'!$C$859:AP886)) -> 792 | M89: 2023-08-01
B90: =INDEX('Datos Vida'!$C$7:$AP$7,,ROWS('Datos Vida'!$C$7:AP35)) -> Sura | C90: =INDEX('Datos Vida'!$C$118:$AP$118,,ROWS('Datos Vida'!$C$118:AP146))*Índice!$G$60 -> 1,030,877 | D90: =(INDEX('Datos Vida'!$C$116:$AP$116,,ROWS('Datos Vida'!$C$116:AP144))-INDEX('Datos Vida'!$C$144:$AP$144,,ROWS('Datos Vida'!$C$144:AP172)))*Índice!$G$60 -> -295,045 | E90: =INDEX('Datos Vida'!$C$170:$AP$170,,ROWS('Datos Vida'!$C$170:AP198))*Índice!$G$60 -> 158,065 | F90: =INDEX('Datos Vida'!$C$147:$AP$147,,ROWS('Datos Vida'!$C$147:AP175))*Índice!$G$60 -> 1,299,418 | G90: =(INDEX('Datos Vida'!$C$129:$AP$129,,ROWS('Datos Vida'!$C$129:AP157))+INDEX('Datos Vida'!$C$133:$AP$133,,ROWS('Datos Vida'!$C$133:AP161)))*Índice!$G$60 -> 1,811,152 | H90: =INDEX('Datos Vida'!$C$101:$AP$101,,ROWS('Datos Vida'!$C$101:AP129))*Índice!$G$60 -> 1,840,896 | I90: =(INDEX('Datos Vida'!$C$9:$AP$9,,ROWS('Datos Vida'!$C$9:AP37))+INDEX('Datos Vida'!$C$20:$AP$20,,ROWS('Datos Vida'!$C$20:AP48)))*Índice!$G$60 -> 30,092,892 | K90: =INDEX('Datos Vida'!$C$859:$AP$859,,ROWS('Datos Vida'!$C$859:AP887)) -> 310 | M90: 2023-08-01
B91: =INDEX('Datos Vida'!$C$7:$AP$7,,ROWS('Datos Vida'!$C$7:AP36)) -> Suramericana | C91: =INDEX('Datos Vida'!$C$118:$AP$118,,ROWS('Datos Vida'!$C$118:AP147))*Índice!$G$60 -> 1,527,229 | D91: =(INDEX('Datos Vida'!$C$116:$AP$116,,ROWS('Datos Vida'!$C$116:AP145))-INDEX('Datos Vida'!$C$144:$AP$144,,ROWS('Datos Vida'!$C$144:AP173)))*Índice!$G$60 -> 9,644 | E91: =INDEX('Datos Vida'!$C$170:$AP$170,,ROWS('Datos Vida'!$C$170:AP199))*Índice!$G$60 -> 42,098 | F91: =INDEX('Datos Vida'!$C$147:$AP$147,,ROWS('Datos Vida'!$C$147:AP176))*Índice!$G$60 -> 16,608 | G91: =(INDEX('Datos Vida'!$C$129:$AP$129,,ROWS('Datos Vida'!$C$129:AP158))+INDEX('Datos Vida'!$C$133:$AP$133,,ROWS('Datos Vida'!$C$133:AP162)))*Índice!$G$60 -> 886,482 | H91: =INDEX('Datos Vida'!$C$101:$AP$101,,ROWS('Datos Vida'!$C$101:AP130))*Índice!$G$60 -> 709,472 | I91: =(INDEX('Datos Vida'!$C$9:$AP$9,,ROWS('Datos Vida'!$C$9:AP38))+INDEX('Datos Vida'!$C$20:$AP$20,,ROWS('Datos Vida'!$C$20:AP49)))*Índice!$G$60 -> 1,230,895 | K91: =INDEX('Datos Vida'!$C$859:$AP$859,,ROWS('Datos Vida'!$C$859:AP888)) -> 43 | M91: 2023-08-01
B92: =INDEX('Datos Vida'!$C$7:$AP$7,,ROWS('Datos Vida'!$C$7:AP37)) -> Zurich Chile | C92: =INDEX('Datos Vida'!$C$118:$AP$118,,ROWS('Datos Vida'!$C$118:AP148))*Índice!$G$60 -> 3,988,698 | D92: =(INDEX('Datos Vida'!$C$116:$AP$116,,ROWS('Datos Vida'!$C$116:AP146))-INDEX('Datos Vida'!$C$144:$AP$144,,ROWS('Datos Vida'!$C$144:AP174)))*Índice!$G$60 -> -1,772,087 | E92: =INDEX('Datos Vida'!$C$170:$AP$170,,ROWS('Datos Vida'!$C$170:AP200))*Índice!$G$60 -> 170,034 | F92: =INDEX('Datos Vida'!$C$147:$AP$147,,ROWS('Datos Vida'!$C$147:AP177))*Índice!$G$60 -> 1,852,448 | G92: =(INDEX('Datos Vida'!$C$129:$AP$129,,ROWS('Datos Vida'!$C$129:AP159))+INDEX('Datos Vida'!$C$133:$AP$133,,ROWS('Datos Vida'!$C$133:AP163)))*Índice!$G$60 -> 4,835,680 | H92: =INDEX('Datos Vida'!$C$101:$AP$101,,ROWS('Datos Vida'!$C$101:AP131))*Índice!$G$60 -> 9,243,274 | I92: =(INDEX('Datos Vida'!$C$9:$AP$9,,ROWS('Datos Vida'!$C$9:AP39))+INDEX('Datos Vida'!$C$20:$AP$20,,ROWS('Datos Vida'!$C$20:AP50)))*Índice!$G$60 -> 89,931,122 | K92: =INDEX('Datos Vida'!$C$859:$AP$859,,ROWS('Datos Vida'!$C$859:AP889)) -> 0 | M92: 2023-08-01
B93: =INDEX('Datos Vida'!$C$7:$AP$7,,ROWS('Datos Vida'!$C$7:AP38)) -> Zurich Santander | C93: =INDEX('Datos Vida'!$C$118:$AP$118,,ROWS('Datos Vida'!$C$118:AP149))*Índice!$G$60 -> 1,733,961 | D93: =(INDEX('Datos Vida'!$C$116:$AP$116,,ROWS('Datos Vida'!$C$116:AP147))-INDEX('Datos Vida'!$C$144:$AP$144,,ROWS('Datos Vida'!$C$144:AP175)))*Índice!$G$60 -> 439,024 | E93: =INDEX('Datos Vida'!$C$170:$AP$170,,ROWS('Datos Vida'!$C$170:AP201))*Índice!$G$60 -> 439,149 | F93: =INDEX('Datos Vida'!$C$147:$AP$147,,ROWS('Datos Vida'!$C$147:AP178))*Índice!$G$60 -> 106,380 | G93: =(INDEX('Datos Vida'!$C$129:$AP$129,,ROWS('Datos Vida'!$C$129:AP160))+INDEX('Datos Vida'!$C$133:$AP$133,,ROWS('Datos Vida'!$C$133:AP164)))*Índice!$G$60 -> 486,430 | H93: =INDEX('Datos Vida'!$C$101:$AP$101,,ROWS('Datos Vida'!$C$101:AP132))*Índice!$G$60 -> 1,660,722 | I93: =(INDEX('Datos Vida'!$C$9:$AP$9,,ROWS('Datos Vida'!$C$9:AP40))+INDEX('Datos Vida'!$C$20:$AP$20,,ROWS('Datos Vida'!$C$20:AP51)))*Índice!$G$60 -> 4,793,474 | K93: =INDEX('Datos Vida'!$C$859:$AP$859,,ROWS('Datos Vida'!$C$859:AP890)) -> 129 | M93: 2023-08-01
B94: =INDEX('Datos Vida'!$C$7:$AP$7,,ROWS('Datos Vida'!$C$7:AP39)) -> 0 | C94: =INDEX('Datos Vida'!$C$118:$AP$118,,ROWS('Datos Vida'!$C$118:AP150))*Índice!$G$60 -> 0 | D94: =(INDEX('Datos Vida'!$C$116:$AP$116,,ROWS('Datos Vida'!$C$116:AP148))-INDEX('Datos Vida'!$C$144:$AP$144,,ROWS('Datos Vida'!$C$144:AP176)))*Índice!$G$60 -> 0 | E94: =INDEX('Datos Vida'!$C$170:$AP$170,,ROWS('Datos Vida'!$C$170:AP202))*Índice!$G$60 -> 0 | F94: =INDEX('Datos Vida'!$C$147:$AP$147,,ROWS('Datos Vida'!$C$147:AP179))*Índice!$G$60 -> 0 | G94: =(INDEX('Datos Vida'!$C$129:$AP$129,,ROWS('Datos Vida'!$C$129:AP161))+INDEX('Datos Vida'!$C$133:$AP$133,,ROWS('Datos Vida'!$C$133:AP165)))*Índice!$G$60 -> 0 | H94: =INDEX('Datos Vida'!$C$101:$AP$101,,ROWS('Datos Vida'!$C$101:AP133))*Índice!$G$60 -> 0 | I94: =(INDEX('Datos Vida'!$C$9:$AP$9,,ROWS('Datos Vida'!$C$9:AP41))+INDEX('Datos Vida'!$C$20:$AP$20,,ROWS('Datos Vida'!$C$20:AP52)))*Índice!$G$60 -> 0 | K94: =INDEX('Datos Vida'!$C$859:$AP$859,,ROWS('Datos Vida'!$C$859:AP891)) -> 0 | M94: 00:00:00
B95: =INDEX('Datos Vida'!$C$7:$AP$7,,ROWS('Datos Vida'!$C$7:AP40)) -> 0 | C95: =INDEX('Datos Vida'!$C$118:$AP$118,,ROWS('Datos Vida'!$C$118:AP151))*Índice!$G$60 -> 0 | D95: =(INDEX('Datos Vida'!$C$116:$AP$116,,ROWS('Datos Vida'!$C$116:AP149))-INDEX('Datos Vida'!$C$144:$AP$144,,ROWS('Datos Vida'!$C$144:AP177)))*Índice!$G$60 -> 0 | E95: =INDEX('Datos Vida'!$C$170:$AP$170,,ROWS('Datos Vida'!$C$170:AP203))*Índice!$G$60 -> 0 | F95: =INDEX('Datos Vida'!$C$147:$AP$147,,ROWS('Datos Vida'!$C$147:AP180))*Índice!$G$60 -> 0 | G95: =(INDEX('Datos Vida'!$C$129:$AP$129,,ROWS('Datos Vida'!$C$129:AP162))+INDEX('Datos Vida'!$C$133:$AP$133,,ROWS('Datos Vida'!$C$133:AP166)))*Índice!$G$60 -> 0 | H95: =INDEX('Datos Vida'!$C$101:$AP$101,,ROWS('Datos Vida'!$C$101:AP134))*Índice!$G$60 -> 0 | I95: =(INDEX('Datos Vida'!$C$9:$AP$9,,ROWS('Datos Vida'!$C$9:AP42))+INDEX('Datos Vida'!$C$20:$AP$20,,ROWS('Datos Vida'!$C$20:AP53)))*Índice!$G$60 -> 0 | K95: =INDEX('Datos Vida'!$C$859:$AP$859,,ROWS('Datos Vida'!$C$859:AP892)) -> 0 | M95: 00:00:00
B96: =INDEX('Datos Vida'!$C$7:$AP$7,,ROWS('Datos Vida'!$C$7:AP41)) -> 0 | C96: =INDEX('Datos Vida'!$C$118:$AP$118,,ROWS('Datos Vida'!$C$118:AP152))*Índice!$G$60 -> 0 | D96: =(INDEX('Datos Vida'!$C$116:$AP$116,,ROWS('Datos Vida'!$C$116:AP150))-INDEX('Datos Vida'!$C$144:$AP$144,,ROWS('Datos Vida'!$C$144:AP178)))*Índice!$G$60 -> 0 | E96: =INDEX('Datos Vida'!$C$170:$AP$170,,ROWS('Datos Vida'!$C$170:AP204))*Índice!$G$60 -> 0 | F96: =INDEX('Datos Vida'!$C$147:$AP$147,,ROWS('Datos Vida'!$C$147:AP181))*Índice!$G$60 -> 0 | G96: =(INDEX('Datos Vida'!$C$129:$AP$129,,ROWS('Datos Vida'!$C$129:AP163))+INDEX('Datos Vida'!$C$133:$AP$133,,ROWS('Datos Vida'!$C$133:AP167)))*Índice!$G$60 -> 0 | H96: =INDEX('Datos Vida'!$C$101:$AP$101,,ROWS('Datos Vida'!$C$101:AP135))*Índice!$G$60 -> 0 | I96: =(INDEX('Datos Vida'!$C$9:$AP$9,,ROWS('Datos Vida'!$C$9:AP43))+INDEX('Datos Vida'!$C$20:$AP$20,,ROWS('Datos Vida'!$C$20:AP54)))*Índice!$G$60 -> 0 | K96: =INDEX('Datos Vida'!$C$859:$AP$859,,ROWS('Datos Vida'!$C$859:AP893)) -> 0 | M96: 00:00:00
B97: =INDEX('Datos Vida'!$C$7:$AP$7,,ROWS('Datos Vida'!$C$7:AP42)) -> 0 | C97: =INDEX('Datos Vida'!$C$118:$AP$118,,ROWS('Datos Vida'!$C$118:AP153))*Índice!$G$60 -> 0 | D97: =(INDEX('Datos Vida'!$C$116:$AP$116,,ROWS('Datos Vida'!$C$116:AP151))-INDEX('Datos Vida'!$C$144:$AP$144,,ROWS('Datos Vida'!$C$144:AP179)))*Índice!$G$60 -> 0 | E97: =INDEX('Datos Vida'!$C$170:$AP$170,,ROWS('Datos Vida'!$C$170:AP205))*Índice!$G$60 -> 0 | F97: =INDEX('Datos Vida'!$C$147:$AP$147,,ROWS('Datos Vida'!$C$147:AP182))*Índice!$G$60 -> 0 | G97: =(INDEX('Datos Vida'!$C$129:$AP$129,,ROWS('Datos Vida'!$C$129:AP164))+INDEX('Datos Vida'!$C$133:$AP$133,,ROWS('Datos Vida'!$C$133:AP168)))*Índice!$G$60 -> 0 | H97: =INDEX('Datos Vida'!$C$101:$AP$101,,ROWS('Datos Vida'!$C$101:AP136))*Índice!$G$60 -> 0 | I97: =(INDEX('Datos Vida'!$C$9:$AP$9,,ROWS('Datos Vida'!$C$9:AP44))+INDEX('Datos Vida'!$C$20:$AP$20,,ROWS('Datos Vida'!$C$20:AP55)))*Índice!$G$60 -> 0 | K97: =INDEX('Datos Vida'!$C$859:$AP$859,,ROWS('Datos Vida'!$C$859:AP894)) -> 0 | M97: 00:00:00
B98: =INDEX('Datos Vida'!$C$7:$AP$7,,ROWS('Datos Vida'!$C$7:AP43)) -> 0 | C98: =INDEX('Datos Vida'!$C$118:$AP$118,,ROWS('Datos Vida'!$C$118:AP154))*Índice!$G$60 -> 0 | D98: =(INDEX('Datos Vida'!$C$116:$AP$116,,ROWS('Datos Vida'!$C$116:AP152))-INDEX('Datos Vida'!$C$144:$AP$144,,ROWS('Datos Vida'!$C$144:AP180)))*Índice!$G$60 -> 0 | E98: =INDEX('Datos Vida'!$C$170:$AP$170,,ROWS('Datos Vida'!$C$170:AP206))*Índice!$G$60 -> 0 | F98: =INDEX('Datos Vida'!$C$147:$AP$147,,ROWS('Datos Vida'!$C$147:AP183))*Índice!$G$60 -> 0 | G98: =(INDEX('Datos Vida'!$C$129:$AP$129,,ROWS('Datos Vida'!$C$129:AP165))+INDEX('Datos Vida'!$C$133:$AP$133,,ROWS('Datos Vida'!$C$133:AP169)))*Índice!$G$60 -> 0 | H98: =INDEX('Datos Vida'!$C$101:$AP$101,,ROWS('Datos Vida'!$C$101:AP137))*Índice!$G$60 -> 0 | I98: =(INDEX('Datos Vida'!$C$9:$AP$9,,ROWS('Datos Vida'!$C$9:AP45))+INDEX('Datos Vida'!$C$20:$AP$20,,ROWS('Datos Vida'!$C$20:AP56)))*Índice!$G$60 -> 0 | K98: =INDEX('Datos Vida'!$C$859:$AP$859,,ROWS('Datos Vida'!$C$859:AP895)) -> 0 | M98: 00:00:00
B99: =INDEX('Datos Vida'!$C$7:$AP$7,,ROWS('Datos Vida'!$C$7:AP44)) -> 0 | C99: =INDEX('Datos Vida'!$C$118:$AP$118,,ROWS('Datos Vida'!$C$118:AP155))*Índice!$G$60 -> 0 | D99: =(INDEX('Datos Vida'!$C$116:$AP$116,,ROWS('Datos Vida'!$C$116:AP153))-INDEX('Datos Vida'!$C$144:$AP$144,,ROWS('Datos Vida'!$C$144:AP181)))*Índice!$G$60 -> 0 | E99: =INDEX('Datos Vida'!$C$170:$AP$170,,ROWS('Datos Vida'!$C$170:AP207))*Índice!$G$60 -> 0 | F99: =INDEX('Datos Vida'!$C$147:$AP$147,,ROWS('Datos Vida'!$C$147:AP184))*Índice!$G$60 -> 0 | G99: =(INDEX('Datos Vida'!$C$129:$AP$129,,ROWS('Datos Vida'!$C$129:AP166))+INDEX('Datos Vida'!$C$133:$AP$133,,ROWS('Datos Vida'!$C$133:AP170)))*Índice!$G$60 -> 0 | H99: =INDEX('Datos Vida'!$C$101:$AP$101,,ROWS('Datos Vida'!$C$101:AP138))*Índice!$G$60 -> 0 | I99: =(INDEX('Datos Vida'!$C$9:$AP$9,,ROWS('Datos Vida'!$C$9:AP46))+INDEX('Datos Vida'!$C$20:$AP$20,,ROWS('Datos Vida'!$C$20:AP57)))*Índice!$G$60 -> 0 | K99: =INDEX('Datos Vida'!$C$859:$AP$859,,ROWS('Datos Vida'!$C$859:AP896)) -> 0 | M99: 00:00:00
B100: =INDEX('Datos Vida'!$C$7:$AP$7,,ROWS('Datos Vida'!$C$7:AP45)) -> 0 | C100: =INDEX('Datos Vida'!$C$118:$AP$118,,ROWS('Datos Vida'!$C$118:AP156))*Índice!$G$60 -> 0 | D100: =(INDEX('Datos Vida'!$C$116:$AP$116,,ROWS('Datos Vida'!$C$116:AP154))-INDEX('Datos Vida'!$C$144:$AP$144,,ROWS('Datos Vida'!$C$144:AP182)))*Índice!$G$60 -> 0 | E100: =INDEX('Datos Vida'!$C$170:$AP$170,,ROWS('Datos Vida'!$C$170:AP208))*Índice!$G$60 -> 0 | F100: =INDEX('Datos Vida'!$C$147:$AP$147,,ROWS('Datos Vida'!$C$147:AP185))*Índice!$G$60 -> 0 | G100: =(INDEX('Datos Vida'!$C$129:$AP$129,,ROWS('Datos Vida'!$C$129:AP167))+INDEX('Datos Vida'!$C$133:$AP$133,,ROWS('Datos Vida'!$C$133:AP171)))*Índice!$G$60 -> 0 | H100: =INDEX('Datos Vida'!$C$101:$AP$101,,ROWS('Datos Vida'!$C$101:AP139))*Índice!$G$60 -> 0 | I100: =(INDEX('Datos Vida'!$C$9:$AP$9,,ROWS('Datos Vida'!$C$9:AP47))+INDEX('Datos Vida'!$C$20:$AP$20,,ROWS('Datos Vida'!$C$20:AP58)))*Índice!$G$60 -> 0 | K100: =INDEX('Datos Vida'!$C$859:$AP$859,,ROWS('Datos Vida'!$C$859:AP897)) -> 0 | M100: 00:00:00
B101: =INDEX('Datos Vida'!$C$7:$AP$7,,ROWS('Datos Vida'!$C$7:AP45)) -> 0 | C101: =INDEX('Datos Vida'!$C$118:$AP$118,,ROWS('Datos Vida'!$C$118:AP157))*Índice!$G$60 -> 0 | D101: =(INDEX('Datos Vida'!$C$116:$AP$116,,ROWS('Datos Vida'!$C$116:AP155))-INDEX('Datos Vida'!$C$144:$AP$144,,ROWS('Datos Vida'!$C$144:AP183)))*Índice!$G$60 -> 0 | E101: =INDEX('Datos Vida'!$C$170:$AP$170,,ROWS('Datos Vida'!$C$170:AP209))*Índice!$G$60 -> 0 | F101: =INDEX('Datos Vida'!$C$147:$AP$147,,ROWS('Datos Vida'!$C$147:AP186))*Índice!$G$60 -> 0 | G101: =(INDEX('Datos Vida'!$C$129:$AP$129,,ROWS('Datos Vida'!$C$129:AP168))+INDEX('Datos Vida'!$C$133:$AP$133,,ROWS('Datos Vida'!$C$133:AP172)))*Índice!$G$60 -> 0 | H101: =INDEX('Datos Vida'!$C$101:$AP$101,,ROWS('Datos Vida'!$C$101:AP140))*Índice!$G$60 -> 0 | I101: =(INDEX('Datos Vida'!$C$9:$AP$9,,ROWS('Datos Vida'!$C$9:AP48))+INDEX('Datos Vida'!$C$20:$AP$20,,ROWS('Datos Vida'!$C$20:AP59)))*Índice!$G$60 -> 0 | K101: =INDEX('Datos Vida'!$C$859:$AP$859,,ROWS('Datos Vida'!$C$859:AP898)) -> 0 | M101: 00:00:00
B102: Total | C102: =SUM(C62:C101) -> 115,636,137 | D102: =SUM(D62:D101) -> -27,995,505 | E102: 10,649,676 | F102: 42,990,069 | G102: 126,938,678 | H102: 148,709,618 | I102: 1,643,553,758 | K102: =SUM(K62:K101) -> 9,170
B104: Nota
B105: Resultado de Operaciones = Margen de Contribución - Costos de Administración
B106: Siniestros Directos (Seguros de Vida) = Siniestros Directos + Rentas Directas
B107: Inversiones = Total Inversiones Financieras + Total Inversiones Inmobiliarias

Sheet Mer. Prima Directa
C2: Volver al Índice
B8: Prima Directa del Mercado de Seguros
B9: =Índice!H60 -> Cifras en UF al 30.06.2023
B11: Grupo | C11: =Índice!H66 -> 30.06.2022 | E11: =Índice!H65 -> 30.06.2023 | G11: =CONCATENATE("Variación ",MID(C11,7,4),"/",MID(E11,7,4)) -> Variación 2022/2023
C12: Cifra | D12: Part. (%) | E12: Cifra | F12: Part. (%)
B13: Seguros Generales | C13: ='Gen. Prima Directa'!AS49 -> 60,020,830 | D13: =C13/C$15 -> 38.2% | E13: ='Gen. Prima Directa'!AQ49 -> 62,736,085 | F13: =E13/E$15 -> 35.2% | G13: =E13/C13-1 -> 4.5%
B14: Seguros de Vida | C14: ='Vida Prima Directa'!AS70 -> 97,131,122 | D14: =C14/C$15 -> 61.8% | E14: ='Vida Prima Directa'!AQ70 -> 115,636,137 | F14: =E14/E$15 -> 64.8% | G14: =E14/C14-1 -> 19.1%
B15: Total | C15: =SUM(C13:C14) -> 157,151,952 | D15: =C15/C$15 -> 100.0% | E15: =SUM(E13:E14) -> 178,372,222 | F15: =E15/E$15 -> 100.0% | G15: =E15/C15-1 -> 13.5%
B18: Seguros Generales | C18: =Índice!H66 -> 30.06.2022 | E18: =Índice!H65 -> 30.06.2023 | G18: =CONCATENATE("Variación ",MID(C18,7,4),"/",MID(E18,7,4)) -> Variación 2022/2023
C19: Cifra | D19: Part. (%) | E19: Cifra | F19: Part. (%)
B20: Incendio y Adicionales | C20: ='Gen. Prima Directa'!AS58 -> 22,283,745 | D20: =C20/C$30 -> 37.1% | E20: ='Gen. Prima Directa'!AQ58 -> 25,672,772 | F20: =E20/E$30 -> 40.9% | G20: =E20/C20-1 -> 15.2%
B21: Vehículos | C21: ='Gen. Prima Directa'!AS61 -> 16,566,377 | D21: =C21/C$30 -> 27.6% | E21: ='Gen. Prima Directa'!AQ61 -> 17,689,864 | F21: =E21/E$30 -> 28.2% | G21: =E21/C21-1 -> 6.8%
B22: Transporte | C22: ='Gen. Prima Directa'!AS63 -> 2,455,342 | D22: 4.1% | E22: ='Gen. Prima Directa'!AQ63 -> 2,238,608 | F22: 3.6% | G22: -8.8%
B23: Robo con Fractura | C23: ='Gen. Prima Directa'!AS19 -> 1,630,756 | D23: 2.7% | E23: ='Gen. Prima Directa'!AQ19 -> 1,669,567 | F23: 2.7% | G23: 2.4%
B24: SOAP | C24: ='Gen. Prima Directa'!AS43 -> 1,455,019 | D24: 2.4% | E24: ='Gen. Prima Directa'!AQ43 -> 1,460,687 | F24: 2.3% | G24: 0.4%
B25: Garantía y Crédito | C25: =SUM('Gen. Prima Directa'!AS35,'Gen. Prima Directa'!AS38:AS40) -> 2,644,923 | D25: 4.4% | E25: =SUM('Gen. Prima Directa'!AQ35,'Gen. Prima Directa'!AQ38:AQ40) -> 2,560,975 | F25: 4.1% | G25: -3.2%
B26: Responsabilidad Civil | C26: ='Gen. Prima Directa'!AS66 -> 3,157,195 | D26: 5.3% | E26: =SUM('Gen. Prima Directa'!AQ24:AQ26) -> 2,654,500 | F26: 4.2% | G26: -15.9%
B27: Casco | C27: ='Gen. Prima Directa'!AS62 -> 674,192 | D27: 1.1% | E27: =SUM('Gen. Prima Directa'!AQ22:AQ23) -> 688,838 | F27: 1.1% | G27: 2.2%
B28: Ingeniería | C28: ='Gen. Prima Directa'!AS64 -> 2,504,508 | D28: 4.2% | E28: =SUM('Gen. Prima Directa'!AQ64) -> 2,419,571 | F28: 3.9% | G28: -3.4%
B29: Otros | C29: =Índice!$F$60*'Datos Generales'!AT285 -> 6,648,774 | D29: 11.1% | E29: =SUM('Gen. Prima Directa'!AQ20,'Gen. Prima Directa'!AQ36:AQ37,'Gen. Prima Directa'!AQ41:AQ42,'Gen. Prima Directa'!AQ44:AQ48) -> 5,680,703 | F29: 9.1% | G29: -14.6%
B30: Total | C30: =SUM(C20:C29) -> 60,020,830 | D30: 100.0% | E30: =SUM(E20:E29) -> 62,736,085 | F30: 100.0% | G30: 4.5%
B33: Seguros de Vida | C33: =Índice!H66 -> 30.06.2022 | E33: =Índice!H65 -> 30.06.2023 | G33: =CONCATENATE("Variación ",MID(C33,7,4),"/",MID(E33,7,4)) -> Variación 2022/2023
C34: Cifra | D34: Part. (%) | E34: Cifra | F34: Part. (%)
B35: Vida | C35: ='Vida Prima Directa'!AS72 -> 5,681,448 | D35: =C35/C$46 -> 5.8% | E35: ='Vida Prima Directa'!AQ72 -> 5,765,610 | F35: =E35/E$46 -> 5.0% | G35: =E35/C35-1 -> 1.5%
B36: Salud | C36: ='Vida Prima Directa'!AS78 -> 11,950,774 | D36: =C36/C$46 -> 12.3% | E36: ='Vida Prima Directa'!AQ78 -> 12,781,612 | F36: =E36/E$46 -> 11.1% | G36: =E36/C36-1 -> 7.0%
B37: Accidentes Personales | C37: ='Vida Prima Directa'!AS79 -> 2,515,431 | D37: 2.6% | E37: ='Vida Prima Directa'!AQ79 -> 2,535,910 | F37: 2.2% | G37: 0.8%
B38: Desgravamen | C38: ='Vida Prima Directa'!AS80 -> 8,361,643 | D38: 8.6% | E38: ='Vida Prima Directa'!AQ80 -> 7,649,152 | F38: 6.6% | G38: -8.5%
B39: Seguros con CUI | C39: ='Vida Prima Directa'!AS81 -> 10,495,227 | D39: 10.8% | E39: ='Vida Prima Directa'!AQ81 -> 7,832,935 | F39: 6.8% | G39: -25.4%
B40: Seguros con Ahorro Previsional | C40: ='Vida Prima Directa'!AS84 -> 5,788,141 | D40: 6.0% | E40: ='Vida Prima Directa'!AQ84 -> 5,312,052 | F40: 4.6% | G40: -8.2%
B41: Rentas Vitalicias Vejez | C41: ='Vida Prima Directa'!AS89 -> 27,759,400 | D41: 28.6% | E41: ='Vida Prima Directa'!AQ89 -> 42,403,783 | F41: 36.7% | G41: 52.8%
B42: Rentas Vitalicias Invalidez | C42: ='Vida Prima Directa'!AS90 -> 5,271,537 | D42: 5.4% | E42: ='Vida Prima Directa'!AQ90 -> 8,521,318 | F42: 7.4% | G42: 61.6%
B43: Rentas Vitalicias Sobrevivencia | C43: ='Vida Prima Directa'!AS91 -> 1,668,684 | D43: 1.7% | E43: ='Vida Prima Directa'!AQ91 -> 2,278,102 | F43: 2.0% | G43: 36.5%
B44: Seguro de AFP + Inv. y Sobr. | C44: ='Vida Prima Directa'!AS92 -> 16,050,292 | D44: 16.5% | E44: ='Vida Prima Directa'!AQ92 -> 19,283,262 | F44: 16.7% | G44: 20.1%
B45: Otros | C45: =SUM('Vida Prima Directa'!AS82:AS83,'Vida Prima Directa'!AS85,'Vida Prima Directa'!AS86,'Vida Prima Directa'!AS87) -> 1,588,545 | D45: 1.6% | E45: =SUM('Vida Prima Directa'!AQ82:AQ83,'Vida Prima Directa'!AQ85,'Vida Prima Directa'!AQ86,'Vida Prima Directa'!AQ87) -> 1,272,400 | F45: 1.1% | G45: -19.9%
B46: Total | C46: =SUM(C35:C45) -> 97,131,122 | D46: =C46/C$46 -> 100.0% | E46: =SUM(E35:E45) -> 115,636,137 | F46: =E46/E$46 -> 100.0% | G46: =E46/C46-1 -> 19.1%
B48: Rentas Vitalicias | C48: =SUM(C41:C43) -> 34,699,622 | D48: =C48/C46 -> 35.7% | E48: =SUM(E41:E43) -> 53,203,203 | F48: =E48/E46 -> 46.0% | G48: =E48/C48-1 -> 53.3%

Sheet Mer. Siniestros Directos
C2: Volver al Índice
B8: Siniestros Directos del Mercado de Seguros
B9: =Índice!H60 -> Cifras en UF al 30.06.2023
B11: Grupo | C11: =Índice!H66 -> 30.06.2022 | E11: =Índice!H65 -> 30.06.2023 | G11: =CONCATENATE("Variación ",MID(C11,7,4),"/",MID(E11,7,4)) -> Variación 2022/2023
C12: Cifra | D12: Part. (%) | E12: Cifra | F12: Part. (%)
B13: Seguros Generales | C13: ='Gen. Siniestros Directos'!AS49 -> 32,690,653 | D13: =C13/C$15 -> 23.4% | E13: ='Gen. Siniestros Directos'!AQ49 -> 29,644,487 | F13: =E13/E$15 -> 18.9% | G13: =E13/C13-1 -> -9.3%
B14: Seguros de Vida | C14: ='Vida Siniestros Directos'!AS70 -> 107,212,851 | D14: =C14/C$15 -> 76.6% | E14: ='Vida Siniestros Directos'!AQ70 -> 126,938,678 | F14: =E14/E$15 -> 81.1% | G14: =E14/C14-1 -> 18.4%
B15: Total | C15: =SUM(C13:C14) -> 139,903,503 | D15: =C15/C$15 -> 100.0% | E15: =SUM(E13:E14) -> 156,583,165 | F15: =E15/E$15 -> 100.0% | G15: =E15/C15-1 -> 11.9%
B18: Seguros Generales | C18: =Índice!H66 -> 30.06.2022 | E18: =Índice!H65 -> 30.06.2023 | G18: =CONCATENATE("Variación ",MID(C18,7,4),"/",MID(E18,7,4)) -> Variación 2022/2023
C19: Cifra | D19: Part. (%) | E19: Cifra | F19: Part. (%)
B20: ='Mer. Prima Directa'!B20 -> Incendio y Adicionales | C20: ='Gen. Siniestros Directos'!AS58 -> 10,025,180 | D20: =C20/C$30 -> 30.7% | E20: ='Gen. Siniestros Directos'!AQ58 -> 7,537,544 | F20: =E20/E$30 -> 25.4% | G20: =E20/C20-1 -> -24.8%
B21: ='Mer. Prima Directa'!B21 -> Vehículos | C21: ='Gen. Siniestros Directos'!AS61 -> 13,156,277 | D21: =C21/C$30 -> 40.2% | E21: ='Gen. Siniestros Directos'!AQ61 -> 11,932,237 | F21: =E21/E$30 -> 40.3% | G21: =E21/C21-1 -> -9.3%
B22: ='Mer. Prima Directa'!B22 -> Transporte | C22: ='Gen. Siniestros Directos'!AS63 -> 1,525,238 | D22: 4.7% | E22: ='Gen. Siniestros Directos'!AQ63 -> 737,733 | F22: 2.5% | G22: -51.6%
B23: ='Mer. Prima Directa'!B23 -> Robo con Fractura | C23: ='Gen. Siniestros Directos'!AS19 -> 253,712 | D23: 0.8% | E23: ='Gen. Siniestros Directos'!AQ19 -> 203,909 | F23: 0.7% | G23: -19.6%
B24: ='Mer. Prima Directa'!B24 -> SOAP | C24: ='Gen. Siniestros Directos'!AS43 -> 524,083 | D24: 1.6% | E24: ='Gen. Siniestros Directos'!AQ43 -> 627,605 | F24: 2.1% | G24: 19.8%
B25: ='Mer. Prima Directa'!B25 -> Garantía y Crédito | C25: =SUM('Gen. Siniestros Directos'!AS35,'Gen. Siniestros Directos'!AS38:AS40) -> 1,560,986 | D25: 4.8% | E25: =SUM('Gen. Siniestros Directos'!AQ35,'Gen. Siniestros Directos'!AQ38:AQ40) -> 4,191,849 | F25: 14.1% | G25: 168.5%
B26: ='Mer. Prima Directa'!B26 -> Responsabilidad Civil | C26: ='Gen. Siniestros Directos'!AS66 -> 1,109,963 | D26: 3.4% | E26: =SUM('Gen. Siniestros Directos'!AQ24:AQ26) -> 1,111,772 | F26: 3.8% | G26: 0.2%
B27: ='Mer. Prima Directa'!B27 -> Casco | C27: ='Gen. Siniestros Directos'!AS62 -> 755,666 | D27: 2.3% | E27: =SUM('Gen. Siniestros Directos'!AQ22:AQ23) -> 357,020 | F27: 1.2% | G27: -52.8%
B28: ='Mer. Prima Directa'!B28 -> Ingeniería | C28: ='Gen. Siniestros Directos'!AS64 -> 1,390,487 | D28: 4.3% | E28: =SUM('Gen. Siniestros Directos'!AQ64) -> 836,573 | F28: 2.8% | G28: -39.8%
B29: ='Mer. Prima Directa'!B29 -> Otros | C29: =Índice!$F$60*'Datos Generales'!AT489 -> 2,389,060 | D29: 7.3% | E29: =SUM('Gen. Siniestros Directos'!AQ20,'Gen. Siniestros Directos'!AQ36:AQ37,'Gen. Siniestros Directos'!AQ41:AQ42,'Gen. Siniestros Directos'!AQ44:AQ48) -> 2,108,244 | F29: 7.1% | G29: -11.8%
B30: Total | C30: =SUM(C20:C29) -> 32,690,653 | D30: 100.0% | E30: =SUM(E20:E29) -> 29,644,487 | F30: 100.0% | G30: -9.3%
B33: Seguros de Vida | C33: =Índice!H66 -> 30.06.2022 | E33: =Índice!H65 -> 30.06.2023 | G33: =CONCATENATE("Variación ",MID(C33,7,4),"/",MID(E33,7,4)) -> Variación 2022/2023
C34: Cifra | D34: Part. (%) | E34: Cifra | F34: Part. (%)
B35: ='Mer. Prima Directa'!B35 -> Vida | C35: ='Vida Siniestros Directos'!AS72 -> 2,639,593 | D35: =C35/C$46 -> 2.5% | E35: ='Vida Siniestros Directos'!AQ72 -> 3,003,222 | F35: =E35/E$46 -> 2.4% | G35: =E35/C35-1 -> 13.8%
B36: ='Mer. Prima Directa'!B36 -> Salud | C36: ='Vida Siniestros Directos'!AS78 -> 7,590,255 | D36: =C36/C$46 -> 7.1% | E36: ='Vida Siniestros Directos'!AQ78 -> 8,549,345 | F36: =E36/E$46 -> 6.7% | G36: =E36/C36-1 -> 12.6%
B37: ='Mer. Prima Directa'!B37 -> Accidentes Personales | C37: ='Vida Siniestros Directos'!AS79 -> 497,089 | D37: 0.5% | E37: ='Vida Siniestros Directos'!AQ79 -> 456,350 | F37: 0.4% | G37: -8.2%
B38: ='Mer. Prima Directa'!B38 -> Desgravamen | C38: ='Vida Siniestros Directos'!AS80 -> 2,758,604 | D38: 2.6% | E38: ='Vida Siniestros Directos'!AQ80 -> 2,512,029 | F38: 2.0% | G38: -8.9%
B39: ='Mer. Prima Directa'!B39 -> Seguros con CUI | C39: ='Vida Siniestros Directos'!AS81 -> 8,832,179 | D39: 8.2% | E39: ='Vida Siniestros Directos'!AQ81 -> 10,661,135 | F39: 8.4% | G39: 20.7%
B40: ='Mer. Prima Directa'!B40 -> Seguros con Ahorro Previsional | C40: ='Vida Siniestros Directos'!AS84 -> 4,042,060 | D40: 3.8% | E40: ='Vida Siniestros Directos'!AQ84 -> 4,879,833 | F40: 3.8% | G40: 20.7%
B41: ='Mer. Prima Directa'!B41 -> Rentas Vitalicias Vejez | C41: ='Vida Siniestros Directos'!AS89 -> 52,917,067 | D41: 49.4% | E41: ='Vida Siniestros Directos'!AQ89 -> 54,708,173 | F41: 43.1% | G41: 3.4%
B42: ='Mer. Prima Directa'!B42 -> Rentas Vitalicias Invalidez | C42: ='Vida Siniestros Directos'!AS90 -> 6,319,023 | D42: 5.9% | E42: ='Vida Siniestros Directos'!AQ90 -> 14,887,027 | F42: 11.7% | G42: 135.6%
B43: ='Mer. Prima Directa'!B43 -> Rentas Vitalicias Sobrevivencia | C43: ='Vida Siniestros Directos'!AS91 -> 3,947,906 | D43: 3.7% | E43: ='Vida Siniestros Directos'!AQ91 -> 5,797,274 | F43: 4.6% | G43: 46.8%
B44: ='Mer. Prima Directa'!B44 -> Seguro de AFP + Inv. y Sobr. | C44: ='Vida Siniestros Directos'!AS92 -> 15,772,975 | D44: 14.7% | E44: ='Vida Siniestros Directos'!AQ92 -> 20,110,103 | F44: 15.8% | G44: 27.5%
B45: ='Mer. Prima Directa'!B45 -> Otros | C45: =SUM('Vida Siniestros Directos'!AS82:AS83,'Vida Siniestros Directos'!AS85,'Vida Siniestros Directos'!AS86,'Vida Siniestros Directos'!AS87) -> 1,896,099 | D45: 1.8% | E45: =SUM('Vida Siniestros Directos'!AQ82:AQ83,'Vida Siniestros Directos'!AQ85,'Vida Siniestros Directos'!AQ86,'Vida Siniestros Directos'!AQ87) -> 1,374,187 | F45: 1.1% | G45: -27.5%
B46: Total | C46: =SUM(C35:C45) -> 107,212,851 | D46: =C46/C$46 -> 100.0% | E46: =SUM(E35:E45) -> 126,938,678 | F46: =E46/E$46 -> 100.0% | G46: =E46/C46-1 -> 18.4%
B48: Rentas Vitalicias | C48: =SUM(C41:C43) -> 63,183,996 | D48: =C48/C46 -> 58.9% | E48: =SUM(E41:E43) -> 75,392,474 | F48: =E48/E46 -> 59.4% | G48: =E48/C48-1 -> 19.3%

Sheet Mer. Pólizas Emitidas
C2: Volver al Índice
B8: Número de Pólizas Emitidas del Mercado de Seguros
B9: =Índice!H64 -> Cifras al 30.06.2023
B11: Grupo | C11: =Índice!H66 -> 30.06.2022 | E11: =Índice!H65 -> 30.06.2023 | G11: =CONCATENATE("Variación ",MID(C11,7,4),"/",MID(E11,7,4)) -> Variación 2022/2023
C12: Cifra | D12: Part. (%) | E12: Cifra | F12: Part. (%)
B13: Seguros Generales | C13: ='Gen. Pólizas Emitidas'!AS49 -> 14,872,942 | D13: =C13/C$15 -> 83.4% | E13: ='Gen. Pólizas Emitidas'!AQ49 -> 14,809,739 | F13: =E13/E$15 -> 83.6% | G13: =E13/C13-1 -> -0.4%
B14: Seguros de Vida | C14: ='Vida Pólizas Emitidas'!AS70 -> 2,961,718 | D14: =C14/C$15 -> 16.6% | E14: ='Vida Pólizas Emitidas'!AQ70 -> 2,910,562 | F14: =E14/E$15 -> 16.4% | G14: =E14/C14-1 -> -1.7%
B15: Total | C15: =SUM(C13:C14) -> 17,834,660 | D15: =C15/C$15 -> 100.0% | E15: =SUM(E13:E14) -> 17,720,301 | F15: =E15/E$15 -> 100.0% | G15: =E15/C15-1 -> -0.6%
B18: Seguros Generales | C18: =Índice!H66 -> 30.06.2022 | E18: =Índice!H65 -> 30.06.2023 | G18: =CONCATENATE("Variación ",MID(C18,7,4),"/",MID(E18,7,4)) -> Variación 2022/2023
C19: Cifra | D19: Part. (%) | E19: Cifra | F19: Part. (%)
B20: ='Mer. Prima Directa'!B20 -> Incendio y Adicionales | C20: ='Gen. Pólizas Emitidas'!AS58 -> 2,265,004 | D20: =C20/C$30 -> 15.2% | E20: ='Gen. Pólizas Emitidas'!AQ58 -> 2,115,786 | F20: =E20/E$30 -> 14.3% | G20: =E20/C20-1 -> -6.6%
B21: ='Mer. Prima Directa'!B21 -> Vehículos | C21: ='Gen. Pólizas Emitidas'!AS61 -> 1,809,308 | D21: =C21/C$30 -> 12.2% | E21: ='Gen. Pólizas Emitidas'!AQ61 -> 1,966,554 | F21: =E21/E$30 -> 13.3% | G21: =E21/C21-1 -> 8.7%
B22: ='Mer. Prima Directa'!B22 -> Transporte | C22: ='Gen. Pólizas Emitidas'!AS63 -> 33,978 | D22: 0.2% | E22: ='Gen. Pólizas Emitidas'!AQ63 -> 30,076 | F22: 0.2% | G22: -11.5%
B23: ='Mer. Prima Directa'!B23 -> Robo con Fractura | C23: ='Gen. Pólizas Emitidas'!AS19 -> 593,837 | D23: 4.0% | E23: ='Gen. Pólizas Emitidas'!AQ19 -> 629,340 | F23: 4.2% | G23: 6.0%
B24: ='Mer. Prima Directa'!B24 -> SOAP | C24: ='Gen. Pólizas Emitidas'!AS43 -> 5,577,522 | D24: 37.5% | E24: ='Gen. Pólizas Emitidas'!AQ43 -> 5,859,472 | F24: 39.6% | G24: 5.1%
B25: ='Mer. Prima Directa'!B25 -> Garantía y Crédito | C25: =SUM('Gen. Pólizas Emitidas'!AS35,'Gen. Pólizas Emitidas'!AS38:AS40) -> 56,672 | D25: 0.4% | E25: =SUM('Gen. Pólizas Emitidas'!AQ35,'Gen. Pólizas Emitidas'!AQ38:AQ40) -> 57,627 | F25: 0.4% | G25: 1.7%
B26: ='Mer. Prima Directa'!B26 -> Responsabilidad Civil | C26: ='Gen. Pólizas Emitidas'!AS66 -> 195,464 | D26: 1.3% | E26: =SUM('Gen. Pólizas Emitidas'!AQ24:AQ26) -> 194,898 | F26: 1.3% | G26: -0.3%
B27: ='Mer. Prima Directa'!B27 -> Casco | C27: ='Gen. Pólizas Emitidas'!AS62 -> 1,183 | D27: 0.0% | E27: =SUM('Gen. Pólizas Emitidas'!AQ22:AQ23) -> 1,237 | F27: 0.0% | G27: 4.6%
B28: ='Mer. Prima Directa'!B28 -> Ingeniería | C28: ='Gen. Pólizas Emitidas'!AS64 -> 59,606 | D28: 0.4% | E28: =SUM('Gen. Pólizas Emitidas'!AQ64) -> 58,141 | F28: 0.4% | G28: -2.5%
B29: ='Mer. Prima Directa'!B29 -> Otros | C29: ='Datos Generales'!AT387 -> 4,280,368 | D29: 28.8% | E29: =SUM('Gen. Pólizas Emitidas'!AQ20,'Gen. Pólizas Emitidas'!AQ36:AQ37,'Gen. Pólizas Emitidas'!AQ41:AQ42,'Gen. Pólizas Emitidas'!AQ44:AQ48) -> 3,896,608 | F29: 26.3% | G29: -9.0%
B30: Total | C30: =SUM(C20:C29) -> 14,872,942 | D30: 100.0% | E30: =SUM(E20:E29) -> 14,809,739 | F30: 100.0% | G30: -0.4%
B33: Seguros de Vida | C33: =Índice!H66 -> 30.06.2022 | E33: =Índice!H65 -> 30.06.2023 | G33: =CONCATENATE("Variación ",MID(C33,7,4),"/",MID(E33,7,4)) -> Variación 2022/2023
C34: Cifra | D34: Part. (%) | E34: Cifra | F34: Part. (%)
B35: ='Mer. Prima Directa'!B35 -> Vida | C35: ='Vida Pólizas Emitidas'!AS72 -> 1,139,971 | D35: =C35/C$46 -> 38.5% | E35: ='Vida Pólizas Emitidas'!AQ72 -> 1,060,410 | F35: =E35/E$46 -> 36.4% | G35: =E35/C35-1 -> -7.0%
B36: ='Mer. Prima Directa'!B36 -> Salud | C36: ='Vida Pólizas Emitidas'!AS78 -> 990,326 | D36: =C36/C$46 -> 33.4% | E36: ='Vida Pólizas Emitidas'!AQ78 -> 781,308 | F36: =E36/E$46 -> 26.8% | G36: =E36/C36-1 -> -21.1%
B37: ='Mer. Prima Directa'!B37 -> Accidentes Personales | C37: ='Vida Pólizas Emitidas'!AS79 -> 211,147 | D37: 7.1% | E37: ='Vida Pólizas Emitidas'!AQ79 -> 179,302 | F37: 6.2% | G37: -15.1%
B38: ='Mer. Prima Directa'!B38 -> Desgravamen | C38: ='Vida Pólizas Emitidas'!AS80 -> 97,639 | D38: 3.3% | E38: ='Vida Pólizas Emitidas'!AQ80 -> 295,512 | F38: 10.2% | G38: 202.7%
B39: ='Mer. Prima Directa'!B39 -> Seguros con CUI | C39: ='Vida Pólizas Emitidas'!AS81 -> 200,283 | D39: 6.8% | E39: ='Vida Pólizas Emitidas'!AQ81 -> 196,401 | F39: 6.7% | G39: -1.9%
B40: ='Mer. Prima Directa'!B40 -> Seguros con Ahorro Previsional | C40: ='Vida Pólizas Emitidas'!AS84 -> 7,866 | D40: 0.3% | E40: ='Vida Pólizas Emitidas'!AQ84 -> 9,685 | F40: 0.3% | G40: 23.1%
B41: ='Mer. Prima Directa'!B41 -> Rentas Vitalicias Vejez | C41: ='Vida Pólizas Emitidas'!AS89 -> 10,722 | D41: 0.4% | E41: ='Vida Pólizas Emitidas'!AQ89 -> 18,302 | F41: 0.6% | G41: 70.7%
B42: ='Mer. Prima Directa'!B42 -> Rentas Vitalicias Invalidez | C42: ='Vida Pólizas Emitidas'!AS90 -> 1,704 | D42: 0.1% | E42: ='Vida Pólizas Emitidas'!AQ90 -> 2,536 | F42: 0.1% | G42: 48.8%
B43: ='Mer. Prima Directa'!B43 -> Rentas Vitalicias Sobrevivencia | C43: ='Vida Pólizas Emitidas'!AS91 -> 582 | D43: 0.0% | E43: ='Vida Pólizas Emitidas'!AQ91 -> 839 | F43: 0.0% | G43: 44.2%
B44: ='Mer. Prima Directa'!B44 -> Seguro de AFP + Inv. y Sobr. | C44: ='Vida Pólizas Emitidas'!AS92 -> 2,698 | D44: 0.1% | E44: ='Vida Pólizas Emitidas'!AQ92 -> 2,545 | F44: 0.1% | G44: -5.7%
B45: ='Mer. Prima Directa'!B45 -> Otros | C45: =SUM('Vida Pólizas Emitidas'!AS82:AS83,'Vida Pólizas Emitidas'!AS85,'Vida Pólizas Emitidas'!AS86,'Vida Pólizas Emitidas'!AS87) -> 298,780 | D45: 10.1% | E45: =SUM('Vida Pólizas Emitidas'!AQ82:AQ83,'Vida Pólizas Emitidas'!AQ85,'Vida Pólizas Emitidas'!AQ86,'Vida Pólizas Emitidas'!AQ87) -> 363,722 | F45: 12.5% | G45: 21.7%
B46: Total | C46: =SUM(C35:C45) -> 2,961,718 | D46: =C46/C$46 -> 100.0% | E46: =SUM(E35:E45) -> 2,910,562 | F46: =E46/E$46 -> 100.0% | G46: =E46/C46-1 -> -1.7%
B48: Rentas Vitalicias | C48: =SUM(C41:C43) -> 13,008 | D48: =C48/C46 -> 0.4% | E48: =SUM(E41:E43) -> 21,677 | F48: =E48/E46 -> 0.7% | G48: =E48/C48-1 -> 66.6%

Sheet Mer. Número de Siniestros
C2: Volver al Índice
B8: Número de Siniestros del Mercado de Seguros
B9: =Índice!H64 -> Cifras al 30.06.2023
B11: Grupo | C11: =Índice!H66 -> 30.06.2022 | E11: =Índice!H65 -> 30.06.2023 | G11: =CONCATENATE("Variación ",MID(C11,7,4),"/",MID(E11,7,4)) -> Variación 2022/2023
C12: Cifra | D12: Part. (%) | E12: Cifra | F12: Part. (%)
B13: Seguros Generales | C13: ='Gen. Número de Siniestros'!AS49 -> 592,190 | D13: =C13/C$15 -> 5.3% | E13: ='Gen. Número de Siniestros'!AQ49 -> 593,431 | F13: =E13/E$15 -> 5.5% | G13: =E13/C13-1 -> 0.2%
B14: Seguros de Vida | C14: ='Vida Número de Siniestros'!AS70 -> 10,582,666 | D14: =C14/C$15 -> 94.7% | E14: ='Vida Número de Siniestros'!AQ70 -> 10,140,286 | F14: =E14/E$15 -> 94.5% | G14: =E14/C14-1 -> -4.2%
B15: Total | C15: =SUM(C13:C14) -> 11,174,856 | D15: =C15/C$15 -> 100.0% | E15: =SUM(E13:E14) -> 10,733,717 | F15: =E15/E$15 -> 100.0% | G15: =E15/C15-1 -> -3.9%
B18: Seguros Generales | C18: =Índice!H66 -> 30.06.2022 | E18: =Índice!H65 -> 30.06.2023 | G18: =CONCATENATE("Variación ",MID(C18,7,4),"/",MID(E18,7,4)) -> Variación 2022/2023
C19: Cifra | D19: Part. (%) | E19: Cifra | F19: Part. (%)
B20: ='Mer. Prima Directa'!B20 -> Incendio y Adicionales | C20: ='Gen. Número de Siniestros'!AS58 -> 45,695 | D20: =C20/C$30 -> 7.7% | E20: ='Gen. Número de Siniestros'!AQ58 -> 53,990 | F20: =E20/E$30 -> 9.1% | G20: =E20/C20-1 -> 18.2%
B21: ='Mer. Prima Directa'!B21 -> Vehículos | C21: ='Gen. Número de Siniestros'!AS61 -> 301,749 | D21: =C21/C$30 -> 51.0% | E21: ='Gen. Número de Siniestros'!AQ61 -> 267,661 | F21: =E21/E$30 -> 45.1% | G21: =E21/C21-1 -> -11.3%
B22: ='Mer. Prima Directa'!B22 -> Transporte | C22: ='Gen. Número de Siniestros'!AS63 -> 20,185 | D22: 3.4% | E22: ='Gen. Número de Siniestros'!AQ63 -> 11,464 | F22: 1.9% | G22: -43.2%
B23: ='Mer. Prima Directa'!B23 -> Robo con Fractura | C23: ='Gen. Número de Siniestros'!AS19 -> 12,520 | D23: 2.1% | E23: ='Gen. Número de Siniestros'!AQ19 -> 8,473 | F23: 1.4% | G23: -32.3%
B24: ='Mer. Prima Directa'!B24 -> SOAP | C24: ='Gen. Número de Siniestros'!AS43 -> 12,596 | D24: 2.1% | E24: ='Gen. Número de Siniestros'!AQ43 -> 14,106 | F24: 2.4% | G24: 12.0%
B25: ='Mer. Prima Directa'!B25 -> Garantía y Crédito | C25: =SUM('Gen. Número de Siniestros'!AS35,'Gen. Número de Siniestros'!AS38:AS40) -> 4,905 | D25: 0.8% | E25: =SUM('Gen. Número de Siniestros'!AQ35,'Gen. Número de Siniestros'!AQ38:AQ40) -> 9,551 | F25: 1.6% | G25: 94.7%
B26: ='Mer. Prima Directa'!B26 -> Responsabilidad Civil | C26: ='Gen. Número de Siniestros'!AS66 -> 8,237 | D26: 1.4% | E26: =SUM('Gen. Número de Siniestros'!AQ24:AQ26) -> 6,762 | F26: 1.1% | G26: -17.9%
B27: ='Mer. Prima Directa'!B27 -> Casco | C27: ='Gen. Número de Siniestros'!AS62 -> 204 | D27: 0.0% | E27: =SUM('Gen. Número de Siniestros'!AQ22:AQ23) -> 388 | F27: 0.1% | G27: 90.2%
B28: ='Mer. Prima Directa'!B28 -> Ingeniería | C28: ='Gen. Número de Siniestros'!AS64 -> 2,933 | D28: 0.5% | E28: =SUM('Gen. Número de Siniestros'!AQ64) -> 2,687 | F28: 0.5% | G28: -8.4%
B29: ='Mer. Prima Directa'!B29 -> Otros | C29: ='Datos Generales'!AT591 -> 183,166 | D29: 30.9% | E29: =SUM('Gen. Número de Siniestros'!AQ20,'Gen. Número de Siniestros'!AQ36:AQ37,'Gen. Número de Siniestros'!AQ41:AQ42,'Gen. Número de Siniestros'!AQ44:AQ48) -> 218,349 | F29: 36.8% | G29: 19.2%
B30: Total | C30: =SUM(C20:C29) -> 592,190 | D30: 100.0% | E30: =SUM(E20:E29) -> 593,431 | F30: 100.0% | G30: 0.2%
B33: Seguros de Vida | C33: =Índice!H66 -> 30.06.2022 | E33: =Índice!H65 -> 30.06.2023 | G33: =CONCATENATE("Variación ",MID(C33,7,4),"/",MID(E33,7,4)) -> Variación 2022/2023
C34: Cifra | D34: Part. (%) | E34: Cifra | F34: Part. (%)
B35: ='Mer. Prima Directa'!B35 -> Vida | C35: ='Vida Número de Siniestros'!AS72 -> 33,673 | D35: =C35/C$46 -> 0.3% | E35: ='Vida Número de Siniestros'!AQ72 -> 31,172 | F35: =E35/E$46 -> 0.3% | G35: =E35/C35-1 -> -7.4%
B36: ='Mer. Prima Directa'!B36 -> Salud | C36: ='Vida Número de Siniestros'!AS78 -> 10,194,003 | D36: =C36/C$46 -> 96.3% | E36: ='Vida Número de Siniestros'!AQ78 -> 9,689,124 | F36: =E36/E$46 -> 95.6% | G36: =E36/C36-1 -> -5.0%
B37: ='Mer. Prima Directa'!B37 -> Accidentes Personales | C37: ='Vida Número de Siniestros'!AS79 -> 9,316 | D37: 0.1% | E37: ='Vida Número de Siniestros'!AQ79 -> 13,566 | F37: 0.1% | G37: 45.6%
B38: ='Mer. Prima Directa'!B38 -> Desgravamen | C38: ='Vida Número de Siniestros'!AS80 -> 33,500 | D38: 0.3% | E38: ='Vida Número de Siniestros'!AQ80 -> 28,186 | F38: 0.3% | G38: -15.9%
B39: ='Mer. Prima Directa'!B39 -> Seguros con CUI | C39: ='Vida Número de Siniestros'!AS81 -> 99,265 | D39: 0.9% | E39: ='Vida Número de Siniestros'!AQ81 -> 146,185 | F39: 1.4% | G39: 47.3%
B40: ='Mer. Prima Directa'!B40 -> Seguros con Ahorro Previsional | C40: ='Vida Número de Siniestros'!AS84 -> 21,365 | D40: 0.2% | E40: ='Vida Número de Siniestros'!AQ84 -> 25,212 | F40: 0.2% | G40: 18.0%
B41: ='Mer. Prima Directa'!B41 -> Rentas Vitalicias Vejez | C41: ='Vida Número de Siniestros'!AS89 -> 10,176 | D41: 0.1% | E41: ='Vida Número de Siniestros'!AQ89 -> 17,360 | F41: 0.2% | G41: 70.6%
B42: ='Mer. Prima Directa'!B42 -> Rentas Vitalicias Invalidez | C42: ='Vida Número de Siniestros'!AS90 -> 1,537 | D42: 0.0% | E42: ='Vida Número de Siniestros'!AQ90 -> 2,386 | F42: 0.0% | G42: 55.2%
B43: ='Mer. Prima Directa'!B43 -> Rentas Vitalicias Sobrevivencia | C43: ='Vida Número de Siniestros'!AS91 -> 544 | D43: 0.0% | E43: ='Vida Número de Siniestros'!AQ91 -> 796 | F43: 0.0% | G43: 46.3%
B44: ='Mer. Prima Directa'!B44 -> Seguro de AFP + Inv. y Sobr. | C44: ='Vida Número de Siniestros'!AS92 -> 162,247 | D44: 1.5% | E44: ='Vida Número de Siniestros'!AQ92 -> 170,635 | F44: 1.7% | G44: 5.2%
B45: ='Mer. Prima Directa'!B45 -> Otros | C45: =SUM('Vida Número de Siniestros'!AS82:AS83,'Vida Número de Siniestros'!AS85,'Vida Número de Siniestros'!AS86,'Vida Número de Siniestros'!AS87) -> 17,040 | D45: 0.2% | E45: =SUM('Vida Número de Siniestros'!AQ82:AQ83,'Vida Número de Siniestros'!AQ85,'Vida Número de Siniestros'!AQ86,'Vida Número de Siniestros'!AQ87) -> 15,664 | F45: 0.2% | G45: -8.1%
B46: Total | C46: =SUM(C35:C45) -> 10,582,666 | D46: =C46/C$46 -> 100.0% | E46: =SUM(E35:E45) -> 10,140,286 | F46: =E46/E$46 -> 100.0% | G46: =E46/C46-1 -> -4.2%
B48: Rentas Vitalicias | C48: =SUM(C41:C43) -> 12,257 | D48: =C48/C46 -> 0.1% | E48: =SUM(E41:E43) -> 20,542 | F48: =E48/E46 -> 0.2% | G48: =E48/C48-1 -> 67.6%

Sheet Gen. Activos
C2: Volver al Índice
B8: Activos en Seguros Generales
B9: =Índice!H60 -> Cifras en UF al 30.06.2023
C11: =IF('Datos Generales'!C7="","",'Datos Generales'!C7) -> Assurant Chile | D11: =IF('Datos Generales'!D7="","",'Datos Generales'!D7) -> AVLA Crédito | E11: =IF('Datos Generales'!E7="","",'Datos Generales'!E7) -> BCI Seguros | F11: =IF('Datos Generales'!F7="","",'Datos Generales'!F7) -> BNP Paribas Cardif | G11: =IF('Datos Generales'!G7="","",'Datos Generales'!G7) -> Cesce Chile | H11: =IF('Datos Generales'!H7="","",'Datos Generales'!H7) -> Chubb Generales | I11: =IF('Datos Generales'!I7="","",'Datos Generales'!I7) -> Coface Chile | J11: =IF('Datos Generales'!J7="","",'Datos Generales'!J7) -> Consorcio Nacional | K11: =IF('Datos Generales'!K7="","",'Datos Generales'!K7) -> Contempora | L11: =IF('Datos Generales'!L7="","",'Datos Generales'!L7) -> Continental Crédito | M11: =IF('Datos Generales'!M7="","",'Datos Generales'!M7) -> Continental Generales | N11: =IF('Datos Generales'!N7="","",'Datos Generales'!N7) -> Everest Generales | O11: =IF('Datos Generales'!O7="","",'Datos Generales'!O7) -> FID Chile | P11: =IF('Datos Generales'!P7="","",'Datos Generales'!P7) -> HDI Gar. y Cré. | Q11: =IF('Datos Generales'!Q7="","",'Datos Generales'!Q7) -> HDI Seguros | R11: =IF('Datos Generales'!R7="","",'Datos Generales'!R7) -> Konsegur | S11: =IF('Datos Generales'!S7="","",'Datos Generales'!S7) -> Liberty Seguros | T11: =IF('Datos Generales'!T7="","",'Datos Generales'!T7) -> M. de Carabineros | U11: =IF('Datos Generales'!U7="","",'Datos Generales'!U7) -> Mapfre | V11: =IF('Datos Generales'!V7="","",'Datos Generales'!V7) -> MetLife Generales | W11: =IF('Datos Generales'!W7="","",'Datos Generales'!W7) -> Orion Seguros | X11: =IF('Datos Generales'!X7="","",'Datos Generales'!X7) -> Orsan Crédito | Y11: =IF('Datos Generales'!Y7="","",'Datos Generales'!Y7) -> Porvenir | Z11: =IF('Datos Generales'!Z7="","",'Datos Generales'!Z7) -> Reale Chile | AA11: =IF('Datos Generales'!AA7="","",'Datos Generales'!AA7) -> Renta Nacional | AB11: =IF('Datos Generales'!AB7="","",'Datos Generales'!AB7) -> Solunión Chile | AC11: =IF('Datos Generales'!AC7="","",'Datos Generales'!AC7) -> Southbridge | AD11: =IF('Datos Generales'!AD7="","",'Datos Generales'!AD7) -> Starr International | AE11: =IF('Datos Generales'!AE7="","",'Datos Generales'!AE7) -> Suramericana | AF11: =IF('Datos Generales'!AF7="","",'Datos Generales'!AF7) -> Unnio | AG11: =IF('Datos Generales'!AG7="","",'Datos Generales'!AG7) -> Zenit Seguros | AH11: =IF('Datos Generales'!AH7="","",'Datos Generales'!AH7) -> Zurich Chile | AI11: =IF('Datos Generales'!AI7="","",'Datos Generales'!AI7) -> Zurich Santander | AJ11: =IF('Datos Generales'!AJ7="","",'Datos Generales'!AJ7) ->  | AK11: =IF('Datos Generales'!AK7="","",'Datos Generales'!AK7) ->  | AL11: =IF('Datos Generales'!AL7="","",'Datos Generales'!AL7) ->  | AM11: =IF('Datos Generales'!AM7="","",'Datos Generales'!AM7) ->  | AN11: =IF('Datos Generales'!AN7="","",'Datos Generales'!AN7) ->  | AO11: =IF('Datos Generales'!AO7="","",'Datos Generales'!AO7) ->  | AP11: =IF('Datos Generales'!AP7="","",'Datos Generales'!AP7) ->  | AQ11: =IF('Datos Generales'!AQ7="","",'Datos Generales'!AQ7) -> Mercado
B12: ='Datos Generales'!B8 -> 5.10.00.00 Total Activo | C12: =Índice!$G$60*'Datos Generales'!C8 -> 364,688 | D12: =Índice!$G$60*'Datos Generales'!D8 -> 2,080,008 | E12: =Índice!$G$60*'Datos Generales'!E8 -> 26,243,291 | F12: =Índice!$G$60*'Datos Generales'!F8 -> 7,899,073 | G12: =Índice!$G$60*'Datos Generales'!G8 -> 487,183 | H12: =Índice!$G$60*'Datos Generales'!H8 -> 15,098,241 | I12: =Índice!$G$60*'Datos Generales'!I8 -> 1,103,230 | J12: =Índice!$G$60*'Datos Generales'!J8 -> 4,296,044 | K12: =Índice!$G$60*'Datos Generales'!K8 -> 1,275,649 | L12: =Índice!$G$60*'Datos Generales'!L8 -> 4,019,796 | M12: =Índice!$G$60*'Datos Generales'!M8 -> 4,906,905 | N12: =Índice!$G$60*'Datos Generales'!N8 -> 2,702,321 | O12: =Índice!$G$60*'Datos Generales'!O8 -> 5,021,909 | P12: =Índice!$G$60*'Datos Generales'!P8 -> 445,733 | Q12: =Índice!$G$60*'Datos Generales'!Q8 -> 21,400,338 | R12: =Índice!$G$60*'Datos Generales'!R8 -> 1,089,655 | S12: =Índice!$G$60*'Datos Generales'!S8 -> 15,708,794 | T12: =Índice!$G$60*'Datos Generales'!T8 -> 537,909 | U12: =Índice!$G$60*'Datos Generales'!U8 -> 21,617,611 | V12: =Índice!$G$60*'Datos Generales'!V8 -> 387,234 | W12: =Índice!$G$60*'Datos Generales'!W8 -> 5,478,751 | X12: =Índice!$G$60*'Datos Generales'!X8 -> 1,114,353 | Y12: =Índice!$G$60*'Datos Generales'!Y8 -> 2,297,999 | Z12: =Índice!$G$60*'Datos Generales'!Z8 -> 4,639,330 | AA12: =Índice!$G$60*'Datos Generales'!AA8 -> 4,656,509 | AB12: =Índice!$G$60*'Datos Generales'!AB8 -> 735,759 | AC12: =Índice!$G$60*'Datos Generales'!AC8 -> 15,101,098 | AD12: =Índice!$G$60*'Datos Generales'!AD8 -> 4,435,360 | AE12: =Índice!$G$60*'Datos Generales'!AE8 -> 26,020,134 | AF12: =Índice!$G$60*'Datos Generales'!AF8 -> 3,362,668 | AG12: =Índice!$G$60*'Datos Generales'!AG8 -> 1,956,626 | AH12: =Índice!$G$60*'Datos Generales'!AH8 -> 7,955,164 | AI12: =Índice!$G$60*'Datos Generales'!AI8 -> 7,195,629 | AJ12: =Índice!$G$60*'Datos Generales'!AJ8 -> 0 | AK12: =Índice!$G$60*'Datos Generales'!AK8 -> 0 | AL12: =Índice!$G$60*'Datos Generales'!AL8 -> 0 | AM12: =Índice!$G$60*'Datos Generales'!AM8 -> 0 | AN12: =Índice!$G$60*'Datos Generales'!AN8 -> 0 | AO12: =Índice!$G$60*'Datos Generales'!AO8 -> 0 | AP12: =Índice!$G$60*'Datos Generales'!AP8 -> 0 | AQ12: =Índice!$G$60*'Datos Generales'!AQ8 -> 221,634,991
B13: ='Datos Generales'!B9 -> 5.11.00.00 Total Inversiones Financieras | C13: =Índice!$G$60*'Datos Generales'!C9 -> 276,180 | D13: =Índice!$G$60*'Datos Generales'!D9 -> 557,352 | E13: =Índice!$G$60*'Datos Generales'!E9 -> 9,383,115 | F13: =Índice!$G$60*'Datos Generales'!F9 -> 5,280,156 | G13: =Índice!$G$60*'Datos Generales'!G9 -> 93,553 | H13: =Índice!$G$60*'Datos Generales'!H9 -> 5,707,750 | I13: =Índice!$G$60*'Datos Generales'!I9 -> 559,689 | J13: =Índice!$G$60*'Datos Generales'!J9 -> 1,278,998 | K13: =Índice!$G$60*'Datos Generales'!K9 -> 148,523 | L13: =Índice!$G$60*'Datos Generales'!L9 -> 2,502,296 | M13: =Índice!$G$60*'Datos Generales'!M9 -> 473,360 | N13: =Índice!$G$60*'Datos Generales'!N9 -> 894,320 | O13: =Índice!$G$60*'Datos Generales'!O9 -> 359,837 | P13: =Índice!$G$60*'Datos Generales'!P9 -> 200,480 | Q13: =Índice!$G$60*'Datos Generales'!Q9 -> 7,021,193 | R13: =Índice!$G$60*'Datos Generales'!R9 -> 192,964 | S13: =Índice!$G$60*'Datos Generales'!S9 -> 5,783,318 | T13: =Índice!$G$60*'Datos Generales'!T9 -> 510,544 | U13: =Índice!$G$60*'Datos Generales'!U9 -> 2,918,472 | V13: =Índice!$G$60*'Datos Generales'!V9 -> 290,777 | W13: =Índice!$G$60*'Datos Generales'!W9 -> 663,683 | X13: =Índice!$G$60*'Datos Generales'!X9 -> 484,708 | Y13: =Índice!$G$60*'Datos Generales'!Y9 -> 361,764 | Z13: =Índice!$G$60*'Datos Generales'!Z9 -> 842,426 | AA13: =Índice!$G$60*'Datos Generales'!AA9 -> 1,182,483 | AB13: =Índice!$G$60*'Datos Generales'!AB9 -> 224,639 | AC13: =Índice!$G$60*'Datos Generales'!AC9 -> 3,268,173 | AD13: =Índice!$G$60*'Datos Generales'!AD9 -> 501,319 | AE13: =Índice!$G$60*'Datos Generales'!AE9 -> 4,559,199 | AF13: =Índice!$G$60*'Datos Generales'!AF9 -> 427,776 | AG13: =Índice!$G$60*'Datos Generales'!AG9 -> 677,810 | AH13: =Índice!$G$60*'Datos Generales'!AH9 -> 2,984,494 | AI13: =Índice!$G$60*'Datos Generales'!AI9 -> 3,524,919 | AJ13: =Índice!$G$60*'Datos Generales'!AJ9 -> 0 | AK13: =Índice!$G$60*'Datos Generales'!AK9 -> 0 | AL13: =Índice!$G$60*'Datos Generales'!AL9 -> 0 | AM13: =Índice!$G$60*'Datos Generales'!AM9 -> 0 | AN13: =Índice!$G$60*'Datos Generales'!AN9 -> 0 | AO13: =Índice!$G$60*'Datos Generales'!AO9 -> 0 | AP13: =Índice!$G$60*'Datos Generales'!AP9 -> 0 | AQ13: =Índice!$G$60*'Datos Generales'!AQ9 -> 64,136,268
B14: ='Datos Generales'!B10 -> 5.11.10.00 Efectivo Y Efectivo Equivalente | C14: =Índice!$G$60*'Datos Generales'!C10 -> 76,711 | D14: =Índice!$G$60*'Datos Generales'!D10 -> 236,941 | E14: =Índice!$G$60*'Datos Generales'!E10 -> 858,295 | F14: =Índice!$G$60*'Datos Generales'!F10 -> 506,186 | G14: =Índice!$G$60*'Datos Generales'!G10 -> 34,710 | H14: =Índice!$G$60*'Datos Generales'!H10 -> 331,610 | I14: =Índice!$G$60*'Datos Generales'!I10 -> 20,899 | J14: =Índice!$G$60*'Datos Generales'!J10 -> 45,352 | K14: =Índice!$G$60*'Datos Generales'!K10 -> 36,650 | L14: =Índice!$G$60*'Datos Generales'!L10 -> 85,346 | M14: =Índice!$G$60*'Datos Generales'!M10 -> 332,004 | N14: =Índice!$G$60*'Datos Generales'!N10 -> 894,320 | O14: =Índice!$G$60*'Datos Generales'!O10 -> 9,794 | P14: =Índice!$G$60*'Datos Generales'!P10 -> 27,466 | Q14: =Índice!$G$60*'Datos Generales'!Q10 -> 794,400 | R14: =Índice!$G$60*'Datos Generales'!R10 -> 192,964 | S14: =Índice!$G$60*'Datos Generales'!S10 -> 541,451 | T14: =Índice!$G$60*'Datos Generales'!T10 -> 705 | U14: =Índice!$G$60*'Datos Generales'!U10 -> 381,544 | V14: =Índice!$G$60*'Datos Generales'!V10 -> 200,452 | W14: =Índice!$G$60*'Datos Generales'!W10 -> 182,199 | X14: =Índice!$G$60*'Datos Generales'!X10 -> 46,012 | Y14: =Índice!$G$60*'Datos Generales'!Y10 -> 111,988 | Z14: =Índice!$G$60*'Datos Generales'!Z10 -> 478,317 | AA14: =Índice!$G$60*'Datos Generales'!AA10 -> 141,224 | AB14: =Índice!$G$60*'Datos Generales'!AB10 -> 10,778 | AC14: =Índice!$G$60*'Datos Generales'!AC10 -> 560,349 | AD14: =Índice!$G$60*'Datos Generales'!AD10 -> 452,120 | AE14: =Índice!$G$60*'Datos Generales'!AE10 -> 272,854 | AF14: =Índice!$G$60*'Datos Generales'!AF10 -> 393,761 | AG14: =Índice!$G$60*'Datos Generales'!AG10 -> 237,481 | AH14: =Índice!$G$60*'Datos Generales'!AH10 -> 618,395 | AI14: =Índice!$G$60*'Datos Generales'!AI10 -> 43,444 | AJ14: =Índice!$G$60*'Datos Generales'!AJ10 -> 0 | AK14: =Índice!$G$60*'Datos Generales'!AK10 -> 0 | AL14: =Índice!$G$60*'Datos Generales'!AL10 -> 0 | AM14: =Índice!$G$60*'Datos Generales'!AM10 -> 0 | AN14: =Índice!$G$60*'Datos Generales'!AN10 -> 0 | AO14: =Índice!$G$60*'Datos Generales'!AO10 -> 0 | AP14: =Índice!$G$60*'Datos Generales'!AP10 -> 0 | AQ14: =Índice!$G$60*'Datos Generales'!AQ10 -> 9,156,720
B15: ='Datos Generales'!B11 -> 5.11.20.00 Activos Financieros A Valor Razonable | C15: =Índice!$G$60*'Datos Generales'!C11 -> 143,828 | D15: =Índice!$G$60*'Datos Generales'!D11 -> 242,952 | E15: =Índice!$G$60*'Datos Generales'!E11 -> 8,524,820 | F15: =Índice!$G$60*'Datos Generales'!F11 -> 4,771,255 | G15: =Índice!$G$60*'Datos Generales'!G11 -> 58,224 | H15: =Índice!$G$60*'Datos Generales'!H11 -> 5,376,140 | I15: =Índice!$G$60*'Datos Generales'!I11 -> 538,790 | J15: =Índice!$G$60*'Datos Generales'!J11 -> 1,233,646 | K15: =Índice!$G$60*'Datos Generales'!K11 -> 111,873 | L15: =Índice!$G$60*'Datos Generales'!L11 -> 28,720 | M15: =Índice!$G$60*'Datos Generales'!M11 -> 0 | N15: =Índice!$G$60*'Datos Generales'!N11 -> 0 | O15: =Índice!$G$60*'Datos Generales'!O11 -> 350,043 | P15: =Índice!$G$60*'Datos Generales'!P11 -> 173,014 | Q15: =Índice!$G$60*'Datos Generales'!Q11 -> 6,226,793 | R15: =Índice!$G$60*'Datos Generales'!R11 -> 0 | S15: =Índice!$G$60*'Datos Generales'!S11 -> 5,241,867 | T15: =Índice!$G$60*'Datos Generales'!T11 -> 42,116 | U15: =Índice!$G$60*'Datos Generales'!U11 -> 2,536,928 | V15: =Índice!$G$60*'Datos Generales'!V11 -> 90,325 | W15: =Índice!$G$60*'Datos Generales'!W11 -> 481,483 | X15: =Índice!$G$60*'Datos Generales'!X11 -> 438,696 | Y15: =Índice!$G$60*'Datos Generales'!Y11 -> 249,776 | Z15: =Índice!$G$60*'Datos Generales'!Z11 -> 364,109 | AA15: =Índice!$G$60*'Datos Generales'!AA11 -> 1,041,259 | AB15: =Índice!$G$60*'Datos Generales'!AB11 -> 213,861 | AC15: =Índice!$G$60*'Datos Generales'!AC11 -> 2,707,824 | AD15: =Índice!$G$60*'Datos Generales'!AD11 -> 49,198 | AE15: =Índice!$G$60*'Datos Generales'!AE11 -> 3,639,583 | AF15: =Índice!$G$60*'Datos Generales'!AF11 -> 34,015 | AG15: =Índice!$G$60*'Datos Generales'!AG11 -> 440,329 | AH15: =Índice!$G$60*'Datos Generales'!AH11 -> 2,198,974 | AI15: =Índice!$G$60*'Datos Generales'!AI11 -> 3,201,356 | AJ15: =Índice!$G$60*'Datos Generales'!AJ11 -> 0 | AK15: =Índice!$G$60*'Datos Generales'!AK11 -> 0 | AL15: =Índice!$G$60*'Datos Generales'!AL11 -> 0 | AM15: =Índice!$G$60*'Datos Generales'!AM11 -> 0 | AN15: =Índice!$G$60*'Datos Generales'!AN11 -> 0 | AO15: =Índice!$G$60*'Datos Generales'!AO11 -> 0 | AP15: =Índice!$G$60*'Datos Generales'!AP11 -> 0 | AQ15: =Índice!$G$60*'Datos Generales'!AQ11 -> 50,751,796
B16: ='Datos Generales'!B12 -> 5.11.30.00 Activos Financieros A Costo Amortizado | C16: =Índice!$G$60*'Datos Generales'!C12 -> 55,641 | D16: =Índice!$G$60*'Datos Generales'!D12 -> 77,459 | E16: =Índice!$G$60*'Datos Generales'!E12 -> 0 | F16: =Índice!$G$60*'Datos Generales'!F12 -> 2,715 | G16: =Índice!$G$60*'Datos Generales'!G12 -> 0 | H16: =Índice!$G$60*'Datos Generales'!H12 -> 0 | I16: =Índice!$G$60*'Datos Generales'!I12 -> 0 | J16: =Índice!$G$60*'Datos Generales'!J12 -> 0 | K16: =Índice!$G$60*'Datos Generales'!K12 -> 0 | L16: =Índice!$G$60*'Datos Generales'!L12 -> 505,856 | M16: =Índice!$G$60*'Datos Generales'!M12 -> 141,356 | N16: =Índice!$G$60*'Datos Generales'!N12 -> 0 | O16: =Índice!$G$60*'Datos Generales'!O12 -> 0 | P16: =Índice!$G$60*'Datos Generales'!P12 -> 0 | Q16: =Índice!$G$60*'Datos Generales'!Q12 -> 0 | R16: =Índice!$G$60*'Datos Generales'!R12 -> 0 | S16: =Índice!$G$60*'Datos Generales'!S12 -> 0 | T16: =Índice!$G$60*'Datos Generales'!T12 -> 467,723 | U16: =Índice!$G$60*'Datos Generales'!U12 -> 0 | V16: =Índice!$G$60*'Datos Generales'!V12 -> 0 | W16: =Índice!$G$60*'Datos Generales'!W12 -> 0 | X16: =Índice!$G$60*'Datos Generales'!X12 -> 0 | Y16: =Índice!$G$60*'Datos Generales'!Y12 -> 0 | Z16: =Índice!$G$60*'Datos Generales'!Z12 -> 0 | AA16: =Índice!$G$60*'Datos Generales'!AA12 -> 0 | AB16: =Índice!$G$60*'Datos Generales'!AB12 -> 0 | AC16: =Índice!$G$60*'Datos Generales'!AC12 -> 0 | AD16: =Índice!$G$60*'Datos Generales'!AD12 -> 0 | AE16: =Índice!$G$60*'Datos Generales'!AE12 -> 646,762 | AF16: =Índice!$G$60*'Datos Generales'!AF12 -> 0 | AG16: =Índice!$G$60*'Datos Generales'!AG12 -> 0 | AH16: =Índice!$G$60*'Datos Generales'!AH12 -> 167,126 | AI16: =Índice!$G$60*'Datos Generales'!AI12 -> 280,119 | AJ16: =Índice!$G$60*'Datos Generales'!AJ12 -> 0 | AK16: =Índice!$G$60*'Datos Generales'!AK12 -> 0 | AL16: =Índice!$G$60*'Datos Generales'!AL12 -> 0 | AM16: =Índice!$G$60*'Datos Generales'!AM12 -> 0 | AN16: =Índice!$G$60*'Datos Generales'!AN12 -> 0 | AO16: =Índice!$G$60*'Datos Generales'!AO12 -> 0 | AP16: =Índice!$G$60*'Datos Generales'!AP12 -> 0 | AQ16: =Índice!$G$60*'Datos Generales'!AQ12 -> 2,344,758
B17: ='Datos Generales'!B13 -> 5.11.40.00 Préstamos | C17: =Índice!$G$60*'Datos Generales'!C13 -> 0 | D17: =Índice!$G$60*'Datos Generales'!D13 -> 0 | E17: =Índice!$G$60*'Datos Generales'!E13 -> 0 | F17: =Índice!$G$60*'Datos Generales'!F13 -> 0 | G17: =Índice!$G$60*'Datos Generales'!G13 -> 0 | H17: =Índice!$G$60*'Datos Generales'!H13 -> 0 | I17: =Índice!$G$60*'Datos Generales'!I13 -> 0 | J17: =Índice!$G$60*'Datos Generales'!J13 -> 0 | K17: =Índice!$G$60*'Datos Generales'!K13 -> 0 | L17: =Índice!$G$60*'Datos Generales'!L13 -> 0 | M17: =Índice!$G$60*'Datos Generales'!M13 -> 0 | N17: =Índice!$G$60*'Datos Generales'!N13 -> 0 | O17: =Índice!$G$60*'Datos Generales'!O13 -> 0 | P17: =Índice!$G$60*'Datos Generales'!P13 -> 0 | Q17: =Índice!$G$60*'Datos Generales'!Q13 -> 0 | R17: =Índice!$G$60*'Datos Generales'!R13 -> 0 | S17: =Índice!$G$60*'Datos Generales'!S13 -> 0 | T17: =Índice!$G$60*'Datos Generales'!T13 -> 0 | U17: =Índice!$G$60*'Datos Generales'!U13 -> 0 | V17: =Índice!$G$60*'Datos Generales'!V13 -> 0 | W17: =Índice!$G$60*'Datos Generales'!W13 -> 0 | X17: =Índice!$G$60*'Datos Generales'!X13 -> 0 | Y17: =Índice!$G$60*'Datos Generales'!Y13 -> 0 | Z17: =Índice!$G$60*'Datos Generales'!Z13 -> 0 | AA17: =Índice!$G$60*'Datos Generales'!AA13 -> 0 | AB17: =Índice!$G$60*'Datos Generales'!AB13 -> 0 | AC17: =Índice!$G$60*'Datos Generales'!AC13 -> 0 | AD17: =Índice!$G$60*'Datos Generales'!AD13 -> 0 | AE17: =Índice!$G$60*'Datos Generales'!AE13 -> 0 | AF17: =Índice!$G$60*'Datos Generales'!AF13 -> 0 | AG17: =Índice!$G$60*'Datos Generales'!AG13 -> 0 | AH17: =Índice!$G$60*'Datos Generales'!AH13 -> 0 | AI17: =Índice!$G$60*'Datos Generales'!AI13 -> 0 | AJ17: =Índice!$G$60*'Datos Generales'!AJ13 -> 0 | AK17: =Índice!$G$60*'Datos Generales'!AK13 -> 0 | AL17: =Índice!$G$60*'Datos Generales'!AL13 -> 0 | AM17: =Índice!$G$60*'Datos Generales'!AM13 -> 0 | AN17: =Índice!$G$60*'Datos Generales'!AN13 -> 0 | AO17: =Índice!$G$60*'Datos Generales'!AO13 -> 0 | AP17: =Índice!$G$60*'Datos Generales'!AP13 -> 0 | AQ17: =Índice!$G$60*'Datos Generales'!AQ13 -> 0
B18: ='Datos Generales'!B14 -> 5.11.41.00 Avance Tenedores De Pólizas | C18: =Índice!$G$60*'Datos Generales'!C14 -> 0 | D18: =Índice!$G$60*'Datos Generales'!D14 -> 0 | E18: =Índice!$G$60*'Datos Generales'!E14 -> 0 | F18: =Índice!$G$60*'Datos Generales'!F14 -> 0 | G18: =Índice!$G$60*'Datos Generales'!G14 -> 0 | H18: =Índice!$G$60*'Datos Generales'!H14 -> 0 | I18: =Índice!$G$60*'Datos Generales'!I14 -> 0 | J18: =Índice!$G$60*'Datos Generales'!J14 -> 0 | K18: =Índice!$G$60*'Datos Generales'!K14 -> 0 | L18: =Índice!$G$60*'Datos Generales'!L14 -> 0 | M18: =Índice!$G$60*'Datos Generales'!M14 -> 0 | N18: =Índice!$G$60*'Datos Generales'!N14 -> 0 | O18: =Índice!$G$60*'Datos Generales'!O14 -> 0 | P18: =Índice!$G$60*'Datos Generales'!P14 -> 0 | Q18: =Índice!$G$60*'Datos Generales'!Q14 -> 0 | R18: =Índice!$G$60*'Datos Generales'!R14 -> 0 | S18: =Índice!$G$60*'Datos Generales'!S14 -> 0 | T18: =Índice!$G$60*'Datos Generales'!T14 -> 0 | U18: =Índice!$G$60*'Datos Generales'!U14 -> 0 | V18: =Índice!$G$60*'Datos Generales'!V14 -> 0 | W18: =Índice!$G$60*'Datos Generales'!W14 -> 0 | X18: =Índice!$G$60*'Datos Generales'!X14 -> 0 | Y18: =Índice!$G$60*'Datos Generales'!Y14 -> 0 | Z18: =Índice!$G$60*'Datos Generales'!Z14 -> 0 | AA18: =Índice!$G$60*'Datos Generales'!AA14 -> 0 | AB18: =Índice!$G$60*'Datos Generales'!AB14 -> 0 | AC18: =Índice!$G$60*'Datos Generales'!AC14 -> 0 | AD18: =Índice!$G$60*'Datos Generales'!AD14 -> 0 | AE18: =Índice!$G$60*'Datos Generales'!AE14 -> 0 | AF18: =Índice!$G$60*'Datos Generales'!AF14 -> 0 | AG18: =Índice!$G$60*'Datos Generales'!AG14 -> 0 | AH18: =Índice!$G$60*'Datos Generales'!AH14 -> 0 | AI18: =Índice!$G$60*'Datos Generales'!AI14 -> 0 | AJ18: =Índice!$G$60*'Datos Generales'!AJ14 -> 0 | AK18: =Índice!$G$60*'Datos Generales'!AK14 -> 0 | AL18: =Índice!$G$60*'Datos Generales'!AL14 -> 0 | AM18: =Índice!$G$60*'Datos Generales'!AM14 -> 0 | AN18: =Índice!$G$60*'Datos Generales'!AN14 -> 0 | AO18: =Índice!$G$60*'Datos Generales'!AO14 -> 0 | AP18: =Índice!$G$60*'Datos Generales'!AP14 -> 0 | AQ18: =Índice!$G$60*'Datos Generales'!AQ14 -> 0
B19: ='Datos Generales'!B15 -> 5.11.42.00 Préstamos Otorgados | C19: =Índice!$G$60*'Datos Generales'!C15 -> 0 | D19: =Índice!$G$60*'Datos Generales'!D15 -> 0 | E19: =Índice!$G$60*'Datos Generales'!E15 -> 0 | F19: =Índice!$G$60*'Datos Generales'!F15 -> 0 | G19: =Índice!$G$60*'Datos Generales'!G15 -> 0 | H19: =Índice!$G$60*'Datos Generales'!H15 -> 0 | I19: =Índice!$G$60*'Datos Generales'!I15 -> 0 | J19: =Índice!$G$60*'Datos Generales'!J15 -> 0 | K19: =Índice!$G$60*'Datos Generales'!K15 -> 0 | L19: =Índice!$G$60*'Datos Generales'!L15 -> 0 | M19: =Índice!$G$60*'Datos Generales'!M15 -> 0 | N19: =Índice!$G$60*'Datos Generales'!N15 -> 0 | O19: =Índice!$G$60*'Datos Generales'!O15 -> 0 | P19: =Índice!$G$60*'Datos Generales'!P15 -> 0 | Q19: =Índice!$G$60*'Datos Generales'!Q15 -> 0 | R19: =Índice!$G$60*'Datos Generales'!R15 -> 0 | S19: =Índice!$G$60*'Datos Generales'!S15 -> 0 | T19: =Índice!$G$60*'Datos Generales'!T15 -> 0 | U19: =Índice!$G$60*'Datos Generales'!U15 -> 0 | V19: =Índice!$G$60*'Datos Generales'!V15 -> 0 | W19: =Índice!$G$60*'Datos Generales'!W15 -> 0 | X19: =Índice!$G$60*'Datos Generales'!X15 -> 0 | Y19: =Índice!$G$60*'Datos Generales'!Y15 -> 0 | Z19: =Índice!$G$60*'Datos Generales'!Z15 -> 0 | AA19: =Índice!$G$60*'Datos Generales'!AA15 -> 0 | AB19: =Índice!$G$60*'Datos Generales'!AB15 -> 0 | AC19: =Índice!$G$60*'Datos Generales'!AC15 -> 0 | AD19: =Índice!$G$60*'Datos Generales'!AD15 -> 0 | AE19: =Índice!$G$60*'Datos Generales'!AE15 -> 0 | AF19: =Índice!$G$60*'Datos Generales'!AF15 -> 0 | AG19: =Índice!$G$60*'Datos Generales'!AG15 -> 0 | AH19: =Índice!$G$60*'Datos Generales'!AH15 -> 0 | AI19: =Índice!$G$60*'Datos Generales'!AI15 -> 0 | AJ19: =Índice!$G$60*'Datos Generales'!AJ15 -> 0 | AK19: =Índice!$G$60*'Datos Generales'!AK15 -> 0 | AL19: =Índice!$G$60*'Datos Generales'!AL15 -> 0 | AM19: =Índice!$G$60*'Datos Generales'!AM15 -> 0 | AN19: =Índice!$G$60*'Datos Generales'!AN15 -> 0 | AO19: =Índice!$G$60*'Datos Generales'!AO15 -> 0 | AP19: =Índice!$G$60*'Datos Generales'!AP15 -> 0 | AQ19: =Índice!$G$60*'Datos Generales'!AQ15 -> 0
B20: ='Datos Generales'!B16 -> 5.11.50.00 Inversiones Seguros Cuenta Única De Inversión (Cui) | C20: =Índice!$G$60*'Datos Generales'!C16 -> 0 | D20: =Índice!$G$60*'Datos Generales'!D16 -> 0 | E20: =Índice!$G$60*'Datos Generales'!E16 -> 0 | F20: =Índice!$G$60*'Datos Generales'!F16 -> 0 | G20: =Índice!$G$60*'Datos Generales'!G16 -> 0 | H20: =Índice!$G$60*'Datos Generales'!H16 -> 0 | I20: =Índice!$G$60*'Datos Generales'!I16 -> 0 | J20: =Índice!$G$60*'Datos Generales'!J16 -> 0 | K20: =Índice!$G$60*'Datos Generales'!K16 -> 0 | L20: =Índice!$G$60*'Datos Generales'!L16 -> 0 | M20: =Índice!$G$60*'Datos Generales'!M16 -> 0 | N20: =Índice!$G$60*'Datos Generales'!N16 -> 0 | O20: =Índice!$G$60*'Datos Generales'!O16 -> 0 | P20: =Índice!$G$60*'Datos Generales'!P16 -> 0 | Q20: =Índice!$G$60*'Datos Generales'!Q16 -> 0 | R20: =Índice!$G$60*'Datos Generales'!R16 -> 0 | S20: =Índice!$G$60*'Datos Generales'!S16 -> 0 | T20: =Índice!$G$60*'Datos Generales'!T16 -> 0 | U20: =Índice!$G$60*'Datos Generales'!U16 -> 0 | V20: =Índice!$G$60*'Datos Generales'!V16 -> 0 | W20: =Índice!$G$60*'Datos Generales'!W16 -> 0 | X20: =Índice!$G$60*'Datos Generales'!X16 -> 0 | Y20: =Índice!$G$60*'Datos Generales'!Y16 -> 0 | Z20: =Índice!$G$60*'Datos Generales'!Z16 -> 0 | AA20: =Índice!$G$60*'Datos Generales'!AA16 -> 0 | AB20: =Índice!$G$60*'Datos Generales'!AB16 -> 0 | AC20: =Índice!$G$60*'Datos Generales'!AC16 -> 0 | AD20: =Índice!$G$60*'Datos Generales'!AD16 -> 0 | AE20: =Índice!$G$60*'Datos Generales'!AE16 -> 0 | AF20: =Índice!$G$60*'Datos Generales'!AF16 -> 0 | AG20: =Índice!$G$60*'Datos Generales'!AG16 -> 0 | AH20: =Índice!$G$60*'Datos Generales'!AH16 -> 0 | AI20: =Índice!$G$60*'Datos Generales'!AI16 -> 0 | AJ20: =Índice!$G$60*'Datos Generales'!AJ16 -> 0 | AK20: =Índice!$G$60*'Datos Generales'!AK16 -> 0 | AL20: =Índice!$G$60*'Datos Generales'!AL16 -> 0 | AM20: =Índice!$G$60*'Datos Generales'!AM16 -> 0 | AN20: =Índice!$G$60*'Datos Generales'!AN16 -> 0 | AO20: =Índice!$G$60*'Datos Generales'!AO16 -> 0 | AP20: =Índice!$G$60*'Datos Generales'!AP16 -> 0 | AQ20: =Índice!$G$60*'Datos Generales'!AQ16 -> 0
B21: ='Datos Generales'!B17 -> 5.11.60.00 Participaciones En Entidades Del Grupo | C21: =Índice!$G$60*'Datos Generales'!C17 -> 0 | D21: =Índice!$G$60*'Datos Generales'!D17 -> 0 | E21: =Índice!$G$60*'Datos Generales'!E17 -> 0 | F21: =Índice!$G$60*'Datos Generales'!F17 -> 0 | G21: =Índice!$G$60*'Datos Generales'!G17 -> 618 | H21: =Índice!$G$60*'Datos Generales'!H17 -> 0 | I21: =Índice!$G$60*'Datos Generales'!I17 -> 0 | J21: =Índice!$G$60*'Datos Generales'!J17 -> 0 | K21: =Índice!$G$60*'Datos Generales'!K17 -> 0 | L21: =Índice!$G$60*'Datos Generales'!L17 -> 1,882,375 | M21: =Índice!$G$60*'Datos Generales'!M17 -> 0 | N21: =Índice!$G$60*'Datos Generales'!N17 -> 0 | O21: =Índice!$G$60*'Datos Generales'!O17 -> 0 | P21: =Índice!$G$60*'Datos Generales'!P17 -> 0 | Q21: =Índice!$G$60*'Datos Generales'!Q17 -> 0 | R21: =Índice!$G$60*'Datos Generales'!R17 -> 0 | S21: =Índice!$G$60*'Datos Generales'!S17 -> 0 | T21: =Índice!$G$60*'Datos Generales'!T17 -> 0 | U21: =Índice!$G$60*'Datos Generales'!U17 -> 0 | V21: =Índice!$G$60*'Datos Generales'!V17 -> 0 | W21: =Índice!$G$60*'Datos Generales'!W17 -> 0 | X21: =Índice!$G$60*'Datos Generales'!X17 -> 0 | Y21: =Índice!$G$60*'Datos Generales'!Y17 -> 0 | Z21: =Índice!$G$60*'Datos Generales'!Z17 -> 0 | AA21: =Índice!$G$60*'Datos Generales'!AA17 -> 0 | AB21: =Índice!$G$60*'Datos Generales'!AB17 -> 0 | AC21: =Índice!$G$60*'Datos Generales'!AC17 -> 0 | AD21: =Índice!$G$60*'Datos Generales'!AD17 -> 0 | AE21: =Índice!$G$60*'Datos Generales'!AE17 -> 0 | AF21: =Índice!$G$60*'Datos Generales'!AF17 -> 0 | AG21: =Índice!$G$60*'Datos Generales'!AG17 -> 0 | AH21: =Índice!$G$60*'Datos Generales'!AH17 -> 0 | AI21: =Índice!$G$60*'Datos Generales'!AI17 -> 0 | AJ21: =Índice!$G$60*'Datos Generales'!AJ17 -> 0 | AK21: =Índice!$G$60*'Datos Generales'!AK17 -> 0 | AL21: =Índice!$G$60*'Datos Generales'!AL17 -> 0 | AM21: =Índice!$G$60*'Datos Generales'!AM17 -> 0 | AN21: =Índice!$G$60*'Datos Generales'!AN17 -> 0 | AO21: =Índice!$G$60*'Datos Generales'!AO17 -> 0 | AP21: =Índice!$G$60*'Datos Generales'!AP17 -> 0 | AQ21: =Índice!$G$60*'Datos Generales'!AQ17 -> 1,882,993
B22: ='Datos Generales'!B18 -> 5.11.61.00 Participaciones En Empresas Subsidiarias (Filiales) | C22: =Índice!$G$60*'Datos Generales'!C18 -> 0 | D22: =Índice!$G$60*'Datos Generales'!D18 -> 0 | E22: =Índice!$G$60*'Datos Generales'!E18 -> 0 | F22: =Índice!$G$60*'Datos Generales'!F18 -> 0 | G22: =Índice!$G$60*'Datos Generales'!G18 -> 618 | H22: =Índice!$G$60*'Datos Generales'!H18 -> 0 | I22: =Índice!$G$60*'Datos Generales'!I18 -> 0 | J22: =Índice!$G$60*'Datos Generales'!J18 -> 0 | K22: =Índice!$G$60*'Datos Generales'!K18 -> 0 | L22: =Índice!$G$60*'Datos Generales'!L18 -> 1,882,375 | M22: =Índice!$G$60*'Datos Generales'!M18 -> 0 | N22: =Índice!$G$60*'Datos Generales'!N18 -> 0 | O22: =Índice!$G$60*'Datos Generales'!O18 -> 0 | P22: =Índice!$G$60*'Datos Generales'!P18 -> 0 | Q22: =Índice!$G$60*'Datos Generales'!Q18 -> 0 | R22: =Índice!$G$60*'Datos Generales'!R18 -> 0 | S22: =Índice!$G$60*'Datos Generales'!S18 -> 0 | T22: =Índice!$G$60*'Datos Generales'!T18 -> 0 | U22: =Índice!$G$60*'Datos Generales'!U18 -> 0 | V22: =Índice!$G$60*'Datos Generales'!V18 -> 0 | W22: =Índice!$G$60*'Datos Generales'!W18 -> 0 | X22: =Índice!$G$60*'Datos Generales'!X18 -> 0 | Y22: =Índice!$G$60*'Datos Generales'!Y18 -> 0 | Z22: =Índice!$G$60*'Datos Generales'!Z18 -> 0 | AA22: =Índice!$G$60*'Datos Generales'!AA18 -> 0 | AB22: =Índice!$G$60*'Datos Generales'!AB18 -> 0 | AC22: =Índice!$G$60*'Datos Generales'!AC18 -> 0 | AD22: =Índice!$G$60*'Datos Generales'!AD18 -> 0 | AE22: =Índice!$G$60*'Datos Generales'!AE18 -> 0 | AF22: =Índice!$G$60*'Datos Generales'!AF18 -> 0 | AG22: =Índice!$G$60*'Datos Generales'!AG18 -> 0 | AH22: =Índice!$G$60*'Datos Generales'!AH18 -> 0 | AI22: =Índice!$G$60*'Datos Generales'!AI18 -> 0 | AJ22: =Índice!$G$60*'Datos Generales'!AJ18 -> 0 | AK22: =Índice!$G$60*'Datos Generales'!AK18 -> 0 | AL22: =Índice!$G$60*'Datos Generales'!AL18 -> 0 | AM22: =Índice!$G$60*'Datos Generales'!AM18 -> 0 | AN22: =Índice!$G$60*'Datos Generales'!AN18 -> 0 | AO22: =Índice!$G$60*'Datos Generales'!AO18 -> 0 | AP22: =Índice!$G$60*'Datos Generales'!AP18 -> 0 | AQ22: =Índice!$G$60*'Datos Generales'!AQ18 -> 1,882,993
B23: ='Datos Generales'!B19 -> 5.11.62.00 Participaciones En Empresas Asociadas (Coligadas) | C23: =Índice!$G$60*'Datos Generales'!C19 -> 0 | D23: =Índice!$G$60*'Datos Generales'!D19 -> 0 | E23: =Índice!$G$60*'Datos Generales'!E19 -> 0 | F23: =Índice!$G$60*'Datos Generales'!F19 -> 0 | G23: =Índice!$G$60*'Datos Generales'!G19 -> 0 | H23: =Índice!$G$60*'Datos Generales'!H19 -> 0 | I23: =Índice!$G$60*'Datos Generales'!I19 -> 0 | J23: =Índice!$G$60*'Datos Generales'!J19 -> 0 | K23: =Índice!$G$60*'Datos Generales'!K19 -> 0 | L23: =Índice!$G$60*'Datos Generales'!L19 -> 0 | M23: =Índice!$G$60*'Datos Generales'!M19 -> 0 | N23: =Índice!$G$60*'Datos Generales'!N19 -> 0 | O23: =Índice!$G$60*'Datos Generales'!O19 -> 0 | P23: =Índice!$G$60*'Datos Generales'!P19 -> 0 | Q23: =Índice!$G$60*'Datos Generales'!Q19 -> 0 | R23: =Índice!$G$60*'Datos Generales'!R19 -> 0 | S23: =Índice!$G$60*'Datos Generales'!S19 -> 0 | T23: =Índice!$G$60*'Datos Generales'!T19 -> 0 | U23: =Índice!$G$60*'Datos Generales'!U19 -> 0 | V23: =Índice!$G$60*'Datos Generales'!V19 -> 0 | W23: =Índice!$G$60*'Datos Generales'!W19 -> 0 | X23: =Índice!$G$60*'Datos Generales'!X19 -> 0 | Y23: =Índice!$G$60*'Datos Generales'!Y19 -> 0 | Z23: =Índice!$G$60*'Datos Generales'!Z19 -> 0 | AA23: =Índice!$G$60*'Datos Generales'!AA19 -> 0 | AB23: =Índice!$G$60*'Datos Generales'!AB19 -> 0 | AC23: =Índice!$G$60*'Datos Generales'!AC19 -> 0 | AD23: =Índice!$G$60*'Datos Generales'!AD19 -> 0 | AE23: =Índice!$G$60*'Datos Generales'!AE19 -> 0 | AF23: =Índice!$G$60*'Datos Generales'!AF19 -> 0 | AG23: =Índice!$G$60*'Datos Generales'!AG19 -> 0 | AH23: =Índice!$G$60*'Datos Generales'!AH19 -> 0 | AI23: =Índice!$G$60*'Datos Generales'!AI19 -> 0 | AJ23: =Índice!$G$60*'Datos Generales'!AJ19 -> 0 | AK23: =Índice!$G$60*'Datos Generales'!AK19 -> 0 | AL23: =Índice!$G$60*'Datos Generales'!AL19 -> 0 | AM23: =Índice!$G$60*'Datos Generales'!AM19 -> 0 | AN23: =Índice!$G$60*'Datos Generales'!AN19 -> 0 | AO23: =Índice!$G$60*'Datos Generales'!AO19 -> 0 | AP23: =Índice!$G$60*'Datos Generales'!AP19 -> 0 | AQ23: =Índice!$G$60*'Datos Generales'!AQ19 -> 0
B24: ='Datos Generales'!B20 -> 5.12.00.00 Total Inversiones Inmobiliarias | C24: =Índice!$G$60*'Datos Generales'!C20 -> 0 | D24: =Índice!$G$60*'Datos Generales'!D20 -> 109,204 | E24: =Índice!$G$60*'Datos Generales'!E20 -> 916,493 | F24: =Índice!$G$60*'Datos Generales'!F20 -> 257,258 | G24: =Índice!$G$60*'Datos Generales'!G20 -> 13,972 | H24: =Índice!$G$60*'Datos Generales'!H20 -> 93,263 | I24: =Índice!$G$60*'Datos Generales'!I20 -> 1,771 | J24: =Índice!$G$60*'Datos Generales'!J20 -> 124,805 | K24: =Índice!$G$60*'Datos Generales'!K20 -> 305 | L24: =Índice!$G$60*'Datos Generales'!L20 -> 154,320 | M24: =Índice!$G$60*'Datos Generales'!M20 -> 29,475 | N24: =Índice!$G$60*'Datos Generales'!N20 -> 0 | O24: =Índice!$G$60*'Datos Generales'!O20 -> 8,093 | P24: =Índice!$G$60*'Datos Generales'!P20 -> 9 | Q24: =Índice!$G$60*'Datos Generales'!Q20 -> 235,935 | R24: =Índice!$G$60*'Datos Generales'!R20 -> 32,651 | S24: =Índice!$G$60*'Datos Generales'!S20 -> 250,637 | T24: =Índice!$G$60*'Datos Generales'!T20 -> 27,039 | U24: =Índice!$G$60*'Datos Generales'!U20 -> 58,156 | V24: =Índice!$G$60*'Datos Generales'!V20 -> 0 | W24: =Índice!$G$60*'Datos Generales'!W20 -> 630 | X24: =Índice!$G$60*'Datos Generales'!X20 -> 398 | Y24: =Índice!$G$60*'Datos Generales'!Y20 -> 223 | Z24: =Índice!$G$60*'Datos Generales'!Z20 -> 32,545 | AA24: =Índice!$G$60*'Datos Generales'!AA20 -> 72,756 | AB24: =Índice!$G$60*'Datos Generales'!AB20 -> 7,935 | AC24: =Índice!$G$60*'Datos Generales'!AC20 -> 28,004 | AD24: =Índice!$G$60*'Datos Generales'!AD20 -> 6,802 | AE24: =Índice!$G$60*'Datos Generales'!AE20 -> 209,679 | AF24: =Índice!$G$60*'Datos Generales'!AF20 -> 5,727 | AG24: =Índice!$G$60*'Datos Generales'!AG20 -> 33 | AH24: =Índice!$G$60*'Datos Generales'!AH20 -> 25,343 | AI24: =Índice!$G$60*'Datos Generales'!AI20 -> 69,710 | AJ24: =Índice!$G$60*'Datos Generales'!AJ20 -> 0 | AK24: =Índice!$G$60*'Datos Generales'!AK20 -> 0 | AL24: =Índice!$G$60*'Datos Generales'!AL20 -> 0 | AM24: =Índice!$G$60*'Datos Generales'!AM20 -> 0 | AN24: =Índice!$G$60*'Datos Generales'!AN20 -> 0 | AO24: =Índice!$G$60*'Datos Generales'!AO20 -> 0 | AP24: =Índice!$G$60*'Datos Generales'!AP20 -> 0 | AQ24: =Índice!$G$60*'Datos Generales'!AQ20 -> 2,773,173
B25: ='Datos Generales'!B21 -> 5.12.10.00 Propiedades De Inversión | C25: =Índice!$G$60*'Datos Generales'!C21 -> 0 | D25: =Índice!$G$60*'Datos Generales'!D21 -> 109,131 | E25: =Índice!$G$60*'Datos Generales'!E21 -> 39,357 | F25: =Índice!$G$60*'Datos Generales'!F21 -> 68,058 | G25: =Índice!$G$60*'Datos Generales'!G21 -> 0 | H25: =Índice!$G$60*'Datos Generales'!H21 -> 43,911 | I25: =Índice!$G$60*'Datos Generales'!I21 -> 0 | J25: =Índice!$G$60*'Datos Generales'!J21 -> 97,318 | K25: =Índice!$G$60*'Datos Generales'!K21 -> 0 | L25: =Índice!$G$60*'Datos Generales'!L21 -> 43,342 | M25: =Índice!$G$60*'Datos Generales'!M21 -> 28,727 | N25: =Índice!$G$60*'Datos Generales'!N21 -> 0 | O25: =Índice!$G$60*'Datos Generales'!O21 -> 0 | P25: =Índice!$G$60*'Datos Generales'!P21 -> 0 | Q25: =Índice!$G$60*'Datos Generales'!Q21 -> 110,907 | R25: =Índice!$G$60*'Datos Generales'!R21 -> 32,110 | S25: =Índice!$G$60*'Datos Generales'!S21 -> 82,284 | T25: =Índice!$G$60*'Datos Generales'!T21 -> 27,039 | U25: =Índice!$G$60*'Datos Generales'!U21 -> 0 | V25: =Índice!$G$60*'Datos Generales'!V21 -> 0 | W25: =Índice!$G$60*'Datos Generales'!W21 -> 0 | X25: =Índice!$G$60*'Datos Generales'!X21 -> 0 | Y25: =Índice!$G$60*'Datos Generales'!Y21 -> 0 | Z25: =Índice!$G$60*'Datos Generales'!Z21 -> 0 | AA25: =Índice!$G$60*'Datos Generales'!AA21 -> 44,035 | AB25: =Índice!$G$60*'Datos Generales'!AB21 -> 0 | AC25: =Índice!$G$60*'Datos Generales'!AC21 -> 26,238 | AD25: =Índice!$G$60*'Datos Generales'!AD21 -> 0 | AE25: =Índice!$G$60*'Datos Generales'!AE21 -> 0 | AF25: =Índice!$G$60*'Datos Generales'!AF21 -> 0 | AG25: =Índice!$G$60*'Datos Generales'!AG21 -> 0 | AH25: =Índice!$G$60*'Datos Generales'!AH21 -> 0 | AI25: =Índice!$G$60*'Datos Generales'!AI21 -> 0 | AJ25: =Índice!$G$60*'Datos Generales'!AJ21 -> 0 | AK25: =Índice!$G$60*'Datos Generales'!AK21 -> 0 | AL25: =Índice!$G$60*'Datos Generales'!AL21 -> 0 | AM25: =Índice!$G$60*'Datos Generales'!AM21 -> 0 | AN25: =Índice!$G$60*'Datos Generales'!AN21 -> 0 | AO25: =Índice!$G$60*'Datos Generales'!AO21 -> 0 | AP25: =Índice!$G$60*'Datos Generales'!AP21 -> 0 | AQ25: =Índice!$G$60*'Datos Generales'!AQ21 -> 752,458
B26: ='Datos Generales'!B22 -> 5.12.20.00 Cuentas Por Cobrar Leasing | C26: =Índice!$G$60*'Datos Generales'!C22 -> 0 | D26: =Índice!$G$60*'Datos Generales'!D22 -> 0 | E26: =Índice!$G$60*'Datos Generales'!E22 -> 0 | F26: =Índice!$G$60*'Datos Generales'!F22 -> 0 | G26: =Índice!$G$60*'Datos Generales'!G22 -> 0 | H26: =Índice!$G$60*'Datos Generales'!H22 -> 0 | I26: =Índice!$G$60*'Datos Generales'!I22 -> 0 | J26: =Índice!$G$60*'Datos Generales'!J22 -> 0 | K26: =Índice!$G$60*'Datos Generales'!K22 -> 0 | L26: =Índice!$G$60*'Datos Generales'!L22 -> 0 | M26: =Índice!$G$60*'Datos Generales'!M22 -> 0 | N26: =Índice!$G$60*'Datos Generales'!N22 -> 0 | O26: =Índice!$G$60*'Datos Generales'!O22 -> 0 | P26: =Índice!$G$60*'Datos Generales'!P22 -> 0 | Q26: =Índice!$G$60*'Datos Generales'!Q22 -> 0 | R26: =Índice!$G$60*'Datos Generales'!R22 -> 0 | S26: =Índice!$G$60*'Datos Generales'!S22 -> 0 | T26: =Índice!$G$60*'Datos Generales'!T22 -> 0 | U26: =Índice!$G$60*'Datos Generales'!U22 -> 0 | V26: =Índice!$G$60*'Datos Generales'!V22 -> 0 | W26: =Índice!$G$60*'Datos Generales'!W22 -> 0 | X26: =Índice!$G$60*'Datos Generales'!X22 -> 0 | Y26: =Índice!$G$60*'Datos Generales'!Y22 -> 0 | Z26: =Índice!$G$60*'Datos Generales'!Z22 -> 0 | AA26: =Índice!$G$60*'Datos Generales'!AA22 -> 0 | AB26: =Índice!$G$60*'Datos Generales'!AB22 -> 0 | AC26: =Índice!$G$60*'Datos Generales'!AC22 -> 0 | AD26: =Índice!$G$60*'Datos Generales'!AD22 -> 0 | AE26: =Índice!$G$60*'Datos Generales'!AE22 -> 0 | AF26: =Índice!$G$60*'Datos Generales'!AF22 -> 0 | AG26: =Índice!$G$60*'Datos Generales'!AG22 -> 0 | AH26: =Índice!$G$60*'Datos Generales'!AH22 -> 0 | AI26: =Índice!$G$60*'Datos Generales'!AI22 -> 57,124 | AJ26: =Índice!$G$60*'Datos Generales'!AJ22 -> 0 | AK26: =Índice!$G$60*'Datos Generales'!AK22 -> 0 | AL26: =Índice!$G$60*'Datos Generales'!AL22 -> 0 | AM26: =Índice!$G$60*'Datos Generales'!AM22 -> 0 | AN26: =Índice!$G$60*'Datos Generales'!AN22 -> 0 | AO26: =Índice!$G$60*'Datos Generales'!AO22 -> 0 | AP26: =Índice!$G$60*'Datos Generales'!AP22 -> 0 | AQ26: =Índice!$G$60*'Datos Generales'!AQ22 -> 57,124
B27: ='Datos Generales'!B23 -> 5.12.30.00 Propiedades, Muebles Y Equipos De Uso Propio | C27: =Índice!$G$60*'Datos Generales'!C23 -> 0 | D27: =Índice!$G$60*'Datos Generales'!D23 -> 73 | E27: =Índice!$G$60*'Datos Generales'!E23 -> 877,136 | F27: =Índice!$G$60*'Datos Generales'!F23 -> 189,200 | G27: =Índice!$G$60*'Datos Generales'!G23 -> 13,972 | H27: =Índice!$G$60*'Datos Generales'!H23 -> 49,351 | I27: =Índice!$G$60*'Datos Generales'!I23 -> 1,771 | J27: =Índice!$G$60*'Datos Generales'!J23 -> 27,487 | K27: =Índice!$G$60*'Datos Generales'!K23 -> 305 | L27: =Índice!$G$60*'Datos Generales'!L23 -> 110,978 | M27: =Índice!$G$60*'Datos Generales'!M23 -> 748 | N27: =Índice!$G$60*'Datos Generales'!N23 -> 0 | O27: =Índice!$G$60*'Datos Generales'!O23 -> 8,093 | P27: =Índice!$G$60*'Datos Generales'!P23 -> 9 | Q27: =Índice!$G$60*'Datos Generales'!Q23 -> 125,028 | R27: =Índice!$G$60*'Datos Generales'!R23 -> 542 | S27: =Índice!$G$60*'Datos Generales'!S23 -> 168,352 | T27: =Índice!$G$60*'Datos Generales'!T23 -> 0 | U27: =Índice!$G$60*'Datos Generales'!U23 -> 58,156 | V27: =Índice!$G$60*'Datos Generales'!V23 -> 0 | W27: =Índice!$G$60*'Datos Generales'!W23 -> 630 | X27: =Índice!$G$60*'Datos Generales'!X23 -> 398 | Y27: =Índice!$G$60*'Datos Generales'!Y23 -> 223 | Z27: =Índice!$G$60*'Datos Generales'!Z23 -> 32,545 | AA27: =Índice!$G$60*'Datos Generales'!AA23 -> 28,722 | AB27: =Índice!$G$60*'Datos Generales'!AB23 -> 7,935 | AC27: =Índice!$G$60*'Datos Generales'!AC23 -> 1,766 | AD27: =Índice!$G$60*'Datos Generales'!AD23 -> 6,802 | AE27: =Índice!$G$60*'Datos Generales'!AE23 -> 209,679 | AF27: =Índice!$G$60*'Datos Generales'!AF23 -> 5,727 | AG27: =Índice!$G$60*'Datos Generales'!AG23 -> 33 | AH27: =Índice!$G$60*'Datos Generales'!AH23 -> 25,343 | AI27: =Índice!$G$60*'Datos Generales'!AI23 -> 12,586 | AJ27: =Índice!$G$60*'Datos Generales'!AJ23 -> 0 | AK27: =Índice!$G$60*'Datos Generales'!AK23 -> 0 | AL27: =Índice!$G$60*'Datos Generales'!AL23 -> 0 | AM27: =Índice!$G$60*'Datos Generales'!AM23 -> 0 | AN27: =Índice!$G$60*'Datos Generales'!AN23 -> 0 | AO27: =Índice!$G$60*'Datos Generales'!AO23 -> 0 | AP27: =Índice!$G$60*'Datos Generales'!AP23 -> 0 | AQ27: =Índice!$G$60*'Datos Generales'!AQ23 -> 1,963,591
B28: ='Datos Generales'!B24 -> 5.12.31.00 Propiedades De Uso Propio | C28: =Índice!$G$60*'Datos Generales'!C24 -> 0 | D28: =Índice!$G$60*'Datos Generales'!D24 -> 0 | E28: =Índice!$G$60*'Datos Generales'!E24 -> 795,834 | F28: =Índice!$G$60*'Datos Generales'!F24 -> 158,583 | G28: =Índice!$G$60*'Datos Generales'!G24 -> 13,854 | H28: =Índice!$G$60*'Datos Generales'!H24 -> 0 | I28: =Índice!$G$60*'Datos Generales'!I24 -> 0 | J28: =Índice!$G$60*'Datos Generales'!J24 -> 24,356 | K28: =Índice!$G$60*'Datos Generales'!K24 -> 0 | L28: =Índice!$G$60*'Datos Generales'!L24 -> 108,518 | M28: =Índice!$G$60*'Datos Generales'!M24 -> 0 | N28: =Índice!$G$60*'Datos Generales'!N24 -> 0 | O28: =Índice!$G$60*'Datos Generales'!O24 -> 0 | P28: =Índice!$G$60*'Datos Generales'!P24 -> 0 | Q28: =Índice!$G$60*'Datos Generales'!Q24 -> 85,136 | R28: =Índice!$G$60*'Datos Generales'!R24 -> 0 | S28: =Índice!$G$60*'Datos Generales'!S24 -> 143,690 | T28: =Índice!$G$60*'Datos Generales'!T24 -> 0 | U28: =Índice!$G$60*'Datos Generales'!U24 -> 35,367 | V28: =Índice!$G$60*'Datos Generales'!V24 -> 0 | W28: =Índice!$G$60*'Datos Generales'!W24 -> 0 | X28: =Índice!$G$60*'Datos Generales'!X24 -> 0 | Y28: =Índice!$G$60*'Datos Generales'!Y24 -> 0 | Z28: =Índice!$G$60*'Datos Generales'!Z24 -> 0 | AA28: =Índice!$G$60*'Datos Generales'!AA24 -> 20,992 | AB28: =Índice!$G$60*'Datos Generales'!AB24 -> 0 | AC28: =Índice!$G$60*'Datos Generales'!AC24 -> 0 | AD28: =Índice!$G$60*'Datos Generales'!AD24 -> 0 | AE28: =Índice!$G$60*'Datos Generales'!AE24 -> 152,721 | AF28: =Índice!$G$60*'Datos Generales'!AF24 -> 0 | AG28: =Índice!$G$60*'Datos Generales'!AG24 -> 0 | AH28: =Índice!$G$60*'Datos Generales'!AH24 -> 0 | AI28: =Índice!$G$60*'Datos Generales'!AI24 -> 0 | AJ28: =Índice!$G$60*'Datos Generales'!AJ24 -> 0 | AK28: =Índice!$G$60*'Datos Generales'!AK24 -> 0 | AL28: =Índice!$G$60*'Datos Generales'!AL24 -> 0 | AM28: =Índice!$G$60*'Datos Generales'!AM24 -> 0 | AN28: =Índice!$G$60*'Datos Generales'!AN24 -> 0 | AO28: =Índice!$G$60*'Datos Generales'!AO24 -> 0 | AP28: =Índice!$G$60*'Datos Generales'!AP24 -> 0 | AQ28: =Índice!$G$60*'Datos Generales'!AQ24 -> 1,539,051
B29: ='Datos Generales'!B25 -> 5.12.32.00 Muebles Y Equipos De Uso Propio | C29: =Índice!$G$60*'Datos Generales'!C25 -> 0 | D29: =Índice!$G$60*'Datos Generales'!D25 -> 73 | E29: =Índice!$G$60*'Datos Generales'!E25 -> 81,301 | F29: =Índice!$G$60*'Datos Generales'!F25 -> 30,618 | G29: =Índice!$G$60*'Datos Generales'!G25 -> 118 | H29: =Índice!$G$60*'Datos Generales'!H25 -> 49,351 | I29: =Índice!$G$60*'Datos Generales'!I25 -> 1,771 | J29: =Índice!$G$60*'Datos Generales'!J25 -> 3,131 | K29: =Índice!$G$60*'Datos Generales'!K25 -> 305 | L29: =Índice!$G$60*'Datos Generales'!L25 -> 2,460 | M29: =Índice!$G$60*'Datos Generales'!M25 -> 748 | N29: =Índice!$G$60*'Datos Generales'!N25 -> 0 | O29: =Índice!$G$60*'Datos Generales'!O25 -> 8,093 | P29: =Índice!$G$60*'Datos Generales'!P25 -> 9 | Q29: =Índice!$G$60*'Datos Generales'!Q25 -> 39,892 | R29: =Índice!$G$60*'Datos Generales'!R25 -> 542 | S29: =Índice!$G$60*'Datos Generales'!S25 -> 24,662 | T29: =Índice!$G$60*'Datos Generales'!T25 -> 0 | U29: =Índice!$G$60*'Datos Generales'!U25 -> 22,789 | V29: =Índice!$G$60*'Datos Generales'!V25 -> 0 | W29: =Índice!$G$60*'Datos Generales'!W25 -> 630 | X29: =Índice!$G$60*'Datos Generales'!X25 -> 398 | Y29: =Índice!$G$60*'Datos Generales'!Y25 -> 223 | Z29: =Índice!$G$60*'Datos Generales'!Z25 -> 32,545 | AA29: =Índice!$G$60*'Datos Generales'!AA25 -> 7,729 | AB29: =Índice!$G$60*'Datos Generales'!AB25 -> 7,935 | AC29: =Índice!$G$60*'Datos Generales'!AC25 -> 1,766 | AD29: =Índice!$G$60*'Datos Generales'!AD25 -> 6,802 | AE29: =Índice!$G$60*'Datos Generales'!AE25 -> 56,958 | AF29: =Índice!$G$60*'Datos Generales'!AF25 -> 5,727 | AG29: =Índice!$G$60*'Datos Generales'!AG25 -> 33 | AH29: =Índice!$G$60*'Datos Generales'!AH25 -> 25,343 | AI29: =Índice!$G$60*'Datos Generales'!AI25 -> 12,586 | AJ29: =Índice!$G$60*'Datos Generales'!AJ25 -> 0 | AK29: =Índice!$G$60*'Datos Generales'!AK25 -> 0 | AL29: =Índice!$G$60*'Datos Generales'!AL25 -> 0 | AM29: =Índice!$G$60*'Datos Generales'!AM25 -> 0 | AN29: =Índice!$G$60*'Datos Generales'!AN25 -> 0 | AO29: =Índice!$G$60*'Datos Generales'!AO25 -> 0 | AP29: =Índice!$G$60*'Datos Generales'!AP25 -> 0 | AQ29: =Índice!$G$60*'Datos Generales'!AQ25 -> 424,540
B30: ='Datos Generales'!B26 -> 5.13.00.00 Activos No Corrientes Mantenidos Para La Venta | C30: =Índice!$G$60*'Datos Generales'!C26 -> 0 | D30: =Índice!$G$60*'Datos Generales'!D26 -> 0 | E30: =Índice!$G$60*'Datos Generales'!E26 -> 0 | F30: =Índice!$G$60*'Datos Generales'!F26 -> 0 | G30: =Índice!$G$60*'Datos Generales'!G26 -> 0 | H30: =Índice!$G$60*'Datos Generales'!H26 -> 0 | I30: =Índice!$G$60*'Datos Generales'!I26 -> 0 | J30: =Índice!$G$60*'Datos Generales'!J26 -> 0 | K30: =Índice!$G$60*'Datos Generales'!K26 -> 0 | L30: =Índice!$G$60*'Datos Generales'!L26 -> 0 | M30: =Índice!$G$60*'Datos Generales'!M26 -> 0 | N30: =Índice!$G$60*'Datos Generales'!N26 -> 0 | O30: =Índice!$G$60*'Datos Generales'!O26 -> 0 | P30: =Índice!$G$60*'Datos Generales'!P26 -> 0 | Q30: =Índice!$G$60*'Datos Generales'!Q26 -> 0 | R30: =Índice!$G$60*'Datos Generales'!R26 -> 0 | S30: =Índice!$G$60*'Datos Generales'!S26 -> 0 | T30: =Índice!$G$60*'Datos Generales'!T26 -> 0 | U30: =Índice!$G$60*'Datos Generales'!U26 -> 0 | V30: =Índice!$G$60*'Datos Generales'!V26 -> 0 | W30: =Índice!$G$60*'Datos Generales'!W26 -> 0 | X30: =Índice!$G$60*'Datos Generales'!X26 -> 0 | Y30: =Índice!$G$60*'Datos Generales'!Y26 -> 0 | Z30: =Índice!$G$60*'Datos Generales'!Z26 -> 0 | AA30: =Índice!$G$60*'Datos Generales'!AA26 -> 0 | AB30: =Índice!$G$60*'Datos Generales'!AB26 -> 0 | AC30: =Índice!$G$60*'Datos Generales'!AC26 -> 0 | AD30: =Índice!$G$60*'Datos Generales'!AD26 -> 0 | AE30: =Índice!$G$60*'Datos Generales'!AE26 -> 0 | AF30: =Índice!$G$60*'Datos Generales'!AF26 -> 0 | AG30: =Índice!$G$60*'Datos Generales'!AG26 -> 0 | AH30: =Índice!$G$60*'Datos Generales'!AH26 -> 0 | AI30: =Índice!$G$60*'Datos Generales'!AI26 -> 0 | AJ30: =Índice!$G$60*'Datos Generales'!AJ26 -> 0 | AK30: =Índice!$G$60*'Datos Generales'!AK26 -> 0 | AL30: =Índice!$G$60*'Datos Generales'!AL26 -> 0 | AM30: =Índice!$G$60*'Datos Generales'!AM26 -> 0 | AN30: =Índice!$G$60*'Datos Generales'!AN26 -> 0 | AO30: =Índice!$G$60*'Datos Generales'!AO26 -> 0 | AP30: =Índice!$G$60*'Datos Generales'!AP26 -> 0 | AQ30: =Índice!$G$60*'Datos Generales'!AQ26 -> 0
B31: ='Datos Generales'!B27 -> 5.14.00.00 Total Cuentas De Seguros | C31: =Índice!$G$60*'Datos Generales'!C27 -> 39,988 | D31: =Índice!$G$60*'Datos Generales'!D27 -> 1,046,846 | E31: =Índice!$G$60*'Datos Generales'!E27 -> 14,928,841 | F31: =Índice!$G$60*'Datos Generales'!F27 -> 532,824 | G31: =Índice!$G$60*'Datos Generales'!G27 -> 348,332 | H31: =Índice!$G$60*'Datos Generales'!H27 -> 6,705,720 | I31: =Índice!$G$60*'Datos Generales'!I27 -> 457,504 | J31: =Índice!$G$60*'Datos Generales'!J27 -> 2,588,269 | K31: =Índice!$G$60*'Datos Generales'!K27 -> 1,056,475 | L31: =Índice!$G$60*'Datos Generales'!L27 -> 1,123,262 | M31: =Índice!$G$60*'Datos Generales'!M27 -> 4,209,536 | N31: =Índice!$G$60*'Datos Generales'!N27 -> 1,682,660 | O31: =Índice!$G$60*'Datos Generales'!O27 -> 4,294,801 | P31: =Índice!$G$60*'Datos Generales'!P27 -> 229,239 | Q31: =Índice!$G$60*'Datos Generales'!Q27 -> 11,912,023 | R31: =Índice!$G$60*'Datos Generales'!R27 -> 819,594 | S31: =Índice!$G$60*'Datos Generales'!S27 -> 8,180,748 | T31: =Índice!$G$60*'Datos Generales'!T27 -> 0 | U31: =Índice!$G$60*'Datos Generales'!U27 -> 18,152,153 | V31: =Índice!$G$60*'Datos Generales'!V27 -> 14,142 | W31: =Índice!$G$60*'Datos Generales'!W27 -> 4,747,797 | X31: =Índice!$G$60*'Datos Generales'!X27 -> 556,951 | Y31: =Índice!$G$60*'Datos Generales'!Y27 -> 1,906,140 | Z31: =Índice!$G$60*'Datos Generales'!Z27 -> 3,158,519 | AA31: =Índice!$G$60*'Datos Generales'!AA27 -> 3,164,311 | AB31: =Índice!$G$60*'Datos Generales'!AB27 -> 447,529 | AC31: =Índice!$G$60*'Datos Generales'!AC27 -> 11,496,438 | AD31: =Índice!$G$60*'Datos Generales'!AD27 -> 3,880,928 | AE31: =Índice!$G$60*'Datos Generales'!AE27 -> 20,423,797 | AF31: =Índice!$G$60*'Datos Generales'!AF27 -> 2,769,527 | AG31: =Índice!$G$60*'Datos Generales'!AG27 -> 1,244,813 | AH31: =Índice!$G$60*'Datos Generales'!AH27 -> 4,303,859 | AI31: =Índice!$G$60*'Datos Generales'!AI27 -> 3,228,373 | AJ31: =Índice!$G$60*'Datos Generales'!AJ27 -> 0 | AK31: =Índice!$G$60*'Datos Generales'!AK27 -> 0 | AL31: =Índice!$G$60*'Datos Generales'!AL27 -> 0 | AM31: =Índice!$G$60*'Datos Generales'!AM27 -> 0 | AN31: =Índice!$G$60*'Datos Generales'!AN27 -> 0 | AO31: =Índice!$G$60*'Datos Generales'!AO27 -> 0 | AP31: =Índice!$G$60*'Datos Generales'!AP27 -> 0 | AQ31: =Índice!$G$60*'Datos Generales'!AQ27 -> 139,651,940
B32: ='Datos Generales'!B28 -> 5.14.10.00 Cuentas Por Cobrar De Seguros | C32: =Índice!$G$60*'Datos Generales'!C28 -> 39,988 | D32: =Índice!$G$60*'Datos Generales'!D28 -> 178,095 | E32: =Índice!$G$60*'Datos Generales'!E28 -> 11,974,077 | F32: =Índice!$G$60*'Datos Generales'!F28 -> 523,620 | G32: =Índice!$G$60*'Datos Generales'!G28 -> 45,371 | H32: =Índice!$G$60*'Datos Generales'!H28 -> 2,611,687 | I32: =Índice!$G$60*'Datos Generales'!I28 -> 246,780 | J32: =Índice!$G$60*'Datos Generales'!J28 -> 2,175,809 | K32: =Índice!$G$60*'Datos Generales'!K28 -> 389,955 | L32: =Índice!$G$60*'Datos Generales'!L28 -> 371,943 | M32: =Índice!$G$60*'Datos Generales'!M28 -> 833,132 | N32: =Índice!$G$60*'Datos Generales'!N28 -> 689,705 | O32: =Índice!$G$60*'Datos Generales'!O28 -> 1,675,369 | P32: =Índice!$G$60*'Datos Generales'!P28 -> 3,518 | Q32: =Índice!$G$60*'Datos Generales'!Q28 -> 7,458,252 | R32: =Índice!$G$60*'Datos Generales'!R28 -> 31,617 | S32: =Índice!$G$60*'Datos Generales'!S28 -> 5,504,292 | T32: =Índice!$G$60*'Datos Generales'!T28 -> 0 | U32: =Índice!$G$60*'Datos Generales'!U28 -> 2,766,845 | V32: =Índice!$G$60*'Datos Generales'!V28 -> 12,812 | W32: =Índice!$G$60*'Datos Generales'!W28 -> 1,394,829 | X32: =Índice!$G$60*'Datos Generales'!X28 -> 126,585 | Y32: =Índice!$G$60*'Datos Generales'!Y28 -> 553,389 | Z32: =Índice!$G$60*'Datos Generales'!Z28 -> 2,183,737 | AA32: =Índice!$G$60*'Datos Generales'!AA28 -> 1,723,985 | AB32: =Índice!$G$60*'Datos Generales'!AB28 -> 110,239 | AC32: =Índice!$G$60*'Datos Generales'!AC28 -> 2,141,864 | AD32: =Índice!$G$60*'Datos Generales'!AD28 -> 738,901 | AE32: =Índice!$G$60*'Datos Generales'!AE28 -> 8,213,405 | AF32: =Índice!$G$60*'Datos Generales'!AF28 -> 519,000 | AG32: =Índice!$G$60*'Datos Generales'!AG28 -> 1,214,817 | AH32: =Índice!$G$60*'Datos Generales'!AH28 -> 2,791,640 | AI32: =Índice!$G$60*'Datos Generales'!AI28 -> 2,270,693 | AJ32: =Índice!$G$60*'Datos Generales'!AJ28 -> 0 | AK32: =Índice!$G$60*'Datos Generales'!AK28 -> 0 | AL32: =Índice!$G$60*'Datos Generales'!AL28 -> 0 | AM32: =Índice!$G$60*'Datos Generales'!AM28 -> 0 | AN32: =Índice!$G$60*'Datos Generales'!AN28 -> 0 | AO32: =Índice!$G$60*'Datos Generales'!AO28 -> 0 | AP32: =Índice!$G$60*'Datos Generales'!AP28 -> 0 | AQ32: =Índice!$G$60*'Datos Generales'!AQ28 -> 61,515,951
B33: ='Datos Generales'!B29 -> 5.14.11.00 Cuentas Por Cobrar Asegurados | C33: =Índice!$G$60*'Datos Generales'!C29 -> 39,988 | D33: =Índice!$G$60*'Datos Generales'!D29 -> 104,775 | E33: =Índice!$G$60*'Datos Generales'!E29 -> 11,409,371 | F33: =Índice!$G$60*'Datos Generales'!F29 -> 499,895 | G33: =Índice!$G$60*'Datos Generales'!G29 -> 966 | H33: =Índice!$G$60*'Datos Generales'!H29 -> 2,079,822 | I33: =Índice!$G$60*'Datos Generales'!I29 -> 208,354 | J33: =Índice!$G$60*'Datos Generales'!J29 -> 1,781,635 | K33: =Índice!$G$60*'Datos Generales'!K29 -> 273,533 | L33: =Índice!$G$60*'Datos Generales'!L29 -> 140,473 | M33: =Índice!$G$60*'Datos Generales'!M29 -> 790,600 | N33: =Índice!$G$60*'Datos Generales'!N29 -> 421,843 | O33: =Índice!$G$60*'Datos Generales'!O29 -> 1,384,995 | P33: =Índice!$G$60*'Datos Generales'!P29 -> 101 | Q33: =Índice!$G$60*'Datos Generales'!Q29 -> 6,444,828 | R33: =Índice!$G$60*'Datos Generales'!R29 -> 2,344 | S33: =Índice!$G$60*'Datos Generales'!S29 -> 4,002,073 | T33: =Índice!$G$60*'Datos Generales'!T29 -> 0 | U33: =Índice!$G$60*'Datos Generales'!U29 -> 2,459,271 | V33: =Índice!$G$60*'Datos Generales'!V29 -> 7,036 | W33: =Índice!$G$60*'Datos Generales'!W29 -> 1,196,650 | X33: =Índice!$G$60*'Datos Generales'!X29 -> 93,310 | Y33: =Índice!$G$60*'Datos Generales'!Y29 -> 416,557 | Z33: =Índice!$G$60*'Datos Generales'!Z29 -> 1,990,668 | AA33: =Índice!$G$60*'Datos Generales'!AA29 -> 1,615,135 | AB33: =Índice!$G$60*'Datos Generales'!AB29 -> 70,246 | AC33: =Índice!$G$60*'Datos Generales'!AC29 -> 932,701 | AD33: =Índice!$G$60*'Datos Generales'!AD29 -> 632,325 | AE33: =Índice!$G$60*'Datos Generales'!AE29 -> 5,847,250 | AF33: =Índice!$G$60*'Datos Generales'!AF29 -> 338,938 | AG33: =Índice!$G$60*'Datos Generales'!AG29 -> 1,127,764 | AH33: =Índice!$G$60*'Datos Generales'!AH29 -> 2,471,864 | AI33: =Índice!$G$60*'Datos Generales'!AI29 -> 2,180,795 | AJ33: =Índice!$G$60*'Datos Generales'!AJ29 -> 0 | AK33: =Índice!$G$60*'Datos Generales'!AK29 -> 0 | AL33: =Índice!$G$60*'Datos Generales'!AL29 -> 0 | AM33: =Índice!$G$60*'Datos Generales'!AM29 -> 0 | AN33: =Índice!$G$60*'Datos Generales'!AN29 -> 0 | AO33: =Índice!$G$60*'Datos Generales'!AO29 -> 0 | AP33: =Índice!$G$60*'Datos Generales'!AP29 -> 0 | AQ33: =Índice!$G$60*'Datos Generales'!AQ29 -> 50,966,106
B34: ='Datos Generales'!B30 -> 5.14.12.00 Deudores Por Operaciones De Reaseguro | C34: =Índice!$G$60*'Datos Generales'!C30 -> 0 | D34: =Índice!$G$60*'Datos Generales'!D30 -> 73,320 | E34: =Índice!$G$60*'Datos Generales'!E30 -> 229,895 | F34: =Índice!$G$60*'Datos Generales'!F30 -> 18,442 | G34: =Índice!$G$60*'Datos Generales'!G30 -> 44,405 | H34: =Índice!$G$60*'Datos Generales'!H30 -> 248,383 | I34: =Índice!$G$60*'Datos Generales'!I30 -> 30,636 | J34: =Índice!$G$60*'Datos Generales'!J30 -> 93,889 | K34: =Índice!$G$60*'Datos Generales'!K30 -> 58,876 | L34: =Índice!$G$60*'Datos Generales'!L30 -> 231,470 | M34: =Índice!$G$60*'Datos Generales'!M30 -> 20,626 | N34: =Índice!$G$60*'Datos Generales'!N30 -> 17,162 | O34: =Índice!$G$60*'Datos Generales'!O30 -> 236,843 | P34: =Índice!$G$60*'Datos Generales'!P30 -> 3,416 | Q34: =Índice!$G$60*'Datos Generales'!Q30 -> 364,727 | R34: =Índice!$G$60*'Datos Generales'!R30 -> 28,796 | S34: =Índice!$G$60*'Datos Generales'!S30 -> 351,263 | T34: =Índice!$G$60*'Datos Generales'!T30 -> 0 | U34: =Índice!$G$60*'Datos Generales'!U30 -> 96,707 | V34: =Índice!$G$60*'Datos Generales'!V30 -> 5,776 | W34: =Índice!$G$60*'Datos Generales'!W30 -> 110,710 | X34: =Índice!$G$60*'Datos Generales'!X30 -> 33,275 | Y34: =Índice!$G$60*'Datos Generales'!Y30 -> 132,896 | Z34: =Índice!$G$60*'Datos Generales'!Z30 -> 116,481 | AA34: =Índice!$G$60*'Datos Generales'!AA30 -> 89,180 | AB34: =Índice!$G$60*'Datos Generales'!AB30 -> 39,993 | AC34: =Índice!$G$60*'Datos Generales'!AC30 -> 600,706 | AD34: =Índice!$G$60*'Datos Generales'!AD30 -> 58,900 | AE34: =Índice!$G$60*'Datos Generales'!AE30 -> 821,143 | AF34: =Índice!$G$60*'Datos Generales'!AF30 -> 70,805 | AG34: =Índice!$G$60*'Datos Generales'!AG30 -> 638 | AH34: =Índice!$G$60*'Datos Generales'!AH30 -> 169,664 | AI34: =Índice!$G$60*'Datos Generales'!AI30 -> 78,185 | AJ34: =Índice!$G$60*'Datos Generales'!AJ30 -> 0 | AK34: =Índice!$G$60*'Datos Generales'!AK30 -> 0 | AL34: =Índice!$G$60*'Datos Generales'!AL30 -> 0 | AM34: =Índice!$G$60*'Datos Generales'!AM30 -> 0 | AN34: =Índice!$G$60*'Datos Generales'!AN30 -> 0 | AO34: =Índice!$G$60*'Datos Generales'!AO30 -> 0 | AP34: =Índice!$G$60*'Datos Generales'!AP30 -> 0 | AQ34: =Índice!$G$60*'Datos Generales'!AQ30 -> 4,477,208
B35: ='Datos Generales'!B31 -> 5.14.12.10 Siniestros Por Cobrar A Reaseguradores | C35: =Índice!$G$60*'Datos Generales'!C31 -> 0 | D35: =Índice!$G$60*'Datos Generales'!D31 -> 72,236 | E35: =Índice!$G$60*'Datos Generales'!E31 -> 221,794 | F35: =Índice!$G$60*'Datos Generales'!F31 -> 7,237 | G35: =Índice!$G$60*'Datos Generales'!G31 -> 44,405 | H35: =Índice!$G$60*'Datos Generales'!H31 -> 241,083 | I35: =Índice!$G$60*'Datos Generales'!I31 -> 30,636 | J35: =Índice!$G$60*'Datos Generales'!J31 -> 69,765 | K35: =Índice!$G$60*'Datos Generales'!K31 -> 58,876 | L35: =Índice!$G$60*'Datos Generales'!L31 -> 213,463 | M35: =Índice!$G$60*'Datos Generales'!M31 -> 5,306 | N35: =Índice!$G$60*'Datos Generales'!N31 -> 2,053 | O35: =Índice!$G$60*'Datos Generales'!O31 -> 194,385 | P35: =Índice!$G$60*'Datos Generales'!P31 -> 2,939 | Q35: =Índice!$G$60*'Datos Generales'!Q31 -> 267,354 | R35: =Índice!$G$60*'Datos Generales'!R31 -> 27,419 | S35: =Índice!$G$60*'Datos Generales'!S31 -> 344,332 | T35: =Índice!$G$60*'Datos Generales'!T31 -> 0 | U35: =Índice!$G$60*'Datos Generales'!U31 -> 96,707 | V35: =Índice!$G$60*'Datos Generales'!V31 -> 0 | W35: =Índice!$G$60*'Datos Generales'!W31 -> 57,013 | X35: =Índice!$G$60*'Datos Generales'!X31 -> 29,168 | Y35: =Índice!$G$60*'Datos Generales'!Y31 -> 132,896 | Z35: =Índice!$G$60*'Datos Generales'!Z31 -> 99,165 | AA35: =Índice!$G$60*'Datos Generales'!AA31 -> 80,213 | AB35: =Índice!$G$60*'Datos Generales'!AB31 -> 37,618 | AC35: =Índice!$G$60*'Datos Generales'!AC31 -> 574,107 | AD35: =Índice!$G$60*'Datos Generales'!AD31 -> 34,009 | AE35: =Índice!$G$60*'Datos Generales'!AE31 -> 372,056 | AF35: =Índice!$G$60*'Datos Generales'!AF31 -> 70,805 | AG35: =Índice!$G$60*'Datos Generales'!AG31 -> 638 | AH35: =Índice!$G$60*'Datos Generales'!AH31 -> 169,664 | AI35: =Índice!$G$60*'Datos Generales'!AI31 -> 51,199 | AJ35: =Índice!$G$60*'Datos Generales'!AJ31 -> 0 | AK35: =Índice!$G$60*'Datos Generales'!AK31 -> 0 | AL35: =Índice!$G$60*'Datos Generales'!AL31 -> 0 | AM35: =Índice!$G$60*'Datos Generales'!AM31 -> 0 | AN35: =Índice!$G$60*'Datos Generales'!AN31 -> 0 | AO35: =Índice!$G$60*'Datos Generales'!AO31 -> 0 | AP35: =Índice!$G$60*'Datos Generales'!AP31 -> 0 | AQ35: =Índice!$G$60*'Datos Generales'!AQ31 -> 3,608,542
B36: ='Datos Generales'!B32 -> 5.14.12.20 Primas Por Cobrar Reaseguro Aceptado | C36: =Índice!$G$60*'Datos Generales'!C32 -> 0 | D36: =Índice!$G$60*'Datos Generales'!D32 -> 0 | E36: =Índice!$G$60*'Datos Generales'!E32 -> 8,100 | F36: =Índice!$G$60*'Datos Generales'!F32 -> 0 | G36: =Índice!$G$60*'Datos Generales'!G32 -> 0 | H36: =Índice!$G$60*'Datos Generales'!H32 -> 7,300 | I36: =Índice!$G$60*'Datos Generales'!I32 -> 0 | J36: =Índice!$G$60*'Datos Generales'!J32 -> 0 | K36: =Índice!$G$60*'Datos Generales'!K32 -> 0 | L36: =Índice!$G$60*'Datos Generales'!L32 -> 0 | M36: =Índice!$G$60*'Datos Generales'!M32 -> 0 | N36: =Índice!$G$60*'Datos Generales'!N32 -> 0 | O36: =Índice!$G$60*'Datos Generales'!O32 -> 0 | P36: =Índice!$G$60*'Datos Generales'!P32 -> 0 | Q36: =Índice!$G$60*'Datos Generales'!Q32 -> 0 | R36: =Índice!$G$60*'Datos Generales'!R32 -> 0 | S36: =Índice!$G$60*'Datos Generales'!S32 -> 0 | T36: =Índice!$G$60*'Datos Generales'!T32 -> 0 | U36: =Índice!$G$60*'Datos Generales'!U32 -> 0 | V36: =Índice!$G$60*'Datos Generales'!V32 -> 0 | W36: =Índice!$G$60*'Datos Generales'!W32 -> 0 | X36: =Índice!$G$60*'Datos Generales'!X32 -> 0 | Y36: =Índice!$G$60*'Datos Generales'!Y32 -> 0 | Z36: =Índice!$G$60*'Datos Generales'!Z32 -> 0 | AA36: =Índice!$G$60*'Datos Generales'!AA32 -> 0 | AB36: =Índice!$G$60*'Datos Generales'!AB32 -> 0 | AC36: =Índice!$G$60*'Datos Generales'!AC32 -> 26,599 | AD36: =Índice!$G$60*'Datos Generales'!AD32 -> 24,891 | AE36: =Índice!$G$60*'Datos Generales'!AE32 -> 424,978 | AF36: =Índice!$G$60*'Datos Generales'!AF32 -> 0 | AG36: =Índice!$G$60*'Datos Generales'!AG32 -> 0 | AH36: =Índice!$G$60*'Datos Generales'!AH32 -> 0 | AI36: =Índice!$G$60*'Datos Generales'!AI32 -> 0 | AJ36: =Índice!$G$60*'Datos Generales'!AJ32 -> 0 | AK36: =Índice!$G$60*'Datos Generales'!AK32 -> 0 | AL36: =Índice!$G$60*'Datos Generales'!AL32 -> 0 | AM36: =Índice!$G$60*'Datos Generales'!AM32 -> 0 | AN36: =Índice!$G$60*'Datos Generales'!AN32 -> 0 | AO36: =Índice!$G$60*'Datos Generales'!AO32 -> 0 | AP36: =Índice!$G$60*'Datos Generales'!AP32 -> 0 | AQ36: =Índice!$G$60*'Datos Generales'!AQ32 -> 491,869
B37: ='Datos Generales'!B33 -> 5.14.12.30 Activo Por Reaseguro No Proporcional | C37: =Índice!$G$60*'Datos Generales'!C33 -> 0 | D37: =Índice!$G$60*'Datos Generales'!D33 -> 0 | E37: =Índice!$G$60*'Datos Generales'!E33 -> 0 | F37: =Índice!$G$60*'Datos Generales'!F33 -> 11,205 | G37: =Índice!$G$60*'Datos Generales'!G33 -> 0 | H37: =Índice!$G$60*'Datos Generales'!H33 -> 0 | I37: =Índice!$G$60*'Datos Generales'!I33 -> 0 | J37: =Índice!$G$60*'Datos Generales'!J33 -> 7,252 | K37: =Índice!$G$60*'Datos Generales'!K33 -> 0 | L37: =Índice!$G$60*'Datos Generales'!L33 -> 18,007 | M37: =Índice!$G$60*'Datos Generales'!M33 -> 0 | N37: =Índice!$G$60*'Datos Generales'!N33 -> 15,110 | O37: =Índice!$G$60*'Datos Generales'!O33 -> 0 | P37: =Índice!$G$60*'Datos Generales'!P33 -> 0 | Q37: =Índice!$G$60*'Datos Generales'!Q33 -> 32,577 | R37: =Índice!$G$60*'Datos Generales'!R33 -> 1,024 | S37: =Índice!$G$60*'Datos Generales'!S33 -> 0 | T37: =Índice!$G$60*'Datos Generales'!T33 -> 0 | U37: =Índice!$G$60*'Datos Generales'!U33 -> 0 | V37: =Índice!$G$60*'Datos Generales'!V33 -> 5,776 | W37: =Índice!$G$60*'Datos Generales'!W33 -> 6,115 | X37: =Índice!$G$60*'Datos Generales'!X33 -> 4,108 | Y37: =Índice!$G$60*'Datos Generales'!Y33 -> 0 | Z37: =Índice!$G$60*'Datos Generales'!Z33 -> 0 | AA37: =Índice!$G$60*'Datos Generales'!AA33 -> 5,353 | AB37: =Índice!$G$60*'Datos Generales'!AB33 -> 2,375 | AC37: =Índice!$G$60*'Datos Generales'!AC33 -> 0 | AD37: =Índice!$G$60*'Datos Generales'!AD33 -> 0 | AE37: =Índice!$G$60*'Datos Generales'!AE33 -> 8,954 | AF37: =Índice!$G$60*'Datos Generales'!AF33 -> 0 | AG37: =Índice!$G$60*'Datos Generales'!AG33 -> 0 | AH37: =Índice!$G$60*'Datos Generales'!AH33 -> 0 | AI37: =Índice!$G$60*'Datos Generales'!AI33 -> 26,986 | AJ37: =Índice!$G$60*'Datos Generales'!AJ33 -> 0 | AK37: =Índice!$G$60*'Datos Generales'!AK33 -> 0 | AL37: =Índice!$G$60*'Datos Generales'!AL33 -> 0 | AM37: =Índice!$G$60*'Datos Generales'!AM33 -> 0 | AN37: =Índice!$G$60*'Datos Generales'!AN33 -> 0 | AO37: =Índice!$G$60*'Datos Generales'!AO33 -> 0 | AP37: =Índice!$G$60*'Datos Generales'!AP33 -> 0 | AQ37: =Índice!$G$60*'Datos Generales'!AQ33 -> 144,842
B38: ='Datos Generales'!B34 -> 5.14.12.40 Otros Deudores Por Operaciones De Reaseguro | C38: =Índice!$G$60*'Datos Generales'!C34 -> 0 | D38: =Índice!$G$60*'Datos Generales'!D34 -> 1,084 | E38: =Índice!$G$60*'Datos Generales'!E34 -> 0 | F38: =Índice!$G$60*'Datos Generales'!F34 -> 0 | G38: =Índice!$G$60*'Datos Generales'!G34 -> 0 | H38: =Índice!$G$60*'Datos Generales'!H34 -> 0 | I38: =Índice!$G$60*'Datos Generales'!I34 -> 0 | J38: =Índice!$G$60*'Datos Generales'!J34 -> 16,872 | K38: =Índice!$G$60*'Datos Generales'!K34 -> 0 | L38: =Índice!$G$60*'Datos Generales'!L34 -> 0 | M38: =Índice!$G$60*'Datos Generales'!M34 -> 15,319 | N38: =Índice!$G$60*'Datos Generales'!N34 -> 0 | O38: =Índice!$G$60*'Datos Generales'!O34 -> 42,457 | P38: =Índice!$G$60*'Datos Generales'!P34 -> 477 | Q38: =Índice!$G$60*'Datos Generales'!Q34 -> 64,796 | R38: =Índice!$G$60*'Datos Generales'!R34 -> 353 | S38: =Índice!$G$60*'Datos Generales'!S34 -> 6,931 | T38: =Índice!$G$60*'Datos Generales'!T34 -> 0 | U38: =Índice!$G$60*'Datos Generales'!U34 -> 0 | V38: =Índice!$G$60*'Datos Generales'!V34 -> 0 | W38: =Índice!$G$60*'Datos Generales'!W34 -> 47,582 | X38: =Índice!$G$60*'Datos Generales'!X34 -> 0 | Y38: =Índice!$G$60*'Datos Generales'!Y34 -> 0 | Z38: =Índice!$G$60*'Datos Generales'!Z34 -> 17,316 | AA38: =Índice!$G$60*'Datos Generales'!AA34 -> 3,613 | AB38: =Índice!$G$60*'Datos Generales'!AB34 -> 0 | AC38: =Índice!$G$60*'Datos Generales'!AC34 -> 0 | AD38: =Índice!$G$60*'Datos Generales'!AD34 -> 0 | AE38: =Índice!$G$60*'Datos Generales'!AE34 -> 15,154 | AF38: =Índice!$G$60*'Datos Generales'!AF34 -> 0 | AG38: =Índice!$G$60*'Datos Generales'!AG34 -> 0 | AH38: =Índice!$G$60*'Datos Generales'!AH34 -> 0 | AI38: =Índice!$G$60*'Datos Generales'!AI34 -> 0 | AJ38: =Índice!$G$60*'Datos Generales'!AJ34 -> 0 | AK38: =Índice!$G$60*'Datos Generales'!AK34 -> 0 | AL38: =Índice!$G$60*'Datos Generales'!AL34 -> 0 | AM38: =Índice!$G$60*'Datos Generales'!AM34 -> 0 | AN38: =Índice!$G$60*'Datos Generales'!AN34 -> 0 | AO38: =Índice!$G$60*'Datos Generales'!AO34 -> 0 | AP38: =Índice!$G$60*'Datos Generales'!AP34 -> 0 | AQ38: =Índice!$G$60*'Datos Generales'!AQ34 -> 231,955
B39: ='Datos Generales'!B35 -> 5.14.13.00 Deudores Por Operaciones De Coaseguro | C39: =Índice!$G$60*'Datos Generales'!C35 -> 0 | D39: =Índice!$G$60*'Datos Generales'!D35 -> 0 | E39: =Índice!$G$60*'Datos Generales'!E35 -> 26,078 | F39: =Índice!$G$60*'Datos Generales'!F35 -> 387 | G39: =Índice!$G$60*'Datos Generales'!G35 -> 0 | H39: =Índice!$G$60*'Datos Generales'!H35 -> 153,693 | I39: =Índice!$G$60*'Datos Generales'!I35 -> 0 | J39: =Índice!$G$60*'Datos Generales'!J35 -> 58,848 | K39: =Índice!$G$60*'Datos Generales'!K35 -> 57,545 | L39: =Índice!$G$60*'Datos Generales'!L35 -> 0 | M39: =Índice!$G$60*'Datos Generales'!M35 -> 21,906 | N39: =Índice!$G$60*'Datos Generales'!N35 -> 250,699 | O39: =Índice!$G$60*'Datos Generales'!O35 -> 53,531 | P39: =Índice!$G$60*'Datos Generales'!P35 -> 0 | Q39: =Índice!$G$60*'Datos Generales'!Q35 -> 61,273 | R39: =Índice!$G$60*'Datos Generales'!R35 -> 0 | S39: =Índice!$G$60*'Datos Generales'!S35 -> 68,394 | T39: =Índice!$G$60*'Datos Generales'!T35 -> 0 | U39: =Índice!$G$60*'Datos Generales'!U35 -> 196,362 | V39: =Índice!$G$60*'Datos Generales'!V35 -> 0 | W39: =Índice!$G$60*'Datos Generales'!W35 -> 86,121 | X39: =Índice!$G$60*'Datos Generales'!X35 -> 0 | Y39: =Índice!$G$60*'Datos Generales'!Y35 -> 0 | Z39: =Índice!$G$60*'Datos Generales'!Z35 -> 15,783 | AA39: =Índice!$G$60*'Datos Generales'!AA35 -> 7,023 | AB39: =Índice!$G$60*'Datos Generales'!AB35 -> 0 | AC39: =Índice!$G$60*'Datos Generales'!AC35 -> 590,670 | AD39: =Índice!$G$60*'Datos Generales'!AD35 -> 47,676 | AE39: =Índice!$G$60*'Datos Generales'!AE35 -> 494,222 | AF39: =Índice!$G$60*'Datos Generales'!AF35 -> 87,949 | AG39: =Índice!$G$60*'Datos Generales'!AG35 -> 0 | AH39: =Índice!$G$60*'Datos Generales'!AH35 -> 3,810 | AI39: =Índice!$G$60*'Datos Generales'!AI35 -> 11,713 | AJ39: =Índice!$G$60*'Datos Generales'!AJ35 -> 0 | AK39: =Índice!$G$60*'Datos Generales'!AK35 -> 0 | AL39: =Índice!$G$60*'Datos Generales'!AL35 -> 0 | AM39: =Índice!$G$60*'Datos Generales'!AM35 -> 0 | AN39: =Índice!$G$60*'Datos Generales'!AN35 -> 0 | AO39: =Índice!$G$60*'Datos Generales'!AO35 -> 0 | AP39: =Índice!$G$60*'Datos Generales'!AP35 -> 0 | AQ39: =Índice!$G$60*'Datos Generales'!AQ35 -> 2,293,684
B40: ='Datos Generales'!B36 -> 5.14.13.10 Primas Por Cobrar Por Operaciones De Coaseguro | C40: =Índice!$G$60*'Datos Generales'!C36 -> 0 | D40: =Índice!$G$60*'Datos Generales'!D36 -> 0 | E40: =Índice!$G$60*'Datos Generales'!E36 -> 20,826 | F40: =Índice!$G$60*'Datos Generales'!F36 -> 387 | G40: =Índice!$G$60*'Datos Generales'!G36 -> 0 | H40: =Índice!$G$60*'Datos Generales'!H36 -> 140,276 | I40: =Índice!$G$60*'Datos Generales'!I36 -> 0 | J40: =Índice!$G$60*'Datos Generales'!J36 -> 58,848 | K40: =Índice!$G$60*'Datos Generales'!K36 -> 57,375 | L40: =Índice!$G$60*'Datos Generales'!L36 -> 0 | M40: =Índice!$G$60*'Datos Generales'!M36 -> 14,238 | N40: =Índice!$G$60*'Datos Generales'!N36 -> 250,637 | O40: =Índice!$G$60*'Datos Generales'!O36 -> 53,531 | P40: =Índice!$G$60*'Datos Generales'!P36 -> 0 | Q40: =Índice!$G$60*'Datos Generales'!Q36 -> 60,365 | R40: =Índice!$G$60*'Datos Generales'!R36 -> 0 | S40: =Índice!$G$60*'Datos Generales'!S36 -> 36,120 | T40: =Índice!$G$60*'Datos Generales'!T36 -> 0 | U40: =Índice!$G$60*'Datos Generales'!U36 -> 173,444 | V40: =Índice!$G$60*'Datos Generales'!V36 -> 0 | W40: =Índice!$G$60*'Datos Generales'!W36 -> 82,262 | X40: =Índice!$G$60*'Datos Generales'!X36 -> 0 | Y40: =Índice!$G$60*'Datos Generales'!Y36 -> 0 | Z40: =Índice!$G$60*'Datos Generales'!Z36 -> 14,524 | AA40: =Índice!$G$60*'Datos Generales'!AA36 -> 7,023 | AB40: =Índice!$G$60*'Datos Generales'!AB36 -> 0 | AC40: =Índice!$G$60*'Datos Generales'!AC36 -> 565,895 | AD40: =Índice!$G$60*'Datos Generales'!AD36 -> 47,636 | AE40: =Índice!$G$60*'Datos Generales'!AE36 -> 446,072 | AF40: =Índice!$G$60*'Datos Generales'!AF36 -> 83,044 | AG40: =Índice!$G$60*'Datos Generales'!AG36 -> 0 | AH40: =Índice!$G$60*'Datos Generales'!AH36 -> 878 | AI40: =Índice!$G$60*'Datos Generales'!AI36 -> 0 | AJ40: =Índice!$G$60*'Datos Generales'!AJ36 -> 0 | AK40: =Índice!$G$60*'Datos Generales'!AK36 -> 0 | AL40: =Índice!$G$60*'Datos Generales'!AL36 -> 0 | AM40: =Índice!$G$60*'Datos Generales'!AM36 -> 0 | AN40: =Índice!$G$60*'Datos Generales'!AN36 -> 0 | AO40: =Índice!$G$60*'Datos Generales'!AO36 -> 0 | AP40: =Índice!$G$60*'Datos Generales'!AP36 -> 0 | AQ40: =Índice!$G$60*'Datos Generales'!AQ36 -> 2,113,383
B41: ='Datos Generales'!B37 -> 5.14.13.20 Siniestros Por Cobrar Por Operaciones De Coaseguro | C41: =Índice!$G$60*'Datos Generales'!C37 -> 0 | D41: =Índice!$G$60*'Datos Generales'!D37 -> 0 | E41: =Índice!$G$60*'Datos Generales'!E37 -> 5,252 | F41: =Índice!$G$60*'Datos Generales'!F37 -> 0 | G41: =Índice!$G$60*'Datos Generales'!G37 -> 0 | H41: =Índice!$G$60*'Datos Generales'!H37 -> 13,417 | I41: =Índice!$G$60*'Datos Generales'!I37 -> 0 | J41: =Índice!$G$60*'Datos Generales'!J37 -> 0 | K41: =Índice!$G$60*'Datos Generales'!K37 -> 170 | L41: =Índice!$G$60*'Datos Generales'!L37 -> 0 | M41: =Índice!$G$60*'Datos Generales'!M37 -> 7,668 | N41: =Índice!$G$60*'Datos Generales'!N37 -> 62 | O41: =Índice!$G$60*'Datos Generales'!O37 -> 0 | P41: =Índice!$G$60*'Datos Generales'!P37 -> 0 | Q41: =Índice!$G$60*'Datos Generales'!Q37 -> 908 | R41: =Índice!$G$60*'Datos Generales'!R37 -> 0 | S41: =Índice!$G$60*'Datos Generales'!S37 -> 32,273 | T41: =Índice!$G$60*'Datos Generales'!T37 -> 0 | U41: =Índice!$G$60*'Datos Generales'!U37 -> 22,918 | V41: =Índice!$G$60*'Datos Generales'!V37 -> 0 | W41: =Índice!$G$60*'Datos Generales'!W37 -> 3,859 | X41: =Índice!$G$60*'Datos Generales'!X37 -> 0 | Y41: =Índice!$G$60*'Datos Generales'!Y37 -> 0 | Z41: =Índice!$G$60*'Datos Generales'!Z37 -> 1,259 | AA41: =Índice!$G$60*'Datos Generales'!AA37 -> 0 | AB41: =Índice!$G$60*'Datos Generales'!AB37 -> 0 | AC41: =Índice!$G$60*'Datos Generales'!AC37 -> 24,775 | AD41: =Índice!$G$60*'Datos Generales'!AD37 -> 40 | AE41: =Índice!$G$60*'Datos Generales'!AE37 -> 48,151 | AF41: =Índice!$G$60*'Datos Generales'!AF37 -> 4,905 | AG41: =Índice!$G$60*'Datos Generales'!AG37 -> 0 | AH41: =Índice!$G$60*'Datos Generales'!AH37 -> 2,932 | AI41: =Índice!$G$60*'Datos Generales'!AI37 -> 11,713 | AJ41: =Índice!$G$60*'Datos Generales'!AJ37 -> 0 | AK41: =Índice!$G$60*'Datos Generales'!AK37 -> 0 | AL41: =Índice!$G$60*'Datos Generales'!AL37 -> 0 | AM41: =Índice!$G$60*'Datos Generales'!AM37 -> 0 | AN41: =Índice!$G$60*'Datos Generales'!AN37 -> 0 | AO41: =Índice!$G$60*'Datos Generales'!AO37 -> 0 | AP41: =Índice!$G$60*'Datos Generales'!AP37 -> 0 | AQ41: =Índice!$G$60*'Datos Generales'!AQ37 -> 180,301
B42: ='Datos Generales'!B38 -> 5.14.20.00 Participación Del Reaseguro En Las Reservas Técnicas | C42: =Índice!$G$60*'Datos Generales'!C38 -> 0 | D42: =Índice!$G$60*'Datos Generales'!D38 -> 868,751 | E42: =Índice!$G$60*'Datos Generales'!E38 -> 2,954,764 | F42: =Índice!$G$60*'Datos Generales'!F38 -> 9,205 | G42: =Índice!$G$60*'Datos Generales'!G38 -> 302,961 | H42: =Índice!$G$60*'Datos Generales'!H38 -> 4,094,033 | I42: =Índice!$G$60*'Datos Generales'!I38 -> 210,724 | J42: =Índice!$G$60*'Datos Generales'!J38 -> 412,460 | K42: =Índice!$G$60*'Datos Generales'!K38 -> 666,520 | L42: =Índice!$G$60*'Datos Generales'!L38 -> 751,319 | M42: =Índice!$G$60*'Datos Generales'!M38 -> 3,376,404 | N42: =Índice!$G$60*'Datos Generales'!N38 -> 992,955 | O42: =Índice!$G$60*'Datos Generales'!O38 -> 2,619,432 | P42: =Índice!$G$60*'Datos Generales'!P38 -> 225,721 | Q42: =Índice!$G$60*'Datos Generales'!Q38 -> 4,453,771 | R42: =Índice!$G$60*'Datos Generales'!R38 -> 787,976 | S42: =Índice!$G$60*'Datos Generales'!S38 -> 2,676,456 | T42: =Índice!$G$60*'Datos Generales'!T38 -> 0 | U42: =Índice!$G$60*'Datos Generales'!U38 -> 15,385,308 | V42: =Índice!$G$60*'Datos Generales'!V38 -> 1,330 | W42: =Índice!$G$60*'Datos Generales'!W38 -> 3,352,968 | X42: =Índice!$G$60*'Datos Generales'!X38 -> 430,366 | Y42: =Índice!$G$60*'Datos Generales'!Y38 -> 1,352,750 | Z42: =Índice!$G$60*'Datos Generales'!Z38 -> 974,781 | AA42: =Índice!$G$60*'Datos Generales'!AA38 -> 1,440,327 | AB42: =Índice!$G$60*'Datos Generales'!AB38 -> 337,291 | AC42: =Índice!$G$60*'Datos Generales'!AC38 -> 9,354,574 | AD42: =Índice!$G$60*'Datos Generales'!AD38 -> 3,142,027 | AE42: =Índice!$G$60*'Datos Generales'!AE38 -> 12,210,392 | AF42: =Índice!$G$60*'Datos Generales'!AF38 -> 2,250,526 | AG42: =Índice!$G$60*'Datos Generales'!AG38 -> 29,997 | AH42: =Índice!$G$60*'Datos Generales'!AH38 -> 1,512,219 | AI42: =Índice!$G$60*'Datos Generales'!AI38 -> 957,680 | AJ42: =Índice!$G$60*'Datos Generales'!AJ38 -> 0 | AK42: =Índice!$G$60*'Datos Generales'!AK38 -> 0 | AL42: =Índice!$G$60*'Datos Generales'!AL38 -> 0 | AM42: =Índice!$G$60*'Datos Generales'!AM38 -> 0 | AN42: =Índice!$G$60*'Datos Generales'!AN38 -> 0 | AO42: =Índice!$G$60*'Datos Generales'!AO38 -> 0 | AP42: =Índice!$G$60*'Datos Generales'!AP38 -> 0 | AQ42: =Índice!$G$60*'Datos Generales'!AQ38 -> 78,135,988
B43: ='Datos Generales'!B39 -> 5.14.21.00 Participación Del Reaseguro En La Reserva Riesgos En Curso | C43: =Índice!$G$60*'Datos Generales'!C39 -> 0 | D43: =Índice!$G$60*'Datos Generales'!D39 -> 440,094 | E43: =Índice!$G$60*'Datos Generales'!E39 -> 1,456,519 | F43: =Índice!$G$60*'Datos Generales'!F39 -> 1,511 | G43: =Índice!$G$60*'Datos Generales'!G39 -> 110,146 | H43: =Índice!$G$60*'Datos Generales'!H39 -> 2,300,375 | I43: =Índice!$G$60*'Datos Generales'!I39 -> 95,053 | J43: =Índice!$G$60*'Datos Generales'!J39 -> 227,711 | K43: =Índice!$G$60*'Datos Generales'!K39 -> 397,012 | L43: =Índice!$G$60*'Datos Generales'!L39 -> 255,386 | M43: =Índice!$G$60*'Datos Generales'!M39 -> 1,353,937 | N43: =Índice!$G$60*'Datos Generales'!N39 -> 811,316 | O43: =Índice!$G$60*'Datos Generales'!O39 -> 1,290,786 | P43: =Índice!$G$60*'Datos Generales'!P39 -> 17,424 | Q43: =Índice!$G$60*'Datos Generales'!Q39 -> 1,392,112 | R43: =Índice!$G$60*'Datos Generales'!R39 -> 69,357 | S43: =Índice!$G$60*'Datos Generales'!S39 -> 626,016 | T43: =Índice!$G$60*'Datos Generales'!T39 -> 0 | U43: =Índice!$G$60*'Datos Generales'!U39 -> 3,530,804 | V43: =Índice!$G$60*'Datos Generales'!V39 -> 42 | W43: =Índice!$G$60*'Datos Generales'!W39 -> 1,737,892 | X43: =Índice!$G$60*'Datos Generales'!X39 -> 347,433 | Y43: =Índice!$G$60*'Datos Generales'!Y39 -> 467,479 | Z43: =Índice!$G$60*'Datos Generales'!Z39 -> 585,783 | AA43: =Índice!$G$60*'Datos Generales'!AA39 -> 930,549 | AB43: =Índice!$G$60*'Datos Generales'!AB39 -> 63,176 | AC43: =Índice!$G$60*'Datos Generales'!AC39 -> 3,062,568 | AD43: =Índice!$G$60*'Datos Generales'!AD39 -> 1,423,617 | AE43: =Índice!$G$60*'Datos Generales'!AE39 -> 4,558,180 | AF43: =Índice!$G$60*'Datos Generales'!AF39 -> 1,088,787 | AG43: =Índice!$G$60*'Datos Generales'!AG39 -> 15,241 | AH43: =Índice!$G$60*'Datos Generales'!AH39 -> 512,740 | AI43: =Índice!$G$60*'Datos Generales'!AI39 -> 889,941 | AJ43: =Índice!$G$60*'Datos Generales'!AJ39 -> 0 | AK43: =Índice!$G$60*'Datos Generales'!AK39 -> 0 | AL43: =Índice!$G$60*'Datos Generales'!AL39 -> 0 | AM43: =Índice!$G$60*'Datos Generales'!AM39 -> 0 | AN43: =Índice!$G$60*'Datos Generales'!AN39 -> 0 | AO43: =Índice!$G$60*'Datos Generales'!AO39 -> 0 | AP43: =Índice!$G$60*'Datos Generales'!AP39 -> 0 | AQ43: =Índice!$G$60*'Datos Generales'!AQ39 -> 30,058,987
B44: ='Datos Generales'!B40 -> 5.14.22.00 Participación Del Reaseguro En Las Reservas Seguros Previsionales | C44: =Índice!$G$60*'Datos Generales'!C40 -> 0 | D44: =Índice!$G$60*'Datos Generales'!D40 -> 0 | E44: =Índice!$G$60*'Datos Generales'!E40 -> 0 | F44: =Índice!$G$60*'Datos Generales'!F40 -> 0 | G44: =Índice!$G$60*'Datos Generales'!G40 -> 0 | H44: =Índice!$G$60*'Datos Generales'!H40 -> 0 | I44: =Índice!$G$60*'Datos Generales'!I40 -> 0 | J44: =Índice!$G$60*'Datos Generales'!J40 -> 0 | K44: =Índice!$G$60*'Datos Generales'!K40 -> 0 | L44: =Índice!$G$60*'Datos Generales'!L40 -> 0 | M44: =Índice!$G$60*'Datos Generales'!M40 -> 0 | N44: =Índice!$G$60*'Datos Generales'!N40 -> 0 | O44: =Índice!$G$60*'Datos Generales'!O40 -> 0 | P44: =Índice!$G$60*'Datos Generales'!P40 -> 0 | Q44: =Índice!$G$60*'Datos Generales'!Q40 -> 0 | R44: =Índice!$G$60*'Datos Generales'!R40 -> 0 | S44: =Índice!$G$60*'Datos Generales'!S40 -> 0 | T44: =Índice!$G$60*'Datos Generales'!T40 -> 0 | U44: =Índice!$G$60*'Datos Generales'!U40 -> 0 | V44: =Índice!$G$60*'Datos Generales'!V40 -> 0 | W44: =Índice!$G$60*'Datos Generales'!W40 -> 0 | X44: =Índice!$G$60*'Datos Generales'!X40 -> 0 | Y44: =Índice!$G$60*'Datos Generales'!Y40 -> 0 | Z44: =Índice!$G$60*'Datos Generales'!Z40 -> 0 | AA44: =Índice!$G$60*'Datos Generales'!AA40 -> 0 | AB44: =Índice!$G$60*'Datos Generales'!AB40 -> 0 | AC44: =Índice!$G$60*'Datos Generales'!AC40 -> 0 | AD44: =Índice!$G$60*'Datos Generales'!AD40 -> 0 | AE44: =Índice!$G$60*'Datos Generales'!AE40 -> 0 | AF44: =Índice!$G$60*'Datos Generales'!AF40 -> 0 | AG44: =Índice!$G$60*'Datos Generales'!AG40 -> 0 | AH44: =Índice!$G$60*'Datos Generales'!AH40 -> 0 | AI44: =Índice!$G$60*'Datos Generales'!AI40 -> 0 | AJ44: =Índice!$G$60*'Datos Generales'!AJ40 -> 0 | AK44: =Índice!$G$60*'Datos Generales'!AK40 -> 0 | AL44: =Índice!$G$60*'Datos Generales'!AL40 -> 0 | AM44: =Índice!$G$60*'Datos Generales'!AM40 -> 0 | AN44: =Índice!$G$60*'Datos Generales'!AN40 -> 0 | AO44: =Índice!$G$60*'Datos Generales'!AO40 -> 0 | AP44: =Índice!$G$60*'Datos Generales'!AP40 -> 0 | AQ44: =Índice!$G$60*'Datos Generales'!AQ40 -> 0
B45: ='Datos Generales'!B41 -> 5.14.22.10 Participación Del Reaseguro En La Reserva Rentas Vitalicias | C45: =Índice!$G$60*'Datos Generales'!C41 -> 0 | D45: =Índice!$G$60*'Datos Generales'!D41 -> 0 | E45: =Índice!$G$60*'Datos Generales'!E41 -> 0 | F45: =Índice!$G$60*'Datos Generales'!F41 -> 0 | G45: =Índice!$G$60*'Datos Generales'!G41 -> 0 | H45: =Índice!$G$60*'Datos Generales'!H41 -> 0 | I45: =Índice!$G$60*'Datos Generales'!I41 -> 0 | J45: =Índice!$G$60*'Datos Generales'!J41 -> 0 | K45: =Índice!$G$60*'Datos Generales'!K41 -> 0 | L45: =Índice!$G$60*'Datos Generales'!L41 -> 0 | M45: =Índice!$G$60*'Datos Generales'!M41 -> 0 | N45: =Índice!$G$60*'Datos Generales'!N41 -> 0 | O45: =Índice!$G$60*'Datos Generales'!O41 -> 0 | P45: =Índice!$G$60*'Datos Generales'!P41 -> 0 | Q45: =Índice!$G$60*'Datos Generales'!Q41 -> 0 | R45: =Índice!$G$60*'Datos Generales'!R41 -> 0 | S45: =Índice!$G$60*'Datos Generales'!S41 -> 0 | T45: =Índice!$G$60*'Datos Generales'!T41 -> 0 | U45: =Índice!$G$60*'Datos Generales'!U41 -> 0 | V45: =Índice!$G$60*'Datos Generales'!V41 -> 0 | W45: =Índice!$G$60*'Datos Generales'!W41 -> 0 | X45: =Índice!$G$60*'Datos Generales'!X41 -> 0 | Y45: =Índice!$G$60*'Datos Generales'!Y41 -> 0 | Z45: =Índice!$G$60*'Datos Generales'!Z41 -> 0 | AA45: =Índice!$G$60*'Datos Generales'!AA41 -> 0 | AB45: =Índice!$G$60*'Datos Generales'!AB41 -> 0 | AC45: =Índice!$G$60*'Datos Generales'!AC41 -> 0 | AD45: =Índice!$G$60*'Datos Generales'!AD41 -> 0 | AE45: =Índice!$G$60*'Datos Generales'!AE41 -> 0 | AF45: =Índice!$G$60*'Datos Generales'!AF41 -> 0 | AG45: =Índice!$G$60*'Datos Generales'!AG41 -> 0 | AH45: =Índice!$G$60*'Datos Generales'!AH41 -> 0 | AI45: =Índice!$G$60*'Datos Generales'!AI41 -> 0 | AJ45: =Índice!$G$60*'Datos Generales'!AJ41 -> 0 | AK45: =Índice!$G$60*'Datos Generales'!AK41 -> 0 | AL45: =Índice!$G$60*'Datos Generales'!AL41 -> 0 | AM45: =Índice!$G$60*'Datos Generales'!AM41 -> 0 | AN45: =Índice!$G$60*'Datos Generales'!AN41 -> 0 | AO45: =Índice!$G$60*'Datos Generales'!AO41 -> 0 | AP45: =Índice!$G$60*'Datos Generales'!AP41 -> 0 | AQ45: =Índice!$G$60*'Datos Generales'!AQ41 -> 0
B46: ='Datos Generales'!B42 -> 5.14.22.20 Participación Del Reaseguro En La Reserva Seguro Invalidez Y Sobrevivencia | C46: =Índice!$G$60*'Datos Generales'!C42 -> 0 | D46: =Índice!$G$60*'Datos Generales'!D42 -> 0 | E46: =Índice!$G$60*'Datos Generales'!E42 -> 0 | F46: =Índice!$G$60*'Datos Generales'!F42 -> 0 | G46: =Índice!$G$60*'Datos Generales'!G42 -> 0 | H46: =Índice!$G$60*'Datos Generales'!H42 -> 0 | I46: =Índice!$G$60*'Datos Generales'!I42 -> 0 | J46: =Índice!$G$60*'Datos Generales'!J42 -> 0 | K46: =Índice!$G$60*'Datos Generales'!K42 -> 0 | L46: =Índice!$G$60*'Datos Generales'!L42 -> 0 | M46: =Índice!$G$60*'Datos Generales'!M42 -> 0 | N46: =Índice!$G$60*'Datos Generales'!N42 -> 0 | O46: =Índice!$G$60*'Datos Generales'!O42 -> 0 | P46: =Índice!$G$60*'Datos Generales'!P42 -> 0 | Q46: =Índice!$G$60*'Datos Generales'!Q42 -> 0 | R46: =Índice!$G$60*'Datos Generales'!R42 -> 0 | S46: =Índice!$G$60*'Datos Generales'!S42 -> 0 | T46: =Índice!$G$60*'Datos Generales'!T42 -> 0 | U46: =Índice!$G$60*'Datos Generales'!U42 -> 0 | V46: =Índice!$G$60*'Datos Generales'!V42 -> 0 | W46: =Índice!$G$60*'Datos Generales'!W42 -> 0 | X46: =Índice!$G$60*'Datos Generales'!X42 -> 0 | Y46: =Índice!$G$60*'Datos Generales'!Y42 -> 0 | Z46: =Índice!$G$60*'Datos Generales'!Z42 -> 0 | AA46: =Índice!$G$60*'Datos Generales'!AA42 -> 0 | AB46: =Índice!$G$60*'Datos Generales'!AB42 -> 0 | AC46: =Índice!$G$60*'Datos Generales'!AC42 -> 0 | AD46: =Índice!$G$60*'Datos Generales'!AD42 -> 0 | AE46: =Índice!$G$60*'Datos Generales'!AE42 -> 0 | AF46: =Índice!$G$60*'Datos Generales'!AF42 -> 0 | AG46: =Índice!$G$60*'Datos Generales'!AG42 -> 0 | AH46: =Índice!$G$60*'Datos Generales'!AH42 -> 0 | AI46: =Índice!$G$60*'Datos Generales'!AI42 -> 0 | AJ46: =Índice!$G$60*'Datos Generales'!AJ42 -> 0 | AK46: =Índice!$G$60*'Datos Generales'!AK42 -> 0 | AL46: =Índice!$G$60*'Datos Generales'!AL42 -> 0 | AM46: =Índice!$G$60*'Datos Generales'!AM42 -> 0 | AN46: =Índice!$G$60*'Datos Generales'!AN42 -> 0 | AO46: =Índice!$G$60*'Datos Generales'!AO42 -> 0 | AP46: =Índice!$G$60*'Datos Generales'!AP42 -> 0 | AQ46: =Índice!$G$60*'Datos Generales'!AQ42 -> 0
B47: ='Datos Generales'!B43 -> 5.14.23.00 Participación Del Reaseguro En La Reserva Matemática | C47: =Índice!$G$60*'Datos Generales'!C43 -> 0 | D47: =Índice!$G$60*'Datos Generales'!D43 -> 0 | E47: =Índice!$G$60*'Datos Generales'!E43 -> 0 | F47: =Índice!$G$60*'Datos Generales'!F43 -> 0 | G47: =Índice!$G$60*'Datos Generales'!G43 -> 0 | H47: =Índice!$G$60*'Datos Generales'!H43 -> 0 | I47: =Índice!$G$60*'Datos Generales'!I43 -> 0 | J47: =Índice!$G$60*'Datos Generales'!J43 -> 0 | K47: =Índice!$G$60*'Datos Generales'!K43 -> 0 | L47: =Índice!$G$60*'Datos Generales'!L43 -> 0 | M47: =Índice!$G$60*'Datos Generales'!M43 -> 0 | N47: =Índice!$G$60*'Datos Generales'!N43 -> 0 | O47: =Índice!$G$60*'Datos Generales'!O43 -> 0 | P47: =Índice!$G$60*'Datos Generales'!P43 -> 0 | Q47: =Índice!$G$60*'Datos Generales'!Q43 -> 0 | R47: =Índice!$G$60*'Datos Generales'!R43 -> 0 | S47: =Índice!$G$60*'Datos Generales'!S43 -> 0 | T47: =Índice!$G$60*'Datos Generales'!T43 -> 0 | U47: =Índice!$G$60*'Datos Generales'!U43 -> 0 | V47: =Índice!$G$60*'Datos Generales'!V43 -> 0 | W47: =Índice!$G$60*'Datos Generales'!W43 -> 0 | X47: =Índice!$G$60*'Datos Generales'!X43 -> 0 | Y47: =Índice!$G$60*'Datos Generales'!Y43 -> 0 | Z47: =Índice!$G$60*'Datos Generales'!Z43 -> 0 | AA47: =Índice!$G$60*'Datos Generales'!AA43 -> 0 | AB47: =Índice!$G$60*'Datos Generales'!AB43 -> 0 | AC47: =Índice!$G$60*'Datos Generales'!AC43 -> 0 | AD47: =Índice!$G$60*'Datos Generales'!AD43 -> 0 | AE47: =Índice!$G$60*'Datos Generales'!AE43 -> 0 | AF47: =Índice!$G$60*'Datos Generales'!AF43 -> 0 | AG47: =Índice!$G$60*'Datos Generales'!AG43 -> 0 | AH47: =Índice!$G$60*'Datos Generales'!AH43 -> 0 | AI47: =Índice!$G$60*'Datos Generales'!AI43 -> 0 | AJ47: =Índice!$G$60*'Datos Generales'!AJ43 -> 0 | AK47: =Índice!$G$60*'Datos Generales'!AK43 -> 0 | AL47: =Índice!$G$60*'Datos Generales'!AL43 -> 0 | AM47: =Índice!$G$60*'Datos Generales'!AM43 -> 0 | AN47: =Índice!$G$60*'Datos Generales'!AN43 -> 0 | AO47: =Índice!$G$60*'Datos Generales'!AO43 -> 0 | AP47: =Índice!$G$60*'Datos Generales'!AP43 -> 0 | AQ47: =Índice!$G$60*'Datos Generales'!AQ43 -> 0
B48: ='Datos Generales'!B44 -> 5.14.24.00 Participación Del Reaseguro En La Reserva Rentas Privadas | C48: =Índice!$G$60*'Datos Generales'!C44 -> 0 | D48: =Índice!$G$60*'Datos Generales'!D44 -> 0 | E48: =Índice!$G$60*'Datos Generales'!E44 -> 0 | F48: =Índice!$G$60*'Datos Generales'!F44 -> 0 | G48: =Índice!$G$60*'Datos Generales'!G44 -> 0 | H48: =Índice!$G$60*'Datos Generales'!H44 -> 0 | I48: =Índice!$G$60*'Datos Generales'!I44 -> 0 | J48: =Índice!$G$60*'Datos Generales'!J44 -> 0 | K48: =Índice!$G$60*'Datos Generales'!K44 -> 0 | L48: =Índice!$G$60*'Datos Generales'!L44 -> 0 | M48: =Índice!$G$60*'Datos Generales'!M44 -> 0 | N48: =Índice!$G$60*'Datos Generales'!N44 -> 0 | O48: =Índice!$G$60*'Datos Generales'!O44 -> 0 | P48: =Índice!$G$60*'Datos Generales'!P44 -> 0 | Q48: =Índice!$G$60*'Datos Generales'!Q44 -> 0 | R48: =Índice!$G$60*'Datos Generales'!R44 -> 0 | S48: =Índice!$G$60*'Datos Generales'!S44 -> 0 | T48: =Índice!$G$60*'Datos Generales'!T44 -> 0 | U48: =Índice!$G$60*'Datos Generales'!U44 -> 0 | V48: =Índice!$G$60*'Datos Generales'!V44 -> 0 | W48: =Índice!$G$60*'Datos Generales'!W44 -> 0 | X48: =Índice!$G$60*'Datos Generales'!X44 -> 0 | Y48: =Índice!$G$60*'Datos Generales'!Y44 -> 0 | Z48: =Índice!$G$60*'Datos Generales'!Z44 -> 0 | AA48: =Índice!$G$60*'Datos Generales'!AA44 -> 0 | AB48: =Índice!$G$60*'Datos Generales'!AB44 -> 0 | AC48: =Índice!$G$60*'Datos Generales'!AC44 -> 0 | AD48: =Índice!$G$60*'Datos Generales'!AD44 -> 0 | AE48: =Índice!$G$60*'Datos Generales'!AE44 -> 0 | AF48: =Índice!$G$60*'Datos Generales'!AF44 -> 0 | AG48: =Índice!$G$60*'Datos Generales'!AG44 -> 0 | AH48: =Índice!$G$60*'Datos Generales'!AH44 -> 0 | AI48: =Índice!$G$60*'Datos Generales'!AI44 -> 0 | AJ48: =Índice!$G$60*'Datos Generales'!AJ44 -> 0 | AK48: =Índice!$G$60*'Datos Generales'!AK44 -> 0 | AL48: =Índice!$G$60*'Datos Generales'!AL44 -> 0 | AM48: =Índice!$G$60*'Datos Generales'!AM44 -> 0 | AN48: =Índice!$G$60*'Datos Generales'!AN44 -> 0 | AO48: =Índice!$G$60*'Datos Generales'!AO44 -> 0 | AP48: =Índice!$G$60*'Datos Generales'!AP44 -> 0 | AQ48: =Índice!$G$60*'Datos Generales'!AQ44 -> 0
B49: ='Datos Generales'!B45 -> 5.14.25.00 Participación Del Reaseguro En La Reserva De Siniestros | C49: =Índice!$G$60*'Datos Generales'!C45 -> 0 | D49: =Índice!$G$60*'Datos Generales'!D45 -> 428,657 | E49: =Índice!$G$60*'Datos Generales'!E45 -> 1,498,246 | F49: =Índice!$G$60*'Datos Generales'!F45 -> 2,725 | G49: =Índice!$G$60*'Datos Generales'!G45 -> 153,601 | H49: =Índice!$G$60*'Datos Generales'!H45 -> 1,789,293 | I49: =Índice!$G$60*'Datos Generales'!I45 -> 115,671 | J49: =Índice!$G$60*'Datos Generales'!J45 -> 156,669 | K49: =Índice!$G$60*'Datos Generales'!K45 -> 269,105 | L49: =Índice!$G$60*'Datos Generales'!L45 -> 480,007 | M49: =Índice!$G$60*'Datos Generales'!M45 -> 2,016,461 | N49: =Índice!$G$60*'Datos Generales'!N45 -> 181,639 | O49: =Índice!$G$60*'Datos Generales'!O45 -> 1,327,977 | P49: =Índice!$G$60*'Datos Generales'!P45 -> 191,503 | Q49: =Índice!$G$60*'Datos Generales'!Q45 -> 3,030,815 | R49: =Índice!$G$60*'Datos Generales'!R45 -> 579,502 | S49: =Índice!$G$60*'Datos Generales'!S45 -> 895,138 | T49: =Índice!$G$60*'Datos Generales'!T45 -> 0 | U49: =Índice!$G$60*'Datos Generales'!U45 -> 11,850,516 | V49: =Índice!$G$60*'Datos Generales'!V45 -> 1,270 | W49: =Índice!$G$60*'Datos Generales'!W45 -> 1,615,076 | X49: =Índice!$G$60*'Datos Generales'!X45 -> 82,616 | Y49: =Índice!$G$60*'Datos Generales'!Y45 -> 885,271 | Z49: =Índice!$G$60*'Datos Generales'!Z45 -> 388,998 | AA49: =Índice!$G$60*'Datos Generales'!AA45 -> 501,311 | AB49: =Índice!$G$60*'Datos Generales'!AB45 -> 274,115 | AC49: =Índice!$G$60*'Datos Generales'!AC45 -> 6,019,742 | AD49: =Índice!$G$60*'Datos Generales'!AD45 -> 1,718,410 | AE49: =Índice!$G$60*'Datos Generales'!AE45 -> 6,942,301 | AF49: =Índice!$G$60*'Datos Generales'!AF45 -> 1,161,739 | AG49: =Índice!$G$60*'Datos Generales'!AG45 -> 14,756 | AH49: =Índice!$G$60*'Datos Generales'!AH45 -> 997,903 | AI49: =Índice!$G$60*'Datos Generales'!AI45 -> 67,739 | AJ49: =Índice!$G$60*'Datos Generales'!AJ45 -> 0 | AK49: =Índice!$G$60*'Datos Generales'!AK45 -> 0 | AL49: =Índice!$G$60*'Datos Generales'!AL45 -> 0 | AM49: =Índice!$G$60*'Datos Generales'!AM45 -> 0 | AN49: =Índice!$G$60*'Datos Generales'!AN45 -> 0 | AO49: =Índice!$G$60*'Datos Generales'!AO45 -> 0 | AP49: =Índice!$G$60*'Datos Generales'!AP45 -> 0 | AQ49: =Índice!$G$60*'Datos Generales'!AQ45 -> 45,638,773
B50: ='Datos Generales'!B46 -> 5.14.27.00 Participación Del Reaseguro En La Reserva De Insuficiencia De Primas | C50: =Índice!$G$60*'Datos Generales'!C46 -> 0 | D50: =Índice!$G$60*'Datos Generales'!D46 -> 0 | E50: =Índice!$G$60*'Datos Generales'!E46 -> 0 | F50: =Índice!$G$60*'Datos Generales'!F46 -> 4,969 | G50: =Índice!$G$60*'Datos Generales'!G46 -> 39,213 | H50: =Índice!$G$60*'Datos Generales'!H46 -> 0 | I50: =Índice!$G$60*'Datos Generales'!I46 -> 0 | J50: =Índice!$G$60*'Datos Generales'!J46 -> 26,888 | K50: =Índice!$G$60*'Datos Generales'!K46 -> 403 | L50: =Índice!$G$60*'Datos Generales'!L46 -> 15,927 | M50: =Índice!$G$60*'Datos Generales'!M46 -> 6,005 | N50: =Índice!$G$60*'Datos Generales'!N46 -> 0 | O50: =Índice!$G$60*'Datos Generales'!O46 -> 669 | P50: =Índice!$G$60*'Datos Generales'!P46 -> 16,795 | Q50: =Índice!$G$60*'Datos Generales'!Q46 -> 30,844 | R50: =Índice!$G$60*'Datos Generales'!R46 -> 139,117 | S50: =Índice!$G$60*'Datos Generales'!S46 -> 1,155,302 | T50: =Índice!$G$60*'Datos Generales'!T46 -> 0 | U50: =Índice!$G$60*'Datos Generales'!U46 -> 3,988 | V50: =Índice!$G$60*'Datos Generales'!V46 -> 18 | W50: =Índice!$G$60*'Datos Generales'!W46 -> 0 | X50: =Índice!$G$60*'Datos Generales'!X46 -> 318 | Y50: =Índice!$G$60*'Datos Generales'!Y46 -> 0 | Z50: =Índice!$G$60*'Datos Generales'!Z46 -> 0 | AA50: =Índice!$G$60*'Datos Generales'!AA46 -> 8,467 | AB50: =Índice!$G$60*'Datos Generales'!AB46 -> 0 | AC50: =Índice!$G$60*'Datos Generales'!AC46 -> 0 | AD50: =Índice!$G$60*'Datos Generales'!AD46 -> 0 | AE50: =Índice!$G$60*'Datos Generales'!AE46 -> 709,911 | AF50: =Índice!$G$60*'Datos Generales'!AF46 -> 0 | AG50: =Índice!$G$60*'Datos Generales'!AG46 -> 0 | AH50: =Índice!$G$60*'Datos Generales'!AH46 -> 1,575 | AI50: =Índice!$G$60*'Datos Generales'!AI46 -> 0 | AJ50: =Índice!$G$60*'Datos Generales'!AJ46 -> 0 | AK50: =Índice!$G$60*'Datos Generales'!AK46 -> 0 | AL50: =Índice!$G$60*'Datos Generales'!AL46 -> 0 | AM50: =Índice!$G$60*'Datos Generales'!AM46 -> 0 | AN50: =Índice!$G$60*'Datos Generales'!AN46 -> 0 | AO50: =Índice!$G$60*'Datos Generales'!AO46 -> 0 | AP50: =Índice!$G$60*'Datos Generales'!AP46 -> 0 | AQ50: =Índice!$G$60*'Datos Generales'!AQ46 -> 2,160,408
B51: ='Datos Generales'!B47 -> 5.14.28.00 Participación Del Reaseguro En Otras Reservas Técnicas | C51: =Índice!$G$60*'Datos Generales'!C47 -> 0 | D51: =Índice!$G$60*'Datos Generales'!D47 -> 0 | E51: =Índice!$G$60*'Datos Generales'!E47 -> 0 | F51: =Índice!$G$60*'Datos Generales'!F47 -> 0 | G51: =Índice!$G$60*'Datos Generales'!G47 -> 0 | H51: =Índice!$G$60*'Datos Generales'!H47 -> 4,364 | I51: =Índice!$G$60*'Datos Generales'!I47 -> 0 | J51: =Índice!$G$60*'Datos Generales'!J47 -> 1,192 | K51: =Índice!$G$60*'Datos Generales'!K47 -> 0 | L51: =Índice!$G$60*'Datos Generales'!L47 -> 0 | M51: =Índice!$G$60*'Datos Generales'!M47 -> 0 | N51: =Índice!$G$60*'Datos Generales'!N47 -> 0 | O51: =Índice!$G$60*'Datos Generales'!O47 -> 0 | P51: =Índice!$G$60*'Datos Generales'!P47 -> 0 | Q51: =Índice!$G$60*'Datos Generales'!Q47 -> 0 | R51: =Índice!$G$60*'Datos Generales'!R47 -> 0 | S51: =Índice!$G$60*'Datos Generales'!S47 -> 0 | T51: =Índice!$G$60*'Datos Generales'!T47 -> 0 | U51: =Índice!$G$60*'Datos Generales'!U47 -> 0 | V51: =Índice!$G$60*'Datos Generales'!V47 -> 0 | W51: =Índice!$G$60*'Datos Generales'!W47 -> 0 | X51: =Índice!$G$60*'Datos Generales'!X47 -> 0 | Y51: =Índice!$G$60*'Datos Generales'!Y47 -> 0 | Z51: =Índice!$G$60*'Datos Generales'!Z47 -> 0 | AA51: =Índice!$G$60*'Datos Generales'!AA47 -> 0 | AB51: =Índice!$G$60*'Datos Generales'!AB47 -> 0 | AC51: =Índice!$G$60*'Datos Generales'!AC47 -> 272,264 | AD51: =Índice!$G$60*'Datos Generales'!AD47 -> 0 | AE51: =Índice!$G$60*'Datos Generales'!AE47 -> 0 | AF51: =Índice!$G$60*'Datos Generales'!AF47 -> 0 | AG51: =Índice!$G$60*'Datos Generales'!AG47 -> 0 | AH51: =Índice!$G$60*'Datos Generales'!AH47 -> 0 | AI51: =Índice!$G$60*'Datos Generales'!AI47 -> 0 | AJ51: =Índice!$G$60*'Datos Generales'!AJ47 -> 0 | AK51: =Índice!$G$60*'Datos Generales'!AK47 -> 0 | AL51: =Índice!$G$60*'Datos Generales'!AL47 -> 0 | AM51: =Índice!$G$60*'Datos Generales'!AM47 -> 0 | AN51: =Índice!$G$60*'Datos Generales'!AN47 -> 0 | AO51: =Índice!$G$60*'Datos Generales'!AO47 -> 0 | AP51: =Índice!$G$60*'Datos Generales'!AP47 -> 0 | AQ51: =Índice!$G$60*'Datos Generales'!AQ47 -> 277,820
B52: ='Datos Generales'!B48 -> 5.15.00.00 Otros Activos | C52: =Índice!$G$60*'Datos Generales'!C48 -> 48,519 | D52: =Índice!$G$60*'Datos Generales'!D48 -> 366,606 | E52: =Índice!$G$60*'Datos Generales'!E48 -> 1,014,842 | F52: =Índice!$G$60*'Datos Generales'!F48 -> 1,828,834 | G52: =Índice!$G$60*'Datos Generales'!G48 -> 31,326 | H52: =Índice!$G$60*'Datos Generales'!H48 -> 2,591,508 | I52: =Índice!$G$60*'Datos Generales'!I48 -> 84,266 | J52: =Índice!$G$60*'Datos Generales'!J48 -> 303,972 | K52: =Índice!$G$60*'Datos Generales'!K48 -> 70,346 | L52: =Índice!$G$60*'Datos Generales'!L48 -> 239,917 | M52: =Índice!$G$60*'Datos Generales'!M48 -> 194,535 | N52: =Índice!$G$60*'Datos Generales'!N48 -> 125,341 | O52: =Índice!$G$60*'Datos Generales'!O48 -> 359,178 | P52: =Índice!$G$60*'Datos Generales'!P48 -> 16,004 | Q52: =Índice!$G$60*'Datos Generales'!Q48 -> 2,231,187 | R52: =Índice!$G$60*'Datos Generales'!R48 -> 44,447 | S52: =Índice!$G$60*'Datos Generales'!S48 -> 1,494,091 | T52: =Índice!$G$60*'Datos Generales'!T48 -> 326 | U52: =Índice!$G$60*'Datos Generales'!U48 -> 488,830 | V52: =Índice!$G$60*'Datos Generales'!V48 -> 82,315 | W52: =Índice!$G$60*'Datos Generales'!W48 -> 66,641 | X52: =Índice!$G$60*'Datos Generales'!X48 -> 72,296 | Y52: =Índice!$G$60*'Datos Generales'!Y48 -> 29,872 | Z52: =Índice!$G$60*'Datos Generales'!Z48 -> 605,841 | AA52: =Índice!$G$60*'Datos Generales'!AA48 -> 236,959 | AB52: =Índice!$G$60*'Datos Generales'!AB48 -> 55,656 | AC52: =Índice!$G$60*'Datos Generales'!AC48 -> 308,483 | AD52: =Índice!$G$60*'Datos Generales'!AD48 -> 46,312 | AE52: =Índice!$G$60*'Datos Generales'!AE48 -> 827,459 | AF52: =Índice!$G$60*'Datos Generales'!AF48 -> 159,638 | AG52: =Índice!$G$60*'Datos Generales'!AG48 -> 33,969 | AH52: =Índice!$G$60*'Datos Generales'!AH48 -> 641,468 | AI52: =Índice!$G$60*'Datos Generales'!AI48 -> 372,627 | AJ52: =Índice!$G$60*'Datos Generales'!AJ48 -> 0 | AK52: =Índice!$G$60*'Datos Generales'!AK48 -> 0 | AL52: =Índice!$G$60*'Datos Generales'!AL48 -> 0 | AM52: =Índice!$G$60*'Datos Generales'!AM48 -> 0 | AN52: =Índice!$G$60*'Datos Generales'!AN48 -> 0 | AO52: =Índice!$G$60*'Datos Generales'!AO48 -> 0 | AP52: =Índice!$G$60*'Datos Generales'!AP48 -> 0 | AQ52: =Índice!$G$60*'Datos Generales'!AQ48 -> 15,073,610
B53: ='Datos Generales'!B49 -> 5.15.10.00 Intangibles | C53: =Índice!$G$60*'Datos Generales'!C49 -> 0 | D53: =Índice!$G$60*'Datos Generales'!D49 -> 0 | E53: =Índice!$G$60*'Datos Generales'!E49 -> 0 | F53: =Índice!$G$60*'Datos Generales'!F49 -> 1,095,755 | G53: =Índice!$G$60*'Datos Generales'!G49 -> 12 | H53: =Índice!$G$60*'Datos Generales'!H49 -> 1,778,730 | I53: =Índice!$G$60*'Datos Generales'!I49 -> 0 | J53: =Índice!$G$60*'Datos Generales'!J49 -> 52,316 | K53: =Índice!$G$60*'Datos Generales'!K49 -> 4,076 | L53: =Índice!$G$60*'Datos Generales'!L49 -> 0 | M53: =Índice!$G$60*'Datos Generales'!M49 -> 7,319 | N53: =Índice!$G$60*'Datos Generales'!N49 -> 0 | O53: =Índice!$G$60*'Datos Generales'!O49 -> 75,386 | P53: =Índice!$G$60*'Datos Generales'!P49 -> 0 | Q53: =Índice!$G$60*'Datos Generales'!Q49 -> 12,210 | R53: =Índice!$G$60*'Datos Generales'!R49 -> 757 | S53: =Índice!$G$60*'Datos Generales'!S49 -> 66,629 | T53: =Índice!$G$60*'Datos Generales'!T49 -> 0 | U53: =Índice!$G$60*'Datos Generales'!U49 -> 6,631 | V53: =Índice!$G$60*'Datos Generales'!V49 -> 0 | W53: =Índice!$G$60*'Datos Generales'!W49 -> 8,945 | X53: =Índice!$G$60*'Datos Generales'!X49 -> 16,441 | Y53: =Índice!$G$60*'Datos Generales'!Y49 -> 186 | Z53: =Índice!$G$60*'Datos Generales'!Z49 -> 28,106 | AA53: =Índice!$G$60*'Datos Generales'!AA49 -> 3,912 | AB53: =Índice!$G$60*'Datos Generales'!AB49 -> 120 | AC53: =Índice!$G$60*'Datos Generales'!AC49 -> 0 | AD53: =Índice!$G$60*'Datos Generales'!AD49 -> 0 | AE53: =Índice!$G$60*'Datos Generales'!AE49 -> 265,982 | AF53: =Índice!$G$60*'Datos Generales'!AF49 -> 25,009 | AG53: =Índice!$G$60*'Datos Generales'!AG49 -> 0 | AH53: =Índice!$G$60*'Datos Generales'!AH49 -> 16 | AI53: =Índice!$G$60*'Datos Generales'!AI49 -> 96,160 | AJ53: =Índice!$G$60*'Datos Generales'!AJ49 -> 0 | AK53: =Índice!$G$60*'Datos Generales'!AK49 -> 0 | AL53: =Índice!$G$60*'Datos Generales'!AL49 -> 0 | AM53: =Índice!$G$60*'Datos Generales'!AM49 -> 0 | AN53: =Índice!$G$60*'Datos Generales'!AN49 -> 0 | AO53: =Índice!$G$60*'Datos Generales'!AO49 -> 0 | AP53: =Índice!$G$60*'Datos Generales'!AP49 -> 0 | AQ53: =Índice!$G$60*'Datos Generales'!AQ49 -> 3,544,699
B54: ='Datos Generales'!B50 -> 5.15.11.00 Goodwill | C54: =Índice!$G$60*'Datos Generales'!C50 -> 0 | D54: =Índice!$G$60*'Datos Generales'!D50 -> 0 | E54: =Índice!$G$60*'Datos Generales'!E50 -> 0 | F54: =Índice!$G$60*'Datos Generales'!F50 -> 0 | G54: =Índice!$G$60*'Datos Generales'!G50 -> 0 | H54: =Índice!$G$60*'Datos Generales'!H50 -> 0 | I54: =Índice!$G$60*'Datos Generales'!I50 -> 0 | J54: =Índice!$G$60*'Datos Generales'!J50 -> 0 | K54: =Índice!$G$60*'Datos Generales'!K50 -> 0 | L54: =Índice!$G$60*'Datos Generales'!L50 -> 0 | M54: =Índice!$G$60*'Datos Generales'!M50 -> 0 | N54: =Índice!$G$60*'Datos Generales'!N50 -> 0 | O54: =Índice!$G$60*'Datos Generales'!O50 -> 0 | P54: =Índice!$G$60*'Datos Generales'!P50 -> 0 | Q54: =Índice!$G$60*'Datos Generales'!Q50 -> 0 | R54: =Índice!$G$60*'Datos Generales'!R50 -> 0 | S54: =Índice!$G$60*'Datos Generales'!S50 -> 0 | T54: =Índice!$G$60*'Datos Generales'!T50 -> 0 | U54: =Índice!$G$60*'Datos Generales'!U50 -> 0 | V54: =Índice!$G$60*'Datos Generales'!V50 -> 0 | W54: =Índice!$G$60*'Datos Generales'!W50 -> 0 | X54: =Índice!$G$60*'Datos Generales'!X50 -> 0 | Y54: =Índice!$G$60*'Datos Generales'!Y50 -> 0 | Z54: =Índice!$G$60*'Datos Generales'!Z50 -> 0 | AA54: =Índice!$G$60*'Datos Generales'!AA50 -> 0 | AB54: =Índice!$G$60*'Datos Generales'!AB50 -> 0 | AC54: =Índice!$G$60*'Datos Generales'!AC50 -> 0 | AD54: =Índice!$G$60*'Datos Generales'!AD50 -> 0 | AE54: =Índice!$G$60*'Datos Generales'!AE50 -> 0 | AF54: =Índice!$G$60*'Datos Generales'!AF50 -> 0 | AG54: =Índice!$G$60*'Datos Generales'!AG50 -> 0 | AH54: =Índice!$G$60*'Datos Generales'!AH50 -> 0 | AI54: =Índice!$G$60*'Datos Generales'!AI50 -> 0 | AJ54: =Índice!$G$60*'Datos Generales'!AJ50 -> 0 | AK54: =Índice!$G$60*'Datos Generales'!AK50 -> 0 | AL54: =Índice!$G$60*'Datos Generales'!AL50 -> 0 | AM54: =Índice!$G$60*'Datos Generales'!AM50 -> 0 | AN54: =Índice!$G$60*'Datos Generales'!AN50 -> 0 | AO54: =Índice!$G$60*'Datos Generales'!AO50 -> 0 | AP54: =Índice!$G$60*'Datos Generales'!AP50 -> 0 | AQ54: =Índice!$G$60*'Datos Generales'!AQ50 -> 0
B55: ='Datos Generales'!B51 -> 5.15.12.00 Activos Intangibles Distintos A Goodwill | C55: =Índice!$G$60*'Datos Generales'!C51 -> 0 | D55: =Índice!$G$60*'Datos Generales'!D51 -> 0 | E55: =Índice!$G$60*'Datos Generales'!E51 -> 0 | F55: =Índice!$G$60*'Datos Generales'!F51 -> 1,095,755 | G55: =Índice!$G$60*'Datos Generales'!G51 -> 12 | H55: =Índice!$G$60*'Datos Generales'!H51 -> 1,778,730 | I55: =Índice!$G$60*'Datos Generales'!I51 -> 0 | J55: =Índice!$G$60*'Datos Generales'!J51 -> 52,316 | K55: =Índice!$G$60*'Datos Generales'!K51 -> 4,076 | L55: =Índice!$G$60*'Datos Generales'!L51 -> 0 | M55: =Índice!$G$60*'Datos Generales'!M51 -> 7,319 | N55: =Índice!$G$60*'Datos Generales'!N51 -> 0 | O55: =Índice!$G$60*'Datos Generales'!O51 -> 75,386 | P55: =Índice!$G$60*'Datos Generales'!P51 -> 0 | Q55: =Índice!$G$60*'Datos Generales'!Q51 -> 12,210 | R55: =Índice!$G$60*'Datos Generales'!R51 -> 757 | S55: =Índice!$G$60*'Datos Generales'!S51 -> 66,629 | T55: =Índice!$G$60*'Datos Generales'!T51 -> 0 | U55: =Índice!$G$60*'Datos Generales'!U51 -> 6,631 | V55: =Índice!$G$60*'Datos Generales'!V51 -> 0 | W55: =Índice!$G$60*'Datos Generales'!W51 -> 8,945 | X55: =Índice!$G$60*'Datos Generales'!X51 -> 16,441 | Y55: =Índice!$G$60*'Datos Generales'!Y51 -> 186 | Z55: =Índice!$G$60*'Datos Generales'!Z51 -> 28,106 | AA55: =Índice!$G$60*'Datos Generales'!AA51 -> 3,912 | AB55: =Índice!$G$60*'Datos Generales'!AB51 -> 120 | AC55: =Índice!$G$60*'Datos Generales'!AC51 -> 0 | AD55: =Índice!$G$60*'Datos Generales'!AD51 -> 0 | AE55: =Índice!$G$60*'Datos Generales'!AE51 -> 265,982 | AF55: =Índice!$G$60*'Datos Generales'!AF51 -> 25,009 | AG55: =Índice!$G$60*'Datos Generales'!AG51 -> 0 | AH55: =Índice!$G$60*'Datos Generales'!AH51 -> 16 | AI55: =Índice!$G$60*'Datos Generales'!AI51 -> 96,160 | AJ55: =Índice!$G$60*'Datos Generales'!AJ51 -> 0 | AK55: =Índice!$G$60*'Datos Generales'!AK51 -> 0 | AL55: =Índice!$G$60*'Datos Generales'!AL51 -> 0 | AM55: =Índice!$G$60*'Datos Generales'!AM51 -> 0 | AN55: =Índice!$G$60*'Datos Generales'!AN51 -> 0 | AO55: =Índice!$G$60*'Datos Generales'!AO51 -> 0 | AP55: =Índice!$G$60*'Datos Generales'!AP51 -> 0 | AQ55: =Índice!$G$60*'Datos Generales'!AQ51 -> 3,544,699
B56: ='Datos Generales'!B52 -> 5.15.20.00 Impuestos Por Cobrar | C56: =Índice!$G$60*'Datos Generales'!C52 -> 40,041 | D56: =Índice!$G$60*'Datos Generales'!D52 -> 11,585 | E56: =Índice!$G$60*'Datos Generales'!E52 -> 631,613 | F56: =Índice!$G$60*'Datos Generales'!F52 -> 404,623 | G56: =Índice!$G$60*'Datos Generales'!G52 -> 29,662 | H56: =Índice!$G$60*'Datos Generales'!H52 -> 645,914 | I56: =Índice!$G$60*'Datos Generales'!I52 -> 55,077 | J56: =Índice!$G$60*'Datos Generales'!J52 -> 132,599 | K56: =Índice!$G$60*'Datos Generales'!K52 -> 54,874 | L56: =Índice!$G$60*'Datos Generales'!L52 -> 114,703 | M56: =Índice!$G$60*'Datos Generales'!M52 -> 68,506 | N56: =Índice!$G$60*'Datos Generales'!N52 -> 86,342 | O56: =Índice!$G$60*'Datos Generales'!O52 -> 219,597 | P56: =Índice!$G$60*'Datos Generales'!P52 -> 10,845 | Q56: =Índice!$G$60*'Datos Generales'!Q52 -> 455,123 | R56: =Índice!$G$60*'Datos Generales'!R52 -> 4,120 | S56: =Índice!$G$60*'Datos Generales'!S52 -> 1,025,049 | T56: =Índice!$G$60*'Datos Generales'!T52 -> 0 | U56: =Índice!$G$60*'Datos Generales'!U52 -> 236,492 | V56: =Índice!$G$60*'Datos Generales'!V52 -> 80,095 | W56: =Índice!$G$60*'Datos Generales'!W52 -> 25,230 | X56: =Índice!$G$60*'Datos Generales'!X52 -> 36,640 | Y56: =Índice!$G$60*'Datos Generales'!Y52 -> 11,761 | Z56: =Índice!$G$60*'Datos Generales'!Z52 -> 306,591 | AA56: =Índice!$G$60*'Datos Generales'!AA52 -> 29,182 | AB56: =Índice!$G$60*'Datos Generales'!AB52 -> 17,127 | AC56: =Índice!$G$60*'Datos Generales'!AC52 -> 232,037 | AD56: =Índice!$G$60*'Datos Generales'!AD52 -> 32,148 | AE56: =Índice!$G$60*'Datos Generales'!AE52 -> 300,652 | AF56: =Índice!$G$60*'Datos Generales'!AF52 -> 105,355 | AG56: =Índice!$G$60*'Datos Generales'!AG52 -> 18,822 | AH56: =Índice!$G$60*'Datos Generales'!AH52 -> 324,569 | AI56: =Índice!$G$60*'Datos Generales'!AI52 -> 246,144 | AJ56: =Índice!$G$60*'Datos Generales'!AJ52 -> 0 | AK56: =Índice!$G$60*'Datos Generales'!AK52 -> 0 | AL56: =Índice!$G$60*'Datos Generales'!AL52 -> 0 | AM56: =Índice!$G$60*'Datos Generales'!AM52 -> 0 | AN56: =Índice!$G$60*'Datos Generales'!AN52 -> 0 | AO56: =Índice!$G$60*'Datos Generales'!AO52 -> 0 | AP56: =Índice!$G$60*'Datos Generales'!AP52 -> 0 | AQ56: =Índice!$G$60*'Datos Generales'!AQ52 -> 5,993,117
B57: ='Datos Generales'!B53 -> 5.15.21.00 Cuenta Por Cobrar Por Impuesto | C57: =Índice!$G$60*'Datos Generales'!C53 -> 10,401 | D57: =Índice!$G$60*'Datos Generales'!D53 -> -1,675 | E57: =Índice!$G$60*'Datos Generales'!E53 -> 37,060 | F57: =Índice!$G$60*'Datos Generales'!F53 -> 44,762 | G57: =Índice!$G$60*'Datos Generales'!G53 -> 429 | H57: =Índice!$G$60*'Datos Generales'!H53 -> 267,697 | I57: =Índice!$G$60*'Datos Generales'!I53 -> 29,958 | J57: =Índice!$G$60*'Datos Generales'!J53 -> 38,553 | K57: =Índice!$G$60*'Datos Generales'!K53 -> 81 | L57: =Índice!$G$60*'Datos Generales'!L53 -> 63,390 | M57: =Índice!$G$60*'Datos Generales'!M53 -> 30,207 | N57: =Índice!$G$60*'Datos Generales'!N53 -> 0 | O57: =Índice!$G$60*'Datos Generales'!O53 -> 23,777 | P57: =Índice!$G$60*'Datos Generales'!P53 -> 1,583 | Q57: =Índice!$G$60*'Datos Generales'!Q53 -> 81,581 | R57: =Índice!$G$60*'Datos Generales'!R53 -> 632 | S57: =Índice!$G$60*'Datos Generales'!S53 -> 3,638 | T57: =Índice!$G$60*'Datos Generales'!T53 -> 0 | U57: =Índice!$G$60*'Datos Generales'!U53 -> 45,202 | V57: =Índice!$G$60*'Datos Generales'!V53 -> 0 | W57: =Índice!$G$60*'Datos Generales'!W53 -> 0 | X57: =Índice!$G$60*'Datos Generales'!X53 -> 726 | Y57: =Índice!$G$60*'Datos Generales'!Y53 -> 6,793 | Z57: =Índice!$G$60*'Datos Generales'!Z53 -> 195 | AA57: =Índice!$G$60*'Datos Generales'!AA53 -> 13,808 | AB57: =Índice!$G$60*'Datos Generales'!AB53 -> 5,228 | AC57: =Índice!$G$60*'Datos Generales'!AC53 -> 103,437 | AD57: =Índice!$G$60*'Datos Generales'!AD53 -> 6,904 | AE57: =Índice!$G$60*'Datos Generales'!AE53 -> 5,418 | AF57: =Índice!$G$60*'Datos Generales'!AF53 -> 7,673 | AG57: =Índice!$G$60*'Datos Generales'!AG53 -> 1,993 | AH57: =Índice!$G$60*'Datos Generales'!AH53 -> 6,564 | AI57: =Índice!$G$60*'Datos Generales'!AI53 -> 49,918 | AJ57: =Índice!$G$60*'Datos Generales'!AJ53 -> 0 | AK57: =Índice!$G$60*'Datos Generales'!AK53 -> 0 | AL57: =Índice!$G$60*'Datos Generales'!AL53 -> 0 | AM57: =Índice!$G$60*'Datos Generales'!AM53 -> 0 | AN57: =Índice!$G$60*'Datos Generales'!AN53 -> 0 | AO57: =Índice!$G$60*'Datos Generales'!AO53 -> 0 | AP57: =Índice!$G$60*'Datos Generales'!AP53 -> 0 | AQ57: =Índice!$G$60*'Datos Generales'!AQ53 -> 885,932
B58: ='Datos Generales'!B54 -> 5.15.22.00 Activo Por Impuesto Diferido | C58: =Índice!$G$60*'Datos Generales'!C54 -> 29,640 | D58: =Índice!$G$60*'Datos Generales'!D54 -> 13,260 | E58: =Índice!$G$60*'Datos Generales'!E54 -> 594,553 | F58: =Índice!$G$60*'Datos Generales'!F54 -> 359,862 | G58: =Índice!$G$60*'Datos Generales'!G54 -> 29,233 | H58: =Índice!$G$60*'Datos Generales'!H54 -> 378,217 | I58: =Índice!$G$60*'Datos Generales'!I54 -> 25,119 | J58: =Índice!$G$60*'Datos Generales'!J54 -> 94,046 | K58: =Índice!$G$60*'Datos Generales'!K54 -> 54,793 | L58: =Índice!$G$60*'Datos Generales'!L54 -> 51,313 | M58: =Índice!$G$60*'Datos Generales'!M54 -> 38,299 | N58: =Índice!$G$60*'Datos Generales'!N54 -> 86,342 | O58: =Índice!$G$60*'Datos Generales'!O54 -> 195,820 | P58: =Índice!$G$60*'Datos Generales'!P54 -> 9,262 | Q58: =Índice!$G$60*'Datos Generales'!Q54 -> 373,542 | R58: =Índice!$G$60*'Datos Generales'!R54 -> 3,489 | S58: =Índice!$G$60*'Datos Generales'!S54 -> 1,021,411 | T58: =Índice!$G$60*'Datos Generales'!T54 -> 0 | U58: =Índice!$G$60*'Datos Generales'!U54 -> 191,290 | V58: =Índice!$G$60*'Datos Generales'!V54 -> 80,095 | W58: =Índice!$G$60*'Datos Generales'!W54 -> 25,230 | X58: =Índice!$G$60*'Datos Generales'!X54 -> 35,914 | Y58: =Índice!$G$60*'Datos Generales'!Y54 -> 4,969 | Z58: =Índice!$G$60*'Datos Generales'!Z54 -> 306,396 | AA58: =Índice!$G$60*'Datos Generales'!AA54 -> 15,374 | AB58: =Índice!$G$60*'Datos Generales'!AB54 -> 11,900 | AC58: =Índice!$G$60*'Datos Generales'!AC54 -> 128,600 | AD58: =Índice!$G$60*'Datos Generales'!AD54 -> 25,244 | AE58: =Índice!$G$60*'Datos Generales'!AE54 -> 295,234 | AF58: =Índice!$G$60*'Datos Generales'!AF54 -> 97,683 | AG58: =Índice!$G$60*'Datos Generales'!AG54 -> 16,828 | AH58: =Índice!$G$60*'Datos Generales'!AH54 -> 318,005 | AI58: =Índice!$G$60*'Datos Generales'!AI54 -> 196,225 | AJ58: =Índice!$G$60*'Datos Generales'!AJ54 -> 0 | AK58: =Índice!$G$60*'Datos Generales'!AK54 -> 0 | AL58: =Índice!$G$60*'Datos Generales'!AL54 -> 0 | AM58: =Índice!$G$60*'Datos Generales'!AM54 -> 0 | AN58: =Índice!$G$60*'Datos Generales'!AN54 -> 0 | AO58: =Índice!$G$60*'Datos Generales'!AO54 -> 0 | AP58: =Índice!$G$60*'Datos Generales'!AP54 -> 0 | AQ58: =Índice!$G$60*'Datos Generales'!AQ54 -> 5,107,185
B59: ='Datos Generales'!B55 -> 5.15.30.00 Otros Activos | C59: =Índice!$G$60*'Datos Generales'!C55 -> 8,478 | D59: =Índice!$G$60*'Datos Generales'!D55 -> 355,021 | E59: =Índice!$G$60*'Datos Generales'!E55 -> 383,229 | F59: =Índice!$G$60*'Datos Generales'!F55 -> 328,456 | G59: =Índice!$G$60*'Datos Generales'!G55 -> 1,652 | H59: =Índice!$G$60*'Datos Generales'!H55 -> 166,864 | I59: =Índice!$G$60*'Datos Generales'!I55 -> 29,190 | J59: =Índice!$G$60*'Datos Generales'!J55 -> 119,057 | K59: =Índice!$G$60*'Datos Generales'!K55 -> 11,396 | L59: =Índice!$G$60*'Datos Generales'!L55 -> 125,214 | M59: =Índice!$G$60*'Datos Generales'!M55 -> 118,710 | N59: =Índice!$G$60*'Datos Generales'!N55 -> 38,998 | O59: =Índice!$G$60*'Datos Generales'!O55 -> 64,195 | P59: =Índice!$G$60*'Datos Generales'!P55 -> 5,159 | Q59: =Índice!$G$60*'Datos Generales'!Q55 -> 1,763,854 | R59: =Índice!$G$60*'Datos Generales'!R55 -> 39,569 | S59: =Índice!$G$60*'Datos Generales'!S55 -> 402,413 | T59: =Índice!$G$60*'Datos Generales'!T55 -> 326 | U59: =Índice!$G$60*'Datos Generales'!U55 -> 245,708 | V59: =Índice!$G$60*'Datos Generales'!V55 -> 2,220 | W59: =Índice!$G$60*'Datos Generales'!W55 -> 32,466 | X59: =Índice!$G$60*'Datos Generales'!X55 -> 19,214 | Y59: =Índice!$G$60*'Datos Generales'!Y55 -> 17,925 | Z59: =Índice!$G$60*'Datos Generales'!Z55 -> 271,144 | AA59: =Índice!$G$60*'Datos Generales'!AA55 -> 203,866 | AB59: =Índice!$G$60*'Datos Generales'!AB55 -> 38,409 | AC59: =Índice!$G$60*'Datos Generales'!AC55 -> 76,446 | AD59: =Índice!$G$60*'Datos Generales'!AD55 -> 14,164 | AE59: =Índice!$G$60*'Datos Generales'!AE55 -> 260,825 | AF59: =Índice!$G$60*'Datos Generales'!AF55 -> 29,273 | AG59: =Índice!$G$60*'Datos Generales'!AG55 -> 15,148 | AH59: =Índice!$G$60*'Datos Generales'!AH55 -> 316,882 | AI59: =Índice!$G$60*'Datos Generales'!AI55 -> 30,323 | AJ59: =Índice!$G$60*'Datos Generales'!AJ55 -> 0 | AK59: =Índice!$G$60*'Datos Generales'!AK55 -> 0 | AL59: =Índice!$G$60*'Datos Generales'!AL55 -> 0 | AM59: =Índice!$G$60*'Datos Generales'!AM55 -> 0 | AN59: =Índice!$G$60*'Datos Generales'!AN55 -> 0 | AO59: =Índice!$G$60*'Datos Generales'!AO55 -> 0 | AP59: =Índice!$G$60*'Datos Generales'!AP55 -> 0 | AQ59: =Índice!$G$60*'Datos Generales'!AQ55 -> 5,535,794
B60: ='Datos Generales'!B56 -> 5.15.31.00 Deudas Del Personal | C60: =Índice!$G$60*'Datos Generales'!C56 -> 0 | D60: =Índice!$G$60*'Datos Generales'!D56 -> 0 | E60: =Índice!$G$60*'Datos Generales'!E56 -> 4,169 | F60: =Índice!$G$60*'Datos Generales'!F56 -> 9,724 | G60: =Índice!$G$60*'Datos Generales'!G56 -> 0 | H60: =Índice!$G$60*'Datos Generales'!H56 -> 4,962 | I60: =Índice!$G$60*'Datos Generales'!I56 -> 0 | J60: =Índice!$G$60*'Datos Generales'!J56 -> 4,534 | K60: =Índice!$G$60*'Datos Generales'!K56 -> 0 | L60: =Índice!$G$60*'Datos Generales'!L56 -> 0 | M60: =Índice!$G$60*'Datos Generales'!M56 -> 0 | N60: =Índice!$G$60*'Datos Generales'!N56 -> 0 | O60: =Índice!$G$60*'Datos Generales'!O56 -> 0 | P60: =Índice!$G$60*'Datos Generales'!P56 -> 0 | Q60: =Índice!$G$60*'Datos Generales'!Q56 -> 2,194 | R60: =Índice!$G$60*'Datos Generales'!R56 -> 0 | S60: =Índice!$G$60*'Datos Generales'!S56 -> 6,055 | T60: =Índice!$G$60*'Datos Generales'!T56 -> 0 | U60: =Índice!$G$60*'Datos Generales'!U56 -> 7,314 | V60: =Índice!$G$60*'Datos Generales'!V56 -> 0 | W60: =Índice!$G$60*'Datos Generales'!W56 -> 0 | X60: =Índice!$G$60*'Datos Generales'!X56 -> 139 | Y60: =Índice!$G$60*'Datos Generales'!Y56 -> 0 | Z60: =Índice!$G$60*'Datos Generales'!Z56 -> 20,398 | AA60: =Índice!$G$60*'Datos Generales'!AA56 -> 10 | AB60: =Índice!$G$60*'Datos Generales'!AB56 -> 0 | AC60: =Índice!$G$60*'Datos Generales'!AC56 -> 1,931 | AD60: =Índice!$G$60*'Datos Generales'!AD56 -> 0 | AE60: =Índice!$G$60*'Datos Generales'!AE56 -> 15,836 | AF60: =Índice!$G$60*'Datos Generales'!AF56 -> 4,088 | AG60: =Índice!$G$60*'Datos Generales'!AG56 -> 30 | AH60: =Índice!$G$60*'Datos Generales'!AH56 -> 5,373 | AI60: =Índice!$G$60*'Datos Generales'!AI56 -> 0 | AJ60: =Índice!$G$60*'Datos Generales'!AJ56 -> 0 | AK60: =Índice!$G$60*'Datos Generales'!AK56 -> 0 | AL60: =Índice!$G$60*'Datos Generales'!AL56 -> 0 | AM60: =Índice!$G$60*'Datos Generales'!AM56 -> 0 | AN60: =Índice!$G$60*'Datos Generales'!AN56 -> 0 | AO60: =Índice!$G$60*'Datos Generales'!AO56 -> 0 | AP60: =Índice!$G$60*'Datos Generales'!AP56 -> 0 | AQ60: =Índice!$G$60*'Datos Generales'!AQ56 -> 86,756
B61: ='Datos Generales'!B57 -> 5.15.32.00 Cuentas Por Cobrar Intermediarios | C61: =Índice!$G$60*'Datos Generales'!C57 -> 0 | D61: =Índice!$G$60*'Datos Generales'!D57 -> 0 | E61: =Índice!$G$60*'Datos Generales'!E57 -> 0 | F61: =Índice!$G$60*'Datos Generales'!F57 -> 95,366 | G61: =Índice!$G$60*'Datos Generales'!G57 -> 424 | H61: =Índice!$G$60*'Datos Generales'!H57 -> 0 | I61: =Índice!$G$60*'Datos Generales'!I57 -> 0 | J61: =Índice!$G$60*'Datos Generales'!J57 -> 7,973 | K61: =Índice!$G$60*'Datos Generales'!K57 -> 0 | L61: =Índice!$G$60*'Datos Generales'!L57 -> 0 | M61: =Índice!$G$60*'Datos Generales'!M57 -> 0 | N61: =Índice!$G$60*'Datos Generales'!N57 -> 0 | O61: =Índice!$G$60*'Datos Generales'!O57 -> 587 | P61: =Índice!$G$60*'Datos Generales'!P57 -> 73 | Q61: =Índice!$G$60*'Datos Generales'!Q57 -> 7,718 | R61: =Índice!$G$60*'Datos Generales'!R57 -> 0 | S61: =Índice!$G$60*'Datos Generales'!S57 -> 7,683 | T61: =Índice!$G$60*'Datos Generales'!T57 -> 0 | U61: =Índice!$G$60*'Datos Generales'!U57 -> 82,863 | V61: =Índice!$G$60*'Datos Generales'!V57 -> 0 | W61: =Índice!$G$60*'Datos Generales'!W57 -> 2 | X61: =Índice!$G$60*'Datos Generales'!X57 -> 0 | Y61: =Índice!$G$60*'Datos Generales'!Y57 -> 2,639 | Z61: =Índice!$G$60*'Datos Generales'!Z57 -> 67,812 | AA61: =Índice!$G$60*'Datos Generales'!AA57 -> 18,854 | AB61: =Índice!$G$60*'Datos Generales'!AB57 -> 0 | AC61: =Índice!$G$60*'Datos Generales'!AC57 -> 0 | AD61: =Índice!$G$60*'Datos Generales'!AD57 -> 0 | AE61: =Índice!$G$60*'Datos Generales'!AE57 -> 5,224 | AF61: =Índice!$G$60*'Datos Generales'!AF57 -> 0 | AG61: =Índice!$G$60*'Datos Generales'!AG57 -> 0 | AH61: =Índice!$G$60*'Datos Generales'!AH57 -> 94,161 | AI61: =Índice!$G$60*'Datos Generales'!AI57 -> 0 | AJ61: =Índice!$G$60*'Datos Generales'!AJ57 -> 0 | AK61: =Índice!$G$60*'Datos Generales'!AK57 -> 0 | AL61: =Índice!$G$60*'Datos Generales'!AL57 -> 0 | AM61: =Índice!$G$60*'Datos Generales'!AM57 -> 0 | AN61: =Índice!$G$60*'Datos Generales'!AN57 -> 0 | AO61: =Índice!$G$60*'Datos Generales'!AO57 -> 0 | AP61: =Índice!$G$60*'Datos Generales'!AP57 -> 0 | AQ61: =Índice!$G$60*'Datos Generales'!AQ57 -> 391,377
B62: ='Datos Generales'!B58 -> 5.15.33.00 Deudores Relacionados | C62: =Índice!$G$60*'Datos Generales'!C58 -> 2,315 | D62: =Índice!$G$60*'Datos Generales'!D58 -> 343,700 | E62: =Índice!$G$60*'Datos Generales'!E58 -> 34,525 | F62: =Índice!$G$60*'Datos Generales'!F58 -> 3,369 | G62: =Índice!$G$60*'Datos Generales'!G58 -> 0 | H62: =Índice!$G$60*'Datos Generales'!H58 -> 82,391 | I62: =Índice!$G$60*'Datos Generales'!I58 -> 355 | J62: =Índice!$G$60*'Datos Generales'!J58 -> 28,643 | K62: =Índice!$G$60*'Datos Generales'!K58 -> 0 | L62: =Índice!$G$60*'Datos Generales'!L58 -> 19,893 | M62: =Índice!$G$60*'Datos Generales'!M58 -> 468 | N62: =Índice!$G$60*'Datos Generales'!N58 -> 17,530 | O62: =Índice!$G$60*'Datos Generales'!O58 -> 0 | P62: =Índice!$G$60*'Datos Generales'!P58 -> 3,754 | Q62: =Índice!$G$60*'Datos Generales'!Q58 -> 236,969 | R62: =Índice!$G$60*'Datos Generales'!R58 -> 0 | S62: =Índice!$G$60*'Datos Generales'!S58 -> 7,204 | T62: =Índice!$G$60*'Datos Generales'!T58 -> 163 | U62: =Índice!$G$60*'Datos Generales'!U58 -> 2,324 | V62: =Índice!$G$60*'Datos Generales'!V58 -> 135 | W62: =Índice!$G$60*'Datos Generales'!W58 -> 0 | X62: =Índice!$G$60*'Datos Generales'!X58 -> 3,480 | Y62: =Índice!$G$60*'Datos Generales'!Y58 -> 0 | Z62: =Índice!$G$60*'Datos Generales'!Z58 -> 1,283 | AA62: =Índice!$G$60*'Datos Generales'!AA58 -> 140 | AB62: =Índice!$G$60*'Datos Generales'!AB58 -> 6,567 | AC62: =Índice!$G$60*'Datos Generales'!AC58 -> 0 | AD62: =Índice!$G$60*'Datos Generales'!AD58 -> 0 | AE62: =Índice!$G$60*'Datos Generales'!AE58 -> 24,068 | AF62: =Índice!$G$60*'Datos Generales'!AF58 -> 0 | AG62: =Índice!$G$60*'Datos Generales'!AG58 -> 658 | AH62: =Índice!$G$60*'Datos Generales'!AH58 -> 140,045 | AI62: =Índice!$G$60*'Datos Generales'!AI58 -> 0 | AJ62: =Índice!$G$60*'Datos Generales'!AJ58 -> 0 | AK62: =Índice!$G$60*'Datos Generales'!AK58 -> 0 | AL62: =Índice!$G$60*'Datos Generales'!AL58 -> 0 | AM62: =Índice!$G$60*'Datos Generales'!AM58 -> 0 | AN62: =Índice!$G$60*'Datos Generales'!AN58 -> 0 | AO62: =Índice!$G$60*'Datos Generales'!AO58 -> 0 | AP62: =Índice!$G$60*'Datos Generales'!AP58 -> 0 | AQ62: =Índice!$G$60*'Datos Generales'!AQ58 -> 959,980
B63: ='Datos Generales'!B59 -> 5.15.34.00 Gastos Anticipados | C63: =Índice!$G$60*'Datos Generales'!C59 -> 0 | D63: =Índice!$G$60*'Datos Generales'!D59 -> 0 | E63: =Índice!$G$60*'Datos Generales'!E59 -> 115,148 | F63: =Índice!$G$60*'Datos Generales'!F59 -> 8,919 | G63: =Índice!$G$60*'Datos Generales'!G59 -> 0 | H63: =Índice!$G$60*'Datos Generales'!H59 -> 21,415 | I63: =Índice!$G$60*'Datos Generales'!I59 -> 713 | J63: =Índice!$G$60*'Datos Generales'!J59 -> 20,872 | K63: =Índice!$G$60*'Datos Generales'!K59 -> 5,717 | L63: =Índice!$G$60*'Datos Generales'!L59 -> 0 | M63: =Índice!$G$60*'Datos Generales'!M59 -> 203 | N63: =Índice!$G$60*'Datos Generales'!N59 -> 0 | O63: =Índice!$G$60*'Datos Generales'!O59 -> 2,311 | P63: =Índice!$G$60*'Datos Generales'!P59 -> 0 | Q63: =Índice!$G$60*'Datos Generales'!Q59 -> 373,656 | R63: =Índice!$G$60*'Datos Generales'!R59 -> 0 | S63: =Índice!$G$60*'Datos Generales'!S59 -> 43,404 | T63: =Índice!$G$60*'Datos Generales'!T59 -> 0 | U63: =Índice!$G$60*'Datos Generales'!U59 -> 6,531 | V63: =Índice!$G$60*'Datos Generales'!V59 -> 0 | W63: =Índice!$G$60*'Datos Generales'!W59 -> 1,779 | X63: =Índice!$G$60*'Datos Generales'!X59 -> 14,632 | Y63: =Índice!$G$60*'Datos Generales'!Y59 -> 0 | Z63: =Índice!$G$60*'Datos Generales'!Z59 -> 351 | AA63: =Índice!$G$60*'Datos Generales'!AA59 -> 0 | AB63: =Índice!$G$60*'Datos Generales'!AB59 -> 1,062 | AC63: =Índice!$G$60*'Datos Generales'!AC59 -> 0 | AD63: =Índice!$G$60*'Datos Generales'!AD59 -> 0 | AE63: =Índice!$G$60*'Datos Generales'!AE59 -> 12,183 | AF63: =Índice!$G$60*'Datos Generales'!AF59 -> 0 | AG63: =Índice!$G$60*'Datos Generales'!AG59 -> 62 | AH63: =Índice!$G$60*'Datos Generales'!AH59 -> 0 | AI63: =Índice!$G$60*'Datos Generales'!AI59 -> 3 | AJ63: =Índice!$G$60*'Datos Generales'!AJ59 -> 0 | AK63: =Índice!$G$60*'Datos Generales'!AK59 -> 0 | AL63: =Índice!$G$60*'Datos Generales'!AL59 -> 0 | AM63: =Índice!$G$60*'Datos Generales'!AM59 -> 0 | AN63: =Índice!$G$60*'Datos Generales'!AN59 -> 0 | AO63: =Índice!$G$60*'Datos Generales'!AO59 -> 0 | AP63: =Índice!$G$60*'Datos Generales'!AP59 -> 0 | AQ63: =Índice!$G$60*'Datos Generales'!AQ59 -> 628,961
B64: ='Datos Generales'!B60 -> 5.15.35.00 Otros Activos | C64: =Índice!$G$60*'Datos Generales'!C60 -> 6,163 | D64: =Índice!$G$60*'Datos Generales'!D60 -> 11,322 | E64: =Índice!$G$60*'Datos Generales'!E60 -> 229,386 | F64: =Índice!$G$60*'Datos Generales'!F60 -> 211,079 | G64: =Índice!$G$60*'Datos Generales'!G60 -> 1,228 | H64: =Índice!$G$60*'Datos Generales'!H60 -> 58,096 | I64: =Índice!$G$60*'Datos Generales'!I60 -> 28,121 | J64: =Índice!$G$60*'Datos Generales'!J60 -> 57,037 | K64: =Índice!$G$60*'Datos Generales'!K60 -> 5,680 | L64: =Índice!$G$60*'Datos Generales'!L60 -> 105,321 | M64: =Índice!$G$60*'Datos Generales'!M60 -> 118,039 | N64: =Índice!$G$60*'Datos Generales'!N60 -> 21,468 | O64: =Índice!$G$60*'Datos Generales'!O60 -> 61,297 | P64: =Índice!$G$60*'Datos Generales'!P60 -> 1,332 | Q64: =Índice!$G$60*'Datos Generales'!Q60 -> 1,143,317 | R64: =Índice!$G$60*'Datos Generales'!R60 -> 39,569 | S64: =Índice!$G$60*'Datos Generales'!S60 -> 338,068 | T64: =Índice!$G$60*'Datos Generales'!T60 -> 163 | U64: =Índice!$G$60*'Datos Generales'!U60 -> 146,675 | V64: =Índice!$G$60*'Datos Generales'!V60 -> 2,085 | W64: =Índice!$G$60*'Datos Generales'!W60 -> 30,685 | X64: =Índice!$G$60*'Datos Generales'!X60 -> 964 | Y64: =Índice!$G$60*'Datos Generales'!Y60 -> 15,286 | Z64: =Índice!$G$60*'Datos Generales'!Z60 -> 181,299 | AA64: =Índice!$G$60*'Datos Generales'!AA60 -> 184,862 | AB64: =Índice!$G$60*'Datos Generales'!AB60 -> 30,780 | AC64: =Índice!$G$60*'Datos Generales'!AC60 -> 74,515 | AD64: =Índice!$G$60*'Datos Generales'!AD60 -> 14,164 | AE64: =Índice!$G$60*'Datos Generales'!AE60 -> 203,514 | AF64: =Índice!$G$60*'Datos Generales'!AF60 -> 25,186 | AG64: =Índice!$G$60*'Datos Generales'!AG60 -> 14,398 | AH64: =Índice!$G$60*'Datos Generales'!AH60 -> 77,303 | AI64: =Índice!$G$60*'Datos Generales'!AI60 -> 30,321 | AJ64: =Índice!$G$60*'Datos Generales'!AJ60 -> 0 | AK64: =Índice!$G$60*'Datos Generales'!AK60 -> 0 | AL64: =Índice!$G$60*'Datos Generales'!AL60 -> 0 | AM64: =Índice!$G$60*'Datos Generales'!AM60 -> 0 | AN64: =Índice!$G$60*'Datos Generales'!AN60 -> 0 | AO64: =Índice!$G$60*'Datos Generales'!AO60 -> 0 | AP64: =Índice!$G$60*'Datos Generales'!AP60 -> 0 | AQ64: =Índice!$G$60*'Datos Generales'!AQ60 -> 3,468,720
B66: Mostrar | C66: =INDEX(Benchmark!$D$9:$D$48,COLUMNS(Benchmark!$D$9:D48),) -> 1 | D66: =INDEX(Benchmark!$D$9:$D$48,COLUMNS(Benchmark!$D$9:E48),) -> 1 | E66: =INDEX(Benchmark!$D$9:$D$48,COLUMNS(Benchmark!$D$9:F48),) -> 1 | F66: =INDEX(Benchmark!$D$9:$D$48,COLUMNS(Benchmark!$D$9:G48),) -> 1 | G66: =INDEX(Benchmark!$D$9:$D$48,COLUMNS(Benchmark!$D$9:H48),) -> 1 | H66: =INDEX(Benchmark!$D$9:$D$48,COLUMNS(Benchmark!$D$9:I48),) -> 1 | I66: =INDEX(Benchmark!$D$9:$D$48,COLUMNS(Benchmark!$D$9:J48),) -> 1 | J66: =INDEX(Benchmark!$D$9:$D$48,COLUMNS(Benchmark!$D$9:K48),) -> 1 | K66: =INDEX(Benchmark!$D$9:$D$48,COLUMNS(Benchmark!$D$9:L48),) -> 1 | L66: =INDEX(Benchmark!$D$9:$D$48,COLUMNS(Benchmark!$D$9:M48),) -> 1 | M66: =INDEX(Benchmark!$D$9:$D$48,COLUMNS(Benchmark!$D$9:N48),) -> 1 | N66: =INDEX(Benchmark!$D$9:$D$48,COLUMNS(Benchmark!$D$9:O48),) -> 1 | O66: =INDEX(Benchmark!$D$9:$D$48,COLUMNS(Benchmark!$D$9:P48),) -> 1 | P66: =INDEX(Benchmark!$D$9:$D$48,COLUMNS(Benchmark!$D$9:Q48),) -> 1 | Q66: =INDEX(Benchmark!$D$9:$D$48,COLUMNS(Benchmark!$D$9:R48),) -> 1 | R66: =INDEX(Benchmark!$D$9:$D$48,COLUMNS(Benchmark!$D$9:S48),) -> 1 | S66: =INDEX(Benchmark!$D$9:$D$48,COLUMNS(Benchmark!$D$9:T48),) -> 1 | T66: =INDEX(Benchmark!$D$9:$D$48,COLUMNS(Benchmark!$D$9:U48),) -> 1 | U66: =INDEX(Benchmark!$D$9:$D$48,COLUMNS(Benchmark!$D$9:V48),) -> 1 | V66: =INDEX(Benchmark!$D$9:$D$48,COLUMNS(Benchmark!$D$9:W48),) -> 1 | W66: =INDEX(Benchmark!$D$9:$D$48,COLUMNS(Benchmark!$D$9:X48),) -> 1 | X66: =INDEX(Benchmark!$D$9:$D$48,COLUMNS(Benchmark!$D$9:Y48),) -> 1 | Y66: =INDEX(Benchmark!$D$9:$D$48,COLUMNS(Benchmark!$D$9:Z48),) -> 1 | Z66: =INDEX(Benchmark!$D$9:$D$48,COLUMNS(Benchmark!$D$9:AA48),) -> 1 | AA66: =INDEX(Benchmark!$D$9:$D$48,COLUMNS(Benchmark!$D$9:AB48),) -> 1 | AB66: =INDEX(Benchmark!$D$9:$D$48,COLUMNS(Benchmark!$D$9:AC48),) -> 1 | AC66: =INDEX(Benchmark!$D$9:$D$48,COLUMNS(Benchmark!$D$9:AD48),) -> 1 | AD66: =INDEX(Benchmark!$D$9:$D$48,COLUMNS(Benchmark!$D$9:AE48),) -> 1 | AE66: =INDEX(Benchmark!$D$9:$D$48,COLUMNS(Benchmark!$D$9:AF48),) -> 1 | AF66: =INDEX(Benchmark!$D$9:$D$48,COLUMNS(Benchmark!$D$9:AG48),) -> 1 | AG66: =INDEX(Benchmark!$D$9:$D$48,COLUMNS(Benchmark!$D$9:AH48),) -> 1 | AH66: =INDEX(Benchmark!$D$9:$D$48,COLUMNS(Benchmark!$D$9:AI48),) -> 1 | AI66: =INDEX(Benchmark!$D$9:$D$48,COLUMNS(Benchmark!$D$9:AJ48),) -> 1 | AJ66: =INDEX(Benchmark!$D$9:$D$48,COLUMNS(Benchmark!$D$9:AK48),) -> 1 | AK66: =INDEX(Benchmark!$D$9:$D$48,COLUMNS(Benchmark!$D$9:AL48),) -> 0 | AL66: =INDEX(Benchmark!$D$9:$D$48,COLUMNS(Benchmark!$D$9:AM48),) -> 0 | AM66: =INDEX(Benchmark!$D$9:$D$48,COLUMNS(Benchmark!$D$9:AN48),) -> 0 | AN66: =INDEX(Benchmark!$D$9:$D$48,COLUMNS(Benchmark!$D$9:AO48),) -> 0 | AO66: =INDEX(Benchmark!$D$9:$D$48,COLUMNS(Benchmark!$D$9:AP48),) -> 0 | AP66: =INDEX(Benchmark!$D$9:$D$48,COLUMNS(Benchmark!$D$9:AQ48),) -> 0
B68: Ranking | C68: =IFERROR(RANK(C70,$C$70:$AP$70,0),"") -> 33 | D68: =IFERROR(RANK(D70,$C$70:$AP$70,0),"") -> 22 | E68: 1 | F68: 9 | G68: 30 | H68: 7 | I68: 26 | J68: 17 | K68: 24 | L68: 18 | M68: 13 | N68: 20 | O68: 12 | P68: 31 | Q68: 4 | R68: 27 | S68: 5 | T68: 29 | U68: 3 | V68: 32 | W68: 11 | X68: 25 | Y68: 21 | Z68: 15 | AA68: 14 | AB68: 28 | AC68: 6 | AD68: 16 | AE68: 2 | AF68: 19 | AG68: 23 | AH68: 8 | AI68: 10 | AJ68: 34
C69: =C11 -> Assurant Chile | D69: =D11 -> AVLA Crédito | E69: BCI Seguros | F69: BNP Paribas Cardif | G69: Cesce Chile | H69: Chubb Generales | I69: Coface Chile | J69: Consorcio Nacional | K69: Contempora | L69: Continental Crédito | M69: Continental Generales | N69: Everest Generales | O69: FID Chile | P69: HDI Gar. y Cré. | Q69: HDI Seguros | R69: Konsegur | S69: Liberty Seguros | T69: M. de Carabineros | U69: Mapfre | V69: MetLife Generales | W69: Orion Seguros | X69: Orsan Crédito | Y69: Porvenir | Z69: Reale Chile | AA69: Renta Nacional | AB69: Solunión Chile | AC69: Southbridge | AD69: Starr International | AE69: Suramericana | AF69: Unnio | AG69: Zenit Seguros | AH69: Zurich Chile | AI69: Zurich Santander
C70: =IFERROR(IF(C66=1,VLOOKUP($C$99,$B$12:$AQ$64,C73+1,FALSE)+C71/1000000,""),"") -> 364,688 | D70: 2,080,008 | E70: 26,243,291 | F70: 7,899,073 | G70: 487,183 | H70: 15,098,241 | I70: 1,103,230 | J70: 4,296,044 | K70: 1,275,649 | L70: 4,019,796 | M70: 4,906,905 | N70: 2,702,321 | O70: 5,021,909 | P70: 445,733 | Q70: 21,400,338 | R70: 1,089,655 | S70: 15,708,794 | T70: 537,909 | U70: 21,617,611 | V70: 387,234 | W70: 5,478,751 | X70: 1,114,353 | Y70: 2,297,999 | Z70: 4,639,330 | AA70: 4,656,509 | AB70: 735,759 | AC70: 15,101,098 | AD70: 4,435,360 | AE70: 26,020,134 | AF70: 3,362,668 | AG70: 1,956,626 | AH70: 7,955,164 | AI70: 7,195,629 | AJ70: 0
C71: 40 | D71: =C71-1 -> 39 | E71: =D71-1 -> 38 | F71: 37 | G71: 36 | H71: 35 | I71: 34 | J71: 33 | K71: 32 | L71: 31 | M71: 30 | N71: 29 | O71: 28 | P71: 27 | Q71: 26 | R71: 25 | S71: 24 | T71: 23 | U71: 22 | V71: 21 | W71: 20 | X71: 19 | Y71: 18 | Z71: 17 | AA71: 16 | AB71: 15 | AC71: 14 | AD71: 13 | AE71: 12 | AF71: 11 | AG71: 10 | AH71: 9 | AI71: 8 | AJ71: 7 | AK71: 6 | AL71: 5 | AM71: 4 | AN71: 3 | AO71: 2 | AP71: 1
B73: Ranking Ordenado | C73: 1 | D73: 2 | E73: 3 | F73: 4 | G73: 5 | H73: 6 | I73: 7 | J73: 8 | K73: 9 | L73: 10 | M73: 11 | N73: 12 | O73: 13 | P73: 14 | Q73: 15 | R73: 16 | S73: 17 | T73: 18 | U73: 19 | V73: 20 | W73: 21 | X73: 22 | Y73: 23 | Z73: 24 | AA73: 25 | AB73: 26 | AC73: 27 | AD73: 28 | AE73: 29 | AF73: 30 | AG73: 31 | AH73: 32 | AI73: 33 | AJ73: 34 | AK73: 35 | AL73: 36 | AM73: 37 | AN73: 38 | AO73: 39 | AP73: 40
C74: =IFERROR(HLOOKUP(C73,$C$68:$AP$69,2,FALSE),"") -> BCI Seguros | D74: =IFERROR(HLOOKUP(D73,$C$68:$AP$69,2,FALSE),"") -> Suramericana | E74: =IFERROR(HLOOKUP(E73,$C$68:$AP$69,2,FALSE),"") -> Mapfre | F74: HDI Seguros | G74: Liberty Seguros | H74: Southbridge | I74: Chubb Generales | J74: Zurich Chile | K74: BNP Paribas Cardif | L74: Zurich Santander | M74: Orion Seguros | N74: FID Chile | O74: Continental Generales | P74: Renta Nacional | Q74: Reale Chile | R74: Starr International | S74: Consorcio Nacional | T74: Continental Crédito | U74: Unnio | V74: Everest Generales | W74: Porvenir | X74: AVLA Crédito | Y74: Zenit Seguros | Z74: Contempora | AA74: Orsan Crédito | AB74: Coface Chile | AC74: Konsegur | AD74: Solunión Chile | AE74: M. de Carabineros | AF74: Cesce Chile | AG74: HDI Gar. y Cré. | AH74: MetLife Generales | AI74: Assurant Chile
C75: =IFERROR((HLOOKUP(C73,$C$68:$AP$70,3,FALSE)-HLOOKUP(C73,$C$68:$AP$71,4,FALSE)/1000000)/$C$93,"") -> 26,243 | D75: =IFERROR((HLOOKUP(D73,$C$68:$AP$70,3,FALSE)-HLOOKUP(D73,$C$68:$AP$71,4,FALSE)/1000000)/$C$93,"") -> 26,020 | E75: 21,618 | F75: 21,400 | G75: 15,709 | H75: =IFERROR((HLOOKUP(H73,$C$68:$AP$70,3,FALSE)-HLOOKUP(H73,$C$68:$AP$71,4,FALSE)/1000000)/$C$93,"") -> 15,101 | I75: 15,098 | J75: 7,955 | K75: 7,899 | L75: 7,196 | M75: 5,479 | N75: 5,022 | O75: 4,907 | P75: 4,657 | Q75: 4,639 | R75: 4,435 | S75: 4,296 | T75: 4,020 | U75: 3,363 | V75: 2,702 | W75: 2,298 | X75: 2,080 | Y75: 1,957 | Z75: 1,276 | AA75: 1,114 | AB75: 1,103 | AC75: 1,090 | AD75: 736 | AE75: 538 | AF75: 487 | AG75: 446 | AH75: 387 | AI75: 365 | AJ75: 0
C76: =IF(ISNUMBER(C75),CONCATENATE(C74," - ",C73),"") -> BCI Seguros - 1 | D76: =IF(ISNUMBER(D75),CONCATENATE(D74," - ",D73),"") -> Suramericana - 2 | E76: Mapfre - 3 | F76: HDI Seguros - 4 | G76: Liberty Seguros - 5 | H76: Southbridge - 6 | I76: Chubb Generales - 7 | J76: Zurich Chile - 8 | K76: BNP Paribas Cardif - 9 | L76: Zurich Santander - 10 | M76: Orion Seguros - 11 | N76: FID Chile - 12 | O76: Continental Generales - 13 | P76: Renta Nacional - 14 | Q76: Reale Chile - 15 | R76: Starr International - 16 | S76: Consorcio Nacional - 17 | T76: Continental Crédito - 18 | U76: Unnio - 19 | V76: Everest Generales - 20 | W76: Porvenir - 21 | X76: AVLA Crédito - 22 | Y76: Zenit Seguros - 23 | Z76: Contempora - 24 | AA76: Orsan Crédito - 25 | AB76: Coface Chile - 26 | AC76: Konsegur - 27 | AD76: Solunión Chile - 28 | AE76: M. de Carabineros - 29 | AF76: Cesce Chile - 30 | AG76: HDI Gar. y Cré. - 31 | AH76: MetLife Generales - 32 | AI76: Assurant Chile - 33 | AJ76: - 34
B78: A Destacar | C78: =IF($C$102=C74,C75,"") ->  | AJ78: 0
B80: Total Activo | C80: =HLOOKUP(C74,$C$11:$AP$64,2,FALSE) -> 26,243,291 | D80: 26,020,134 | E80: 21,617,611 | F80: 21,400,338 | G80: 15,708,794 | H80: 15,101,098 | I80: 15,098,241 | J80: 7,955,164 | K80: 7,899,073 | L80: 7,195,629 | M80: 5,478,751 | N80: 5,021,909 | O80: 4,906,905 | P80: 4,656,509 | Q80: 4,639,330 | R80: 4,435,360 | S80: 4,296,044 | T80: 4,019,796 | U80: 3,362,668 | V80: 2,702,321 | W80: 2,297,999 | X80: 2,080,008 | Y80: 1,956,626 | Z80: 1,275,649 | AA80: 1,114,353 | AB80: 1,103,230 | AC80: 1,089,655 | AD80: 735,759 | AE80: 537,909 | AF80: 487,183 | AG80: 445,733 | AH80: 387,234 | AI80: 364,688 | AJ80: 0 | AK80: 0 | AL80: 0 | AM80: 0 | AN80: 0 | AO80: 0 | AP80: 0
B81: Total Inversiones Financieras | C81: =HLOOKUP(C74,$C$11:$AP$64,3,FALSE) -> 9,383,115 | D81: 4,559,199 | E81: 2,918,472 | F81: 7,021,193 | G81: 5,783,318 | H81: 3,268,173 | I81: 5,707,750 | J81: 2,984,494 | K81: 5,280,156 | L81: 3,524,919 | M81: 663,683 | N81: 359,837 | O81: 473,360 | P81: 1,182,483 | Q81: 842,426 | R81: 501,319 | S81: 1,278,998 | T81: 2,502,296 | U81: 427,776 | V81: 894,320 | W81: 361,764 | X81: 557,352 | Y81: 677,810 | Z81: 148,523 | AA81: 484,708 | AB81: 559,689 | AC81: 192,964 | AD81: 224,639 | AE81: 510,544 | AF81: 93,553 | AG81: 200,480 | AH81: 290,777 | AI81: 276,180 | AJ81: 0 | AK81: 0 | AL81: 0 | AM81: 0 | AN81: 0 | AO81: 0 | AP81: 0
B82: Total Inversiones Inmobiliarias | C82: =HLOOKUP(C74,$C$11:$AP$64,14,FALSE) -> 916,493 | D82: 209,679 | E82: 58,156 | F82: 235,935 | G82: 250,637 | H82: 28,004 | I82: 93,263 | J82: 25,343 | K82: 257,258 | L82: 69,710 | M82: 630 | N82: 8,093 | O82: 29,475 | P82: 72,756 | Q82: 32,545 | R82: 6,802 | S82: 124,805 | T82: 154,320 | U82: 5,727 | V82: 0 | W82: 223 | X82: 109,204 | Y82: 33 | Z82: 305 | AA82: 398 | AB82: 1,771 | AC82: 32,651 | AD82: 7,935 | AE82: 27,039 | AF82: 13,972 | AG82: 9 | AH82: 0 | AI82: 0 | AJ82: 0 | AK82: 0 | AL82: 0 | AM82: 0 | AN82: 0 | AO82: 0 | AP82: 0
B83: Activos No Corrientes Mantenidos Para La Venta | C83: =HLOOKUP(C74,$C$11:$AP$64,20,FALSE) -> 0 | D83: 0 | E83: 0 | F83: 0 | G83: 0 | H83: 0 | I83: 0 | J83: 0 | K83: 0 | L83: 0 | M83: 0 | N83: 0 | O83: 0 | P83: 0 | Q83: 0 | R83: 0 | S83: 0 | T83: 0 | U83: 0 | V83: 0 | W83: 0 | X83: 0 | Y83: 0 | Z83: 0 | AA83: 0 | AB83: 0 | AC83: 0 | AD83: 0 | AE83: 0 | AF83: 0 | AG83: 0 | AH83: 0 | AI83: 0 | AJ83: 0 | AK83: 0 | AL83: 0 | AM83: 0 | AN83: 0 | AO83: 0 | AP83: 0
B84: Total Cuentas De Seguros | C84: =HLOOKUP(C74,$C$11:$AP$64,21,FALSE) -> 14,928,841 | D84: 20,423,797 | E84: 18,152,153 | F84: 11,912,023 | G84: 8,180,748 | H84: 11,496,438 | I84: 6,705,720 | J84: 4,303,859 | K84: 532,824 | L84: 3,228,373 | M84: 4,747,797 | N84: 4,294,801 | O84: 4,209,536 | P84: 3,164,311 | Q84: 3,158,519 | R84: 3,880,928 | S84: 2,588,269 | T84: 1,123,262 | U84: 2,769,527 | V84: 1,682,660 | W84: 1,906,140 | X84: 1,046,846 | Y84: 1,244,813 | Z84: 1,056,475 | AA84: 556,951 | AB84: 457,504 | AC84: 819,594 | AD84: 447,529 | AE84: 0 | AF84: 348,332 | AG84: 229,239 | AH84: 14,142 | AI84: 39,988 | AJ84: 0 | AK84: 0 | AL84: 0 | AM84: 0 | AN84: 0 | AO84: 0 | AP84: 0
B85: Otros Activos | C85: =HLOOKUP(C74,$C$11:$AP$64,43,FALSE) -> 0 | D85: 265,982 | E85: 6,631 | F85: 12,210 | G85: 66,629 | H85: 0 | I85: 1,778,730 | J85: 16 | K85: 1,095,755 | L85: 96,160 | M85: 8,945 | N85: 75,386 | O85: 7,319 | P85: 3,912 | Q85: 28,106 | R85: 0 | S85: 52,316 | T85: 0 | U85: 25,009 | V85: 0 | W85: 186 | X85: 0 | Y85: 0 | Z85: 4,076 | AA85: 16,441 | AB85: 0 | AC85: 757 | AD85: 120 | AE85: 0 | AF85: 12 | AG85: 0 | AH85: 0 | AI85: 0 | AJ85: 0 | AK85: 0 | AL85: 0 | AM85: 0 | AN85: 0 | AO85: 0 | AP85: 0
B87: Inversiones Financieras | C87: =IFERROR(C81/C$80,"") -> 35.8% | D87: =IFERROR(D81/D$80,"") -> 17.5% | E87: 13.5% | F87: 32.8% | G87: 36.8% | H87: 21.6% | I87: 37.8% | J87: 37.5% | K87: 66.8% | L87: 49.0% | M87: 12.1% | N87: 7.2% | O87: 9.6% | P87: 25.4% | Q87: 18.2% | R87: 11.3% | S87: 29.8% | T87: 62.2% | U87: 12.7% | V87: 33.1% | W87: 15.7% | X87: 26.8% | Y87: 34.6% | Z87: 11.6% | AA87: 43.5% | AB87: 50.7% | AC87: 17.7% | AD87: 30.5% | AE87: 94.9% | AF87: 19.2% | AG87: 45.0% | AH87: 75.1% | AI87: 75.7%
B88: Inversiones Inmobiliarias | C88: =IFERROR(C82/C$80,"") -> 3.5% | D88: =IFERROR(D82/D$80,"") -> 0.8% | E88: 0.3% | F88: 1.1% | G88: 1.6% | H88: 0.2% | I88: 0.6% | J88: 0.3% | K88: 3.3% | L88: 1.0% | M88: 0.0% | N88: 0.2% | O88: 0.6% | P88: 1.6% | Q88: 0.7% | R88: 0.2% | S88: 2.9% | T88: 3.8% | U88: 0.2% | V88: 0.0% | W88: 0.0% | X88: 5.3% | Y88: 0.0% | Z88: 0.0% | AA88: 0.0% | AB88: 0.2% | AC88: 3.0% | AD88: 1.1% | AE88: 5.0% | AF88: 2.9% | AG88: 0.0% | AH88: 0.0% | AI88: 0.0%
B89: Activos No Corrientes Mantenidos para la Venta | C89: =IFERROR(C83/C$80,"") -> 0.0% | D89: =IFERROR(D83/D$80,"") -> 0.0% | E89: 0.0% | F89: 0.0% | G89: 0.0% | H89: 0.0% | I89: 0.0% | J89: 0.0% | K89: 0.0% | L89: 0.0% | M89: 0.0% | N89: 0.0% | O89: 0.0% | P89: 0.0% | Q89: 0.0% | R89: 0.0% | S89: 0.0% | T89: 0.0% | U89: 0.0% | V89: 0.0% | W89: 0.0% | X89: 0.0% | Y89: 0.0% | Z89: 0.0% | AA89: 0.0% | AB89: 0.0% | AC89: 0.0% | AD89: 0.0% | AE89: 0.0% | AF89: 0.0% | AG89: 0.0% | AH89: 0.0% | AI89: 0.0%
B90: Cuentas de Seguros | C90: =IFERROR(C84/C$80,"") -> 56.9% | D90: =IFERROR(D84/D$80,"") -> 78.5% | E90: 84.0% | F90: 55.7% | G90: 52.1% | H90: 76.1% | I90: 44.4% | J90: 54.1% | K90: 6.7% | L90: 44.9% | M90: 86.7% | N90: 85.5% | O90: 85.8% | P90: 68.0% | Q90: 68.1% | R90: 87.5% | S90: 60.2% | T90: 27.9% | U90: 82.4% | V90: 62.3% | W90: 82.9% | X90: 50.3% | Y90: 63.6% | Z90: 82.8% | AA90: 50.0% | AB90: 41.5% | AC90: 75.2% | AD90: 60.8% | AE90: 0.0% | AF90: 71.5% | AG90: 51.4% | AH90: 3.7% | AI90: 11.0%
B91: Otros Activos | C91: =IFERROR(C85/C$80,"") -> 0.0% | D91: =IFERROR(D85/D$80,"") -> 1.0% | E91: 0.0% | F91: 0.1% | G91: 0.4% | H91: 0.0% | I91: 11.8% | J91: 0.0% | K91: 13.9% | L91: 1.3% | M91: 0.2% | N91: 1.5% | O91: 0.1% | P91: 0.1% | Q91: 0.6% | R91: 0.0% | S91: 1.2% | T91: 0.0% | U91: 0.7% | V91: 0.0% | W91: 0.0% | X91: 0.0% | Y91: 0.0% | Z91: 0.3% | AA91: 1.5% | AB91: 0.0% | AC91: 0.1% | AD91: 0.0% | AE91: 0.0% | AF91: 0.0% | AG91: 0.0% | AH91: 0.0% | AI91: 0.0%
B93: Unidades Gráfico | C93: =IF(MAX(C70:AP70)<100000,1,IF(AND(MAX(C70:AP70)>=100000,MAX(C70:AP70)<100000000),1000,IF(MAX(C70:AP70)>=100000000,1000000))) -> 1,000 | D93: 1,000,000 | E93: 1,000 | F93: 1 | G93: =INDEX(D94:F96,MATCH(Índice!$H$60,C94:C96,0),MATCH(C93,D93:F93,0)) -> Miles de UF
C94: =Índice!H61 -> Cifras en UF al 30.06.2023 | D94: Millones de UF | E94: Miles de UF | F94: UF
C95: =Índice!H62 -> Cifras en M$ al 30.06.2023 | D95: Miles de Millones de Pesos | E95: Millones de Pesos | F95: Miles de Pesos
C96: =Índice!H63 -> Cifras en US$ al 30.06.2023 | D96: Millones de USD | E96: Miles de USD | F96: USD
C98: Seleccionar Cuenta a Graficar
C99: 5.10.00.00 Total Activo
C101: Compañía a Destacar

Sheet Gen. Pasivos
C2: Volver al Índice
B8: Pasivos en Seguros Generales
B9: =Índice!H60 -> Cifras en UF al 30.06.2023
C11: =IF('Datos Generales'!C7="","",'Datos Generales'!C7) -> Assurant Chile | D11: =IF('Datos Generales'!D7="","",'Datos Generales'!D7) -> AVLA Crédito | E11: =IF('Datos Generales'!E7="","",'Datos Generales'!E7) -> BCI Seguros | F11: =IF('Datos Generales'!F7="","",'Datos Generales'!F7) -> BNP Paribas Cardif | G11: =IF('Datos Generales'!G7="","",'Datos Generales'!G7) -> Cesce Chile | H11: =IF('Datos Generales'!H7="","",'Datos Generales'!H7) -> Chubb Generales | I11: =IF('Datos Generales'!I7="","",'Datos Generales'!I7) -> Coface Chile | J11: =IF('Datos Generales'!J7="","",'Datos Generales'!J7) -> Consorcio Nacional | K11: =IF('Datos Generales'!K7="","",'Datos Generales'!K7) -> Contempora | L11: =IF('Datos Generales'!L7="","",'Datos Generales'!L7) -> Continental Crédito | M11: =IF('Datos Generales'!M7="","",'Datos Generales'!M7) -> Continental Generales | N11: =IF('Datos Generales'!N7="","",'Datos Generales'!N7) -> Everest Generales | O11: =IF('Datos Generales'!O7="","",'Datos Generales'!O7) -> FID Chile | P11: =IF('Datos Generales'!P7="","",'Datos Generales'!P7) -> HDI Gar. y Cré. | Q11: =IF('Datos Generales'!Q7="","",'Datos Generales'!Q7) -> HDI Seguros | R11: =IF('Datos Generales'!R7="","",'Datos Generales'!R7) -> Konsegur | S11: =IF('Datos Generales'!S7="","",'Datos Generales'!S7) -> Liberty Seguros | T11: =IF('Datos Generales'!T7="","",'Datos Generales'!T7) -> M. de Carabineros | U11: =IF('Datos Generales'!U7="","",'Datos Generales'!U7) -> Mapfre | V11: =IF('Datos Generales'!V7="","",'Datos Generales'!V7) -> MetLife Generales | W11: =IF('Datos Generales'!W7="","",'Datos Generales'!W7) -> Orion Seguros | X11: =IF('Datos Generales'!X7="","",'Datos Generales'!X7) -> Orsan Crédito | Y11: =IF('Datos Generales'!Y7="","",'Datos Generales'!Y7) -> Porvenir | Z11: =IF('Datos Generales'!Z7="","",'Datos Generales'!Z7) -> Reale Chile | AA11: =IF('Datos Generales'!AA7="","",'Datos Generales'!AA7) -> Renta Nacional | AB11: =IF('Datos Generales'!AB7="","",'Datos Generales'!AB7) -> Solunión Chile | AC11: =IF('Datos Generales'!AC7="","",'Datos Generales'!AC7) -> Southbridge | AD11: =IF('Datos Generales'!AD7="","",'Datos Generales'!AD7) -> Starr International | AE11: =IF('Datos Generales'!AE7="","",'Datos Generales'!AE7) -> Suramericana | AF11: =IF('Datos Generales'!AF7="","",'Datos Generales'!AF7) -> Unnio | AG11: =IF('Datos Generales'!AG7="","",'Datos Generales'!AG7) -> Zenit Seguros | AH11: =IF('Datos Generales'!AH7="","",'Datos Generales'!AH7) -> Zurich Chile | AI11: =IF('Datos Generales'!AI7="","",'Datos Generales'!AI7) -> Zurich Santander | AJ11: =IF('Datos Generales'!AJ7="","",'Datos Generales'!AJ7) ->  | AK11: =IF('Datos Generales'!AK7="","",'Datos Generales'!AK7) ->  | AL11: =IF('Datos Generales'!AL7="","",'Datos Generales'!AL7) ->  | AM11: =IF('Datos Generales'!AM7="","",'Datos Generales'!AM7) ->  | AN11: =IF('Datos Generales'!AN7="","",'Datos Generales'!AN7) ->  | AO11: =IF('Datos Generales'!AO7="","",'Datos Generales'!AO7) ->  | AP11: =IF('Datos Generales'!AP7="","",'Datos Generales'!AP7) ->  | AQ11: =IF('Datos Generales'!AQ7="","",'Datos Generales'!AQ7) -> Mercado
B12: ='Datos Generales'!B67 -> 5.21.00.00 Total Pasivo | C12: =Índice!$G$60*'Datos Generales'!C67 -> 103,335 | D12: =Índice!$G$60*'Datos Generales'!D67 -> 1,570,938 | E12: =Índice!$G$60*'Datos Generales'!E67 -> 21,190,529 | F12: =Índice!$G$60*'Datos Generales'!F67 -> 4,465,011 | G12: =Índice!$G$60*'Datos Generales'!G67 -> 383,620 | H12: =Índice!$G$60*'Datos Generales'!H67 -> 9,229,651 | I12: =Índice!$G$60*'Datos Generales'!I67 -> 670,683 | J12: =Índice!$G$60*'Datos Generales'!J67 -> 3,177,201 | K12: =Índice!$G$60*'Datos Generales'!K67 -> 1,135,916 | L12: =Índice!$G$60*'Datos Generales'!L67 -> 1,605,921 | M12: =Índice!$G$60*'Datos Generales'!M67 -> 4,528,139 | N12: =Índice!$G$60*'Datos Generales'!N67 -> 2,269,915 | O12: =Índice!$G$60*'Datos Generales'!O67 -> 4,402,388 | P12: =Índice!$G$60*'Datos Generales'!P67 -> 299,220 | Q12: =Índice!$G$60*'Datos Generales'!Q67 -> 17,029,507 | R12: =Índice!$G$60*'Datos Generales'!R67 -> 1,389,225 | S12: =Índice!$G$60*'Datos Generales'!S67 -> 11,803,757 | T12: =Índice!$G$60*'Datos Generales'!T67 -> 53,662 | U12: =Índice!$G$60*'Datos Generales'!U67 -> 20,043,478 | V12: =Índice!$G$60*'Datos Generales'!V67 -> 117,732 | W12: =Índice!$G$60*'Datos Generales'!W67 -> 5,051,228 | X12: =Índice!$G$60*'Datos Generales'!X67 -> 892,747 | Y12: =Índice!$G$60*'Datos Generales'!Y67 -> 2,086,643 | Z12: =Índice!$G$60*'Datos Generales'!Z67 -> 3,828,227 | AA12: =Índice!$G$60*'Datos Generales'!AA67 -> 3,894,110 | AB12: =Índice!$G$60*'Datos Generales'!AB67 -> 519,299 | AC12: =Índice!$G$60*'Datos Generales'!AC67 -> 13,363,719 | AD12: =Índice!$G$60*'Datos Generales'!AD67 -> 4,033,070 | AE12: =Índice!$G$60*'Datos Generales'!AE67 -> 22,908,645 | AF12: =Índice!$G$60*'Datos Generales'!AF67 -> 3,100,323 | AG12: =Índice!$G$60*'Datos Generales'!AG67 -> 1,556,672 | AH12: =Índice!$G$60*'Datos Generales'!AH67 -> 6,285,004 | AI12: =Índice!$G$60*'Datos Generales'!AI67 -> 5,036,549 | AJ12: =Índice!$G$60*'Datos Generales'!AJ67 -> 0 | AK12: =Índice!$G$60*'Datos Generales'!AK67 -> 0 | AL12: =Índice!$G$60*'Datos Generales'!AL67 -> 0 | AM12: =Índice!$G$60*'Datos Generales'!AM67 -> 0 | AN12: =Índice!$G$60*'Datos Generales'!AN67 -> 0 | AO12: =Índice!$G$60*'Datos Generales'!AO67 -> 0 | AP12: =Índice!$G$60*'Datos Generales'!AP67 -> 0 | AQ12: =Índice!$G$60*'Datos Generales'!AQ67 -> 178,026,060
B13: ='Datos Generales'!B68 -> 5.21.10.00 Pasivos Financieros | C13: =Índice!$G$60*'Datos Generales'!C68 -> 0 | D13: =Índice!$G$60*'Datos Generales'!D68 -> 0 | E13: =Índice!$G$60*'Datos Generales'!E68 -> 17,275 | F13: =Índice!$G$60*'Datos Generales'!F68 -> 0 | G13: =Índice!$G$60*'Datos Generales'!G68 -> 0 | H13: =Índice!$G$60*'Datos Generales'!H68 -> 0 | I13: =Índice!$G$60*'Datos Generales'!I68 -> 0 | J13: =Índice!$G$60*'Datos Generales'!J68 -> 113 | K13: =Índice!$G$60*'Datos Generales'!K68 -> 0 | L13: =Índice!$G$60*'Datos Generales'!L68 -> 0 | M13: =Índice!$G$60*'Datos Generales'!M68 -> 0 | N13: =Índice!$G$60*'Datos Generales'!N68 -> 0 | O13: =Índice!$G$60*'Datos Generales'!O68 -> 0 | P13: =Índice!$G$60*'Datos Generales'!P68 -> 0 | Q13: =Índice!$G$60*'Datos Generales'!Q68 -> 0 | R13: =Índice!$G$60*'Datos Generales'!R68 -> 28,117 | S13: =Índice!$G$60*'Datos Generales'!S68 -> 0 | T13: =Índice!$G$60*'Datos Generales'!T68 -> 0 | U13: =Índice!$G$60*'Datos Generales'!U68 -> 0 | V13: =Índice!$G$60*'Datos Generales'!V68 -> 0 | W13: =Índice!$G$60*'Datos Generales'!W68 -> 0 | X13: =Índice!$G$60*'Datos Generales'!X68 -> 0 | Y13: =Índice!$G$60*'Datos Generales'!Y68 -> 0 | Z13: =Índice!$G$60*'Datos Generales'!Z68 -> 133,441 | AA13: =Índice!$G$60*'Datos Generales'!AA68 -> 0 | AB13: =Índice!$G$60*'Datos Generales'!AB68 -> 0 | AC13: =Índice!$G$60*'Datos Generales'!AC68 -> 0 | AD13: =Índice!$G$60*'Datos Generales'!AD68 -> 1,834 | AE13: =Índice!$G$60*'Datos Generales'!AE68 -> 0 | AF13: =Índice!$G$60*'Datos Generales'!AF68 -> 0 | AG13: =Índice!$G$60*'Datos Generales'!AG68 -> 0 | AH13: =Índice!$G$60*'Datos Generales'!AH68 -> 0 | AI13: =Índice!$G$60*'Datos Generales'!AI68 -> 10,145 | AJ13: =Índice!$G$60*'Datos Generales'!AJ68 -> 0 | AK13: =Índice!$G$60*'Datos Generales'!AK68 -> 0 | AL13: =Índice!$G$60*'Datos Generales'!AL68 -> 0 | AM13: =Índice!$G$60*'Datos Generales'!AM68 -> 0 | AN13: =Índice!$G$60*'Datos Generales'!AN68 -> 0 | AO13: =Índice!$G$60*'Datos Generales'!AO68 -> 0 | AP13: =Índice!$G$60*'Datos Generales'!AP68 -> 0 | AQ13: =Índice!$G$60*'Datos Generales'!AQ68 -> 190,925
B14: ='Datos Generales'!B69 -> 5.21.20.00 Pasivos No Corrientes Mantenidos Para La Venta | C14: =Índice!$G$60*'Datos Generales'!C69 -> 0 | D14: =Índice!$G$60*'Datos Generales'!D69 -> 0 | E14: =Índice!$G$60*'Datos Generales'!E69 -> 0 | F14: =Índice!$G$60*'Datos Generales'!F69 -> 0 | G14: =Índice!$G$60*'Datos Generales'!G69 -> 0 | H14: =Índice!$G$60*'Datos Generales'!H69 -> 0 | I14: =Índice!$G$60*'Datos Generales'!I69 -> 0 | J14: =Índice!$G$60*'Datos Generales'!J69 -> 0 | K14: =Índice!$G$60*'Datos Generales'!K69 -> 0 | L14: =Índice!$G$60*'Datos Generales'!L69 -> 0 | M14: =Índice!$G$60*'Datos Generales'!M69 -> 0 | N14: =Índice!$G$60*'Datos Generales'!N69 -> 0 | O14: =Índice!$G$60*'Datos Generales'!O69 -> 0 | P14: =Índice!$G$60*'Datos Generales'!P69 -> 0 | Q14: =Índice!$G$60*'Datos Generales'!Q69 -> 0 | R14: =Índice!$G$60*'Datos Generales'!R69 -> 0 | S14: =Índice!$G$60*'Datos Generales'!S69 -> 0 | T14: =Índice!$G$60*'Datos Generales'!T69 -> 0 | U14: =Índice!$G$60*'Datos Generales'!U69 -> 0 | V14: =Índice!$G$60*'Datos Generales'!V69 -> 0 | W14: =Índice!$G$60*'Datos Generales'!W69 -> 0 | X14: =Índice!$G$60*'Datos Generales'!X69 -> 0 | Y14: =Índice!$G$60*'Datos Generales'!Y69 -> 0 | Z14: =Índice!$G$60*'Datos Generales'!Z69 -> 0 | AA14: =Índice!$G$60*'Datos Generales'!AA69 -> 0 | AB14: =Índice!$G$60*'Datos Generales'!AB69 -> 0 | AC14: =Índice!$G$60*'Datos Generales'!AC69 -> 0 | AD14: =Índice!$G$60*'Datos Generales'!AD69 -> 0 | AE14: =Índice!$G$60*'Datos Generales'!AE69 -> 0 | AF14: =Índice!$G$60*'Datos Generales'!AF69 -> 0 | AG14: =Índice!$G$60*'Datos Generales'!AG69 -> 0 | AH14: =Índice!$G$60*'Datos Generales'!AH69 -> 0 | AI14: =Índice!$G$60*'Datos Generales'!AI69 -> 0 | AJ14: =Índice!$G$60*'Datos Generales'!AJ69 -> 0 | AK14: =Índice!$G$60*'Datos Generales'!AK69 -> 0 | AL14: =Índice!$G$60*'Datos Generales'!AL69 -> 0 | AM14: =Índice!$G$60*'Datos Generales'!AM69 -> 0 | AN14: =Índice!$G$60*'Datos Generales'!AN69 -> 0 | AO14: =Índice!$G$60*'Datos Generales'!AO69 -> 0 | AP14: =Índice!$G$60*'Datos Generales'!AP69 -> 0 | AQ14: =Índice!$G$60*'Datos Generales'!AQ69 -> 0
B15: ='Datos Generales'!B70 -> 5.21.30.00 Total Cuentas De Seguros | C15: =Índice!$G$60*'Datos Generales'!C70 -> 54,699 | D15: =Índice!$G$60*'Datos Generales'!D70 -> 1,442,625 | E15: =Índice!$G$60*'Datos Generales'!E70 -> 18,942,758 | F15: =Índice!$G$60*'Datos Generales'!F70 -> 3,293,744 | G15: =Índice!$G$60*'Datos Generales'!G70 -> 372,689 | H15: =Índice!$G$60*'Datos Generales'!H70 -> 7,577,224 | I15: =Índice!$G$60*'Datos Generales'!I70 -> 578,806 | J15: =Índice!$G$60*'Datos Generales'!J70 -> 2,846,369 | K15: =Índice!$G$60*'Datos Generales'!K70 -> 1,102,010 | L15: =Índice!$G$60*'Datos Generales'!L70 -> 1,470,208 | M15: =Índice!$G$60*'Datos Generales'!M70 -> 4,406,136 | N15: =Índice!$G$60*'Datos Generales'!N70 -> 2,154,365 | O15: =Índice!$G$60*'Datos Generales'!O70 -> 4,229,117 | P15: =Índice!$G$60*'Datos Generales'!P70 -> 290,897 | Q15: =Índice!$G$60*'Datos Generales'!Q70 -> 15,601,885 | R15: =Índice!$G$60*'Datos Generales'!R70 -> 1,335,893 | S15: =Índice!$G$60*'Datos Generales'!S70 -> 10,317,181 | T15: =Índice!$G$60*'Datos Generales'!T70 -> 2,541 | U15: =Índice!$G$60*'Datos Generales'!U70 -> 19,580,257 | V15: =Índice!$G$60*'Datos Generales'!V70 -> 81,246 | W15: =Índice!$G$60*'Datos Generales'!W70 -> 4,916,786 | X15: =Índice!$G$60*'Datos Generales'!X70 -> 845,797 | Y15: =Índice!$G$60*'Datos Generales'!Y70 -> 2,053,645 | Z15: =Índice!$G$60*'Datos Generales'!Z70 -> 3,479,399 | AA15: =Índice!$G$60*'Datos Generales'!AA70 -> 3,653,992 | AB15: =Índice!$G$60*'Datos Generales'!AB70 -> 402,478 | AC15: =Índice!$G$60*'Datos Generales'!AC70 -> 12,974,332 | AD15: =Índice!$G$60*'Datos Generales'!AD70 -> 3,997,441 | AE15: =Índice!$G$60*'Datos Generales'!AE70 -> 20,872,382 | AF15: =Índice!$G$60*'Datos Generales'!AF70 -> 3,016,407 | AG15: =Índice!$G$60*'Datos Generales'!AG70 -> 1,355,731 | AH15: =Índice!$G$60*'Datos Generales'!AH70 -> 5,605,806 | AI15: =Índice!$G$60*'Datos Generales'!AI70 -> 4,200,125 | AJ15: =Índice!$G$60*'Datos Generales'!AJ70 -> 0 | AK15: =Índice!$G$60*'Datos Generales'!AK70 -> 0 | AL15: =Índice!$G$60*'Datos Generales'!AL70 -> 0 | AM15: =Índice!$G$60*'Datos Generales'!AM70 -> 0 | AN15: =Índice!$G$60*'Datos Generales'!AN70 -> 0 | AO15: =Índice!$G$60*'Datos Generales'!AO70 -> 0 | AP15: =Índice!$G$60*'Datos Generales'!AP70 -> 0 | AQ15: =Índice!$G$60*'Datos Generales'!AQ70 -> 163,054,970
B16: ='Datos Generales'!B71 -> 5.21.31.00 Reservas Técnicas | C16: =Índice!$G$60*'Datos Generales'!C71 -> 54,274 | D16: =Índice!$G$60*'Datos Generales'!D71 -> 1,341,156 | E16: =Índice!$G$60*'Datos Generales'!E71 -> 16,966,283 | F16: =Índice!$G$60*'Datos Generales'!F71 -> 3,132,718 | G16: =Índice!$G$60*'Datos Generales'!G71 -> 343,739 | H16: =Índice!$G$60*'Datos Generales'!H71 -> 6,122,086 | I16: =Índice!$G$60*'Datos Generales'!I71 -> 387,572 | J16: =Índice!$G$60*'Datos Generales'!J71 -> 2,514,711 | K16: =Índice!$G$60*'Datos Generales'!K71 -> 842,578 | L16: =Índice!$G$60*'Datos Generales'!L71 -> 1,171,410 | M16: =Índice!$G$60*'Datos Generales'!M71 -> 3,560,140 | N16: =Índice!$G$60*'Datos Generales'!N71 -> 1,201,893 | O16: =Índice!$G$60*'Datos Generales'!O71 -> 3,177,476 | P16: =Índice!$G$60*'Datos Generales'!P71 -> 260,468 | Q16: =Índice!$G$60*'Datos Generales'!Q71 -> 14,008,085 | R16: =Índice!$G$60*'Datos Generales'!R71 -> 1,087,755 | S16: =Índice!$G$60*'Datos Generales'!S71 -> 8,623,357 | T16: =Índice!$G$60*'Datos Generales'!T71 -> 2,488 | U16: =Índice!$G$60*'Datos Generales'!U71 -> 17,213,762 | V16: =Índice!$G$60*'Datos Generales'!V71 -> 58,208 | W16: =Índice!$G$60*'Datos Generales'!W71 -> 3,404,074 | X16: =Índice!$G$60*'Datos Generales'!X71 -> 604,147 | Y16: =Índice!$G$60*'Datos Generales'!Y71 -> 1,776,929 | Z16: =Índice!$G$60*'Datos Generales'!Z71 -> 2,805,703 | AA16: =Índice!$G$60*'Datos Generales'!AA71 -> 2,977,714 | AB16: =Índice!$G$60*'Datos Generales'!AB71 -> 367,621 | AC16: =Índice!$G$60*'Datos Generales'!AC71 -> 11,129,642 | AD16: =Índice!$G$60*'Datos Generales'!AD71 -> 3,171,239 | AE16: =Índice!$G$60*'Datos Generales'!AE71 -> 16,603,104 | AF16: =Índice!$G$60*'Datos Generales'!AF71 -> 2,418,011 | AG16: =Índice!$G$60*'Datos Generales'!AG71 -> 1,316,278 | AH16: =Índice!$G$60*'Datos Generales'!AH71 -> 5,206,017 | AI16: =Índice!$G$60*'Datos Generales'!AI71 -> 2,960,030 | AJ16: =Índice!$G$60*'Datos Generales'!AJ71 -> 0 | AK16: =Índice!$G$60*'Datos Generales'!AK71 -> 0 | AL16: =Índice!$G$60*'Datos Generales'!AL71 -> 0 | AM16: =Índice!$G$60*'Datos Generales'!AM71 -> 0 | AN16: =Índice!$G$60*'Datos Generales'!AN71 -> 0 | AO16: =Índice!$G$60*'Datos Generales'!AO71 -> 0 | AP16: =Índice!$G$60*'Datos Generales'!AP71 -> 0 | AQ16: =Índice!$G$60*'Datos Generales'!AQ71 -> 136,810,670
B17: ='Datos Generales'!B72 -> 5.21.31.10 Reserva De Riesgos En Curso | C17: =Índice!$G$60*'Datos Generales'!C72 -> 37,733 | D17: =Índice!$G$60*'Datos Generales'!D72 -> 752,474 | E17: =Índice!$G$60*'Datos Generales'!E72 -> 11,860,005 | F17: =Índice!$G$60*'Datos Generales'!F72 -> 2,198,700 | G17: =Índice!$G$60*'Datos Generales'!G72 -> 124,171 | H17: =Índice!$G$60*'Datos Generales'!H72 -> 3,895,844 | I17: =Índice!$G$60*'Datos Generales'!I72 -> 168,787 | J17: =Índice!$G$60*'Datos Generales'!J72 -> 1,848,805 | K17: =Índice!$G$60*'Datos Generales'!K72 -> 507,299 | L17: =Índice!$G$60*'Datos Generales'!L72 -> 342,372 | M17: =Índice!$G$60*'Datos Generales'!M72 -> 1,439,447 | N17: =Índice!$G$60*'Datos Generales'!N72 -> 935,483 | O17: =Índice!$G$60*'Datos Generales'!O72 -> 1,698,989 | P17: =Índice!$G$60*'Datos Generales'!P72 -> 20,620 | Q17: =Índice!$G$60*'Datos Generales'!Q72 -> 8,034,062 | R17: =Índice!$G$60*'Datos Generales'!R72 -> 93,690 | S17: =Índice!$G$60*'Datos Generales'!S72 -> 4,231,894 | T17: =Índice!$G$60*'Datos Generales'!T72 -> 253 | U17: =Índice!$G$60*'Datos Generales'!U72 -> 4,677,656 | V17: =Índice!$G$60*'Datos Generales'!V72 -> 20,860 | W17: =Índice!$G$60*'Datos Generales'!W72 -> 1,762,712 | X17: =Índice!$G$60*'Datos Generales'!X72 -> 490,111 | Y17: =Índice!$G$60*'Datos Generales'!Y72 -> 654,804 | Z17: =Índice!$G$60*'Datos Generales'!Z72 -> 1,970,715 | AA17: =Índice!$G$60*'Datos Generales'!AA72 -> 1,809,074 | AB17: =Índice!$G$60*'Datos Generales'!AB72 -> 80,927 | AC17: =Índice!$G$60*'Datos Generales'!AC72 -> 3,834,277 | AD17: =Índice!$G$60*'Datos Generales'!AD72 -> 1,434,527 | AE17: =Índice!$G$60*'Datos Generales'!AE72 -> 7,639,649 | AF17: =Índice!$G$60*'Datos Generales'!AF72 -> 1,150,277 | AG17: =Índice!$G$60*'Datos Generales'!AG72 -> 990,125 | AH17: =Índice!$G$60*'Datos Generales'!AH72 -> 2,942,827 | AI17: =Índice!$G$60*'Datos Generales'!AI72 -> 2,267,720 | AJ17: =Índice!$G$60*'Datos Generales'!AJ72 -> 0 | AK17: =Índice!$G$60*'Datos Generales'!AK72 -> 0 | AL17: =Índice!$G$60*'Datos Generales'!AL72 -> 0 | AM17: =Índice!$G$60*'Datos Generales'!AM72 -> 0 | AN17: =Índice!$G$60*'Datos Generales'!AN72 -> 0 | AO17: =Índice!$G$60*'Datos Generales'!AO72 -> 0 | AP17: =Índice!$G$60*'Datos Generales'!AP72 -> 0 | AQ17: =Índice!$G$60*'Datos Generales'!AQ72 -> 69,916,887
B18: ='Datos Generales'!B73 -> 5.21.31.20 Reservas Seguros Previsionales | C18: =Índice!$G$60*'Datos Generales'!C73 -> 0 | D18: =Índice!$G$60*'Datos Generales'!D73 -> 0 | E18: =Índice!$G$60*'Datos Generales'!E73 -> 0 | F18: =Índice!$G$60*'Datos Generales'!F73 -> 0 | G18: =Índice!$G$60*'Datos Generales'!G73 -> 0 | H18: =Índice!$G$60*'Datos Generales'!H73 -> 0 | I18: =Índice!$G$60*'Datos Generales'!I73 -> 0 | J18: =Índice!$G$60*'Datos Generales'!J73 -> 0 | K18: =Índice!$G$60*'Datos Generales'!K73 -> 0 | L18: =Índice!$G$60*'Datos Generales'!L73 -> 0 | M18: =Índice!$G$60*'Datos Generales'!M73 -> 0 | N18: =Índice!$G$60*'Datos Generales'!N73 -> 0 | O18: =Índice!$G$60*'Datos Generales'!O73 -> 0 | P18: =Índice!$G$60*'Datos Generales'!P73 -> 0 | Q18: =Índice!$G$60*'Datos Generales'!Q73 -> 0 | R18: =Índice!$G$60*'Datos Generales'!R73 -> 0 | S18: =Índice!$G$60*'Datos Generales'!S73 -> 0 | T18: =Índice!$G$60*'Datos Generales'!T73 -> 0 | U18: =Índice!$G$60*'Datos Generales'!U73 -> 0 | V18: =Índice!$G$60*'Datos Generales'!V73 -> 0 | W18: =Índice!$G$60*'Datos Generales'!W73 -> 0 | X18: =Índice!$G$60*'Datos Generales'!X73 -> 0 | Y18: =Índice!$G$60*'Datos Generales'!Y73 -> 0 | Z18: =Índice!$G$60*'Datos Generales'!Z73 -> 0 | AA18: =Índice!$G$60*'Datos Generales'!AA73 -> 0 | AB18: =Índice!$G$60*'Datos Generales'!AB73 -> 0 | AC18: =Índice!$G$60*'Datos Generales'!AC73 -> 0 | AD18: =Índice!$G$60*'Datos Generales'!AD73 -> 0 | AE18: =Índice!$G$60*'Datos Generales'!AE73 -> 0 | AF18: =Índice!$G$60*'Datos Generales'!AF73 -> 0 | AG18: =Índice!$G$60*'Datos Generales'!AG73 -> 0 | AH18: =Índice!$G$60*'Datos Generales'!AH73 -> 0 | AI18: =Índice!$G$60*'Datos Generales'!AI73 -> 0 | AJ18: =Índice!$G$60*'Datos Generales'!AJ73 -> 0 | AK18: =Índice!$G$60*'Datos Generales'!AK73 -> 0 | AL18: =Índice!$G$60*'Datos Generales'!AL73 -> 0 | AM18: =Índice!$G$60*'Datos Generales'!AM73 -> 0 | AN18: =Índice!$G$60*'Datos Generales'!AN73 -> 0 | AO18: =Índice!$G$60*'Datos Generales'!AO73 -> 0 | AP18: =Índice!$G$60*'Datos Generales'!AP73 -> 0 | AQ18: =Índice!$G$60*'Datos Generales'!AQ73 -> 0
B19: ='Datos Generales'!B74 -> 5.21.31.21 Reserva Rentas Vitalicias | C19: =Índice!$G$60*'Datos Generales'!C74 -> 0 | D19: =Índice!$G$60*'Datos Generales'!D74 -> 0 | E19: =Índice!$G$60*'Datos Generales'!E74 -> 0 | F19: =Índice!$G$60*'Datos Generales'!F74 -> 0 | G19: =Índice!$G$60*'Datos Generales'!G74 -> 0 | H19: =Índice!$G$60*'Datos Generales'!H74 -> 0 | I19: =Índice!$G$60*'Datos Generales'!I74 -> 0 | J19: =Índice!$G$60*'Datos Generales'!J74 -> 0 | K19: =Índice!$G$60*'Datos Generales'!K74 -> 0 | L19: =Índice!$G$60*'Datos Generales'!L74 -> 0 | M19: =Índice!$G$60*'Datos Generales'!M74 -> 0 | N19: =Índice!$G$60*'Datos Generales'!N74 -> 0 | O19: =Índice!$G$60*'Datos Generales'!O74 -> 0 | P19: =Índice!$G$60*'Datos Generales'!P74 -> 0 | Q19: =Índice!$G$60*'Datos Generales'!Q74 -> 0 | R19: =Índice!$G$60*'Datos Generales'!R74 -> 0 | S19: =Índice!$G$60*'Datos Generales'!S74 -> 0 | T19: =Índice!$G$60*'Datos Generales'!T74 -> 0 | U19: =Índice!$G$60*'Datos Generales'!U74 -> 0 | V19: =Índice!$G$60*'Datos Generales'!V74 -> 0 | W19: =Índice!$G$60*'Datos Generales'!W74 -> 0 | X19: =Índice!$G$60*'Datos Generales'!X74 -> 0 | Y19: =Índice!$G$60*'Datos Generales'!Y74 -> 0 | Z19: =Índice!$G$60*'Datos Generales'!Z74 -> 0 | AA19: =Índice!$G$60*'Datos Generales'!AA74 -> 0 | AB19: =Índice!$G$60*'Datos Generales'!AB74 -> 0 | AC19: =Índice!$G$60*'Datos Generales'!AC74 -> 0 | AD19: =Índice!$G$60*'Datos Generales'!AD74 -> 0 | AE19: =Índice!$G$60*'Datos Generales'!AE74 -> 0 | AF19: =Índice!$G$60*'Datos Generales'!AF74 -> 0 | AG19: =Índice!$G$60*'Datos Generales'!AG74 -> 0 | AH19: =Índice!$G$60*'Datos Generales'!AH74 -> 0 | AI19: =Índice!$G$60*'Datos Generales'!AI74 -> 0 | AJ19: =Índice!$G$60*'Datos Generales'!AJ74 -> 0 | AK19: =Índice!$G$60*'Datos Generales'!AK74 -> 0 | AL19: =Índice!$G$60*'Datos Generales'!AL74 -> 0 | AM19: =Índice!$G$60*'Datos Generales'!AM74 -> 0 | AN19: =Índice!$G$60*'Datos Generales'!AN74 -> 0 | AO19: =Índice!$G$60*'Datos Generales'!AO74 -> 0 | AP19: =Índice!$G$60*'Datos Generales'!AP74 -> 0 | AQ19: =Índice!$G$60*'Datos Generales'!AQ74 -> 0
B20: ='Datos Generales'!B75 -> 5.21.31.22 Reserva Seguro Invalidez Y Sobrevivencia | C20: =Índice!$G$60*'Datos Generales'!C75 -> 0 | D20: =Índice!$G$60*'Datos Generales'!D75 -> 0 | E20: =Índice!$G$60*'Datos Generales'!E75 -> 0 | F20: =Índice!$G$60*'Datos Generales'!F75 -> 0 | G20: =Índice!$G$60*'Datos Generales'!G75 -> 0 | H20: =Índice!$G$60*'Datos Generales'!H75 -> 0 | I20: =Índice!$G$60*'Datos Generales'!I75 -> 0 | J20: =Índice!$G$60*'Datos Generales'!J75 -> 0 | K20: =Índice!$G$60*'Datos Generales'!K75 -> 0 | L20: =Índice!$G$60*'Datos Generales'!L75 -> 0 | M20: =Índice!$G$60*'Datos Generales'!M75 -> 0 | N20: =Índice!$G$60*'Datos Generales'!N75 -> 0 | O20: =Índice!$G$60*'Datos Generales'!O75 -> 0 | P20: =Índice!$G$60*'Datos Generales'!P75 -> 0 | Q20: =Índice!$G$60*'Datos Generales'!Q75 -> 0 | R20: =Índice!$G$60*'Datos Generales'!R75 -> 0 | S20: =Índice!$G$60*'Datos Generales'!S75 -> 0 | T20: =Índice!$G$60*'Datos Generales'!T75 -> 0 | U20: =Índice!$G$60*'Datos Generales'!U75 -> 0 | V20: =Índice!$G$60*'Datos Generales'!V75 -> 0 | W20: =Índice!$G$60*'Datos Generales'!W75 -> 0 | X20: =Índice!$G$60*'Datos Generales'!X75 -> 0 | Y20: =Índice!$G$60*'Datos Generales'!Y75 -> 0 | Z20: =Índice!$G$60*'Datos Generales'!Z75 -> 0 | AA20: =Índice!$G$60*'Datos Generales'!AA75 -> 0 | AB20: =Índice!$G$60*'Datos Generales'!AB75 -> 0 | AC20: =Índice!$G$60*'Datos Generales'!AC75 -> 0 | AD20: =Índice!$G$60*'Datos Generales'!AD75 -> 0 | AE20: =Índice!$G$60*'Datos Generales'!AE75 -> 0 | AF20: =Índice!$G$60*'Datos Generales'!AF75 -> 0 | AG20: =Índice!$G$60*'Datos Generales'!AG75 -> 0 | AH20: =Índice!$G$60*'Datos Generales'!AH75 -> 0 | AI20: =Índice!$G$60*'Datos Generales'!AI75 -> 0 | AJ20: =Índice!$G$60*'Datos Generales'!AJ75 -> 0 | AK20: =Índice!$G$60*'Datos Generales'!AK75 -> 0 | AL20: =Índice!$G$60*'Datos Generales'!AL75 -> 0 | AM20: =Índice!$G$60*'Datos Generales'!AM75 -> 0 | AN20: =Índice!$G$60*'Datos Generales'!AN75 -> 0 | AO20: =Índice!$G$60*'Datos Generales'!AO75 -> 0 | AP20: =Índice!$G$60*'Datos Generales'!AP75 -> 0 | AQ20: =Índice!$G$60*'Datos Generales'!AQ75 -> 0
B21: ='Datos Generales'!B76 -> 5.21.31.30 Reserva Matemática | C21: =Índice!$G$60*'Datos Generales'!C76 -> 0 | D21: =Índice!$G$60*'Datos Generales'!D76 -> 0 | E21: =Índice!$G$60*'Datos Generales'!E76 -> 0 | F21: =Índice!$G$60*'Datos Generales'!F76 -> 0 | G21: =Índice!$G$60*'Datos Generales'!G76 -> 0 | H21: =Índice!$G$60*'Datos Generales'!H76 -> 0 | I21: =Índice!$G$60*'Datos Generales'!I76 -> 0 | J21: =Índice!$G$60*'Datos Generales'!J76 -> 0 | K21: =Índice!$G$60*'Datos Generales'!K76 -> 0 | L21: =Índice!$G$60*'Datos Generales'!L76 -> 0 | M21: =Índice!$G$60*'Datos Generales'!M76 -> 0 | N21: =Índice!$G$60*'Datos Generales'!N76 -> 0 | O21: =Índice!$G$60*'Datos Generales'!O76 -> 0 | P21: =Índice!$G$60*'Datos Generales'!P76 -> 0 | Q21: =Índice!$G$60*'Datos Generales'!Q76 -> 0 | R21: =Índice!$G$60*'Datos Generales'!R76 -> 0 | S21: =Índice!$G$60*'Datos Generales'!S76 -> 0 | T21: =Índice!$G$60*'Datos Generales'!T76 -> 0 | U21: =Índice!$G$60*'Datos Generales'!U76 -> 0 | V21: =Índice!$G$60*'Datos Generales'!V76 -> 0 | W21: =Índice!$G$60*'Datos Generales'!W76 -> 0 | X21: =Índice!$G$60*'Datos Generales'!X76 -> 0 | Y21: =Índice!$G$60*'Datos Generales'!Y76 -> 0 | Z21: =Índice!$G$60*'Datos Generales'!Z76 -> 0 | AA21: =Índice!$G$60*'Datos Generales'!AA76 -> 0 | AB21: =Índice!$G$60*'Datos Generales'!AB76 -> 0 | AC21: =Índice!$G$60*'Datos Generales'!AC76 -> 0 | AD21: =Índice!$G$60*'Datos Generales'!AD76 -> 0 | AE21: =Índice!$G$60*'Datos Generales'!AE76 -> 0 | AF21: =Índice!$G$60*'Datos Generales'!AF76 -> 0 | AG21: =Índice!$G$60*'Datos Generales'!AG76 -> 0 | AH21: =Índice!$G$60*'Datos Generales'!AH76 -> 0 | AI21: =Índice!$G$60*'Datos Generales'!AI76 -> 0 | AJ21: =Índice!$G$60*'Datos Generales'!AJ76 -> 0 | AK21: =Índice!$G$60*'Datos Generales'!AK76 -> 0 | AL21: =Índice!$G$60*'Datos Generales'!AL76 -> 0 | AM21: =Índice!$G$60*'Datos Generales'!AM76 -> 0 | AN21: =Índice!$G$60*'Datos Generales'!AN76 -> 0 | AO21: =Índice!$G$60*'Datos Generales'!AO76 -> 0 | AP21: =Índice!$G$60*'Datos Generales'!AP76 -> 0 | AQ21: =Índice!$G$60*'Datos Generales'!AQ76 -> 0
B22: ='Datos Generales'!B77 -> 5.21.31.40 Reserva Valor Del Fondo | C22: =Índice!$G$60*'Datos Generales'!C77 -> 0 | D22: =Índice!$G$60*'Datos Generales'!D77 -> 0 | E22: =Índice!$G$60*'Datos Generales'!E77 -> 0 | F22: =Índice!$G$60*'Datos Generales'!F77 -> 0 | G22: =Índice!$G$60*'Datos Generales'!G77 -> 0 | H22: =Índice!$G$60*'Datos Generales'!H77 -> 0 | I22: =Índice!$G$60*'Datos Generales'!I77 -> 0 | J22: =Índice!$G$60*'Datos Generales'!J77 -> 0 | K22: =Índice!$G$60*'Datos Generales'!K77 -> 0 | L22: =Índice!$G$60*'Datos Generales'!L77 -> 0 | M22: =Índice!$G$60*'Datos Generales'!M77 -> 0 | N22: =Índice!$G$60*'Datos Generales'!N77 -> 0 | O22: =Índice!$G$60*'Datos Generales'!O77 -> 0 | P22: =Índice!$G$60*'Datos Generales'!P77 -> 0 | Q22: =Índice!$G$60*'Datos Generales'!Q77 -> 0 | R22: =Índice!$G$60*'Datos Generales'!R77 -> 0 | S22: =Índice!$G$60*'Datos Generales'!S77 -> 0 | T22: =Índice!$G$60*'Datos Generales'!T77 -> 0 | U22: =Índice!$G$60*'Datos Generales'!U77 -> 0 | V22: =Índice!$G$60*'Datos Generales'!V77 -> 0 | W22: =Índice!$G$60*'Datos Generales'!W77 -> 0 | X22: =Índice!$G$60*'Datos Generales'!X77 -> 0 | Y22: =Índice!$G$60*'Datos Generales'!Y77 -> 0 | Z22: =Índice!$G$60*'Datos Generales'!Z77 -> 0 | AA22: =Índice!$G$60*'Datos Generales'!AA77 -> 0 | AB22: =Índice!$G$60*'Datos Generales'!AB77 -> 0 | AC22: =Índice!$G$60*'Datos Generales'!AC77 -> 0 | AD22: =Índice!$G$60*'Datos Generales'!AD77 -> 0 | AE22: =Índice!$G$60*'Datos Generales'!AE77 -> 0 | AF22: =Índice!$G$60*'Datos Generales'!AF77 -> 0 | AG22: =Índice!$G$60*'Datos Generales'!AG77 -> 0 | AH22: =Índice!$G$60*'Datos Generales'!AH77 -> 0 | AI22: =Índice!$G$60*'Datos Generales'!AI77 -> 0 | AJ22: =Índice!$G$60*'Datos Generales'!AJ77 -> 0 | AK22: =Índice!$G$60*'Datos Generales'!AK77 -> 0 | AL22: =Índice!$G$60*'Datos Generales'!AL77 -> 0 | AM22: =Índice!$G$60*'Datos Generales'!AM77 -> 0 | AN22: =Índice!$G$60*'Datos Generales'!AN77 -> 0 | AO22: =Índice!$G$60*'Datos Generales'!AO77 -> 0 | AP22: =Índice!$G$60*'Datos Generales'!AP77 -> 0 | AQ22: =Índice!$G$60*'Datos Generales'!AQ77 -> 0
B23: ='Datos Generales'!B78 -> 5.21.31.50 Reserva Rentas Privadas | C23: =Índice!$G$60*'Datos Generales'!C78 -> 0 | D23: =Índice!$G$60*'Datos Generales'!D78 -> 0 | E23: =Índice!$G$60*'Datos Generales'!E78 -> 0 | F23: =Índice!$G$60*'Datos Generales'!F78 -> 0 | G23: =Índice!$G$60*'Datos Generales'!G78 -> 0 | H23: =Índice!$G$60*'Datos Generales'!H78 -> 0 | I23: =Índice!$G$60*'Datos Generales'!I78 -> 0 | J23: =Índice!$G$60*'Datos Generales'!J78 -> 0 | K23: =Índice!$G$60*'Datos Generales'!K78 -> 0 | L23: =Índice!$G$60*'Datos Generales'!L78 -> 0 | M23: =Índice!$G$60*'Datos Generales'!M78 -> 0 | N23: =Índice!$G$60*'Datos Generales'!N78 -> 0 | O23: =Índice!$G$60*'Datos Generales'!O78 -> 0 | P23: =Índice!$G$60*'Datos Generales'!P78 -> 0 | Q23: =Índice!$G$60*'Datos Generales'!Q78 -> 0 | R23: =Índice!$G$60*'Datos Generales'!R78 -> 0 | S23: =Índice!$G$60*'Datos Generales'!S78 -> 0 | T23: =Índice!$G$60*'Datos Generales'!T78 -> 0 | U23: =Índice!$G$60*'Datos Generales'!U78 -> 0 | V23: =Índice!$G$60*'Datos Generales'!V78 -> 0 | W23: =Índice!$G$60*'Datos Generales'!W78 -> 0 | X23: =Índice!$G$60*'Datos Generales'!X78 -> 0 | Y23: =Índice!$G$60*'Datos Generales'!Y78 -> 0 | Z23: =Índice!$G$60*'Datos Generales'!Z78 -> 0 | AA23: =Índice!$G$60*'Datos Generales'!AA78 -> 0 | AB23: =Índice!$G$60*'Datos Generales'!AB78 -> 0 | AC23: =Índice!$G$60*'Datos Generales'!AC78 -> 0 | AD23: =Índice!$G$60*'Datos Generales'!AD78 -> 0 | AE23: =Índice!$G$60*'Datos Generales'!AE78 -> 0 | AF23: =Índice!$G$60*'Datos Generales'!AF78 -> 0 | AG23: =Índice!$G$60*'Datos Generales'!AG78 -> 0 | AH23: =Índice!$G$60*'Datos Generales'!AH78 -> 0 | AI23: =Índice!$G$60*'Datos Generales'!AI78 -> 0 | AJ23: =Índice!$G$60*'Datos Generales'!AJ78 -> 0 | AK23: =Índice!$G$60*'Datos Generales'!AK78 -> 0 | AL23: =Índice!$G$60*'Datos Generales'!AL78 -> 0 | AM23: =Índice!$G$60*'Datos Generales'!AM78 -> 0 | AN23: =Índice!$G$60*'Datos Generales'!AN78 -> 0 | AO23: =Índice!$G$60*'Datos Generales'!AO78 -> 0 | AP23: =Índice!$G$60*'Datos Generales'!AP78 -> 0 | AQ23: =Índice!$G$60*'Datos Generales'!AQ78 -> 0
B24: ='Datos Generales'!B79 -> 5.21.31.60 Reserva De Siniestros | C24: =Índice!$G$60*'Datos Generales'!C79 -> 16,542 | D24: =Índice!$G$60*'Datos Generales'!D79 -> 588,682 | E24: =Índice!$G$60*'Datos Generales'!E79 -> 5,008,901 | F24: =Índice!$G$60*'Datos Generales'!F79 -> 725,070 | G24: =Índice!$G$60*'Datos Generales'!G79 -> 177,060 | H24: =Índice!$G$60*'Datos Generales'!H79 -> 2,172,777 | I24: =Índice!$G$60*'Datos Generales'!I79 -> 218,785 | J24: =Índice!$G$60*'Datos Generales'!J79 -> 506,213 | K24: =Índice!$G$60*'Datos Generales'!K79 -> 329,140 | L24: =Índice!$G$60*'Datos Generales'!L79 -> 807,248 | M24: =Índice!$G$60*'Datos Generales'!M79 -> 2,101,932 | N24: =Índice!$G$60*'Datos Generales'!N79 -> 206,545 | O24: =Índice!$G$60*'Datos Generales'!O79 -> 1,468,446 | P24: =Índice!$G$60*'Datos Generales'!P79 -> 219,961 | Q24: =Índice!$G$60*'Datos Generales'!Q79 -> 5,656,340 | R24: =Índice!$G$60*'Datos Generales'!R79 -> 804,334 | S24: =Índice!$G$60*'Datos Generales'!S79 -> 2,353,853 | T24: =Índice!$G$60*'Datos Generales'!T79 -> 2,235 | U24: =Índice!$G$60*'Datos Generales'!U79 -> 12,503,130 | V24: =Índice!$G$60*'Datos Generales'!V79 -> 25,761 | W24: =Índice!$G$60*'Datos Generales'!W79 -> 1,633,112 | X24: =Índice!$G$60*'Datos Generales'!X79 -> 113,613 | Y24: =Índice!$G$60*'Datos Generales'!Y79 -> 1,105,625 | Z24: =Índice!$G$60*'Datos Generales'!Z79 -> 813,893 | AA24: =Índice!$G$60*'Datos Generales'!AA79 -> 1,134,475 | AB24: =Índice!$G$60*'Datos Generales'!AB79 -> 286,695 | AC24: =Índice!$G$60*'Datos Generales'!AC79 -> 6,900,463 | AD24: =Índice!$G$60*'Datos Generales'!AD79 -> 1,729,382 | AE24: =Índice!$G$60*'Datos Generales'!AE79 -> 8,177,401 | AF24: =Índice!$G$60*'Datos Generales'!AF79 -> 1,252,662 | AG24: =Índice!$G$60*'Datos Generales'!AG79 -> 315,806 | AH24: =Índice!$G$60*'Datos Generales'!AH79 -> 2,218,318 | AI24: =Índice!$G$60*'Datos Generales'!AI79 -> 666,185 | AJ24: =Índice!$G$60*'Datos Generales'!AJ79 -> 0 | AK24: =Índice!$G$60*'Datos Generales'!AK79 -> 0 | AL24: =Índice!$G$60*'Datos Generales'!AL79 -> 0 | AM24: =Índice!$G$60*'Datos Generales'!AM79 -> 0 | AN24: =Índice!$G$60*'Datos Generales'!AN79 -> 0 | AO24: =Índice!$G$60*'Datos Generales'!AO79 -> 0 | AP24: =Índice!$G$60*'Datos Generales'!AP79 -> 0 | AQ24: =Índice!$G$60*'Datos Generales'!AQ79 -> 62,240,585
B25: ='Datos Generales'!B80 -> 5.21.31.70 Reserva Catastrófica De Terremoto | C25: =Índice!$G$60*'Datos Generales'!C80 -> 0 | D25: =Índice!$G$60*'Datos Generales'!D80 -> 0 | E25: =Índice!$G$60*'Datos Generales'!E80 -> 66,000 | F25: =Índice!$G$60*'Datos Generales'!F80 -> 13,830 | G25: =Índice!$G$60*'Datos Generales'!G80 -> 0 | H25: =Índice!$G$60*'Datos Generales'!H80 -> 48,869 | I25: =Índice!$G$60*'Datos Generales'!I80 -> 0 | J25: =Índice!$G$60*'Datos Generales'!J80 -> 5,500 | K25: =Índice!$G$60*'Datos Generales'!K80 -> 5,500 | L25: =Índice!$G$60*'Datos Generales'!L80 -> 0 | M25: =Índice!$G$60*'Datos Generales'!M80 -> 11,000 | N25: =Índice!$G$60*'Datos Generales'!N80 -> 59,864 | O25: =Índice!$G$60*'Datos Generales'!O80 -> 8,938 | P25: =Índice!$G$60*'Datos Generales'!P80 -> 0 | Q25: =Índice!$G$60*'Datos Generales'!Q80 -> 247,425 | R25: =Índice!$G$60*'Datos Generales'!R80 -> 0 | S25: =Índice!$G$60*'Datos Generales'!S80 -> 192,826 | T25: =Índice!$G$60*'Datos Generales'!T80 -> 0 | U25: =Índice!$G$60*'Datos Generales'!U80 -> 27,500 | V25: =Índice!$G$60*'Datos Generales'!V80 -> 4,260 | W25: =Índice!$G$60*'Datos Generales'!W80 -> 8,250 | X25: =Índice!$G$60*'Datos Generales'!X80 -> 0 | Y25: =Índice!$G$60*'Datos Generales'!Y80 -> 16,500 | Z25: =Índice!$G$60*'Datos Generales'!Z80 -> 21,096 | AA25: =Índice!$G$60*'Datos Generales'!AA80 -> 7,700 | AB25: =Índice!$G$60*'Datos Generales'!AB80 -> 0 | AC25: =Índice!$G$60*'Datos Generales'!AC80 -> 68,634 | AD25: =Índice!$G$60*'Datos Generales'!AD80 -> 7,330 | AE25: =Índice!$G$60*'Datos Generales'!AE80 -> 27,500 | AF25: =Índice!$G$60*'Datos Generales'!AF80 -> 13,750 | AG25: =Índice!$G$60*'Datos Generales'!AG80 -> 5,500 | AH25: =Índice!$G$60*'Datos Generales'!AH80 -> 6,661 | AI25: =Índice!$G$60*'Datos Generales'!AI80 -> 26,125 | AJ25: =Índice!$G$60*'Datos Generales'!AJ80 -> 0 | AK25: =Índice!$G$60*'Datos Generales'!AK80 -> 0 | AL25: =Índice!$G$60*'Datos Generales'!AL80 -> 0 | AM25: =Índice!$G$60*'Datos Generales'!AM80 -> 0 | AN25: =Índice!$G$60*'Datos Generales'!AN80 -> 0 | AO25: =Índice!$G$60*'Datos Generales'!AO80 -> 0 | AP25: =Índice!$G$60*'Datos Generales'!AP80 -> 0 | AQ25: =Índice!$G$60*'Datos Generales'!AQ80 -> 900,558
B26: ='Datos Generales'!B81 -> 5.21.31.80 Reserva De Insuficiencia De Prima | C26: =Índice!$G$60*'Datos Generales'!C81 -> 0 | D26: =Índice!$G$60*'Datos Generales'!D81 -> 0 | E26: =Índice!$G$60*'Datos Generales'!E81 -> 0 | F26: =Índice!$G$60*'Datos Generales'!F81 -> 195,118 | G26: =Índice!$G$60*'Datos Generales'!G81 -> 42,508 | H26: =Índice!$G$60*'Datos Generales'!H81 -> 0 | I26: =Índice!$G$60*'Datos Generales'!I81 -> 0 | J26: =Índice!$G$60*'Datos Generales'!J81 -> 150,723 | K26: =Índice!$G$60*'Datos Generales'!K81 -> 639 | L26: =Índice!$G$60*'Datos Generales'!L81 -> 21,791 | M26: =Índice!$G$60*'Datos Generales'!M81 -> 7,761 | N26: =Índice!$G$60*'Datos Generales'!N81 -> 0 | O26: =Índice!$G$60*'Datos Generales'!O81 -> 1,105 | P26: =Índice!$G$60*'Datos Generales'!P81 -> 19,887 | Q26: =Índice!$G$60*'Datos Generales'!Q81 -> 66,003 | R26: =Índice!$G$60*'Datos Generales'!R81 -> 189,731 | S26: =Índice!$G$60*'Datos Generales'!S81 -> 1,844,784 | T26: =Índice!$G$60*'Datos Generales'!T81 -> 0 | U26: =Índice!$G$60*'Datos Generales'!U81 -> 5,475 | V26: =Índice!$G$60*'Datos Generales'!V81 -> 7,328 | W26: =Índice!$G$60*'Datos Generales'!W81 -> 0 | X26: =Índice!$G$60*'Datos Generales'!X81 -> 423 | Y26: =Índice!$G$60*'Datos Generales'!Y81 -> 0 | Z26: =Índice!$G$60*'Datos Generales'!Z81 -> 0 | AA26: =Índice!$G$60*'Datos Generales'!AA81 -> 26,464 | AB26: =Índice!$G$60*'Datos Generales'!AB81 -> 0 | AC26: =Índice!$G$60*'Datos Generales'!AC81 -> 0 | AD26: =Índice!$G$60*'Datos Generales'!AD81 -> 0 | AE26: =Índice!$G$60*'Datos Generales'!AE81 -> 758,554 | AF26: =Índice!$G$60*'Datos Generales'!AF81 -> 1,321 | AG26: =Índice!$G$60*'Datos Generales'!AG81 -> 0 | AH26: =Índice!$G$60*'Datos Generales'!AH81 -> 38,212 | AI26: =Índice!$G$60*'Datos Generales'!AI81 -> 0 | AJ26: =Índice!$G$60*'Datos Generales'!AJ81 -> 0 | AK26: =Índice!$G$60*'Datos Generales'!AK81 -> 0 | AL26: =Índice!$G$60*'Datos Generales'!AL81 -> 0 | AM26: =Índice!$G$60*'Datos Generales'!AM81 -> 0 | AN26: =Índice!$G$60*'Datos Generales'!AN81 -> 0 | AO26: =Índice!$G$60*'Datos Generales'!AO81 -> 0 | AP26: =Índice!$G$60*'Datos Generales'!AP81 -> 0 | AQ26: =Índice!$G$60*'Datos Generales'!AQ81 -> 3,377,827
B27: ='Datos Generales'!B82 -> 5.21.31.90 Otras Reservas Técnicas | C27: =Índice!$G$60*'Datos Generales'!C82 -> 0 | D27: =Índice!$G$60*'Datos Generales'!D82 -> 0 | E27: =Índice!$G$60*'Datos Generales'!E82 -> 31,377 | F27: =Índice!$G$60*'Datos Generales'!F82 -> 0 | G27: =Índice!$G$60*'Datos Generales'!G82 -> 0 | H27: =Índice!$G$60*'Datos Generales'!H82 -> 4,597 | I27: =Índice!$G$60*'Datos Generales'!I82 -> 0 | J27: =Índice!$G$60*'Datos Generales'!J82 -> 3,470 | K27: =Índice!$G$60*'Datos Generales'!K82 -> 0 | L27: =Índice!$G$60*'Datos Generales'!L82 -> 0 | M27: =Índice!$G$60*'Datos Generales'!M82 -> 0 | N27: =Índice!$G$60*'Datos Generales'!N82 -> 0 | O27: =Índice!$G$60*'Datos Generales'!O82 -> 0 | P27: =Índice!$G$60*'Datos Generales'!P82 -> 0 | Q27: =Índice!$G$60*'Datos Generales'!Q82 -> 4,255 | R27: =Índice!$G$60*'Datos Generales'!R82 -> 0 | S27: =Índice!$G$60*'Datos Generales'!S82 -> 0 | T27: =Índice!$G$60*'Datos Generales'!T82 -> 0 | U27: =Índice!$G$60*'Datos Generales'!U82 -> 0 | V27: =Índice!$G$60*'Datos Generales'!V82 -> 0 | W27: =Índice!$G$60*'Datos Generales'!W82 -> 0 | X27: =Índice!$G$60*'Datos Generales'!X82 -> 0 | Y27: =Índice!$G$60*'Datos Generales'!Y82 -> 0 | Z27: =Índice!$G$60*'Datos Generales'!Z82 -> 0 | AA27: =Índice!$G$60*'Datos Generales'!AA82 -> 0 | AB27: =Índice!$G$60*'Datos Generales'!AB82 -> 0 | AC27: =Índice!$G$60*'Datos Generales'!AC82 -> 326,267 | AD27: =Índice!$G$60*'Datos Generales'!AD82 -> 0 | AE27: =Índice!$G$60*'Datos Generales'!AE82 -> 0 | AF27: =Índice!$G$60*'Datos Generales'!AF82 -> 0 | AG27: =Índice!$G$60*'Datos Generales'!AG82 -> 4,847 | AH27: =Índice!$G$60*'Datos Generales'!AH82 -> 0 | AI27: =Índice!$G$60*'Datos Generales'!AI82 -> 0 | AJ27: =Índice!$G$60*'Datos Generales'!AJ82 -> 0 | AK27: =Índice!$G$60*'Datos Generales'!AK82 -> 0 | AL27: =Índice!$G$60*'Datos Generales'!AL82 -> 0 | AM27: =Índice!$G$60*'Datos Generales'!AM82 -> 0 | AN27: =Índice!$G$60*'Datos Generales'!AN82 -> 0 | AO27: =Índice!$G$60*'Datos Generales'!AO82 -> 0 | AP27: =Índice!$G$60*'Datos Generales'!AP82 -> 0 | AQ27: =Índice!$G$60*'Datos Generales'!AQ82 -> 374,813
